Workbook

Sheet Opvarmning og kogning (old) (hidden)
C4: 1997 | D4: 2006 | E4: 2012
B5: Brændsel og fjv | C5: 29891 | D5: 25552 | E5: 14800
B6: El og VP | C6: 1443 | D6: 1656 | E6: 1415
B7: Total | C7: =C5+C6 -> 31334 | D7: =D5+D6 -> 27208 | E7: =E5+E6 -> 16215
C23: Brændsel og fjv | D23: El og VP | E23: Total | F23: Brændsel og fjv | G23: El og VP | H23: Total
C24: TJ | D24: TJ | E24: TJ | F24: % | G24: % | H24: %
A25: 1 | B25: Landbrug | C25: =#REF!+#REF!+#REF!+#REF!+#REF!+#REF!+#REF!+#REF!+#REF! ->  | D25: =#REF!+#REF!+#REF! ->  | E25: =SUM(#REF!)+SUM(#REF!)+SUM(#REF!) ->  | F25: =C25/SUM($C$25:$C$81) ->  | G25: =D25/SUM($D$25:$D$81) ->  | H25: =E25/SUM($E$25:$E$81) ->  | I25: L | L25: =$B$50 -> Plast- og gummiindustri | M25: =$E$50 ->  | N25: =$H$50 -> 
A26: 2 | B26: Gartneri | C26: =#REF!+#REF!+#REF!+#REF!+#REF!+#REF!+#REF!+#REF!+#REF! ->  | D26: =#REF!+#REF!+#REF! ->  | E26: =SUM(#REF!)+SUM(#REF!)+SUM(#REF!) ->  | F26: =C26/SUM($C$25:$C$81) ->  | G26: =D26/SUM($D$25:$D$81) ->  | H26: =E26/SUM($E$25:$E$81) ->  | I26: L | L26: =$B$73 -> Hoteller | M26: =$E$73 ->  | N26: =$H$73 -> 
A27: 3 | B27: Maskinstationer | C27: =#REF!+#REF!+#REF!+#REF!+#REF!+#REF!+#REF!+#REF!+#REF! ->  | D27: =#REF!+#REF!+#REF! ->  | E27: =SUM(#REF!)+SUM(#REF!)+SUM(#REF!) ->  | I27: L | L27: =$B$47 -> Øvrige basiskemikalier | M27: =$E$47 ->  | N27: =$H$47 -> 
A28: 4 | B28: Skovbrug | C28: =#REF!+#REF!+#REF!+#REF!+#REF!+#REF!+#REF!+#REF!+#REF! ->  | D28: =#REF!+#REF!+#REF! ->  | E28: =SUM(#REF!)+SUM(#REF!)+SUM(#REF!) ->  | I28: L | L28: =$B$40 -> Tekstilindustri | M28: =$E$40 ->  | N28: =$H$40 -> 
A29: 5 | B29: Fiskeri | C29: =#REF!+#REF!+#REF!+#REF!+#REF!+#REF!+#REF!+#REF!+#REF! ->  | D29: =#REF!+#REF!+#REF! ->  | E29: =SUM(#REF!)+SUM(#REF!)+SUM(#REF!) ->  | I29: L | L29: =$B$30 -> Indvinding af grus og sten | M29: =$E$30 ->  | N29: =$H$30 -> 
A30: 6 | B30: Indvinding af grus og sten | C30: =#REF!+#REF!+#REF!+#REF!+#REF!+#REF!+#REF!+#REF!+#REF! ->  | D30: =#REF!+#REF!+#REF! ->  | E30: =SUM(#REF!)+SUM(#REF!)+SUM(#REF!) ->  | I30: GS | L30: =$B$30 -> Indvinding af grus og sten | M30: =$E$30 ->  | N30: =$H$30 -> 
A31: 7 | B31: Slagterier | C31: =#REF!+#REF!+#REF!+#REF!+#REF!+#REF!+#REF!+#REF!+#REF! ->  | D31: =#REF!+#REF!+#REF! ->  | E31: =SUM(#REF!)+SUM(#REF!)+SUM(#REF!) ->  | I31: F | L31: =$B$51 -> Glasindustri og keramisk industri | M31: =$E$51 ->  | N31: =$H$51 -> 
A32: 8 | B32: Fiskeindustri | C32: =#REF!+#REF!+#REF!+#REF!+#REF!+#REF!+#REF!+#REF!+#REF! ->  | D32: =#REF!+#REF!+#REF! ->  | E32: =SUM(#REF!)+SUM(#REF!)+SUM(#REF!) ->  | I32: F | L32: =$B$58 -> Metalvareindustri | M32: =$E$58 ->  | N32: =$H$58 -> 
A33: 9 | B33: Mejerier | C33: =#REF!+#REF!+#REF!+#REF!+#REF!+#REF!+#REF!+#REF!+#REF! ->  | D33: =#REF!+#REF!+#REF! ->  | E33: =SUM(#REF!)+SUM(#REF!)+SUM(#REF!) ->  | I33: F | L33: =$B$62 -> Fremstilling af motorer, vindmøller og pumper | M33: =$E$62 ->  | N33: =$H$62 -> 
A34: 10 | B34: Bagerier, brødfabrikker mv. | C34: =#REF!+#REF!+#REF!+#REF!+#REF!+#REF!+#REF!+#REF!+#REF! ->  | D34: =#REF!+#REF!+#REF! ->  | E34: =SUM(#REF!)+SUM(#REF!)+SUM(#REF!) ->  | I34: F | L34: =$B$42 -> Træindustri | M34: =$E$42 ->  | N34: =$H$42 -> 
A35: 11 | B35: Fremstilling af færdige foderblandinger | C35: =#REF!+#REF!+#REF!+#REF!+#REF!+#REF!+#REF!+#REF!+#REF! ->  | D35: =#REF!+#REF!+#REF! ->  | E35: =SUM(#REF!)+SUM(#REF!)+SUM(#REF!) ->  | I35: F | L35: =$B$55 -> Fremstilling af stenuld mv. | M35: =$E$55 ->  | N35: =$H$55 -> 
A36: 12 | B36: Fremstilling af sukker | C36: =#REF!+#REF!+#REF!+#REF!+#REF!+#REF!+#REF!+#REF!+#REF! ->  | D36: =#REF!+#REF!+#REF! ->  | E36: =SUM(#REF!)+SUM(#REF!)+SUM(#REF!) ->  | I36: F | L36: =$B$71 -> Engroshandel | M36: =$E$71 ->  | N36: =$H$71 -> 
A37: 13 | B37: Øvrig anden fødevareindustri | C37: =#REF!+#REF!+#REF!+#REF!+#REF!+#REF!+#REF!+#REF!+#REF! ->  | D37: =#REF!+#REF!+#REF! ->  | E37: =SUM(#REF!)+SUM(#REF!)+SUM(#REF!) ->  | I37: F | L37: =$B$34 -> Bagerier, brødfabrikker mv. | M37: =$E$34 ->  | N37: =$H$34 -> 
A38: 14 | B38: Drikkevareindustri | C38: =#REF!+#REF!+#REF!+#REF!+#REF!+#REF!+#REF!+#REF!+#REF! ->  | D38: =#REF!+#REF!+#REF! ->  | E38: =SUM(#REF!)+SUM(#REF!)+SUM(#REF!) ->  | I38: F | L38: =$B$46 -> Fremstilling af enzymer | M38: =$E$46 ->  | N38: =$H$46 -> 
A39: 15 | B39: Tobaksindustri | C39: =#REF!+#REF!+#REF!+#REF!+#REF!+#REF!+#REF!+#REF!+#REF! ->  | D39: =#REF!+#REF!+#REF! ->  | E39: =SUM(#REF!)+SUM(#REF!)+SUM(#REF!) ->  | I39: AF | L39: =$B$32 -> Fiskeindustri | M39: =$E$32 ->  | N39: =$H$32 -> 
A40: 16 | B40: Tekstilindustri | C40: =#REF!+#REF!+#REF!+#REF!+#REF!+#REF!+#REF!+#REF!+#REF! ->  | D40: =#REF!+#REF!+#REF! ->  | E40: =SUM(#REF!)+SUM(#REF!)+SUM(#REF!) ->  | I40: T | L40: =$B$56 -> Øvrig betonindustri | M40: =$E$56 ->  | N40: =$H$56 -> 
A41: 17 | B41: Beklædningsindustri m.v. | C41: =#REF!+#REF!+#REF!+#REF!+#REF!+#REF!+#REF!+#REF!+#REF! ->  | D41: =#REF!+#REF!+#REF! ->  | E41: =SUM(#REF!)+SUM(#REF!)+SUM(#REF!) ->  | I41: T | L41: =$B$35 -> Fremstilling af færdige foderblandinger | M41: =$E$35 ->  | N41: =$H$35 -> 
A42: 18 | B42: Træindustri | C42: =#REF!+#REF!+#REF!+#REF!+#REF!+#REF!+#REF!+#REF!+#REF! ->  | D42: =#REF!+#REF!+#REF! ->  | E42: =SUM(#REF!)+SUM(#REF!)+SUM(#REF!) ->  | I42: TP | L42: =$B$48 -> Fremstilling af maling og sæbe mv. | M42: =$E$48 ->  | N42: =$H$48 -> 
A43: 19 | B43: Papirindustri | C43: =#REF!+#REF!+#REF!+#REF!+#REF!+#REF!+#REF!+#REF!+#REF! ->  | D43: =#REF!+#REF!+#REF! ->  | E43: =SUM(#REF!)+SUM(#REF!)+SUM(#REF!) ->  | I43: TP | L43: =$B$74 -> Restauranter | M43: =$E$74 ->  | N43: =$H$74 -> 
A44: 20 | B44: Trykkerier | C44: =#REF!+#REF!+#REF!+#REF!+#REF!+#REF!+#REF!+#REF!+#REF! ->  | D44: =#REF!+#REF!+#REF! ->  | E44: =SUM(#REF!)+SUM(#REF!)+SUM(#REF!) ->  | I44: GR | L44: =$B$38 -> Drikkevareindustri | M44: =$E$38 ->  | N44: =$H$38 -> 
A45: 21 | B45: Fremstilling af industrigasser | C45: =#REF!+#REF!+#REF!+#REF!+#REF!+#REF!+#REF!+#REF!+#REF! ->  | D45: =#REF!+#REF!+#REF! ->  | E45: =SUM(#REF!)+SUM(#REF!)+SUM(#REF!) ->  | I45: K | L45: =$B$49 -> Medicinalindustri | M45: =$E$49 ->  | N45: =$H$49 -> 
A46: 22 | B46: Fremstilling af enzymer | C46: =#REF!+#REF!+#REF!+#REF!+#REF!+#REF!+#REF!+#REF!+#REF! ->  | D46: =#REF!+#REF!+#REF! ->  | E46: =SUM(#REF!)+SUM(#REF!)+SUM(#REF!) ->  | I46: BF | L46: =$B$31 -> Slagterier | M46: =$E$31 ->  | N46: =$H$31 -> 
A47: 23 | B47: Øvrige basiskemikalier | C47: =#REF!+#REF!+#REF!+#REF!+#REF!+#REF!+#REF!+#REF!+#REF! ->  | D47: =#REF!+#REF!+#REF! ->  | E47: =SUM(#REF!)+SUM(#REF!)+SUM(#REF!) ->  | I47: K | L47: =$B$36 -> Fremstilling af sukker | M47: =$E$36 ->  | N47: =$H$36 -> 
A48: 24 | B48: Fremstilling af maling og sæbe mv. | C48: =#REF!+#REF!+#REF!+#REF!+#REF!+#REF!+#REF!+#REF!+#REF! ->  | D48: =#REF!+#REF!+#REF! ->  | E48: =SUM(#REF!)+SUM(#REF!)+SUM(#REF!) ->  | I48: K | L48: =$B$54 -> Fremstilling af asfalt og tagpap | M48: =$E$54 ->  | N48: =$H$54 -> 
A49: 25 | B49: Medicinalindustri | C49: =#REF!+#REF!+#REF!+#REF!+#REF!+#REF!+#REF!+#REF!+#REF! ->  | D49: =#REF!+#REF!+#REF! ->  | E49: =SUM(#REF!)+SUM(#REF!)+SUM(#REF!) ->  | I49: BF | L49: =$B$37 -> Øvrig anden fødevareindustri | M49: =$E$37 ->  | N49: =$H$37 -> 
A50: 26 | B50: Plast- og gummiindustri | C50: =#REF!+#REF!+#REF!+#REF!+#REF!+#REF!+#REF!+#REF!+#REF! ->  | D50: =#REF!+#REF!+#REF! ->  | E50: =SUM(#REF!)+SUM(#REF!)+SUM(#REF!) ->  | I50: K | L50: =$B$33 -> Mejerier | M50: =$E$33 ->  | N50: =$H$33 -> 
A51: 27 | B51: Glasindustri og keramisk industri | C51: =#REF!+#REF!+#REF!+#REF!+#REF!+#REF!+#REF!+#REF!+#REF! ->  | D51: =#REF!+#REF!+#REF! ->  | E51: =SUM(#REF!)+SUM(#REF!)+SUM(#REF!) ->  | I51: K | L51: =$B$57 -> Fremstilling af metal | M51: =$E$57 ->  | N51: =$H$57 -> 
A52: 28 | B52: Fremstilling af cement | C52: =#REF!+#REF!+#REF!+#REF!+#REF!+#REF!+#REF!+#REF!+#REF! ->  | D52: =#REF!+#REF!+#REF! ->  | E52: =SUM(#REF!)+SUM(#REF!)+SUM(#REF!) ->  | I52: C | L52: =$B$26 -> Gartneri | M52: =$E$26 ->  | N52: =$H$26 -> 
A53: 29 | B53: Fremstilling af teglsten mv. | C53: =#REF!+#REF!+#REF!+#REF!+#REF!+#REF!+#REF!+#REF!+#REF! ->  | D53: =#REF!+#REF!+#REF! ->  | E53: =SUM(#REF!)+SUM(#REF!)+SUM(#REF!) ->  | I53: C | L53: =$B$52 -> Fremstilling af cement | M53: =$E$52 ->  | N53: =$H$52 -> 
A54: 30 | B54: Fremstilling af asfalt og tagpap | C54: =#REF!+#REF!+#REF!+#REF!+#REF!+#REF!+#REF!+#REF!+#REF! ->  | D54: =#REF!+#REF!+#REF! ->  | E54: =SUM(#REF!)+SUM(#REF!)+SUM(#REF!) ->  | I54: C | L54: =$B$25 -> Landbrug | M54: =$E$25 ->  | N54: =$H$25 -> 
A55: 31 | B55: Fremstilling af stenuld mv. | C55: =#REF!+#REF!+#REF!+#REF!+#REF!+#REF!+#REF!+#REF!+#REF! ->  | D55: =#REF!+#REF!+#REF! ->  | E55: =SUM(#REF!)+SUM(#REF!)+SUM(#REF!) ->  | I55: C
A56: 32 | B56: Øvrig betonindustri | C56: =#REF!+#REF!+#REF!+#REF!+#REF!+#REF!+#REF!+#REF!+#REF! ->  | D56: =#REF!+#REF!+#REF! ->  | E56: =SUM(#REF!)+SUM(#REF!)+SUM(#REF!) ->  | I56: C | N56: =SUM(N25:N54) -> 
A57: 33 | B57: Fremstilling af metal | C57: =#REF!+#REF!+#REF!+#REF!+#REF!+#REF!+#REF!+#REF!+#REF! ->  | D57: =#REF!+#REF!+#REF! ->  | E57: =SUM(#REF!)+SUM(#REF!)+SUM(#REF!) ->  | I57: M
A58: 34 | B58: Metalvareindustri | C58: =#REF!+#REF!+#REF!+#REF!+#REF!+#REF!+#REF!+#REF!+#REF! ->  | D58: =#REF!+#REF!+#REF! ->  | E58: =SUM(#REF!)+SUM(#REF!)+SUM(#REF!) ->  | I58: M
A59: 35 | B59: Fremstilling af computere m.v. | C59: =#REF!+#REF!+#REF!+#REF!+#REF!+#REF!+#REF!+#REF!+#REF! ->  | D59: =#REF!+#REF!+#REF! ->  | E59: =SUM(#REF!)+SUM(#REF!)+SUM(#REF!) ->  | I59: M
A60: 36 | B60: Fremstilling af andet elektronisk udstyr | C60: =#REF!+#REF!+#REF!+#REF!+#REF!+#REF!+#REF!+#REF!+#REF! ->  | D60: =#REF!+#REF!+#REF! ->  | E60: =SUM(#REF!)+SUM(#REF!)+SUM(#REF!) ->  | I60: M
A61: 37 | B61: Fremstilling af husholdningsapparater mv. | C61: =#REF!+#REF!+#REF!+#REF!+#REF!+#REF!+#REF!+#REF!+#REF! ->  | D61: =#REF!+#REF!+#REF! ->  | E61: =SUM(#REF!)+SUM(#REF!)+SUM(#REF!) ->  | I61: M | L61: Landbrug og fiskeri | M61: =SUMIF($I$25:$I$81,"=L",$H$25:$H$81) -> 
A62: 38 | B62: Fremstilling af motorer, vindmøller og pumper | C62: =#REF!+#REF!+#REF!+#REF!+#REF!+#REF!+#REF!+#REF!+#REF! ->  | D62: =#REF!+#REF!+#REF! ->  | E62: =SUM(#REF!)+SUM(#REF!)+SUM(#REF!) ->  | I62: M | L62: Indvinding af grus og sten | M62: =SUMIF($I$25:$I$81,"=GS",$H$25:$H$81) -> 
A63: 39 | B63: Fremstilling af andre maskiner | C63: =#REF!+#REF!+#REF!+#REF!+#REF!+#REF!+#REF!+#REF!+#REF! ->  | D63: =#REF!+#REF!+#REF! ->  | E63: =SUM(#REF!)+SUM(#REF!)+SUM(#REF!) ->  | I63: M | L63: Fødevareindustri | M63: =SUMIF($I$25:$I$81,"=F",$H$25:$H$81) -> 
A64: 40 | B64: Fremstilling af motorkøretøjer | C64: =#REF!+#REF!+#REF!+#REF!+#REF!+#REF!+#REF!+#REF!+#REF! ->  | D64: =#REF!+#REF!+#REF! ->  | E64: =SUM(#REF!)+SUM(#REF!)+SUM(#REF!) ->  | I64: M | L64: Træ og papirindustri | M64: =SUMIF($I$25:$I$81,"=TP",$H$25:$H$81) -> 
A65: 41 | B65: Fremstilling af skibe m.v. | C65: =#REF!+#REF!+#REF!+#REF!+#REF!+#REF!+#REF!+#REF!+#REF! ->  | D65: =#REF!+#REF!+#REF! ->  | E65: =SUM(#REF!)+SUM(#REF!)+SUM(#REF!) ->  | I65: M | L65: Biotek og farma | M65: =SUMIF($I$25:$I$81,"=BF",$H$25:$H$81) -> 
A66: 42 | B66: Møbelindustri | C66: =#REF!+#REF!+#REF!+#REF!+#REF!+#REF!+#REF!+#REF!+#REF! ->  | D66: =#REF!+#REF!+#REF! ->  | E66: =SUM(#REF!)+SUM(#REF!)+SUM(#REF!) ->  | I66: MØ | L66: Kemisk industri | M66: =SUMIF($I$25:$I$81,"=K",$H$25:$H$81) -> 
A67: 43 | B67: Fremstilling af medicinske instrumenter | C67: =#REF!+#REF!+#REF!+#REF!+#REF!+#REF!+#REF!+#REF!+#REF! ->  | D67: =#REF!+#REF!+#REF! ->  | E67: =SUM(#REF!)+SUM(#REF!)+SUM(#REF!) ->  | I67: M | L67: Cement, beton og asfalt | M67: =SUMIF($I$25:$I$81,"=C",$H$25:$H$81) -> 
A68: 44 | B68: Legetøj og anden fremstillingsvirksomhed | C68: =#REF!+#REF!+#REF!+#REF!+#REF!+#REF!+#REF!+#REF!+#REF! ->  | D68: =#REF!+#REF!+#REF! ->  | E68: =SUM(#REF!)+SUM(#REF!)+SUM(#REF!) ->  | I68: AF | L68: Metalvareindustri | M68: =SUMIF($I$25:$I$81,"=M",$H$25:$H$81) -> 
A69: 45 | B69: Reparation og installation af maskiner og udstyr | C69: =#REF!+#REF!+#REF!+#REF!+#REF!+#REF!+#REF!+#REF!+#REF! ->  | D69: =#REF!+#REF!+#REF! ->  | E69: =SUM(#REF!)+SUM(#REF!)+SUM(#REF!) ->  | I69: S | L69: Handel og service | M69: =SUMIF($I$25:$I$81,"=s",$H$25:$H$81) -> 
A70: 46 | B70: Bilhandel og -værksteder mv. | C70: =#REF!+#REF!+#REF!+#REF!+#REF!+#REF!+#REF!+#REF!+#REF! ->  | D70: =#REF!+#REF!+#REF! ->  | E70: =SUM(#REF!)+SUM(#REF!)+SUM(#REF!) ->  | I70: S | L70: Møbelindustri | M70: =SUMIF($I$25:$I$81,"=Mø",$H$25:$H$81) -> 
A71: 47 | B71: Engroshandel | C71: =#REF!+#REF!+#REF!+#REF!+#REF!+#REF!+#REF!+#REF!+#REF! ->  | D71: =#REF!+#REF!+#REF! ->  | E71: =SUM(#REF!)+SUM(#REF!)+SUM(#REF!) ->  | I71: S | L71: Tekstil og beklædning | M71: =SUMIF($I$25:$I$81,"=t",$H$25:$H$81) -> 
A72: 48 | B72: Detailhandel | C72: =#REF!+#REF!+#REF!+#REF!+#REF!+#REF!+#REF!+#REF!+#REF! ->  | D72: =#REF!+#REF!+#REF! ->  | E72: =SUM(#REF!)+SUM(#REF!)+SUM(#REF!) ->  | I72: S
A73: 49 | B73: Hoteller | C73: =#REF!+#REF!+#REF!+#REF!+#REF!+#REF!+#REF!+#REF!+#REF! ->  | D73: =#REF!+#REF!+#REF! ->  | E73: =SUM(#REF!)+SUM(#REF!)+SUM(#REF!) ->  | I73: S | M73: =SUM(M61:M71) -> 
A74: 50 | B74: Restauranter | C74: =#REF!+#REF!+#REF!+#REF!+#REF!+#REF!+#REF!+#REF!+#REF! ->  | D74: =#REF!+#REF!+#REF! ->  | E74: =SUM(#REF!)+SUM(#REF!)+SUM(#REF!) ->  | I74: S
A75: 51 | B75: Information og kommunikation | C75: =#REF!+#REF!+#REF!+#REF!+#REF!+#REF!+#REF!+#REF!+#REF! ->  | D75: =#REF!+#REF!+#REF! ->  | E75: =SUM(#REF!)+SUM(#REF!)+SUM(#REF!) ->  | I75: S
A76: 52 | B76: Finansiering og forsikring | C76: =#REF!+#REF!+#REF!+#REF!+#REF!+#REF!+#REF!+#REF!+#REF! ->  | D76: =#REF!+#REF!+#REF! ->  | E76: =SUM(#REF!)+SUM(#REF!)+SUM(#REF!) ->  | I76: S
A77: 53 | B77: Ejendomshandel og udlejning mv. | C77: =#REF!+#REF!+#REF!+#REF!+#REF!+#REF!+#REF!+#REF!+#REF! ->  | D77: =#REF!+#REF!+#REF! ->  | E77: =SUM(#REF!)+SUM(#REF!)+SUM(#REF!) ->  | I77: S
A78: 54 | B78: Videnservice | C78: =#REF!+#REF!+#REF!+#REF!+#REF!+#REF!+#REF!+#REF!+#REF! ->  | D78: =#REF!+#REF!+#REF! ->  | E78: =SUM(#REF!)+SUM(#REF!)+SUM(#REF!) ->  | I78: S
A79: 55 | B79: Rejsebureauer, rengøring mv. | C79: =#REF!+#REF!+#REF!+#REF!+#REF!+#REF!+#REF!+#REF!+#REF! ->  | D79: =#REF!+#REF!+#REF! ->  | E79: =SUM(#REF!)+SUM(#REF!)+SUM(#REF!) ->  | I79: S
A80: 56 | B80: Kultur og fritid | C80: =#REF!+#REF!+#REF!+#REF!+#REF!+#REF!+#REF!+#REF!+#REF! ->  | D80: =#REF!+#REF!+#REF! ->  | E80: =SUM(#REF!)+SUM(#REF!)+SUM(#REF!) ->  | I80: S
A81: 57 | B81: Andre serviceydelser | C81: =#REF!+#REF!+#REF!+#REF!+#REF!+#REF!+#REF!+#REF!+#REF! ->  | D81: =#REF!+#REF!+#REF! ->  | E81: =SUM(#REF!)+SUM(#REF!)+SUM(#REF!) ->  | I81: S
C83: =SUM(C25:C81)/1000 ->  | D83: =SUM(D25:D81)/1000 ->  | E83: =SUM(E25:E81)/1000 ->  | F83: =SUM(F25:F81) ->  | G83: =SUM(G25:G81) ->  | H83: =SUM(H25:H81) -> 

Sheet Forside
B21: Projektnummer: | D21: A065464
B22: Dato: | D22: 2015-06-15
B23: Oprettet af: | D23: COWI A/S for Energistyrelsen

Sheet Introduktion
B1: Introduktion
C3: Introduktion til modellen
D5: Introduktion til modellen
D6: Kortlægningen af energisparepotentialer er foretaget for 20 udvalgte energianvendelsesområder. Hvert energianvendelsesområde beskrives udførligt, herunder udviklingen inden for området siden 2010. Derudover er der udarbejdet en række konkrete cases for områder, hvor COWI har vurderet, at der er et besparelsespotentiale. Sidst men ikke mindst er der for hvert af energianvendelsesområderne foretaget en 2015-vurdering af besparelsespotentialet. Alt dette er samlet i et tekonologikatalog. Derudover er alle data, som er anvendt i og udledt fra projektet, samlet i dette regneværktøj, hvor alle energisparepotentialerne beregnes fordelt på brancher, kvoter/ikke-kvote, sektorer mm. I figuren nedenfor er der angivet en illustration af de forskellige komponenter i modellen.
D9: Databaser | F9: Transformationslag | H9: Beregningmodellen
D12: Erhvervslivets energiforbrug opdelt på brancher (57-fordeling), energianvendelsesområde og brændsel | F12: Energiforbrug & Energiforbrug tværgående | H12: Sammenkobling af de transformerede databaser | J12: Cases
D14: Arbejdspladser per virksomhedsstørrelse fordelt på brancher (117-fordeling) | F14: Virksomhedsfordeling for de 57 brancher
D16: Brændselspriser | F16: Brændselspriser for de 20 brændsler fordelt på 57 brancher | J16: Vurdering
D18: Teknologikatalog for energibesparelser fordelt på energianvendelsesområder (justerede 2015-vurdering) | F18: Samlet teknologikatalog
D20: Teknologikatalog for energibesparelser fordelt på energianvendelsesområder (2015-cases)
C24: Konventioner for tal
D26: Konventioner for tal
D27: Inputdata | E27: Blå skrift på lyseblå baggrund angiver inputdata, som kan ændres af brugeren
D28: Beregninger | E28: Sort skrift på hvid baggrund angiver formler mv. Må ikke ændres af brugeren
D29: Links | E29: Grøn skrift på hvid bagrund angiver værdier, som er linkede fra andre ark
D30: Usikre tal | E30: Røde skrift indikerer foreløbige eller usikre tal
C33: Konventioner for ark
D35: Konventioner for ark
D36: Lyseblå ark indikerer at brugeren skal indtaste data eller tage stilling til allerede indtastede data.
D37: Hvide ark er ark med information til brugeren om regnearket eller betjeningen heraf
D38: Orange ark er de primære resultatark
D39: Sorte ark er de øvrige resultatark
D40: Ark med neutral farve er beregningsark
D41: Grønne ark er valgfri moduler med ekstra funktioner

Sheet Cases
B1: Resultater - 2015 cases
D3: 2015-cases
D5: Vælg grænseværdi for tilbagebetalingstid | G5: 10 | J5: =IF(ThresholdTilbagebetalingstid="","<= Indtast værdi","") -> 
D6: Investeringer med en lavere tilbagebetalingstid end den indtastede grænseværdi medtages i beregningen af energisparepotentialet.
D9: Besparelsespotentiale
D11: Anvendelsespotentiale
D13: Investeringniveau
C17: Besparelsespotentialer fordelt på teknologiområder i forhold til totalt energiforbrug
D19: ="Besparelsespotentialer, "&$D$3&" med "&G5&" års TBT" -> Besparelsespotentialer, 2015-cases med 10 års TBT
E20: Totalt Forbrug | F20: Besparelsespotentiale
E21: TJ/år | F21: TJ/år | G21: %
D22: Konverterings- og nettab | E22: =SUMIFS(Energiforbrug!$N$10:$N$27393,Energiforbrug!$J$10:$J$27393,$D22)/1000 -> 8475.732415 | F22: =SUMIFS(Potentialer!$AO$11:$AO$1997,Potentialer!$J$11:$J$1997,D22,Potentialer!$W$11:$W$1997,Cases!$D$3)/1000 -> 522.4346474 | G22: =F22/E22 -> 0.06163887931
D23: Opvarmning/kogning | E23: =SUMIFS(Energiforbrug!$N$10:$N$27393,Energiforbrug!$J$10:$J$27393,$D23)/1000 -> 16214.21246 | F23: =SUMIFS(Potentialer!$AO$11:$AO$1997,Potentialer!$J$11:$J$1997,D23,Potentialer!$W$11:$W$1997,Cases!$D$3)/1000 -> 1431.959922 | G23: 0.08831510787
D24: Tørring | E24: =SUMIFS(Energiforbrug!$N$10:$N$27393,Energiforbrug!$J$10:$J$27393,$D24)/1000 -> 13567.09836 | F24: =SUMIFS(Potentialer!$AO$11:$AO$1997,Potentialer!$J$11:$J$1997,D24,Potentialer!$W$11:$W$1997,Cases!$D$3)/1000 -> 85.66007562 | G24: 0.006313809583
D25: Inddampning | E25: =SUMIFS(Energiforbrug!$N$10:$N$27393,Energiforbrug!$J$10:$J$27393,$D25)/1000 -> 4595.35231 | F25: =SUMIFS(Potentialer!$AO$11:$AO$1997,Potentialer!$J$11:$J$1997,D25,Potentialer!$W$11:$W$1997,Cases!$D$3)/1000 -> 258.7659219 | G25: 0.05631035542
D26: Brænding/sintring | E26: =SUMIFS(Energiforbrug!$N$10:$N$27393,Energiforbrug!$J$10:$J$27393,$D26)/1000 -> 3894.539329 | F26: =SUMIFS(Potentialer!$AO$11:$AO$1997,Potentialer!$J$11:$J$1997,D26,Potentialer!$W$11:$W$1997,Cases!$D$3)/1000 -> 0 | G26: 0
D27: Rumvarme | E27: =SUMIFS(Energiforbrug!$N$10:$N$27393,Energiforbrug!$J$10:$J$27393,$D27)/1000 -> 34616.71206 | F27: =SUMIFS(Potentialer!$AO$11:$AO$1997,Potentialer!$J$11:$J$1997,D27,Potentialer!$W$11:$W$1997,Cases!$D$3)/1000 -> 6407.855367 | G27: 0.1851087231
D28: Arbejdskørsel | E28: =SUMIFS(Energiforbrug!$N$10:$N$27393,Energiforbrug!$J$10:$J$27393,$D28)/1000 -> 18098.36297 | F28: =SUMIFS(Potentialer!$AO$11:$AO$1997,Potentialer!$J$11:$J$1997,D28,Potentialer!$W$11:$W$1997,Cases!$D$3)/1000 -> 1172.992512 | G28: 0.06481207799
D29: Delsum (ikke-el) | E29: =SUM(E22:E28) -> 99462.0099 | F29: =SUM(F22:F28) -> 9879.668446 | G29: 0.09933107582
D30: Varmepumpers energiforbrug | E30: =SUMIFS(Energiforbrug!$N$10:$N$27393,Energiforbrug!$J$10:$J$27393,$D30)/1000 -> 616.8531356 | F30: =SUMIFS(Potentialer!$AO$11:$AO$1997,Potentialer!$J$11:$J$1997,D30,Potentialer!$W$11:$W$1997,Cases!$D$3)/1000 -> 41.66744572 | G30: 0.06754840548
D31: Rumkøling | E31: =SUMIFS(Energiforbrug!$N$10:$N$27393,Energiforbrug!$J$10:$J$27393,$D31)/1000 -> 2233.287113 | F31: =SUMIFS(Potentialer!$AO$11:$AO$1997,Potentialer!$J$11:$J$1997,D31,Potentialer!$W$11:$W$1997,Cases!$D$3)/1000 -> 196.8601579 | G31: 0.08814816364
D32: Køl/frys (ekskl. rumkøling) | E32: =SUMIFS(Energiforbrug!$N$10:$N$27393,Energiforbrug!$J$10:$J$27393,$D32)/1000 -> 6217.363366 | F32: =SUMIFS(Potentialer!$AO$11:$AO$1997,Potentialer!$J$11:$J$1997,D32,Potentialer!$W$11:$W$1997,Cases!$D$3)/1000 -> 100.1486175 | G32: 0.01610789198
D33: Rumventilation | E33: =SUMIFS(Energiforbrug!$N$10:$N$27393,Energiforbrug!$J$10:$J$27393,$D33)/1000 -> 5451.111176 | F33: =SUMIFS(Potentialer!$AO$11:$AO$1997,Potentialer!$J$11:$J$1997,D33,Potentialer!$W$11:$W$1997,Cases!$D$3)/1000 -> 1117.256758 | G33: 0.2049594516
D34: Pumpning | E34: =SUMIFS(Energiforbrug!$N$10:$N$27393,Energiforbrug!$J$10:$J$27393,$D34)/1000 -> 4561.788686 | F34: =SUMIFS(Potentialer!$AO$11:$AO$1997,Potentialer!$J$11:$J$1997,D34,Potentialer!$W$11:$W$1997,Cases!$D$3)/1000 -> 344.6767836 | G34: 0.07555737612
D35: Blæsere | E35: =SUMIFS(Energiforbrug!$N$10:$N$27393,Energiforbrug!$J$10:$J$27393,$D35)/1000 -> 2952.37772 | F35: =SUMIFS(Potentialer!$AO$11:$AO$1997,Potentialer!$J$11:$J$1997,D35,Potentialer!$W$11:$W$1997,Cases!$D$3)/1000 -> 157.5552671 | G35: 0.05336555212
D36: Trykluft | E36: =SUMIFS(Energiforbrug!$N$10:$N$27393,Energiforbrug!$J$10:$J$27393,$D36)/1000 -> 3342.509842 | F36: =SUMIFS(Potentialer!$AO$11:$AO$1997,Potentialer!$J$11:$J$1997,D36,Potentialer!$W$11:$W$1997,Cases!$D$3)/1000 -> 0 | G36: 0
D37: Hydraulik | E37: =SUMIFS(Energiforbrug!$N$10:$N$27393,Energiforbrug!$J$10:$J$27393,$D37)/1000 -> 751.0522419 | F37: =SUMIFS(Potentialer!$AO$11:$AO$1997,Potentialer!$J$11:$J$1997,D37,Potentialer!$W$11:$W$1997,Cases!$D$3)/1000 -> 76.36627399 | G37: 0.1016790441
D38: Belysning | E38: =SUMIFS(Energiforbrug!$N$10:$N$27393,Energiforbrug!$J$10:$J$27393,$D38)/1000 -> 11470.97327 | F38: =SUMIFS(Potentialer!$AO$11:$AO$1997,Potentialer!$J$11:$J$1997,D38,Potentialer!$W$11:$W$1997,Cases!$D$3)/1000 -> 1851.453158 | G38: =F38/E38 -> 0.161403319
D39: It og anden elektronik | E39: =SUMIFS(Energiforbrug!$N$10:$N$27393,Energiforbrug!$J$10:$J$27393,$D39)/1000 -> 4507.141999 | F39: =SUMIFS(Potentialer!$AO$11:$AO$1997,Potentialer!$J$11:$J$1997,D39,Potentialer!$W$11:$W$1997,Cases!$D$3)/1000 -> 348.6694119 | G39: 0.07735931374
D40: Delsum (el) | E40: =SUM(E30:E39) -> 42104.45855 | F40: =SUM(F30:F39) -> 4234.653873 | G40: 0.1005749514
D41: I alt | E41: =E29+E40 -> 141566.4684 | F41: =F29+F40 -> 14114.32232 | G41: 0.09970102719
D42: Heraf tværgående
D43: Overskudsvarme, procesintegration | E43: =SUMIFS('Energiforbrug tværgående'!$G$10:$G$183,'Energiforbrug tværgående'!$D$10:$D$183,$D43,'Energiforbrug tværgående'!$E$10:$E$183,"På tværs")/1000 -> 74545.63861 | F43: =SUMIFS(Potentialer!$AO$11:$AO$1997,Potentialer!$J$11:$J$1997,D43,Potentialer!$W$11:$W$1997,Cases!$D$3)/1000 -> 0 | G43: =F43/E43 -> 0
D44: Elmotorer og transmissioner | E44: =SUMIFS('Energiforbrug tværgående'!$G$10:$G$183,'Energiforbrug tværgående'!$D$10:$D$183,$D44,'Energiforbrug tværgående'!$E$10:$E$183,"På tværs")/1000 -> 34797.23859 | F44: =SUMIFS(Potentialer!$AO$11:$AO$1997,Potentialer!$J$11:$J$1997,D44,Potentialer!$W$11:$W$1997,Cases!$D$3)/1000 -> 0 | G44: 0
D45: Automation | E45: =SUMIFS('Energiforbrug tværgående'!$G$10:$G$183,'Energiforbrug tværgående'!$D$10:$D$183,$D45,'Energiforbrug tværgående'!$E$10:$E$183,"På tværs")/1000 -> 133187.0268 | F45: =SUMIFS(Potentialer!$AO$11:$AO$1997,Potentialer!$J$11:$J$1997,D45,Potentialer!$W$11:$W$1997,Cases!$D$3)/1000 -> 203.8623241 | G45: 0.001530647009
C48: Besparelsespotentialer fordelt på teknologiområder og tilbagebetalingstid
B51: Kat | E51: Forbrug | F51: Besparelsespotentiale TJ | I51: Besparelsespotentiale %
E52: TJ/år | F52: 2 | G52: 4 | H52: 10 | I52: 2 | J52: 4 | K52: 10
B53: =VLOOKUP($D53,Lister!$D$67:$G$93,4,FALSE) -> VP | D53: Konverterings- og nettab | E53: =E22 -> 8475.732415 | F53: =SUMIFS(Potentialer!AS$11:AS$1997,Potentialer!$W$11:$W$1997,$D$3,Potentialer!$J$11:$J$1997,$D53)/1000 -> 0 | G53: =SUMIFS(Potentialer!AT$11:AT$1997,Potentialer!$W$11:$W$1997,$D$3,Potentialer!$J$11:$J$1997,$D53)/1000 -> 0 | H53: =SUMIFS(Potentialer!AU$11:AU$1997,Potentialer!$W$11:$W$1997,$D$3,Potentialer!$J$11:$J$1997,$D53)/1000 -> 522.4346474 | I53: =F53/$E53 -> 0 | J53: =G53/$E53 -> 0 | K53: =H53/$E53 -> 0.06163887931
B54: =VLOOKUP($D54,Lister!$D$67:$G$93,4,FALSE) -> VP | D54: Opvarmning/kogning | E54: 16214.21246 | F54: =SUMIFS(Potentialer!AS$11:AS$1997,Potentialer!$W$11:$W$1997,$D$3,Potentialer!$J$11:$J$1997,$D54)/1000 -> 7.815130069 | G54: =SUMIFS(Potentialer!AT$11:AT$1997,Potentialer!$W$11:$W$1997,$D$3,Potentialer!$J$11:$J$1997,$D54)/1000 -> 234.7537113 | H54: =SUMIFS(Potentialer!AU$11:AU$1997,Potentialer!$W$11:$W$1997,$D$3,Potentialer!$J$11:$J$1997,$D54)/1000 -> 1431.959922 | I54: 0.0004819925784 | J54: 0.01447826787 | K54: 0.08831510787
B55: =VLOOKUP($D55,Lister!$D$67:$G$93,4,FALSE) -> VP | D55: Tørring | E55: 13567.09836 | F55: =SUMIFS(Potentialer!AS$11:AS$1997,Potentialer!$W$11:$W$1997,$D$3,Potentialer!$J$11:$J$1997,$D55)/1000 -> 6.608709258 | G55: =SUMIFS(Potentialer!AT$11:AT$1997,Potentialer!$W$11:$W$1997,$D$3,Potentialer!$J$11:$J$1997,$D55)/1000 -> 82.69743317 | H55: =SUMIFS(Potentialer!AU$11:AU$1997,Potentialer!$W$11:$W$1997,$D$3,Potentialer!$J$11:$J$1997,$D55)/1000 -> 85.66007562 | I55: 0.0004871129466 | J55: 0.006095439938 | K55: 0.006313809583
B56: =VLOOKUP($D56,Lister!$D$67:$G$93,4,FALSE) -> VP | D56: Inddampning | E56: 4595.35231 | F56: =SUMIFS(Potentialer!AS$11:AS$1997,Potentialer!$W$11:$W$1997,$D$3,Potentialer!$J$11:$J$1997,$D56)/1000 -> 137.2949496 | G56: =SUMIFS(Potentialer!AT$11:AT$1997,Potentialer!$W$11:$W$1997,$D$3,Potentialer!$J$11:$J$1997,$D56)/1000 -> 254.9386699 | H56: =SUMIFS(Potentialer!AU$11:AU$1997,Potentialer!$W$11:$W$1997,$D$3,Potentialer!$J$11:$J$1997,$D56)/1000 -> 258.7659219 | I56: 0.02987691484 | J56: 0.05547750263 | K56: 0.05631035542
B57: =VLOOKUP($D57,Lister!$D$67:$G$93,4,FALSE) -> VP | D57: Brænding/sintring | E57: 3894.539329 | F57: =SUMIFS(Potentialer!AS$11:AS$1997,Potentialer!$W$11:$W$1997,$D$3,Potentialer!$J$11:$J$1997,$D57)/1000 -> 0 | G57: =SUMIFS(Potentialer!AT$11:AT$1997,Potentialer!$W$11:$W$1997,$D$3,Potentialer!$J$11:$J$1997,$D57)/1000 -> 0 | H57: =SUMIFS(Potentialer!AU$11:AU$1997,Potentialer!$W$11:$W$1997,$D$3,Potentialer!$J$11:$J$1997,$D57)/1000 -> 0 | I57: 0 | J57: 0 | K57: 0
B58: =VLOOKUP($D58,Lister!$D$67:$G$93,4,FALSE) -> RV | D58: Rumvarme | E58: 34616.71206 | F58: =SUMIFS(Potentialer!AS$11:AS$1997,Potentialer!$W$11:$W$1997,$D$3,Potentialer!$J$11:$J$1997,$D58)/1000 -> 0 | G58: =SUMIFS(Potentialer!AT$11:AT$1997,Potentialer!$W$11:$W$1997,$D$3,Potentialer!$J$11:$J$1997,$D58)/1000 -> 293.388851 | H58: =SUMIFS(Potentialer!AU$11:AU$1997,Potentialer!$W$11:$W$1997,$D$3,Potentialer!$J$11:$J$1997,$D58)/1000 -> 6407.855367 | I58: =F58/$E58 -> 0 | J58: =G58/$E58 -> 0.008475352904 | K58: =H58/$E58 -> 0.1851087231
B59: =VLOOKUP($D59,Lister!$D$67:$G$93,4,FALSE) -> AK | D59: Arbejdskørsel | E59: 18098.36297 | F59: =SUMIFS(Potentialer!AS$11:AS$1997,Potentialer!$W$11:$W$1997,$D$3,Potentialer!$J$11:$J$1997,$D59)/1000 -> 1125.425611 | G59: =SUMIFS(Potentialer!AT$11:AT$1997,Potentialer!$W$11:$W$1997,$D$3,Potentialer!$J$11:$J$1997,$D59)/1000 -> 1172.992512 | H59: =SUMIFS(Potentialer!AU$11:AU$1997,Potentialer!$W$11:$W$1997,$D$3,Potentialer!$J$11:$J$1997,$D59)/1000 -> 1172.992512 | I59: 0.06218383469 | J59: 0.06481207799 | K59: 0.06481207799
D60: Delsum (ikke-el) | E60: 99462.0099 | F60: =SUM(F53:F59) -> 1277.1444 | G60: =SUM(G53:G59) -> 2038.771178 | H60: =SUM(H53:H59) -> 9879.668446 | I60: =F60/$E60 -> 0.01284052475 | J60: =G60/$E60 -> 0.02049798893 | K60: =H60/$E60 -> 0.09933107582
B61: =VLOOKUP($D61,Lister!$D$67:$G$93,4,FALSE) -> RV | D61: Varmepumpers energiforbrug | E61: 616.8531356 | F61: =SUMIFS(Potentialer!AS$11:AS$1997,Potentialer!$W$11:$W$1997,$D$3,Potentialer!$J$11:$J$1997,$D61)/1000 -> 0 | G61: =SUMIFS(Potentialer!AT$11:AT$1997,Potentialer!$W$11:$W$1997,$D$3,Potentialer!$J$11:$J$1997,$D61)/1000 -> 41.66744572 | H61: =SUMIFS(Potentialer!AU$11:AU$1997,Potentialer!$W$11:$W$1997,$D$3,Potentialer!$J$11:$J$1997,$D61)/1000 -> 41.66744572 | I61: 0 | J61: 0.06754840548 | K61: 0.06754840548
B62: =VLOOKUP($D62,Lister!$D$67:$G$93,4,FALSE) -> KV | D62: Rumkøling | E62: 2233.287113 | F62: =SUMIFS(Potentialer!AS$11:AS$1997,Potentialer!$W$11:$W$1997,$D$3,Potentialer!$J$11:$J$1997,$D62)/1000 -> 0 | G62: =SUMIFS(Potentialer!AT$11:AT$1997,Potentialer!$W$11:$W$1997,$D$3,Potentialer!$J$11:$J$1997,$D62)/1000 -> 158.3944894 | H62: =SUMIFS(Potentialer!AU$11:AU$1997,Potentialer!$W$11:$W$1997,$D$3,Potentialer!$J$11:$J$1997,$D62)/1000 -> 196.8601579 | I62: 0 | J62: 0.07092437353 | K62: 0.08814816364
B63: =VLOOKUP($D63,Lister!$D$67:$G$93,4,FALSE) -> KV | D63: Køl/frys (ekskl. rumkøling) | E63: 6217.363366 | F63: =SUMIFS(Potentialer!AS$11:AS$1997,Potentialer!$W$11:$W$1997,$D$3,Potentialer!$J$11:$J$1997,$D63)/1000 -> 100.1486175 | G63: =SUMIFS(Potentialer!AT$11:AT$1997,Potentialer!$W$11:$W$1997,$D$3,Potentialer!$J$11:$J$1997,$D63)/1000 -> 100.1486175 | H63: =SUMIFS(Potentialer!AU$11:AU$1997,Potentialer!$W$11:$W$1997,$D$3,Potentialer!$J$11:$J$1997,$D63)/1000 -> 100.1486175 | I63: 0.01610789198 | J63: 0.01610789198 | K63: 0.01610789198
B64: =VLOOKUP($D64,Lister!$D$67:$G$93,4,FALSE) -> KV | D64: Rumventilation | E64: 5451.111176 | F64: =SUMIFS(Potentialer!AS$11:AS$1997,Potentialer!$W$11:$W$1997,$D$3,Potentialer!$J$11:$J$1997,$D64)/1000 -> 0 | G64: =SUMIFS(Potentialer!AT$11:AT$1997,Potentialer!$W$11:$W$1997,$D$3,Potentialer!$J$11:$J$1997,$D64)/1000 -> 38.96645625 | H64: =SUMIFS(Potentialer!AU$11:AU$1997,Potentialer!$W$11:$W$1997,$D$3,Potentialer!$J$11:$J$1997,$D64)/1000 -> 1117.256758 | I64: 0 | J64: 0.007148351041 | K64: 0.2049594516
B65: =VLOOKUP($D65,Lister!$D$67:$G$93,4,FALSE) -> ØV | D65: Pumpning | E65: 4561.788686 | F65: =SUMIFS(Potentialer!AS$11:AS$1997,Potentialer!$W$11:$W$1997,$D$3,Potentialer!$J$11:$J$1997,$D65)/1000 -> 344.6767836 | G65: =SUMIFS(Potentialer!AT$11:AT$1997,Potentialer!$W$11:$W$1997,$D$3,Potentialer!$J$11:$J$1997,$D65)/1000 -> 344.6767836 | H65: =SUMIFS(Potentialer!AU$11:AU$1997,Potentialer!$W$11:$W$1997,$D$3,Potentialer!$J$11:$J$1997,$D65)/1000 -> 344.6767836 | I65: =F65/$E65 -> 0.07555737612 | J65: =G65/$E65 -> 0.07555737612 | K65: =H65/$E65 -> 0.07555737612
B66: =VLOOKUP($D66,Lister!$D$67:$G$93,4,FALSE) -> ØV | D66: Blæsere | E66: 2952.37772 | F66: =SUMIFS(Potentialer!AS$11:AS$1997,Potentialer!$W$11:$W$1997,$D$3,Potentialer!$J$11:$J$1997,$D66)/1000 -> 0 | G66: =SUMIFS(Potentialer!AT$11:AT$1997,Potentialer!$W$11:$W$1997,$D$3,Potentialer!$J$11:$J$1997,$D66)/1000 -> 129.3386381 | H66: =SUMIFS(Potentialer!AU$11:AU$1997,Potentialer!$W$11:$W$1997,$D$3,Potentialer!$J$11:$J$1997,$D66)/1000 -> 157.5552671 | I66: 0 | J66: 0.04380829636 | K66: 0.05336555212
B67: =VLOOKUP($D67,Lister!$D$67:$G$93,4,FALSE) -> ØV | D67: Trykluft | E67: 3342.509842 | F67: =SUMIFS(Potentialer!AS$11:AS$1997,Potentialer!$W$11:$W$1997,$D$3,Potentialer!$J$11:$J$1997,$D67)/1000 -> 0 | G67: =SUMIFS(Potentialer!AT$11:AT$1997,Potentialer!$W$11:$W$1997,$D$3,Potentialer!$J$11:$J$1997,$D67)/1000 -> 0 | H67: =SUMIFS(Potentialer!AU$11:AU$1997,Potentialer!$W$11:$W$1997,$D$3,Potentialer!$J$11:$J$1997,$D67)/1000 -> 0 | I67: 0 | J67: 0 | K67: 0
B68: =VLOOKUP($D68,Lister!$D$67:$G$93,4,FALSE) -> ØV | D68: Hydraulik | E68: 751.0522419 | F68: =SUMIFS(Potentialer!AS$11:AS$1997,Potentialer!$W$11:$W$1997,$D$3,Potentialer!$J$11:$J$1997,$D68)/1000 -> 0 | G68: =SUMIFS(Potentialer!AT$11:AT$1997,Potentialer!$W$11:$W$1997,$D$3,Potentialer!$J$11:$J$1997,$D68)/1000 -> 0 | H68: =SUMIFS(Potentialer!AU$11:AU$1997,Potentialer!$W$11:$W$1997,$D$3,Potentialer!$J$11:$J$1997,$D68)/1000 -> 76.36627399 | I68: 0 | J68: 0 | K68: 0.1016790441
B69: =VLOOKUP($D69,Lister!$D$67:$G$93,4,FALSE) -> BE | D69: Belysning | E69: 11470.97327 | F69: =SUMIFS(Potentialer!AS$11:AS$1997,Potentialer!$W$11:$W$1997,$D$3,Potentialer!$J$11:$J$1997,$D69)/1000 -> 1018.130659 | G69: =SUMIFS(Potentialer!AT$11:AT$1997,Potentialer!$W$11:$W$1997,$D$3,Potentialer!$J$11:$J$1997,$D69)/1000 -> 1365.318388 | H69: =SUMIFS(Potentialer!AU$11:AU$1997,Potentialer!$W$11:$W$1997,$D$3,Potentialer!$J$11:$J$1997,$D69)/1000 -> 1851.453158 | I69: =F69/$E69 -> 0.0887571294 | J69: =G69/$E69 -> 0.1190237616 | K69: =H69/$E69 -> 0.161403319
B70: =VLOOKUP($D70,Lister!$D$67:$G$93,4,FALSE) -> BE | D70: It og anden elektronik | E70: 4507.141999 | F70: =SUMIFS(Potentialer!AS$11:AS$1997,Potentialer!$W$11:$W$1997,$D$3,Potentialer!$J$11:$J$1997,$D70)/1000 -> 29.77520974 | G70: =SUMIFS(Potentialer!AT$11:AT$1997,Potentialer!$W$11:$W$1997,$D$3,Potentialer!$J$11:$J$1997,$D70)/1000 -> 120.1916744 | H70: =SUMIFS(Potentialer!AU$11:AU$1997,Potentialer!$W$11:$W$1997,$D$3,Potentialer!$J$11:$J$1997,$D70)/1000 -> 348.6694119 | I70: 0.006606228458 | J70: 0.02666693758 | K70: 0.07735931374
D71: Delsum (el) | E71: 42104.45855 | F71: =SUM(F61:F70) -> 1492.73127 | G71: =SUM(G61:G70) -> 2298.702493 | H71: =SUM(H61:H70) -> 4234.653873 | I71: =F71/$E71 -> 0.03545304514 | J71: =G71/$E71 -> 0.05459522749 | K71: =H71/$E71 -> 0.1005749514
D72: I alt | E72: 141566.4684 | F72: =F60+F71 -> 2769.87567 | G72: =G60+G71 -> 4337.473671 | H72: =H60+H71 -> 14114.32232 | I72: 0.01956590215 | J72: 0.0306391317 | K72: 0.09970102719
D73: Heraf tværgående
D74: Overskudsvarme, procesintegration | E74: =E43 -> 74545.63861 | F74: =SUMIFS(Potentialer!AS$11:AS$1997,Potentialer!$W$11:$W$1997,$D$3,Potentialer!$J$11:$J$1997,$D74)/1000 -> 0 | G74: =SUMIFS(Potentialer!AT$11:AT$1997,Potentialer!$W$11:$W$1997,$D$3,Potentialer!$J$11:$J$1997,$D74)/1000 -> 0 | H74: =SUMIFS(Potentialer!AU$11:AU$1997,Potentialer!$W$11:$W$1997,$D$3,Potentialer!$J$11:$J$1997,$D74)/1000 -> 0 | I74: =F74/$E74 -> 0 | J74: 0 | K74: 0
D75: Elmotorer og transmissioner | E75: =E44 -> 34797.23859 | F75: =SUMIFS(Potentialer!AS$11:AS$1997,Potentialer!$W$11:$W$1997,$D$3,Potentialer!$J$11:$J$1997,$D75)/1000 -> 0 | G75: =SUMIFS(Potentialer!AT$11:AT$1997,Potentialer!$W$11:$W$1997,$D$3,Potentialer!$J$11:$J$1997,$D75)/1000 -> 0 | H75: =SUMIFS(Potentialer!AU$11:AU$1997,Potentialer!$W$11:$W$1997,$D$3,Potentialer!$J$11:$J$1997,$D75)/1000 -> 0 | I75: 0 | J75: 0 | K75: 0
D76: Automation | E76: =E45 -> 133187.0268 | F76: =SUMIFS(Potentialer!AS$11:AS$1997,Potentialer!$W$11:$W$1997,$D$3,Potentialer!$J$11:$J$1997,$D76)/1000 -> 0 | G76: =SUMIFS(Potentialer!AT$11:AT$1997,Potentialer!$W$11:$W$1997,$D$3,Potentialer!$J$11:$J$1997,$D76)/1000 -> 0 | H76: =SUMIFS(Potentialer!AU$11:AU$1997,Potentialer!$W$11:$W$1997,$D$3,Potentialer!$J$11:$J$1997,$D76)/1000 -> 203.8623241 | I76: 0 | J76: 0 | K76: 0.001530647009
F79: =I79&" år" -> 2 år | G79: =J79&" år" -> 4 år | H79: =K79&" år" -> 10 år | I79: 2 | J79: 4 | K79: 10
B80: VP | D80: Varme til proces | F80: =I80/$E$72 -> 0.001071714161 | G80: 0.004043258412 | H80: 0.01623845387 | I80: =SUMIF($B$53:$B$70,$B80,$F$53:$F$70) -> 151.7187889 | J80: =SUMIF($B$53:$B$70,$B80,$G$53:$G$70) -> 572.3898144 | K80: =SUMIF($B$53:$B$70,$B80,$H$53:$H$70) -> 2298.820567
B81: AK | D81: Arbejdskørsel | F81: 0.007949803533 | G81: 0.008285807544 | H81: 0.008285807544 | I81: 1125.425611 | J81: 1172.992512 | K81: 1172.992512
B82: RV | D82: Rumvarme | F82: 0 | G82: 0.002366777249 | H82: 0.0455582659 | I82: 0 | J82: 335.0562968 | K82: 6449.522813
B83: BE | D83: Belysning / IT | F83: 0.007402218055 | G83: 0.01049337515 | H83: 0.01554126902 | I83: 1047.905869 | J83: 1485.510063 | K83: 2200.12257
B84: KV | D84: Køling og ventilation | F84: 0.0007074317711 | G84: 0.002101553895 | H84: 0.009990116646 | I84: 100.1486175 | J84: 297.5095632 | K84: 1414.265533
B85: ØV | D85: Øvrige | F85: 0.002434734633 | G85: 0.003348359445 | H85: 0.004087114209 | I85: 344.6767836 | J85: 474.0154217 | K85: 578.5983247
F86: =SUM(F80:F85) -> 0.01956590215 | G86: =SUM(G80:G85) -> 0.0306391317 | H86: 0.09970102719
C89: Besparelsespotentialer for brændsler, områder og tilbagebetalingstider
D91: Energiforbrug
D92: Energiforbrug | E92: Ikke el | F92: El | G92: I alt
D93: Konverterings- og nettab | E93: =E22-F93 -> 8475.732415 | F93: =SUMIFS(Energiforbrug!$N$10:$N$27393,Energiforbrug!$J$10:$J$27393,$D93,Energiforbrug!$Y$10:$Y$27393,F$92)/1000 -> 0 | G93: =SUM(E93:F93) -> 8475.732415
D94: Opvarmning/kogning | E94: 14799.53467 | F94: =SUMIFS(Energiforbrug!$N$10:$N$27393,Energiforbrug!$J$10:$J$27393,$D94,Energiforbrug!$Y$10:$Y$27393,F$92)/1000 -> 1414.677784 | G94: 16214.21246
D95: Tørring | E95: 13159.81946 | F95: =SUMIFS(Energiforbrug!$N$10:$N$27393,Energiforbrug!$J$10:$J$27393,$D95,Energiforbrug!$Y$10:$Y$27393,F$92)/1000 -> 407.2789012 | G95: 13567.09836
D96: Inddampning | E96: 4510.805448 | F96: =SUMIFS(Energiforbrug!$N$10:$N$27393,Energiforbrug!$J$10:$J$27393,$D96,Energiforbrug!$Y$10:$Y$27393,F$92)/1000 -> 84.54686211 | G96: 4595.35231
D97: Brænding/sintring | E97: 3886.347769 | F97: =SUMIFS(Energiforbrug!$N$10:$N$27393,Energiforbrug!$J$10:$J$27393,$D97,Energiforbrug!$Y$10:$Y$27393,F$92)/1000 -> 8.19156 | G97: 3894.539329
D98: Rumvarme | E98: 33472.55337 | F98: =SUMIFS(Energiforbrug!$N$10:$N$27393,Energiforbrug!$J$10:$J$27393,$D98,Energiforbrug!$Y$10:$Y$27393,F$92)/1000 -> 1144.158684 | G98: 34616.71206
D99: Arbejdskørsel | E99: 18090.56194 | F99: =SUMIFS(Energiforbrug!$N$10:$N$27393,Energiforbrug!$J$10:$J$27393,$D99,Energiforbrug!$Y$10:$Y$27393,F$92)/1000 -> 7.80103 | G99: 18098.36297
D100: Delsum (ikke-el) | E100: =SUM(E93:E99) -> 96395.35508 | F100: =SUM(F93:F99) -> 3066.654821 | G100: 99462.0099
D101: Varmepumpers energiforbrug | E101: =E30-F101 -> 0 | F101: =SUMIFS(Energiforbrug!$N$10:$N$27393,Energiforbrug!$J$10:$J$27393,$D101,Energiforbrug!$Y$10:$Y$27393,F$92)/1000 -> 616.8531356 | G101: 616.8531356
D102: Rumkøling | E102: 0 | F102: =SUMIFS(Energiforbrug!$N$10:$N$27393,Energiforbrug!$J$10:$J$27393,$D102,Energiforbrug!$Y$10:$Y$27393,F$92)/1000 -> 2233.287113 | G102: 2233.287113
D103: Køl/frys (ekskl. rumkøling) | E103: 0 | F103: =SUMIFS(Energiforbrug!$N$10:$N$27393,Energiforbrug!$J$10:$J$27393,$D103,Energiforbrug!$Y$10:$Y$27393,F$92)/1000 -> 6217.363366 | G103: 6217.363366
D104: Rumventilation | E104: 0 | F104: =SUMIFS(Energiforbrug!$N$10:$N$27393,Energiforbrug!$J$10:$J$27393,$D104,Energiforbrug!$Y$10:$Y$27393,F$92)/1000 -> 5451.111176 | G104: 5451.111176
D105: Pumpning | E105: 0 | F105: =SUMIFS(Energiforbrug!$N$10:$N$27393,Energiforbrug!$J$10:$J$27393,$D105,Energiforbrug!$Y$10:$Y$27393,F$92)/1000 -> 4561.788686 | G105: 4561.788686
D106: Blæsere | E106: 0 | F106: =SUMIFS(Energiforbrug!$N$10:$N$27393,Energiforbrug!$J$10:$J$27393,$D106,Energiforbrug!$Y$10:$Y$27393,F$92)/1000 -> 2952.37772 | G106: 2952.37772
D107: Trykluft | E107: 0 | F107: =SUMIFS(Energiforbrug!$N$10:$N$27393,Energiforbrug!$J$10:$J$27393,$D107,Energiforbrug!$Y$10:$Y$27393,F$92)/1000 -> 3342.509842 | G107: 3342.509842
D108: Hydraulik | E108: 0 | F108: =SUMIFS(Energiforbrug!$N$10:$N$27393,Energiforbrug!$J$10:$J$27393,$D108,Energiforbrug!$Y$10:$Y$27393,F$92)/1000 -> 751.0522419 | G108: 751.0522419
D109: Belysning | E109: 0 | F109: =SUMIFS(Energiforbrug!$N$10:$N$27393,Energiforbrug!$J$10:$J$27393,$D109,Energiforbrug!$Y$10:$Y$27393,F$92)/1000 -> 11470.97327 | G109: 11470.97327
D110: It og anden elektronik | E110: 0 | F110: =SUMIFS(Energiforbrug!$N$10:$N$27393,Energiforbrug!$J$10:$J$27393,$D110,Energiforbrug!$Y$10:$Y$27393,F$92)/1000 -> 4507.141999 | G110: =SUM(E110:F110) -> 4507.141999
D111: Delsum (el) | E111: =SUM(E101:E110) -> 0 | F111: =SUM(F101:F110) -> 42104.45855 | G111: 42104.45855
D112: I alt | E112: =E100+E111 -> 96395.35508 | F112: =F100+F111 -> 45171.11337 | G112: =G100+G111 -> 141566.4684
D114: Besparelsespotentiale
D115: 2 års TBT | E115: =E$92 -> Ikke el | F115: =F$92 -> El | G115: I alt
D116: Konverterings- og nettab | E116: =E93*$I53 -> 0 | F116: 0 | G116: =SUM(E116:F116) -> 0
D117: Opvarmning/kogning | E117: 7.133265876 | F117: 0.6818641925 | G117: 7.815130069
D118: Tørring | E118: 6.410318432 | F118: 0.1983908256 | G118: 6.608709258
D119: Inddampning | E119: 134.7689502 | F119: 2.525999399 | G119: 137.2949496
D120: Brænding/sintring | E120: 0 | F120: 0 | G120: 0
D121: Rumvarme | E121: 0 | F121: 0 | G121: 0
D122: Arbejdskørsel | E122: 1124.940513 | F122: 0.4850979599 | G122: 1125.425611
D123: Delsum (ikke-el) | E123: 1237.766943 | F123: 39.37745714 | G123: 1277.1444
D124: Varmepumpers energiforbrug | E124: 0 | F124: 0 | G124: 0
D125: Rumkøling | E125: 0 | F125: 0 | G125: 0
D126: Køl/frys (ekskl. rumkøling) | E126: 0 | F126: 100.1486175 | G126: 100.1486175
D127: Rumventilation | E127: 0 | F127: 0 | G127: 0
D128: Pumpning | E128: 0 | F128: 344.6767836 | G128: 344.6767836
D129: Blæsere | E129: 0 | F129: 0 | G129: 0
D130: Trykluft | E130: 0 | F130: 0 | G130: 0
D131: Hydraulik | E131: 0 | F131: 0 | G131: 0
D132: Belysning | E132: 0 | F132: 1018.130659 | G132: 1018.130659
D133: It og anden elektronik | E133: 0 | F133: 29.77520974 | G133: =SUM(E133:F133) -> 29.77520974
D134: Delsum (el) | E134: 0 | F134: 1492.73127 | G134: 1492.73127
D135: 4 års TBT | E135: =E$92 -> Ikke el | F135: =F$92 -> El | G135: I alt
D136: Konverterings- og nettab | E136: =E93*$J53 -> 0 | F136: 0 | G136: =SUM(E136:F136) -> 0
D137: Opvarmning/kogning | E137: 214.2716274 | F137: 20.4820839 | G137: 234.7537113
D138: Tørring | E138: 80.21488909 | F138: 2.48254408 | G138: 82.69743317
D139: Inddampning | E139: 250.2482211 | F139: 4.690448765 | G139: 254.9386699
D140: Brænding/sintring | E140: 0 | F140: 0 | G140: 0
D141: Rumvarme | E141: 283.6917024 | F141: 9.697148625 | G141: 293.388851
D142: Arbejdskørsel | E142: 1172.486911 | F142: 0.5056009648 | G142: 1172.992512
D143: Delsum (ikke-el) | E143: 1975.910921 | F143: 62.86025657 | G143: 2038.771178
D144: Varmepumpers energiforbrug | E144: 0 | F144: 41.66744572 | G144: 41.66744572
D145: Rumkøling | E145: 0 | F145: 158.3944894 | G145: 158.3944894
D146: Køl/frys (ekskl. rumkøling) | E146: 0 | F146: 100.1486175 | G146: 100.1486175
D147: Rumventilation | E147: 0 | F147: 38.96645625 | G147: 38.96645625
D148: Pumpning | E148: 0 | F148: 344.6767836 | G148: 344.6767836
D149: Blæsere | E149: 0 | F149: 129.3386381 | G149: 129.3386381
D150: Trykluft | E150: 0 | F150: 0 | G150: 0
D151: Hydraulik | E151: 0 | F151: 0 | G151: 0
D152: Belysning | E152: 0 | F152: 1365.318388 | G152: 1365.318388
D153: It og anden elektronik | E153: 0 | F153: 120.1916744 | G153: =SUM(E153:F153) -> 120.1916744
D154: Delsum (el) | E154: 0 | F154: 2298.702493 | G154: 2298.702493
D155: 10 års TBT | E155: =E$92 -> Ikke el | F155: =F$92 -> El | G155: I alt
D156: Konverterings- og nettab | E156: =E93*$K53 -> 522.4346474 | F156: 0 | G156: =SUM(E156:F156) -> 522.4346474
D157: Opvarmning/kogning | E157: 1307.022501 | F157: 124.9374211 | G157: 1431.959922
D158: Tørring | E158: 83.08859419 | F158: 2.571481429 | G158: 85.66007562
D159: Inddampning | E159: 254.005058 | F159: 4.760863855 | G159: 258.7659219
D160: Brænding/sintring | E160: 0 | F160: 0 | G160: 0
D161: Rumvarme | E161: 6196.061614 | F161: 211.793753 | G161: 6407.855367
D162: Arbejdskørsel | E162: 1172.486911 | F162: 0.5056009648 | G162: 1172.992512
D163: Delsum (ikke-el) | E163: 9575.054324 | F163: 304.6141225 | G163: 9879.668446
D164: Varmepumpers energiforbrug | E164: 0 | F164: 41.66744572 | G164: 41.66744572
D165: Rumkøling | E165: 0 | F165: 196.8601579 | G165: 196.8601579
D166: Køl/frys (ekskl. rumkøling) | E166: 0 | F166: 100.1486175 | G166: 100.1486175
D167: Rumventilation | E167: 0 | F167: 1117.256758 | G167: 1117.256758
D168: Pumpning | E168: 0 | F168: 344.6767836 | G168: 344.6767836
D169: Blæsere | E169: 0 | F169: 157.5552671 | G169: 157.5552671
D170: Trykluft | E170: 0 | F170: 0 | G170: 0
D171: Hydraulik | E171: 0 | F171: 76.36627399 | G171: 76.36627399
D172: Belysning | E172: 0 | F172: 1851.453158 | G172: 1851.453158
D173: It og anden elektronik | E173: 0 | F173: 348.6694119 | G173: =SUM(E173:F173) -> 348.6694119
D174: Delsum (el) | E174: 0 | F174: =F111*$K71 -> 4234.653873 | G174: 4234.653873
D175: 2 års TBT, TJ/år | E175: =E123+E134 -> 1237.766943 | F175: =F123+F134 -> 1532.108727 | G175: =G123+G134 -> 2769.87567
D176: 4 års TBT, TJ/år | E176: =E143+E154 -> 1975.910921 | F176: =F143+F154 -> 2361.56275 | G176: =G143+G154 -> 4337.473671
D177: 10 års TBT, TJ/år | E177: =E163+E174 -> 9575.054324 | F177: =F163+F174 -> 4539.267996 | G177: =G163+G174 -> 14114.32232
D178: 2 års TBT, % af br. | E178: =E175/E$112 -> 0.01284052475 | F178: =F175/F$112 -> 0.03391788717 | G178: =G175/G$112 -> 0.01956590215
D179: 4 års TBT, % af br. | E179: =E176/E$112 -> 0.02049798893 | F179: 0.05228037508 | G179: 0.0306391317
D180: 10 års TBT, % af br. | E180: =E177/E$112 -> 0.09933107582 | F180: 0.100490505 | G180: 0.09970102719
E182: =E92 -> Ikke el | F182: =F92 -> El | G182: I alt
D183: 2 år | E183: =E175/$G$112 -> 0.008743362439 | F183: =F175/$G$112 -> 0.01082253971 | G183: =G175/G$112 -> 0.01956590215
D184: 4 år | E184: 0.01395747837 | F184: 0.01668165333 | G184: =G176/G$112 -> 0.0306391317
D185: 10 år | E185: 0.06763645677 | F185: 0.03206457042 | G185: =G177/G$112 -> 0.09970102719
C188: Besparelsespotentialer fordelt på teknologiområder og sektorer
D190: Resultaterne vises for den tilbagebetalingstid der er valgt øverst. For andre tilbagebetalingstider - indtast disse øverst en ad gangen.
D192: Resultaterne er baseret på generel viden om energibesparelser i energianvendelsesområdet og energiforbrug i branchen (og ikke viden om besparelsespotentiale for det enkelte energianvendelsesområde i den enkelte sektor/branche)
D194: Energiforbrug | O194: Besparelsespotentiale %
D195: TJ/år | E195: Landbrug mv. | F195: Fødevarer mv. | G195: Træ+papir | H195: Kemi+farma | I195: Byggematerialer | J195: Metal | K195: Fremstilling | L195: Handel+Service | M195: I alt | O195: 10 år | P195: 4 år | Q195: 2 år
D196: Konverterings- og nettab | E196: =SUMIFS(Energiforbrug!$N$10:$N$27393,Energiforbrug!$J$10:$J$27393,$D196,Energiforbrug!$I$10:$I$27393,E$195)/1000 -> 2778.702014 | F196: =SUMIFS(Energiforbrug!$N$10:$N$27393,Energiforbrug!$J$10:$J$27393,$D196,Energiforbrug!$I$10:$I$27393,F$195)/1000 -> 1503.19547 | G196: =SUMIFS(Energiforbrug!$N$10:$N$27393,Energiforbrug!$J$10:$J$27393,$D196,Energiforbrug!$I$10:$I$27393,G$195)/1000 -> 772.8647437 | H196: =SUMIFS(Energiforbrug!$N$10:$N$27393,Energiforbrug!$J$10:$J$27393,$D196,Energiforbrug!$I$10:$I$27393,H$195)/1000 -> 867.2040854 | I196: =SUMIFS(Energiforbrug!$N$10:$N$27393,Energiforbrug!$J$10:$J$27393,$D196,Energiforbrug!$I$10:$I$27393,I$195)/1000 -> 356.8058678 | J196: =SUMIFS(Energiforbrug!$N$10:$N$27393,Energiforbrug!$J$10:$J$27393,$D196,Energiforbrug!$I$10:$I$27393,J$195)/1000 -> 245.24621 | K196: =SUMIFS(Energiforbrug!$N$10:$N$27393,Energiforbrug!$J$10:$J$27393,$D196,Energiforbrug!$I$10:$I$27393,K$195)/1000 -> 1306.59248 | L196: =SUMIFS(Energiforbrug!$N$10:$N$27393,Energiforbrug!$J$10:$J$27393,$D196,Energiforbrug!$I$10:$I$27393,L$195)/1000 -> 645.121544 | M196: =SUM(E196:L196) -> 8475.732415 | O196: =K53 -> 0.06163887931 | P196: =J53 -> 0 | Q196: =I53 -> 0
D197: Opvarmning/kogning | E197: =SUMIFS(Energiforbrug!$N$10:$N$27393,Energiforbrug!$J$10:$J$27393,$D197,Energiforbrug!$I$10:$I$27393,E$195)/1000 -> 1044.42365 | F197: =SUMIFS(Energiforbrug!$N$10:$N$27393,Energiforbrug!$J$10:$J$27393,$D197,Energiforbrug!$I$10:$I$27393,F$195)/1000 -> 6381.692869 | G197: =SUMIFS(Energiforbrug!$N$10:$N$27393,Energiforbrug!$J$10:$J$27393,$D197,Energiforbrug!$I$10:$I$27393,G$195)/1000 -> 245.8138303 | H197: =SUMIFS(Energiforbrug!$N$10:$N$27393,Energiforbrug!$J$10:$J$27393,$D197,Energiforbrug!$I$10:$I$27393,H$195)/1000 -> 2015.476904 | I197: =SUMIFS(Energiforbrug!$N$10:$N$27393,Energiforbrug!$J$10:$J$27393,$D197,Energiforbrug!$I$10:$I$27393,I$195)/1000 -> 5146.062926 | J197: =SUMIFS(Energiforbrug!$N$10:$N$27393,Energiforbrug!$J$10:$J$27393,$D197,Energiforbrug!$I$10:$I$27393,J$195)/1000 -> 157.66838 | K197: =SUMIFS(Energiforbrug!$N$10:$N$27393,Energiforbrug!$J$10:$J$27393,$D197,Energiforbrug!$I$10:$I$27393,K$195)/1000 -> 497.3738962 | L197: =SUMIFS(Energiforbrug!$N$10:$N$27393,Energiforbrug!$J$10:$J$27393,$D197,Energiforbrug!$I$10:$I$27393,L$195)/1000 -> 725.7000023 | M197: 16214.21246 | O197: 0.08831510787 | P197: 0.01447826787 | Q197: 0.0004819925784
D198: Tørring | E198: =SUMIFS(Energiforbrug!$N$10:$N$27393,Energiforbrug!$J$10:$J$27393,$D198,Energiforbrug!$I$10:$I$27393,E$195)/1000 -> 724.3266829 | F198: =SUMIFS(Energiforbrug!$N$10:$N$27393,Energiforbrug!$J$10:$J$27393,$D198,Energiforbrug!$I$10:$I$27393,F$195)/1000 -> 4586.19113 | G198: =SUMIFS(Energiforbrug!$N$10:$N$27393,Energiforbrug!$J$10:$J$27393,$D198,Energiforbrug!$I$10:$I$27393,G$195)/1000 -> 3389.670036 | H198: =SUMIFS(Energiforbrug!$N$10:$N$27393,Energiforbrug!$J$10:$J$27393,$D198,Energiforbrug!$I$10:$I$27393,H$195)/1000 -> 907.0847875 | I198: =SUMIFS(Energiforbrug!$N$10:$N$27393,Energiforbrug!$J$10:$J$27393,$D198,Energiforbrug!$I$10:$I$27393,I$195)/1000 -> 2756.795058 | J198: =SUMIFS(Energiforbrug!$N$10:$N$27393,Energiforbrug!$J$10:$J$27393,$D198,Energiforbrug!$I$10:$I$27393,J$195)/1000 -> 320.01098 | K198: =SUMIFS(Energiforbrug!$N$10:$N$27393,Energiforbrug!$J$10:$J$27393,$D198,Energiforbrug!$I$10:$I$27393,K$195)/1000 -> 792.2676771 | L198: =SUMIFS(Energiforbrug!$N$10:$N$27393,Energiforbrug!$J$10:$J$27393,$D198,Energiforbrug!$I$10:$I$27393,L$195)/1000 -> 90.7520068 | M198: 13567.09836 | O198: 0.006313809583 | P198: 0.006095439938 | Q198: 0.0004871129466
D199: Inddampning | E199: =SUMIFS(Energiforbrug!$N$10:$N$27393,Energiforbrug!$J$10:$J$27393,$D199,Energiforbrug!$I$10:$I$27393,E$195)/1000 -> 1709.19923 | F199: =SUMIFS(Energiforbrug!$N$10:$N$27393,Energiforbrug!$J$10:$J$27393,$D199,Energiforbrug!$I$10:$I$27393,F$195)/1000 -> 1826.998913 | G199: =SUMIFS(Energiforbrug!$N$10:$N$27393,Energiforbrug!$J$10:$J$27393,$D199,Energiforbrug!$I$10:$I$27393,G$195)/1000 -> 0 | H199: =SUMIFS(Energiforbrug!$N$10:$N$27393,Energiforbrug!$J$10:$J$27393,$D199,Energiforbrug!$I$10:$I$27393,H$195)/1000 -> 1059.154167 | I199: =SUMIFS(Energiforbrug!$N$10:$N$27393,Energiforbrug!$J$10:$J$27393,$D199,Energiforbrug!$I$10:$I$27393,I$195)/1000 -> 0 | J199: =SUMIFS(Energiforbrug!$N$10:$N$27393,Energiforbrug!$J$10:$J$27393,$D199,Energiforbrug!$I$10:$I$27393,J$195)/1000 -> 0 | K199: =SUMIFS(Energiforbrug!$N$10:$N$27393,Energiforbrug!$J$10:$J$27393,$D199,Energiforbrug!$I$10:$I$27393,K$195)/1000 -> 0 | L199: =SUMIFS(Energiforbrug!$N$10:$N$27393,Energiforbrug!$J$10:$J$27393,$D199,Energiforbrug!$I$10:$I$27393,L$195)/1000 -> 0 | M199: 4595.35231 | O199: 0.05631035542 | P199: 0.05547750263 | Q199: 0.02987691484
D200: Brænding/sintring | E200: =SUMIFS(Energiforbrug!$N$10:$N$27393,Energiforbrug!$J$10:$J$27393,$D200,Energiforbrug!$I$10:$I$27393,E$195)/1000 -> 163.85762 | F200: =SUMIFS(Energiforbrug!$N$10:$N$27393,Energiforbrug!$J$10:$J$27393,$D200,Energiforbrug!$I$10:$I$27393,F$195)/1000 -> 24.80694736 | G200: =SUMIFS(Energiforbrug!$N$10:$N$27393,Energiforbrug!$J$10:$J$27393,$D200,Energiforbrug!$I$10:$I$27393,G$195)/1000 -> 0 | H200: =SUMIFS(Energiforbrug!$N$10:$N$27393,Energiforbrug!$J$10:$J$27393,$D200,Energiforbrug!$I$10:$I$27393,H$195)/1000 -> 0 | I200: =SUMIFS(Energiforbrug!$N$10:$N$27393,Energiforbrug!$J$10:$J$27393,$D200,Energiforbrug!$I$10:$I$27393,I$195)/1000 -> 3697.683202 | J200: =SUMIFS(Energiforbrug!$N$10:$N$27393,Energiforbrug!$J$10:$J$27393,$D200,Energiforbrug!$I$10:$I$27393,J$195)/1000 -> 0 | K200: =SUMIFS(Energiforbrug!$N$10:$N$27393,Energiforbrug!$J$10:$J$27393,$D200,Energiforbrug!$I$10:$I$27393,K$195)/1000 -> 8.19156 | L200: =SUMIFS(Energiforbrug!$N$10:$N$27393,Energiforbrug!$J$10:$J$27393,$D200,Energiforbrug!$I$10:$I$27393,L$195)/1000 -> 0 | M200: 3894.539329 | O200: 0 | P200: 0 | Q200: 0
D201: Rumvarme | E201: =SUMIFS(Energiforbrug!$N$10:$N$27393,Energiforbrug!$J$10:$J$27393,$D201,Energiforbrug!$I$10:$I$27393,E$195)/1000 -> 193.94201 | F201: =SUMIFS(Energiforbrug!$N$10:$N$27393,Energiforbrug!$J$10:$J$27393,$D201,Energiforbrug!$I$10:$I$27393,F$195)/1000 -> 1846.517191 | G201: =SUMIFS(Energiforbrug!$N$10:$N$27393,Energiforbrug!$J$10:$J$27393,$D201,Energiforbrug!$I$10:$I$27393,G$195)/1000 -> 735.6879618 | H201: =SUMIFS(Energiforbrug!$N$10:$N$27393,Energiforbrug!$J$10:$J$27393,$D201,Energiforbrug!$I$10:$I$27393,H$195)/1000 -> 1292.335794 | I201: =SUMIFS(Energiforbrug!$N$10:$N$27393,Energiforbrug!$J$10:$J$27393,$D201,Energiforbrug!$I$10:$I$27393,I$195)/1000 -> 421.5606624 | J201: =SUMIFS(Energiforbrug!$N$10:$N$27393,Energiforbrug!$J$10:$J$27393,$D201,Energiforbrug!$I$10:$I$27393,J$195)/1000 -> 1165.00114 | K201: =SUMIFS(Energiforbrug!$N$10:$N$27393,Energiforbrug!$J$10:$J$27393,$D201,Energiforbrug!$I$10:$I$27393,K$195)/1000 -> 4815.985854 | L201: =SUMIFS(Energiforbrug!$N$10:$N$27393,Energiforbrug!$J$10:$J$27393,$D201,Energiforbrug!$I$10:$I$27393,L$195)/1000 -> 24145.68144 | M201: 34616.71206 | O201: 0.1851087231 | P201: 0.008475352904 | Q201: 0
D202: Arbejdskørsel | E202: =SUMIFS(Energiforbrug!$N$10:$N$27393,Energiforbrug!$J$10:$J$27393,$D202,Energiforbrug!$I$10:$I$27393,E$195)/1000 -> 17077.77979 | F202: =SUMIFS(Energiforbrug!$N$10:$N$27393,Energiforbrug!$J$10:$J$27393,$D202,Energiforbrug!$I$10:$I$27393,F$195)/1000 -> 147.6308223 | G202: =SUMIFS(Energiforbrug!$N$10:$N$27393,Energiforbrug!$J$10:$J$27393,$D202,Energiforbrug!$I$10:$I$27393,G$195)/1000 -> 109.57803 | H202: =SUMIFS(Energiforbrug!$N$10:$N$27393,Energiforbrug!$J$10:$J$27393,$D202,Energiforbrug!$I$10:$I$27393,H$195)/1000 -> 29.0949 | I202: =SUMIFS(Energiforbrug!$N$10:$N$27393,Energiforbrug!$J$10:$J$27393,$D202,Energiforbrug!$I$10:$I$27393,I$195)/1000 -> 92.08673375 | J202: =SUMIFS(Energiforbrug!$N$10:$N$27393,Energiforbrug!$J$10:$J$27393,$D202,Energiforbrug!$I$10:$I$27393,J$195)/1000 -> 32.28004 | K202: =SUMIFS(Energiforbrug!$N$10:$N$27393,Energiforbrug!$J$10:$J$27393,$D202,Energiforbrug!$I$10:$I$27393,K$195)/1000 -> 486.80491 | L202: =SUMIFS(Energiforbrug!$N$10:$N$27393,Energiforbrug!$J$10:$J$27393,$D202,Energiforbrug!$I$10:$I$27393,L$195)/1000 -> 123.10774 | M202: =SUM(E202:L202) -> 18098.36297 | O202: 0.06481207799 | P202: 0.06481207799 | Q202: 0.06218383469
D203: Delsum (ikke-el) | E203: =SUM(E196:E202) -> 23692.231 | F203: =SUM(F196:F202) -> 16317.03334 | G203: 5253.614602 | H203: 6170.350639 | I203: 12470.99445 | J203: 1920.20675 | K203: 7907.216378 | L203: 25730.36274 | M203: 99462.0099 | O203: 0.09933107582 | P203: 0.02049798893 | Q203: 0.01284052475
D204: Varmepumpers energiforbrug | E204: =SUMIFS(Energiforbrug!$N$10:$N$27393,Energiforbrug!$J$10:$J$27393,$D204,Energiforbrug!$I$10:$I$27393,E$195)/1000 -> 218.11308 | F204: =SUMIFS(Energiforbrug!$N$10:$N$27393,Energiforbrug!$J$10:$J$27393,$D204,Energiforbrug!$I$10:$I$27393,F$195)/1000 -> 148.782885 | G204: =SUMIFS(Energiforbrug!$N$10:$N$27393,Energiforbrug!$J$10:$J$27393,$D204,Energiforbrug!$I$10:$I$27393,G$195)/1000 -> 7.80103 | H204: =SUMIFS(Energiforbrug!$N$10:$N$27393,Energiforbrug!$J$10:$J$27393,$D204,Energiforbrug!$I$10:$I$27393,H$195)/1000 -> 55.98154383 | I204: =SUMIFS(Energiforbrug!$N$10:$N$27393,Energiforbrug!$J$10:$J$27393,$D204,Energiforbrug!$I$10:$I$27393,I$195)/1000 -> 7.21576677 | J204: =SUMIFS(Energiforbrug!$N$10:$N$27393,Energiforbrug!$J$10:$J$27393,$D204,Energiforbrug!$I$10:$I$27393,J$195)/1000 -> 34.95822 | K204: =SUMIFS(Energiforbrug!$N$10:$N$27393,Energiforbrug!$J$10:$J$27393,$D204,Energiforbrug!$I$10:$I$27393,K$195)/1000 -> 144.00061 | L204: =SUMIFS(Energiforbrug!$N$10:$N$27393,Energiforbrug!$J$10:$J$27393,$D204,Energiforbrug!$I$10:$I$27393,L$195)/1000 -> 0 | M204: 616.8531356 | O204: 0.06754840548 | P204: 0.06754840548 | Q204: 0
D205: Rumkøling | E205: =SUMIFS(Energiforbrug!$N$10:$N$27393,Energiforbrug!$J$10:$J$27393,$D205,Energiforbrug!$I$10:$I$27393,E$195)/1000 -> 0 | F205: =SUMIFS(Energiforbrug!$N$10:$N$27393,Energiforbrug!$J$10:$J$27393,$D205,Energiforbrug!$I$10:$I$27393,F$195)/1000 -> 146.4443195 | G205: =SUMIFS(Energiforbrug!$N$10:$N$27393,Energiforbrug!$J$10:$J$27393,$D205,Energiforbrug!$I$10:$I$27393,G$195)/1000 -> 23.40309 | H205: =SUMIFS(Energiforbrug!$N$10:$N$27393,Energiforbrug!$J$10:$J$27393,$D205,Energiforbrug!$I$10:$I$27393,H$195)/1000 -> 46.47233469 | I205: =SUMIFS(Energiforbrug!$N$10:$N$27393,Energiforbrug!$J$10:$J$27393,$D205,Energiforbrug!$I$10:$I$27393,I$195)/1000 -> 0 | J205: =SUMIFS(Energiforbrug!$N$10:$N$27393,Energiforbrug!$J$10:$J$27393,$D205,Energiforbrug!$I$10:$I$27393,J$195)/1000 -> 0 | K205: =SUMIFS(Energiforbrug!$N$10:$N$27393,Energiforbrug!$J$10:$J$27393,$D205,Energiforbrug!$I$10:$I$27393,K$195)/1000 -> 18.8834468 | L205: =SUMIFS(Energiforbrug!$N$10:$N$27393,Energiforbrug!$J$10:$J$27393,$D205,Energiforbrug!$I$10:$I$27393,L$195)/1000 -> 1998.083922 | M205: 2233.287113 | O205: 0.08814816364 | P205: 0.07092437353 | Q205: 0
D206: Køl/frys (ekskl. rumkøling) | E206: =SUMIFS(Energiforbrug!$N$10:$N$27393,Energiforbrug!$J$10:$J$27393,$D206,Energiforbrug!$I$10:$I$27393,E$195)/1000 -> 575.56085 | F206: =SUMIFS(Energiforbrug!$N$10:$N$27393,Energiforbrug!$J$10:$J$27393,$D206,Energiforbrug!$I$10:$I$27393,F$195)/1000 -> 1666.960857 | G206: =SUMIFS(Energiforbrug!$N$10:$N$27393,Energiforbrug!$J$10:$J$27393,$D206,Energiforbrug!$I$10:$I$27393,G$195)/1000 -> 2.969097076 | H206: =SUMIFS(Energiforbrug!$N$10:$N$27393,Energiforbrug!$J$10:$J$27393,$D206,Energiforbrug!$I$10:$I$27393,H$195)/1000 -> 753.0879004 | I206: =SUMIFS(Energiforbrug!$N$10:$N$27393,Energiforbrug!$J$10:$J$27393,$D206,Energiforbrug!$I$10:$I$27393,I$195)/1000 -> 0 | J206: =SUMIFS(Energiforbrug!$N$10:$N$27393,Energiforbrug!$J$10:$J$27393,$D206,Energiforbrug!$I$10:$I$27393,J$195)/1000 -> 17.47911 | K206: =SUMIFS(Energiforbrug!$N$10:$N$27393,Energiforbrug!$J$10:$J$27393,$D206,Energiforbrug!$I$10:$I$27393,K$195)/1000 -> 126.7293702 | L206: =SUMIFS(Energiforbrug!$N$10:$N$27393,Energiforbrug!$J$10:$J$27393,$D206,Energiforbrug!$I$10:$I$27393,L$195)/1000 -> 3074.576181 | M206: 6217.363366 | O206: 0.01610789198 | P206: 0.01610789198 | Q206: 0.01610789198
D207: Rumventilation | E207: =SUMIFS(Energiforbrug!$N$10:$N$27393,Energiforbrug!$J$10:$J$27393,$D207,Energiforbrug!$I$10:$I$27393,E$195)/1000 -> 662.31924 | F207: =SUMIFS(Energiforbrug!$N$10:$N$27393,Energiforbrug!$J$10:$J$27393,$D207,Energiforbrug!$I$10:$I$27393,F$195)/1000 -> 764.4605296 | G207: =SUMIFS(Energiforbrug!$N$10:$N$27393,Energiforbrug!$J$10:$J$27393,$D207,Energiforbrug!$I$10:$I$27393,G$195)/1000 -> 39.00515 | H207: =SUMIFS(Energiforbrug!$N$10:$N$27393,Energiforbrug!$J$10:$J$27393,$D207,Energiforbrug!$I$10:$I$27393,H$195)/1000 -> 308.3163405 | I207: =SUMIFS(Energiforbrug!$N$10:$N$27393,Energiforbrug!$J$10:$J$27393,$D207,Energiforbrug!$I$10:$I$27393,I$195)/1000 -> 29.34533 | J207: =SUMIFS(Energiforbrug!$N$10:$N$27393,Energiforbrug!$J$10:$J$27393,$D207,Energiforbrug!$I$10:$I$27393,J$195)/1000 -> 299.39172 | K207: =SUMIFS(Energiforbrug!$N$10:$N$27393,Energiforbrug!$J$10:$J$27393,$D207,Energiforbrug!$I$10:$I$27393,K$195)/1000 -> 652.1324616 | L207: =SUMIFS(Energiforbrug!$N$10:$N$27393,Energiforbrug!$J$10:$J$27393,$D207,Energiforbrug!$I$10:$I$27393,L$195)/1000 -> 2696.140405 | M207: 5451.111176 | O207: 0.2049594516 | P207: 0.007148351041 | Q207: 0
D208: Pumpning | E208: =SUMIFS(Energiforbrug!$N$10:$N$27393,Energiforbrug!$J$10:$J$27393,$D208,Energiforbrug!$I$10:$I$27393,E$195)/1000 -> 1463.67006 | F208: =SUMIFS(Energiforbrug!$N$10:$N$27393,Energiforbrug!$J$10:$J$27393,$D208,Energiforbrug!$I$10:$I$27393,F$195)/1000 -> 1013.121013 | G208: =SUMIFS(Energiforbrug!$N$10:$N$27393,Energiforbrug!$J$10:$J$27393,$D208,Energiforbrug!$I$10:$I$27393,G$195)/1000 -> 196.8332932 | H208: =SUMIFS(Energiforbrug!$N$10:$N$27393,Energiforbrug!$J$10:$J$27393,$D208,Energiforbrug!$I$10:$I$27393,H$195)/1000 -> 939.9997189 | I208: =SUMIFS(Energiforbrug!$N$10:$N$27393,Energiforbrug!$J$10:$J$27393,$D208,Energiforbrug!$I$10:$I$27393,I$195)/1000 -> 195.2264343 | J208: =SUMIFS(Energiforbrug!$N$10:$N$27393,Energiforbrug!$J$10:$J$27393,$D208,Energiforbrug!$I$10:$I$27393,J$195)/1000 -> 141.33078 | K208: =SUMIFS(Energiforbrug!$N$10:$N$27393,Energiforbrug!$J$10:$J$27393,$D208,Energiforbrug!$I$10:$I$27393,K$195)/1000 -> 71.34487325 | L208: =SUMIFS(Energiforbrug!$N$10:$N$27393,Energiforbrug!$J$10:$J$27393,$D208,Energiforbrug!$I$10:$I$27393,L$195)/1000 -> 540.2625135 | M208: 4561.788686 | O208: 0.07555737612 | P208: 0.07555737612 | Q208: 0.07555737612
D209: Blæsere | E209: =SUMIFS(Energiforbrug!$N$10:$N$27393,Energiforbrug!$J$10:$J$27393,$D209,Energiforbrug!$I$10:$I$27393,E$195)/1000 -> 370.41366 | F209: =SUMIFS(Energiforbrug!$N$10:$N$27393,Energiforbrug!$J$10:$J$27393,$D209,Energiforbrug!$I$10:$I$27393,F$195)/1000 -> 689.1883546 | G209: =SUMIFS(Energiforbrug!$N$10:$N$27393,Energiforbrug!$J$10:$J$27393,$D209,Energiforbrug!$I$10:$I$27393,G$195)/1000 -> 336.5874629 | H209: =SUMIFS(Energiforbrug!$N$10:$N$27393,Energiforbrug!$J$10:$J$27393,$D209,Energiforbrug!$I$10:$I$27393,H$195)/1000 -> 555.2939394 | I209: =SUMIFS(Energiforbrug!$N$10:$N$27393,Energiforbrug!$J$10:$J$27393,$D209,Energiforbrug!$I$10:$I$27393,I$195)/1000 -> 324.1143116 | J209: =SUMIFS(Energiforbrug!$N$10:$N$27393,Energiforbrug!$J$10:$J$27393,$D209,Energiforbrug!$I$10:$I$27393,J$195)/1000 -> 170.60856 | K209: =SUMIFS(Energiforbrug!$N$10:$N$27393,Energiforbrug!$J$10:$J$27393,$D209,Energiforbrug!$I$10:$I$27393,K$195)/1000 -> 401.9620927 | L209: =SUMIFS(Energiforbrug!$N$10:$N$27393,Energiforbrug!$J$10:$J$27393,$D209,Energiforbrug!$I$10:$I$27393,L$195)/1000 -> 104.209339 | M209: 2952.37772 | O209: 0.05336555212 | P209: 0.04380829636 | Q209: 0
D210: Trykluft | E210: =SUMIFS(Energiforbrug!$N$10:$N$27393,Energiforbrug!$J$10:$J$27393,$D210,Energiforbrug!$I$10:$I$27393,E$195)/1000 -> 287.36098 | F210: =SUMIFS(Energiforbrug!$N$10:$N$27393,Energiforbrug!$J$10:$J$27393,$D210,Energiforbrug!$I$10:$I$27393,F$195)/1000 -> 562.0573932 | G210: =SUMIFS(Energiforbrug!$N$10:$N$27393,Energiforbrug!$J$10:$J$27393,$D210,Energiforbrug!$I$10:$I$27393,G$195)/1000 -> 145.9682882 | H210: =SUMIFS(Energiforbrug!$N$10:$N$27393,Energiforbrug!$J$10:$J$27393,$D210,Energiforbrug!$I$10:$I$27393,H$195)/1000 -> 963.2042033 | I210: =SUMIFS(Energiforbrug!$N$10:$N$27393,Energiforbrug!$J$10:$J$27393,$D210,Energiforbrug!$I$10:$I$27393,I$195)/1000 -> 265.6397435 | J210: =SUMIFS(Energiforbrug!$N$10:$N$27393,Energiforbrug!$J$10:$J$27393,$D210,Energiforbrug!$I$10:$I$27393,J$195)/1000 -> 237.09141 | K210: =SUMIFS(Energiforbrug!$N$10:$N$27393,Energiforbrug!$J$10:$J$27393,$D210,Energiforbrug!$I$10:$I$27393,K$195)/1000 -> 569.377318 | L210: =SUMIFS(Energiforbrug!$N$10:$N$27393,Energiforbrug!$J$10:$J$27393,$D210,Energiforbrug!$I$10:$I$27393,L$195)/1000 -> 311.8105057 | M210: 3342.509842 | O210: 0 | P210: 0 | Q210: 0
D211: Hydraulik | E211: =SUMIFS(Energiforbrug!$N$10:$N$27393,Energiforbrug!$J$10:$J$27393,$D211,Energiforbrug!$I$10:$I$27393,E$195)/1000 -> 61.25563 | F211: =SUMIFS(Energiforbrug!$N$10:$N$27393,Energiforbrug!$J$10:$J$27393,$D211,Energiforbrug!$I$10:$I$27393,F$195)/1000 -> 96.0559167 | G211: =SUMIFS(Energiforbrug!$N$10:$N$27393,Energiforbrug!$J$10:$J$27393,$D211,Energiforbrug!$I$10:$I$27393,G$195)/1000 -> 39.00515 | H211: =SUMIFS(Energiforbrug!$N$10:$N$27393,Energiforbrug!$J$10:$J$27393,$D211,Energiforbrug!$I$10:$I$27393,H$195)/1000 -> 129.93603 | I211: =SUMIFS(Energiforbrug!$N$10:$N$27393,Energiforbrug!$J$10:$J$27393,$D211,Energiforbrug!$I$10:$I$27393,I$195)/1000 -> 92.07998 | J211: =SUMIFS(Energiforbrug!$N$10:$N$27393,Energiforbrug!$J$10:$J$27393,$D211,Energiforbrug!$I$10:$I$27393,J$195)/1000 -> 140.58183 | K211: =SUMIFS(Energiforbrug!$N$10:$N$27393,Energiforbrug!$J$10:$J$27393,$D211,Energiforbrug!$I$10:$I$27393,K$195)/1000 -> 161.0584652 | L211: =SUMIFS(Energiforbrug!$N$10:$N$27393,Energiforbrug!$J$10:$J$27393,$D211,Energiforbrug!$I$10:$I$27393,L$195)/1000 -> 31.07924 | M211: 751.0522419 | O211: 0.1016790441 | P211: 0 | Q211: 0
D212: Belysning | E212: =SUMIFS(Energiforbrug!$N$10:$N$27393,Energiforbrug!$J$10:$J$27393,$D212,Energiforbrug!$I$10:$I$27393,E$195)/1000 -> 1370.55012 | F212: =SUMIFS(Energiforbrug!$N$10:$N$27393,Energiforbrug!$J$10:$J$27393,$D212,Energiforbrug!$I$10:$I$27393,F$195)/1000 -> 457.9354592 | G212: =SUMIFS(Energiforbrug!$N$10:$N$27393,Energiforbrug!$J$10:$J$27393,$D212,Energiforbrug!$I$10:$I$27393,G$195)/1000 -> 90.32225236 | H212: =SUMIFS(Energiforbrug!$N$10:$N$27393,Energiforbrug!$J$10:$J$27393,$D212,Energiforbrug!$I$10:$I$27393,H$195)/1000 -> 249.7897508 | I212: =SUMIFS(Energiforbrug!$N$10:$N$27393,Energiforbrug!$J$10:$J$27393,$D212,Energiforbrug!$I$10:$I$27393,I$195)/1000 -> 134.9922127 | J212: =SUMIFS(Energiforbrug!$N$10:$N$27393,Energiforbrug!$J$10:$J$27393,$D212,Energiforbrug!$I$10:$I$27393,J$195)/1000 -> 249.63903 | K212: =SUMIFS(Energiforbrug!$N$10:$N$27393,Energiforbrug!$J$10:$J$27393,$D212,Energiforbrug!$I$10:$I$27393,K$195)/1000 -> 639.4360535 | L212: =SUMIFS(Energiforbrug!$N$10:$N$27393,Energiforbrug!$J$10:$J$27393,$D212,Energiforbrug!$I$10:$I$27393,L$195)/1000 -> 8278.308393 | M212: 11470.97327 | O212: 0.161403319 | P212: 0.1190237616 | Q212: 0.0887571294
D213: It og anden elektronik | E213: =SUMIFS(Energiforbrug!$N$10:$N$27393,Energiforbrug!$J$10:$J$27393,$D213,Energiforbrug!$I$10:$I$27393,E$195)/1000 -> 126.13296 | F213: =SUMIFS(Energiforbrug!$N$10:$N$27393,Energiforbrug!$J$10:$J$27393,$D213,Energiforbrug!$I$10:$I$27393,F$195)/1000 -> 154.1845965 | G213: =SUMIFS(Energiforbrug!$N$10:$N$27393,Energiforbrug!$J$10:$J$27393,$D213,Energiforbrug!$I$10:$I$27393,G$195)/1000 -> 25.91037338 | H213: =SUMIFS(Energiforbrug!$N$10:$N$27393,Energiforbrug!$J$10:$J$27393,$D213,Energiforbrug!$I$10:$I$27393,H$195)/1000 -> 51.10395144 | I213: =SUMIFS(Energiforbrug!$N$10:$N$27393,Energiforbrug!$J$10:$J$27393,$D213,Energiforbrug!$I$10:$I$27393,I$195)/1000 -> 5.88325 | J213: =SUMIFS(Energiforbrug!$N$10:$N$27393,Energiforbrug!$J$10:$J$27393,$D213,Energiforbrug!$I$10:$I$27393,J$195)/1000 -> 65.7339 | K213: =SUMIFS(Energiforbrug!$N$10:$N$27393,Energiforbrug!$J$10:$J$27393,$D213,Energiforbrug!$I$10:$I$27393,K$195)/1000 -> 268.7752857 | L213: =SUMIFS(Energiforbrug!$N$10:$N$27393,Energiforbrug!$J$10:$J$27393,$D213,Energiforbrug!$I$10:$I$27393,L$195)/1000 -> 3809.417682 | M213: =SUM(E213:L213) -> 4507.141999 | O213: 0.07735931374 | P213: 0.02666693758 | Q213: 0.006606228458
D214: Delsum (el) | E214: =SUM(E204:E213) -> 5135.37658 | F214: =SUM(F204:F213) -> 5699.191325 | G214: 907.8051872 | H214: 4053.185713 | I214: 1054.497029 | J214: 1356.81456 | K214: 3053.699977 | L214: 20843.88818 | M214: 42104.45855 | O214: 0.1005749514 | P214: 0.05459522749 | Q214: 0.03545304514
D215: I alt | E215: =E203+E214 -> 28827.60758 | F215: =F203+F214 -> 22016.22467 | G215: 6161.419789 | H215: 10223.53635 | I215: 13525.49148 | J215: 3277.02131 | K215: 10960.91635 | L215: 46574.25092 | M215: 141566.4684 | O215: 0.09970102719 | P215: 0.0306391317 | Q215: 0.01956590215
D217: ="Besparelsespotentiale (for valgte parametre) "&$G$5 -> Besparelsespotentiale (for valgte parametre) 10 | O217: Besparelser på tværs af brancher
D218: TJ per år | E218: Landbrug mv. | F218: Fødevarer mv. | G218: Træ+papir | H218: Kemi+farma | I218: Byggematerialer | J218: Metal | K218: Fremstilling | L218: Handel+Service | M218: I alt | O218: Energi | P218: Besparelse %
D219: Konverterings- og nettab | E219: =SUMIFS(Potentialer!$AO$11:$AO$1721,Potentialer!$J$11:$J$1721,$D219,Potentialer!$Z$11:$Z$1721,E$218)/1000 -> 522.4346474 | F219: =SUMIFS(Potentialer!$AO$11:$AO$1721,Potentialer!$J$11:$J$1721,$D219,Potentialer!$Z$11:$Z$1721,F$218)/1000 -> 0 | G219: =SUMIFS(Potentialer!$AO$11:$AO$1721,Potentialer!$J$11:$J$1721,$D219,Potentialer!$Z$11:$Z$1721,G$218)/1000 -> 0 | H219: =SUMIFS(Potentialer!$AO$11:$AO$1721,Potentialer!$J$11:$J$1721,$D219,Potentialer!$Z$11:$Z$1721,H$218)/1000 -> 0 | I219: =SUMIFS(Potentialer!$AO$11:$AO$1721,Potentialer!$J$11:$J$1721,$D219,Potentialer!$Z$11:$Z$1721,I$218)/1000 -> 0 | J219: =SUMIFS(Potentialer!$AO$11:$AO$1721,Potentialer!$J$11:$J$1721,$D219,Potentialer!$Z$11:$Z$1721,J$218)/1000 -> 0 | K219: =SUMIFS(Potentialer!$AO$11:$AO$1721,Potentialer!$J$11:$J$1721,$D219,Potentialer!$Z$11:$Z$1721,K$218)/1000 -> 0 | L219: =SUMIFS(Potentialer!$AO$11:$AO$1721,Potentialer!$J$11:$J$1721,$D219,Potentialer!$Z$11:$Z$1721,L$218)/1000 -> 0 | M219: =SUM(E219:L219) -> 522.4346474 | O219: =SUMIFS(Potentialer!$AO$11:$AO$1997,Potentialer!$J$11:$J$1997,D219,Potentialer!$W$11:$W$1997,Cases!$D$3)/1000 -> 522.4346474 | P219: =O219/M196 -> 0.06163887931
D220: Opvarmning/kogning | E220: =SUMIFS(Potentialer!$AO$11:$AO$1721,Potentialer!$J$11:$J$1721,$D220,Potentialer!$Z$11:$Z$1721,E$218)/1000 -> 218.3386425 | F220: =SUMIFS(Potentialer!$AO$11:$AO$1721,Potentialer!$J$11:$J$1721,$D220,Potentialer!$Z$11:$Z$1721,F$218)/1000 -> 1111.891573 | G220: =SUMIFS(Potentialer!$AO$11:$AO$1721,Potentialer!$J$11:$J$1721,$D220,Potentialer!$Z$11:$Z$1721,G$218)/1000 -> 0 | H220: =SUMIFS(Potentialer!$AO$11:$AO$1721,Potentialer!$J$11:$J$1721,$D220,Potentialer!$Z$11:$Z$1721,H$218)/1000 -> 101.7297068 | I220: =SUMIFS(Potentialer!$AO$11:$AO$1721,Potentialer!$J$11:$J$1721,$D220,Potentialer!$Z$11:$Z$1721,I$218)/1000 -> 0 | J220: =SUMIFS(Potentialer!$AO$11:$AO$1721,Potentialer!$J$11:$J$1721,$D220,Potentialer!$Z$11:$Z$1721,J$218)/1000 -> 0 | K220: =SUMIFS(Potentialer!$AO$11:$AO$1721,Potentialer!$J$11:$J$1721,$D220,Potentialer!$Z$11:$Z$1721,K$218)/1000 -> 0 | L220: =SUMIFS(Potentialer!$AO$11:$AO$1721,Potentialer!$J$11:$J$1721,$D220,Potentialer!$Z$11:$Z$1721,L$218)/1000 -> 0 | M220: =SUM(E220:L220) -> 1431.959922 | O220: =SUMIFS(Potentialer!$AO$11:$AO$1997,Potentialer!$J$11:$J$1997,D220,Potentialer!$W$11:$W$1997,Cases!$D$3)/1000 -> 1431.959922 | P220: 0.08831510787
D221: Tørring | E221: =SUMIFS(Potentialer!$AO$11:$AO$1721,Potentialer!$J$11:$J$1721,$D221,Potentialer!$Z$11:$Z$1721,E$218)/1000 -> 42.80687886 | F221: =SUMIFS(Potentialer!$AO$11:$AO$1721,Potentialer!$J$11:$J$1721,$D221,Potentialer!$Z$11:$Z$1721,F$218)/1000 -> 40.88947804 | G221: =SUMIFS(Potentialer!$AO$11:$AO$1721,Potentialer!$J$11:$J$1721,$D221,Potentialer!$Z$11:$Z$1721,G$218)/1000 -> 0 | H221: =SUMIFS(Potentialer!$AO$11:$AO$1721,Potentialer!$J$11:$J$1721,$D221,Potentialer!$Z$11:$Z$1721,H$218)/1000 -> 0.2872125199 | I221: =SUMIFS(Potentialer!$AO$11:$AO$1721,Potentialer!$J$11:$J$1721,$D221,Potentialer!$Z$11:$Z$1721,I$218)/1000 -> 0 | J221: =SUMIFS(Potentialer!$AO$11:$AO$1721,Potentialer!$J$11:$J$1721,$D221,Potentialer!$Z$11:$Z$1721,J$218)/1000 -> 0 | K221: =SUMIFS(Potentialer!$AO$11:$AO$1721,Potentialer!$J$11:$J$1721,$D221,Potentialer!$Z$11:$Z$1721,K$218)/1000 -> 1.6765062 | L221: =SUMIFS(Potentialer!$AO$11:$AO$1721,Potentialer!$J$11:$J$1721,$D221,Potentialer!$Z$11:$Z$1721,L$218)/1000 -> 0 | M221: 85.66007562 | O221: =SUMIFS(Potentialer!$AO$11:$AO$1997,Potentialer!$J$11:$J$1997,D221,Potentialer!$W$11:$W$1997,Cases!$D$3)/1000 -> 85.66007562 | P221: 0.006313809583
D222: Inddampning | E222: =SUMIFS(Potentialer!$AO$11:$AO$1721,Potentialer!$J$11:$J$1721,$D222,Potentialer!$Z$11:$Z$1721,E$218)/1000 -> 0 | F222: =SUMIFS(Potentialer!$AO$11:$AO$1721,Potentialer!$J$11:$J$1721,$D222,Potentialer!$Z$11:$Z$1721,F$218)/1000 -> 73.97931795 | G222: =SUMIFS(Potentialer!$AO$11:$AO$1721,Potentialer!$J$11:$J$1721,$D222,Potentialer!$Z$11:$Z$1721,G$218)/1000 -> 0 | H222: =SUMIFS(Potentialer!$AO$11:$AO$1721,Potentialer!$J$11:$J$1721,$D222,Potentialer!$Z$11:$Z$1721,H$218)/1000 -> 184.7866039 | I222: =SUMIFS(Potentialer!$AO$11:$AO$1721,Potentialer!$J$11:$J$1721,$D222,Potentialer!$Z$11:$Z$1721,I$218)/1000 -> 0 | J222: =SUMIFS(Potentialer!$AO$11:$AO$1721,Potentialer!$J$11:$J$1721,$D222,Potentialer!$Z$11:$Z$1721,J$218)/1000 -> 0 | K222: =SUMIFS(Potentialer!$AO$11:$AO$1721,Potentialer!$J$11:$J$1721,$D222,Potentialer!$Z$11:$Z$1721,K$218)/1000 -> 0 | L222: =SUMIFS(Potentialer!$AO$11:$AO$1721,Potentialer!$J$11:$J$1721,$D222,Potentialer!$Z$11:$Z$1721,L$218)/1000 -> 0 | M222: 258.7659219 | O222: =SUMIFS(Potentialer!$AO$11:$AO$1997,Potentialer!$J$11:$J$1997,D222,Potentialer!$W$11:$W$1997,Cases!$D$3)/1000 -> 258.7659219 | P222: 0.05631035542
D223: Brænding/sintring | E223: =SUMIFS(Potentialer!$AO$11:$AO$1721,Potentialer!$J$11:$J$1721,$D223,Potentialer!$Z$11:$Z$1721,E$218)/1000 -> 0 | F223: =SUMIFS(Potentialer!$AO$11:$AO$1721,Potentialer!$J$11:$J$1721,$D223,Potentialer!$Z$11:$Z$1721,F$218)/1000 -> 0 | G223: =SUMIFS(Potentialer!$AO$11:$AO$1721,Potentialer!$J$11:$J$1721,$D223,Potentialer!$Z$11:$Z$1721,G$218)/1000 -> 0 | H223: =SUMIFS(Potentialer!$AO$11:$AO$1721,Potentialer!$J$11:$J$1721,$D223,Potentialer!$Z$11:$Z$1721,H$218)/1000 -> 0 | I223: =SUMIFS(Potentialer!$AO$11:$AO$1721,Potentialer!$J$11:$J$1721,$D223,Potentialer!$Z$11:$Z$1721,I$218)/1000 -> 0 | J223: =SUMIFS(Potentialer!$AO$11:$AO$1721,Potentialer!$J$11:$J$1721,$D223,Potentialer!$Z$11:$Z$1721,J$218)/1000 -> 0 | K223: =SUMIFS(Potentialer!$AO$11:$AO$1721,Potentialer!$J$11:$J$1721,$D223,Potentialer!$Z$11:$Z$1721,K$218)/1000 -> 0 | L223: =SUMIFS(Potentialer!$AO$11:$AO$1721,Potentialer!$J$11:$J$1721,$D223,Potentialer!$Z$11:$Z$1721,L$218)/1000 -> 0 | M223: 0 | O223: =SUMIFS(Potentialer!$AO$11:$AO$1997,Potentialer!$J$11:$J$1997,D223,Potentialer!$W$11:$W$1997,Cases!$D$3)/1000 -> 0 | P223: 0
D224: Rumvarme | E224: =SUMIFS(Potentialer!$AO$11:$AO$1721,Potentialer!$J$11:$J$1721,$D224,Potentialer!$Z$11:$Z$1721,E$218)/1000 -> 22.66637239 | F224: =SUMIFS(Potentialer!$AO$11:$AO$1721,Potentialer!$J$11:$J$1721,$D224,Potentialer!$Z$11:$Z$1721,F$218)/1000 -> 525.7797965 | G224: =SUMIFS(Potentialer!$AO$11:$AO$1721,Potentialer!$J$11:$J$1721,$D224,Potentialer!$Z$11:$Z$1721,G$218)/1000 -> 53.23337875 | H224: =SUMIFS(Potentialer!$AO$11:$AO$1721,Potentialer!$J$11:$J$1721,$D224,Potentialer!$Z$11:$Z$1721,H$218)/1000 -> 493.8708668 | I224: =SUMIFS(Potentialer!$AO$11:$AO$1721,Potentialer!$J$11:$J$1721,$D224,Potentialer!$Z$11:$Z$1721,I$218)/1000 -> 109.8256033 | J224: =SUMIFS(Potentialer!$AO$11:$AO$1721,Potentialer!$J$11:$J$1721,$D224,Potentialer!$Z$11:$Z$1721,J$218)/1000 -> 461.922952 | K224: =SUMIFS(Potentialer!$AO$11:$AO$1721,Potentialer!$J$11:$J$1721,$D224,Potentialer!$Z$11:$Z$1721,K$218)/1000 -> 1468.464228 | L224: =SUMIFS(Potentialer!$AO$11:$AO$1721,Potentialer!$J$11:$J$1721,$D224,Potentialer!$Z$11:$Z$1721,L$218)/1000 -> 3272.092169 | M224: 6407.855367 | O224: =SUMIFS(Potentialer!$AO$11:$AO$1997,Potentialer!$J$11:$J$1997,D224,Potentialer!$W$11:$W$1997,Cases!$D$3)/1000 -> 6407.855367 | P224: 0.1851087231
D225: Arbejdskørsel | E225: =SUMIFS(Potentialer!$AO$11:$AO$1721,Potentialer!$J$11:$J$1721,$D225,Potentialer!$Z$11:$Z$1721,E$218)/1000 -> 1147.602333 | F225: =SUMIFS(Potentialer!$AO$11:$AO$1721,Potentialer!$J$11:$J$1721,$D225,Potentialer!$Z$11:$Z$1721,F$218)/1000 -> 3.656445559 | G225: =SUMIFS(Potentialer!$AO$11:$AO$1721,Potentialer!$J$11:$J$1721,$D225,Potentialer!$Z$11:$Z$1721,G$218)/1000 -> 2.73945075 | H225: =SUMIFS(Potentialer!$AO$11:$AO$1721,Potentialer!$J$11:$J$1721,$D225,Potentialer!$Z$11:$Z$1721,H$218)/1000 -> 0.6548475 | I225: =SUMIFS(Potentialer!$AO$11:$AO$1721,Potentialer!$J$11:$J$1721,$D225,Potentialer!$Z$11:$Z$1721,I$218)/1000 -> 2.301443344 | J225: =SUMIFS(Potentialer!$AO$11:$AO$1721,Potentialer!$J$11:$J$1721,$D225,Potentialer!$Z$11:$Z$1721,J$218)/1000 -> 0.801726 | K225: =SUMIFS(Potentialer!$AO$11:$AO$1721,Potentialer!$J$11:$J$1721,$D225,Potentialer!$Z$11:$Z$1721,K$218)/1000 -> 12.15857275 | L225: =SUMIFS(Potentialer!$AO$11:$AO$1721,Potentialer!$J$11:$J$1721,$D225,Potentialer!$Z$11:$Z$1721,L$218)/1000 -> 3.0776935 | M225: 1172.992512 | O225: =SUMIFS(Potentialer!$AO$11:$AO$1997,Potentialer!$J$11:$J$1997,D225,Potentialer!$W$11:$W$1997,Cases!$D$3)/1000 -> 1172.992512 | P225: 0.06481207799
D226: Delsum (ikke-el) | E226: =SUM(E219:E225) -> 1953.848874 | F226: 1756.196611 | G226: 55.9728295 | H226: 781.3292376 | I226: 112.1270466 | J226: 462.724678 | K226: 1482.299307 | L226: 3275.169863 | M226: =SUM(M219:M225) -> 9879.668446 | O226: =SUM(O219:O225) -> 9879.668446 | P226: 0.09933107582
D227: Varmepumpers energiforbrug | E227: =SUMIFS(Potentialer!$AO$11:$AO$1721,Potentialer!$J$11:$J$1721,$D227,Potentialer!$Z$11:$Z$1721,E$218)/1000 -> 25.0830042 | F227: =SUMIFS(Potentialer!$AO$11:$AO$1721,Potentialer!$J$11:$J$1721,$D227,Potentialer!$Z$11:$Z$1721,F$218)/1000 -> 16.58444152 | G227: =SUMIFS(Potentialer!$AO$11:$AO$1721,Potentialer!$J$11:$J$1721,$D227,Potentialer!$Z$11:$Z$1721,G$218)/1000 -> 0 | H227: =SUMIFS(Potentialer!$AO$11:$AO$1721,Potentialer!$J$11:$J$1721,$D227,Potentialer!$Z$11:$Z$1721,H$218)/1000 -> 0 | I227: =SUMIFS(Potentialer!$AO$11:$AO$1721,Potentialer!$J$11:$J$1721,$D227,Potentialer!$Z$11:$Z$1721,I$218)/1000 -> 0 | J227: =SUMIFS(Potentialer!$AO$11:$AO$1721,Potentialer!$J$11:$J$1721,$D227,Potentialer!$Z$11:$Z$1721,J$218)/1000 -> 0 | K227: =SUMIFS(Potentialer!$AO$11:$AO$1721,Potentialer!$J$11:$J$1721,$D227,Potentialer!$Z$11:$Z$1721,K$218)/1000 -> 0 | L227: =SUMIFS(Potentialer!$AO$11:$AO$1721,Potentialer!$J$11:$J$1721,$D227,Potentialer!$Z$11:$Z$1721,L$218)/1000 -> 0 | M227: 41.66744572 | O227: =SUMIFS(Potentialer!$AO$11:$AO$1997,Potentialer!$J$11:$J$1997,D227,Potentialer!$W$11:$W$1997,Cases!$D$3)/1000 -> 41.66744572 | P227: 0.06754840548
... 213 more rows

Sheet Vurdering
B1: Resultater - 2015 vurdering
D3: 2015-vurdering
D5: Indtast tilbagebetalingstid (2, 4 eller 10) | G5: 10
D7: Besparelsespotentiale
D9: Anvendelsespotentiale
D11: Investeringniveau
C15: Energiforbrug
D17: Energiforbrug
E18: Totalt Forbrug
E19: TJ/år
D20: Konverterings- og nettab | E20: =SUMIFS(Energiforbrug!$N$10:$N$27393,Energiforbrug!$J$10:$J$27393,$D20)/1000 -> 8475.732415
D21: Opvarmning/kogning | E21: =SUMIFS(Energiforbrug!$N$10:$N$27393,Energiforbrug!$J$10:$J$27393,$D21)/1000 -> 16214.21246
D22: Tørring | E22: =SUMIFS(Energiforbrug!$N$10:$N$27393,Energiforbrug!$J$10:$J$27393,$D22)/1000 -> 13567.09836
D23: Inddampning | E23: =SUMIFS(Energiforbrug!$N$10:$N$27393,Energiforbrug!$J$10:$J$27393,$D23)/1000 -> 4595.35231
D24: Brænding/sintring | E24: =SUMIFS(Energiforbrug!$N$10:$N$27393,Energiforbrug!$J$10:$J$27393,$D24)/1000 -> 3894.539329
D25: Rumvarme | E25: =SUMIFS(Energiforbrug!$N$10:$N$27393,Energiforbrug!$J$10:$J$27393,$D25)/1000 -> 34616.71206
D26: Arbejdskørsel | E26: =SUMIFS(Energiforbrug!$N$10:$N$27393,Energiforbrug!$J$10:$J$27393,$D26)/1000 -> 18098.36297
D27: Delsum (ikke-el) | E27: =SUM(E20:E26) -> 99462.0099
D28: Varmepumpers energiforbrug | E28: =SUMIFS(Energiforbrug!$N$10:$N$27393,Energiforbrug!$J$10:$J$27393,$D28)/1000 -> 616.8531356
D29: Rumkøling | E29: =SUMIFS(Energiforbrug!$N$10:$N$27393,Energiforbrug!$J$10:$J$27393,$D29)/1000 -> 2233.287113
D30: Køl/frys (ekskl. rumkøling) | E30: =SUMIFS(Energiforbrug!$N$10:$N$27393,Energiforbrug!$J$10:$J$27393,$D30)/1000 -> 6217.363366
D31: Rumventilation | E31: =SUMIFS(Energiforbrug!$N$10:$N$27393,Energiforbrug!$J$10:$J$27393,$D31)/1000 -> 5451.111176
D32: Pumpning | E32: =SUMIFS(Energiforbrug!$N$10:$N$27393,Energiforbrug!$J$10:$J$27393,$D32)/1000 -> 4561.788686
D33: Blæsere | E33: =SUMIFS(Energiforbrug!$N$10:$N$27393,Energiforbrug!$J$10:$J$27393,$D33)/1000 -> 2952.37772
D34: Trykluft | E34: =SUMIFS(Energiforbrug!$N$10:$N$27393,Energiforbrug!$J$10:$J$27393,$D34)/1000 -> 3342.509842
D35: Hydraulik | E35: =SUMIFS(Energiforbrug!$N$10:$N$27393,Energiforbrug!$J$10:$J$27393,$D35)/1000 -> 751.0522419
D36: Belysning | E36: =SUMIFS(Energiforbrug!$N$10:$N$27393,Energiforbrug!$J$10:$J$27393,$D36)/1000 -> 11470.97327
D37: It og anden elektronik | E37: =SUMIFS(Energiforbrug!$N$10:$N$27393,Energiforbrug!$J$10:$J$27393,$D37)/1000 -> 4507.141999
D38: Delsum (el) | E38: =SUM(E28:E37) -> 42104.45855
D39: I alt | E39: =E27+E38 -> 141566.4684
D40: Heraf tværgående
D41: Overskudsvarme, procesintegration | E41: =SUMIFS('Energiforbrug tværgående'!$G$10:$G$183,'Energiforbrug tværgående'!$D$10:$D$183,$D41,'Energiforbrug tværgående'!$E$10:$E$183,"På tværs")/1000 -> 74545.63861
D42: Elmotorer og transmissioner | E42: =SUMIFS('Energiforbrug tværgående'!$G$10:$G$183,'Energiforbrug tværgående'!$D$10:$D$183,$D42,'Energiforbrug tværgående'!$E$10:$E$183,"På tværs")/1000 -> 34797.23859
D43: Automation | E43: =SUMIFS('Energiforbrug tværgående'!$G$10:$G$183,'Energiforbrug tværgående'!$D$10:$D$183,$D43,'Energiforbrug tværgående'!$E$10:$E$183,"På tværs")/1000 -> 133187.0268
C46: Besparelsespotentialer fordelt på teknologiområder og tilbagebetalingstid
B49: Kat | E49: Forbrug | F49: Besparelsespotentiale TJ | I49: Besparelsespotentiale %
E50: TJ/år | F50: 2 | G50: 4 | H50: 10 | I50: 2 | J50: 4 | K50: 10
B51: =VLOOKUP($D51,Lister!$D$67:$G$93,4,FALSE) -> VP | D51: Konverterings- og nettab | E51: =E20 -> 8475.732415 | F51: =SUMIFS(Potentialer!AS$11:AS$1997,Potentialer!$W$11:$W$1997,$D$3,Potentialer!$J$11:$J$1997,$D51)/1000 -> 203.8413646 | G51: =SUMIFS(Potentialer!AT$11:AT$1997,Potentialer!$W$11:$W$1997,$D$3,Potentialer!$J$11:$J$1997,$D51)/1000 -> 440.7380856 | H51: =SUMIFS(Potentialer!AU$11:AU$1997,Potentialer!$W$11:$W$1997,$D$3,Potentialer!$J$11:$J$1997,$D51)/1000 -> 737.3887201 | I51: =F51/$E51 -> 0.02405 | J51: 0.052 | K51: 0.087
B52: =VLOOKUP($D52,Lister!$D$67:$G$93,4,FALSE) -> VP | D52: Opvarmning/kogning | E52: 16214.21246 | F52: =SUMIFS(Potentialer!AS$11:AS$1997,Potentialer!$W$11:$W$1997,$D$3,Potentialer!$J$11:$J$1997,$D52)/1000 -> 1134.994872 | G52: =SUMIFS(Potentialer!AT$11:AT$1997,Potentialer!$W$11:$W$1997,$D$3,Potentialer!$J$11:$J$1997,$D52)/1000 -> 1945.705495 | H52: =SUMIFS(Potentialer!AU$11:AU$1997,Potentialer!$W$11:$W$1997,$D$3,Potentialer!$J$11:$J$1997,$D52)/1000 -> 4653.478976 | I52: 0.07 | J52: 0.12 | K52: 0.287
B53: =VLOOKUP($D53,Lister!$D$67:$G$93,4,FALSE) -> VP | D53: Tørring | E53: 13567.09836 | F53: =SUMIFS(Potentialer!AS$11:AS$1997,Potentialer!$W$11:$W$1997,$D$3,Potentialer!$J$11:$J$1997,$D53)/1000 -> 1119.285615 | G53: =SUMIFS(Potentialer!AT$11:AT$1997,Potentialer!$W$11:$W$1997,$D$3,Potentialer!$J$11:$J$1997,$D53)/1000 -> 1899.39377 | H53: =SUMIFS(Potentialer!AU$11:AU$1997,Potentialer!$W$11:$W$1997,$D$3,Potentialer!$J$11:$J$1997,$D53)/1000 -> 3676.683655 | I53: 0.0825 | J53: 0.14 | K53: 0.271
B54: =VLOOKUP($D54,Lister!$D$67:$G$93,4,FALSE) -> VP | D54: Inddampning | E54: 4595.35231 | F54: =SUMIFS(Potentialer!AS$11:AS$1997,Potentialer!$W$11:$W$1997,$D$3,Potentialer!$J$11:$J$1997,$D54)/1000 -> 427.3677648 | G54: =SUMIFS(Potentialer!AT$11:AT$1997,Potentialer!$W$11:$W$1997,$D$3,Potentialer!$J$11:$J$1997,$D54)/1000 -> 797.2936258 | H54: =SUMIFS(Potentialer!AU$11:AU$1997,Potentialer!$W$11:$W$1997,$D$3,Potentialer!$J$11:$J$1997,$D54)/1000 -> 1378.605693 | I54: 0.093 | J54: 0.1735 | K54: 0.3
B55: =VLOOKUP($D55,Lister!$D$67:$G$93,4,FALSE) -> VP | D55: Brænding/sintring | E55: 3894.539329 | F55: =SUMIFS(Potentialer!AS$11:AS$1997,Potentialer!$W$11:$W$1997,$D$3,Potentialer!$J$11:$J$1997,$D55)/1000 -> 0 | G55: =SUMIFS(Potentialer!AT$11:AT$1997,Potentialer!$W$11:$W$1997,$D$3,Potentialer!$J$11:$J$1997,$D55)/1000 -> 0 | H55: =SUMIFS(Potentialer!AU$11:AU$1997,Potentialer!$W$11:$W$1997,$D$3,Potentialer!$J$11:$J$1997,$D55)/1000 -> 428.3993262 | I55: 0 | J55: 0 | K55: 0.11
B56: =VLOOKUP($D56,Lister!$D$67:$G$93,4,FALSE) -> RV | D56: Rumvarme | E56: 34616.71206 | F56: =SUMIFS(Potentialer!AS$11:AS$1997,Potentialer!$W$11:$W$1997,$D$3,Potentialer!$J$11:$J$1997,$D56)/1000 -> 0 | G56: =SUMIFS(Potentialer!AT$11:AT$1997,Potentialer!$W$11:$W$1997,$D$3,Potentialer!$J$11:$J$1997,$D56)/1000 -> 0 | H56: =SUMIFS(Potentialer!AU$11:AU$1997,Potentialer!$W$11:$W$1997,$D$3,Potentialer!$J$11:$J$1997,$D56)/1000 -> 5157.890096 | I56: =F56/$E56 -> 0 | J56: =G56/$E56 -> 0 | K56: =H56/$E56 -> 0.149
B57: =VLOOKUP($D57,Lister!$D$67:$G$93,4,FALSE) -> AK | D57: Arbejdskørsel | E57: 18098.36297 | F57: =SUMIFS(Potentialer!AS$11:AS$1997,Potentialer!$W$11:$W$1997,$D$3,Potentialer!$J$11:$J$1997,$D57)/1000 -> 1161.850155 | G57: =SUMIFS(Potentialer!AT$11:AT$1997,Potentialer!$W$11:$W$1997,$D$3,Potentialer!$J$11:$J$1997,$D57)/1000 -> 1161.850155 | H57: =SUMIFS(Potentialer!AU$11:AU$1997,Potentialer!$W$11:$W$1997,$D$3,Potentialer!$J$11:$J$1997,$D57)/1000 -> 1161.850155 | I57: 0.06419642248 | J57: 0.06419642248 | K57: 0.06419642248
D58: Delsum (ikke-el) | E58: 99462.0099 | F58: =SUM(F51:F57) -> 4047.339771 | G58: =SUM(G51:G57) -> 6244.981132 | H58: =SUM(H51:H57) -> 17194.29662 | I58: 0.04069231836 | J58: 0.06278760241 | K58: 0.1728730059
B59: =VLOOKUP($D59,Lister!$D$67:$G$93,4,FALSE) -> RV | D59: Varmepumpers energiforbrug | E59: 616.8531356 | F59: =SUMIFS(Potentialer!AS$11:AS$1997,Potentialer!$W$11:$W$1997,$D$3,Potentialer!$J$11:$J$1997,$D59)/1000 -> 26.21625826 | G59: =SUMIFS(Potentialer!AT$11:AT$1997,Potentialer!$W$11:$W$1997,$D$3,Potentialer!$J$11:$J$1997,$D59)/1000 -> 43.17971949 | H59: =SUMIFS(Potentialer!AU$11:AU$1997,Potentialer!$W$11:$W$1997,$D$3,Potentialer!$J$11:$J$1997,$D59)/1000 -> 67.85384492 | I59: 0.0425 | J59: 0.07 | K59: 0.11
B60: =VLOOKUP($D60,Lister!$D$67:$G$93,4,FALSE) -> KV | D60: Rumkøling | E60: 2233.287113 | F60: =SUMIFS(Potentialer!AS$11:AS$1997,Potentialer!$W$11:$W$1997,$D$3,Potentialer!$J$11:$J$1997,$D60)/1000 -> 221.0954242 | G60: =SUMIFS(Potentialer!AT$11:AT$1997,Potentialer!$W$11:$W$1997,$D$3,Potentialer!$J$11:$J$1997,$D60)/1000 -> 364.0257995 | H60: =SUMIFS(Potentialer!AU$11:AU$1997,Potentialer!$W$11:$W$1997,$D$3,Potentialer!$J$11:$J$1997,$D60)/1000 -> 951.3803103 | I60: 0.099 | J60: 0.163 | K60: 0.426
B61: =VLOOKUP($D61,Lister!$D$67:$G$93,4,FALSE) -> KV | D61: Køl/frys (ekskl. rumkøling) | E61: 6217.363366 | F61: =SUMIFS(Potentialer!AS$11:AS$1997,Potentialer!$W$11:$W$1997,$D$3,Potentialer!$J$11:$J$1997,$D61)/1000 -> 631.0623817 | G61: =SUMIFS(Potentialer!AT$11:AT$1997,Potentialer!$W$11:$W$1997,$D$3,Potentialer!$J$11:$J$1997,$D61)/1000 -> 870.4308713 | H61: =SUMIFS(Potentialer!AU$11:AU$1997,Potentialer!$W$11:$W$1997,$D$3,Potentialer!$J$11:$J$1997,$D61)/1000 -> 1911.839235 | I61: 0.1015 | J61: 0.14 | K61: 0.3075
B62: =VLOOKUP($D62,Lister!$D$67:$G$93,4,FALSE) -> KV | D62: Rumventilation | E62: 5451.111176 | F62: =SUMIFS(Potentialer!AS$11:AS$1997,Potentialer!$W$11:$W$1997,$D$3,Potentialer!$J$11:$J$1997,$D62)/1000 -> 1379.131128 | G62: =SUMIFS(Potentialer!AT$11:AT$1997,Potentialer!$W$11:$W$1997,$D$3,Potentialer!$J$11:$J$1997,$D62)/1000 -> 1785.23891 | H62: =SUMIFS(Potentialer!AU$11:AU$1997,Potentialer!$W$11:$W$1997,$D$3,Potentialer!$J$11:$J$1997,$D62)/1000 -> 2008.189357 | I62: 0.253 | J62: 0.3275 | K62: 0.3684
B63: =VLOOKUP($D63,Lister!$D$67:$G$93,4,FALSE) -> ØV | D63: Pumpning | E63: 4561.788686 | F63: =SUMIFS(Potentialer!AS$11:AS$1997,Potentialer!$W$11:$W$1997,$D$3,Potentialer!$J$11:$J$1997,$D63)/1000 -> 1049.211398 | G63: =SUMIFS(Potentialer!AT$11:AT$1997,Potentialer!$W$11:$W$1997,$D$3,Potentialer!$J$11:$J$1997,$D63)/1000 -> 1733.479701 | H63: =SUMIFS(Potentialer!AU$11:AU$1997,Potentialer!$W$11:$W$1997,$D$3,Potentialer!$J$11:$J$1997,$D63)/1000 -> 2463.365891 | I63: =F63/$E63 -> 0.23 | J63: =G63/$E63 -> 0.38 | K63: =H63/$E63 -> 0.54
B64: =VLOOKUP($D64,Lister!$D$67:$G$93,4,FALSE) -> ØV | D64: Blæsere | E64: 2952.37772 | F64: =SUMIFS(Potentialer!AS$11:AS$1997,Potentialer!$W$11:$W$1997,$D$3,Potentialer!$J$11:$J$1997,$D64)/1000 -> 289.3330166 | G64: =SUMIFS(Potentialer!AT$11:AT$1997,Potentialer!$W$11:$W$1997,$D$3,Potentialer!$J$11:$J$1997,$D64)/1000 -> 565.3803334 | H64: =SUMIFS(Potentialer!AU$11:AU$1997,Potentialer!$W$11:$W$1997,$D$3,Potentialer!$J$11:$J$1997,$D64)/1000 -> 873.9038052 | I64: 0.098 | J64: 0.1915 | K64: 0.296
B65: =VLOOKUP($D65,Lister!$D$67:$G$93,4,FALSE) -> ØV | D65: Trykluft | E65: 3342.509842 | F65: =SUMIFS(Potentialer!AS$11:AS$1997,Potentialer!$W$11:$W$1997,$D$3,Potentialer!$J$11:$J$1997,$D65)/1000 -> 549.842869 | G65: =SUMIFS(Potentialer!AT$11:AT$1997,Potentialer!$W$11:$W$1997,$D$3,Potentialer!$J$11:$J$1997,$D65)/1000 -> 926.7108537 | H65: =SUMIFS(Potentialer!AU$11:AU$1997,Potentialer!$W$11:$W$1997,$D$3,Potentialer!$J$11:$J$1997,$D65)/1000 -> 1793.25653 | I65: 0.1645 | J65: 0.27725 | K65: 0.5365
B66: =VLOOKUP($D66,Lister!$D$67:$G$93,4,FALSE) -> ØV | D66: Hydraulik | E66: 751.0522419 | F66: =SUMIFS(Potentialer!AS$11:AS$1997,Potentialer!$W$11:$W$1997,$D$3,Potentialer!$J$11:$J$1997,$D66)/1000 -> 60.08417935 | G66: =SUMIFS(Potentialer!AT$11:AT$1997,Potentialer!$W$11:$W$1997,$D$3,Potentialer!$J$11:$J$1997,$D66)/1000 -> 129.1809856 | H66: =SUMIFS(Potentialer!AU$11:AU$1997,Potentialer!$W$11:$W$1997,$D$3,Potentialer!$J$11:$J$1997,$D66)/1000 -> 250.8514488 | I66: 0.08 | J66: 0.172 | K66: 0.334
B67: =VLOOKUP($D67,Lister!$D$67:$G$93,4,FALSE) -> BE | D67: Belysning | E67: 11470.97327 | F67: =SUMIFS(Potentialer!AS$11:AS$1997,Potentialer!$W$11:$W$1997,$D$3,Potentialer!$J$11:$J$1997,$D67)/1000 -> 2041.833242 | G67: =SUMIFS(Potentialer!AT$11:AT$1997,Potentialer!$W$11:$W$1997,$D$3,Potentialer!$J$11:$J$1997,$D67)/1000 -> 2959.511104 | H67: =SUMIFS(Potentialer!AU$11:AU$1997,Potentialer!$W$11:$W$1997,$D$3,Potentialer!$J$11:$J$1997,$D67)/1000 -> 7742.906959 | I67: =F67/$E67 -> 0.178 | J67: =G67/$E67 -> 0.258 | K67: =H67/$E67 -> 0.675
B68: =VLOOKUP($D68,Lister!$D$67:$G$93,4,FALSE) -> BE | D68: It og anden elektronik | E68: 4507.141999 | F68: =SUMIFS(Potentialer!AS$11:AS$1997,Potentialer!$W$11:$W$1997,$D$3,Potentialer!$J$11:$J$1997,$D68)/1000 -> 2.286921624 | G68: =SUMIFS(Potentialer!AT$11:AT$1997,Potentialer!$W$11:$W$1997,$D$3,Potentialer!$J$11:$J$1997,$D68)/1000 -> 40.04120769 | H68: =SUMIFS(Potentialer!AU$11:AU$1997,Potentialer!$W$11:$W$1997,$D$3,Potentialer!$J$11:$J$1997,$D68)/1000 -> 186.8936972 | I68: 0.0005073995062 | J68: 0.008883946347 | K68: 0.04146612139
D69: Delsum (el) | E69: 42104.45855 | F69: =SUM(F59:F68) -> 6250.096819 | G69: =SUM(G59:G68) -> 9417.179486 | H69: =SUM(H59:H68) -> 18250.44108 | I69: 0.1484426361 | J69: 0.2236622868 | K69: =H69/$E69 -> 0.4334562587
D70: I alt | E70: 141566.4684 | F70: =F58+F69 -> 10297.43659 | G70: =G58+G69 -> 15662.16062 | H70: =H58+H69 -> 35444.7377 | I70: 0.07273923481 | J70: 0.1106346778 | K70: 0.2503752343
D71: Heraf tværgående
D72: Overskudsvarme, procesintegration | E72: =E41 -> 74545.63861 | F72: =SUMIFS(Potentialer!AS$11:AS$1997,Potentialer!$W$11:$W$1997,$D$3,Potentialer!$J$11:$J$1997,$D72)/1000 -> 2031.713982 | G72: =SUMIFS(Potentialer!AT$11:AT$1997,Potentialer!$W$11:$W$1997,$D$3,Potentialer!$J$11:$J$1997,$D72)/1000 -> 4513.678597 | H72: =SUMIFS(Potentialer!AU$11:AU$1997,Potentialer!$W$11:$W$1997,$D$3,Potentialer!$J$11:$J$1997,$D72)/1000 -> 12506.45019 | I72: =F72/$E72 -> 0.02725463246 | J72: 0.06054919753 | K72: 0.1677690395
D73: Elmotorer og transmissioner | E73: =E42 -> 34797.23859 | F73: =SUMIFS(Potentialer!AS$11:AS$1997,Potentialer!$W$11:$W$1997,$D$3,Potentialer!$J$11:$J$1997,$D73)/1000 -> 1023.924955 | G73: =SUMIFS(Potentialer!AT$11:AT$1997,Potentialer!$W$11:$W$1997,$D$3,Potentialer!$J$11:$J$1997,$D73)/1000 -> 2120.443218 | H73: =SUMIFS(Potentialer!AU$11:AU$1997,Potentialer!$W$11:$W$1997,$D$3,Potentialer!$J$11:$J$1997,$D73)/1000 -> 5647.878197 | I73: 0.02942546584 | J73: 0.0609371118 | K73: 0.1623082298
D74: Automation | E74: =E43 -> 133187.0268 | F74: =SUMIFS(Potentialer!AS$11:AS$1997,Potentialer!$W$11:$W$1997,$D$3,Potentialer!$J$11:$J$1997,$D74)/1000 -> 679.2538365 | G74: =SUMIFS(Potentialer!AT$11:AT$1997,Potentialer!$W$11:$W$1997,$D$3,Potentialer!$J$11:$J$1997,$D74)/1000 -> 2850.202373 | H74: =SUMIFS(Potentialer!AU$11:AU$1997,Potentialer!$W$11:$W$1997,$D$3,Potentialer!$J$11:$J$1997,$D74)/1000 -> 4048.885614 | I74: 0.0051 | J74: 0.0214 | K74: 0.0304
F77: ="op til "&I77&" år" -> op til 2 år | G77: ="op til "&J77&" år" -> op til 4 år | H77: ="op til "&K77&" år" -> op til 10 år | I77: 2 | J77: 4 | K77: 10
B78: VP | D78: Varme til proces | F78: =I78/$E$70 -> 0.02038257822 | G78: 0.03590632042 | H78: 0.07681590485 | I78: =SUMIF($B$51:$B$68,$B78,$F$51:$F$68) -> 2885.489616 | J78: =SUMIF($B$51:$B$68,$B78,$G$51:$G$68) -> 5083.130977 | K78: =SUMIF($B$51:$B$68,$B78,$H$51:$H$68) -> 10874.55637
B79: AK | D79: Arbejdskørsel | F79: 0.008207099945 | G79: 0.008207099945 | H79: 0.008207099945 | I79: 1161.850155 | J79: 1161.850155 | K79: 1161.850155
B80: RV | D80: Rumvarme | F80: 0.00018518692 | G80: 0.0003050137505 | H80: 0.03691371268 | I80: 26.21625826 | J80: 43.17971949 | K80: 5225.743941
B81: BE | D81: Belysning / IT | F81: 0.01443929616 | G81: 0.02118829653 | H81: 0.0560146816 | I81: 2044.120164 | J81: 2999.552312 | K81: 7929.800656
B82: KV | D82: Køling og ventilation | F82: 0.01576142259 | G82: 0.02133058495 | H82: 0.03441075388 | I82: 2231.288934 | J82: 3019.695581 | K82: 4871.408903
B83: ØV | D83: Øvrige | F83: 0.01376365098 | G83: 0.02369736217 | H83: 0.0380130813 | I83: 1948.471463 | J83: 3354.751874 | K83: 5381.377675
F84: =SUM(F78:F83) -> 0.07273923481 | G84: =SUM(G78:G83) -> 0.1106346778 | H84: 0.2503752343
E86: =F77 -> op til 2 år | F86: =G77 -> op til 4 år | G86: =H77 -> op til 10 år
D87: =D72 -> Overskudsvarme, procesintegration | E87: =F72/$E$70 -> 0.01435166112 | F87: =G72/$E$70 -> 0.03188381152 | G87: 0.08834330847
D88: =D73 -> Elmotorer og transmissioner | E88: =F73/$E$70 -> 0.007232821208 | F88: 0.01497842845 | G88: 0.03989559293
D89: Automation | E89: =F74/$E$70 -> 0.00479812659 | F89: 0.0201333155 | G89: 0.02860059771
E90: =SUM(E87:E89) -> 0.02638260892 | F90: =SUM(F87:F89) -> 0.06699555546 | G90: 0.1568394991
C92: Besparelsespotentialer for brændsler, områder og tilbagebetalingstider
D94: Energiforbrug
D95: Energiforbrug | E95: Ikke el | F95: El | G95: I alt
D96: Konverterings- og nettab | E96: =E20-F96 -> 8475.732415 | F96: =SUMIFS(Energiforbrug!$N$10:$N$27393,Energiforbrug!$J$10:$J$27393,$D96,Energiforbrug!$Y$10:$Y$27393,F$95)/1000 -> 0 | G96: =SUM(E96:F96) -> 8475.732415
D97: Opvarmning/kogning | E97: 14799.53467 | F97: =SUMIFS(Energiforbrug!$N$10:$N$27393,Energiforbrug!$J$10:$J$27393,$D97,Energiforbrug!$Y$10:$Y$27393,F$95)/1000 -> 1414.677784 | G97: 16214.21246
D98: Tørring | E98: 13159.81946 | F98: =SUMIFS(Energiforbrug!$N$10:$N$27393,Energiforbrug!$J$10:$J$27393,$D98,Energiforbrug!$Y$10:$Y$27393,F$95)/1000 -> 407.2789012 | G98: 13567.09836
D99: Inddampning | E99: 4510.805448 | F99: =SUMIFS(Energiforbrug!$N$10:$N$27393,Energiforbrug!$J$10:$J$27393,$D99,Energiforbrug!$Y$10:$Y$27393,F$95)/1000 -> 84.54686211 | G99: 4595.35231
D100: Brænding/sintring | E100: 3886.347769 | F100: =SUMIFS(Energiforbrug!$N$10:$N$27393,Energiforbrug!$J$10:$J$27393,$D100,Energiforbrug!$Y$10:$Y$27393,F$95)/1000 -> 8.19156 | G100: 3894.539329
D101: Rumvarme | E101: 33472.55337 | F101: =SUMIFS(Energiforbrug!$N$10:$N$27393,Energiforbrug!$J$10:$J$27393,$D101,Energiforbrug!$Y$10:$Y$27393,F$95)/1000 -> 1144.158684 | G101: 34616.71206
D102: Arbejdskørsel | E102: 18090.56194 | F102: =SUMIFS(Energiforbrug!$N$10:$N$27393,Energiforbrug!$J$10:$J$27393,$D102,Energiforbrug!$Y$10:$Y$27393,F$95)/1000 -> 7.80103 | G102: 18098.36297
D103: Delsum (ikke-el) | E103: =SUM(E96:E102) -> 96395.35508 | F103: =SUM(F96:F102) -> 3066.654821 | G103: 99462.0099
D104: Varmepumpers energiforbrug | E104: =E28-F104 -> 0 | F104: =SUMIFS(Energiforbrug!$N$10:$N$27393,Energiforbrug!$J$10:$J$27393,$D104,Energiforbrug!$Y$10:$Y$27393,F$95)/1000 -> 616.8531356 | G104: 616.8531356
D105: Rumkøling | E105: 0 | F105: =SUMIFS(Energiforbrug!$N$10:$N$27393,Energiforbrug!$J$10:$J$27393,$D105,Energiforbrug!$Y$10:$Y$27393,F$95)/1000 -> 2233.287113 | G105: 2233.287113
D106: Køl/frys (ekskl. rumkøling) | E106: 0 | F106: =SUMIFS(Energiforbrug!$N$10:$N$27393,Energiforbrug!$J$10:$J$27393,$D106,Energiforbrug!$Y$10:$Y$27393,F$95)/1000 -> 6217.363366 | G106: 6217.363366
D107: Rumventilation | E107: 0 | F107: =SUMIFS(Energiforbrug!$N$10:$N$27393,Energiforbrug!$J$10:$J$27393,$D107,Energiforbrug!$Y$10:$Y$27393,F$95)/1000 -> 5451.111176 | G107: 5451.111176
D108: Pumpning | E108: 0 | F108: =SUMIFS(Energiforbrug!$N$10:$N$27393,Energiforbrug!$J$10:$J$27393,$D108,Energiforbrug!$Y$10:$Y$27393,F$95)/1000 -> 4561.788686 | G108: 4561.788686
D109: Blæsere | E109: 0 | F109: =SUMIFS(Energiforbrug!$N$10:$N$27393,Energiforbrug!$J$10:$J$27393,$D109,Energiforbrug!$Y$10:$Y$27393,F$95)/1000 -> 2952.37772 | G109: 2952.37772
D110: Trykluft | E110: 0 | F110: =SUMIFS(Energiforbrug!$N$10:$N$27393,Energiforbrug!$J$10:$J$27393,$D110,Energiforbrug!$Y$10:$Y$27393,F$95)/1000 -> 3342.509842 | G110: 3342.509842
D111: Hydraulik | E111: 0 | F111: =SUMIFS(Energiforbrug!$N$10:$N$27393,Energiforbrug!$J$10:$J$27393,$D111,Energiforbrug!$Y$10:$Y$27393,F$95)/1000 -> 751.0522419 | G111: 751.0522419
D112: Belysning | E112: 0 | F112: =SUMIFS(Energiforbrug!$N$10:$N$27393,Energiforbrug!$J$10:$J$27393,$D112,Energiforbrug!$Y$10:$Y$27393,F$95)/1000 -> 11470.97327 | G112: 11470.97327
D113: It og anden elektronik | E113: 0 | F113: =SUMIFS(Energiforbrug!$N$10:$N$27393,Energiforbrug!$J$10:$J$27393,$D113,Energiforbrug!$Y$10:$Y$27393,F$95)/1000 -> 4507.141999 | G113: 4507.141999
D114: Delsum (el) | E114: =SUM(E104:E113) -> 0 | F114: =SUM(F104:F113) -> 42104.45855 | G114: 42104.45855
D115: I alt | E115: =E103+E114 -> 96395.35508 | F115: =F103+F114 -> 45171.11337 | G115: =G103+G114 -> 141566.4684
D117: Besparelsespotentiale
D118: 2 års TBT | E118: =E$95 -> Ikke el | F118: =F$95 -> El | G118: I alt
D119: Konverterings- og nettab | E119: =E96*$I51 -> 203.8413646 | F119: 0 | G119: =SUM(E119:F119) -> 203.8413646
D120: Opvarmning/kogning | E120: 1035.967427 | F120: 99.02744485 | G120: 1134.994872
D121: Tørring | E121: 1085.685105 | F121: 33.60050935 | G121: 1119.285615
D122: Inddampning | E122: =E99*$I54 -> 419.5049067 | F122: 7.862858176 | G122: 427.3677648
D123: Brænding/sintring | E123: 0 | F123: 0 | G123: 0
D124: Rumvarme | E124: 0 | F124: 0 | G124: 0
D125: Arbejdskørsel | E125: 1161.349357 | F125: 0.5007982177 | G125: 1161.850155
D126: Delsum (ikke-el) | E126: 3922.550477 | F126: 124.7892943 | G126: 4047.339771
D127: Varmepumpers energiforbrug | E127: 0 | F127: 26.21625826 | G127: 26.21625826
D128: Rumkøling | E128: 0 | F128: 221.0954242 | G128: 221.0954242
D129: Køl/frys (ekskl. rumkøling) | E129: 0 | F129: 631.0623817 | G129: 631.0623817
D130: Rumventilation | E130: 0 | F130: 1379.131128 | G130: 1379.131128
D131: Pumpning | E131: 0 | F131: 1049.211398 | G131: 1049.211398
D132: Blæsere | E132: 0 | F132: 289.3330166 | G132: 289.3330166
D133: Trykluft | E133: 0 | F133: 549.842869 | G133: 549.842869
D134: Hydraulik | E134: 0 | F134: 60.08417935 | G134: 60.08417935
D135: Belysning | E135: 0 | F135: 2041.833242 | G135: 2041.833242
D136: It og anden elektronik | E136: 0 | F136: 2.286921624 | G136: 2.286921624
D137: Delsum (el) | E137: 0 | F137: 6250.096819 | G137: 6250.096819
D138: 4 års TBT | E138: =E$95 -> Ikke el | F138: =F$95 -> El | G138: I alt
D139: Konverterings- og nettab | E139: =E96*$J51 -> 440.7380856 | F139: 0 | G139: =SUM(E139:F139) -> 440.7380856
D140: Opvarmning/kogning | E140: 1775.944161 | F140: 169.761334 | G140: 1945.705495
D141: Tørring | E141: 1842.374724 | F141: 57.01904617 | G141: 1899.39377
D142: Inddampning | E142: 782.6247452 | F142: 14.66888058 | G142: 797.2936258
D143: Brænding/sintring | E143: 0 | F143: 0 | G143: 0
D144: Rumvarme | E144: 0 | F144: 0 | G144: 0
D145: Arbejdskørsel | E145: 1161.349357 | F145: 0.5007982177 | G145: 1161.850155
D146: Delsum (ikke-el) | E146: 6052.433228 | F146: 192.5479036 | G146: 6244.981132
D147: Varmepumpers energiforbrug | E147: 0 | F147: 43.17971949 | G147: 43.17971949
D148: Rumkøling | E148: 0 | F148: 364.0257995 | G148: 364.0257995
D149: Køl/frys (ekskl. rumkøling) | E149: 0 | F149: 870.4308713 | G149: 870.4308713
D150: Rumventilation | E150: 0 | F150: 1785.23891 | G150: 1785.23891
D151: Pumpning | E151: 0 | F151: 1733.479701 | G151: 1733.479701
D152: Blæsere | E152: 0 | F152: 565.3803334 | G152: 565.3803334
D153: Trykluft | E153: 0 | F153: 926.7108537 | G153: 926.7108537
D154: Hydraulik | E154: 0 | F154: 129.1809856 | G154: 129.1809856
D155: Belysning | E155: 0 | F155: 2959.511104 | G155: 2959.511104
D156: It og anden elektronik | E156: 0 | F156: 40.04120769 | G156: 40.04120769
D157: Delsum (el) | E157: 0 | F157: 9417.179486 | G157: 9417.179486
D158: 10 års TBT | E158: =E$95 -> Ikke el | F158: =F$95 -> El | G158: I alt
D159: Konverterings- og nettab | E159: =E96*$K51 -> 737.3887201 | F159: 0 | G159: =SUM(E159:F159) -> 737.3887201
D160: Opvarmning/kogning | E160: 4247.466452 | F160: 406.0125239 | G160: 4653.478976
D161: Tørring | E161: 3566.311073 | F161: 110.3725822 | G161: 3676.683655
D162: Inddampning | E162: 1353.241634 | F162: 25.36405863 | G162: 1378.605693
D163: Brænding/sintring | E163: 427.4982546 | F163: 0.9010716 | G163: 428.3993262
D164: Rumvarme | E164: 4987.410453 | F164: 170.4796439 | G164: 5157.890096
D165: Arbejdskørsel | E165: 1161.349357 | F165: 0.5007982177 | G165: 1161.850155
D166: Delsum (ikke-el) | E166: 16664.15478 | F166: 530.1418369 | G166: 17194.29662
D167: Varmepumpers energiforbrug | E167: 0 | F167: 67.85384492 | G167: 67.85384492
D168: Rumkøling | E168: 0 | F168: 951.3803103 | G168: 951.3803103
D169: Køl/frys (ekskl. rumkøling) | E169: 0 | F169: 1911.839235 | G169: 1911.839235
D170: Rumventilation | E170: 0 | F170: 2008.189357 | G170: 2008.189357
D171: Pumpning | E171: 0 | F171: 2463.365891 | G171: 2463.365891
D172: Blæsere | E172: 0 | F172: 873.9038052 | G172: 873.9038052
D173: Trykluft | E173: 0 | F173: 1793.25653 | G173: 1793.25653
D174: Hydraulik | E174: 0 | F174: 250.8514488 | G174: 250.8514488
D175: Belysning | E175: 0 | F175: 7742.906959 | G175: 7742.906959
D176: It og anden elektronik | E176: 0 | F176: 186.8936972 | G176: 186.8936972
D177: Delsum (el) | E177: 0 | F177: =F114*$K69 -> 18250.44108 | G177: 18250.44108
D178: 2 års TBT, TJ/år | E178: =E126+E137 -> 3922.550477 | F178: =F126+F137 -> 6374.886113 | G178: =G126+G137 -> 10297.43659
D179: 4 års TBT, TJ/år | E179: =E146+E157 -> 6052.433228 | F179: =F146+F157 -> 9609.72739 | G179: =G146+G157 -> 15662.16062
D180: 10 års TBT, TJ/år | E180: =E166+E177 -> 16664.15478 | F180: =F166+F177 -> 18780.58292 | G180: =G166+G177 -> 35444.7377
D181: 2 års TBT, % af br. | E181: =E178/E$115 -> 0.04069231836 | F181: =F178/F$115 -> 0.1411274958 | G181: =G178/G$115 -> 0.07273923481
D182: 4 års TBT, % af br. | E182: =E179/E$115 -> 0.06278760241 | F182: 0.2127405475 | G182: 0.1106346778
D183: 10 års TBT, % af br. | E183: 0.1728730059 | F183: 0.4157653313 | G183: 0.2503752343
E185: =E95 -> Ikke el | F185: =F95 -> El | G185: I alt
D186: 2 år | E186: =E178/$G$115 -> 0.02770818909 | F186: =F178/$G$115 -> 0.04503104572 | G186: =G178/G$115 -> 0.07273923481
D187: 4 år | E187: 0.0427532967 | F187: 0.06788138106 | G187: =G179/G$115 -> 0.1106346778
D188: 10 år | E188: 0.1177125838 | F188: 0.1326626504 | G188: =G180/G$115 -> 0.2503752343
C191: Besparelsespotentialer fordelt på teknologiområder og sektorer
D193: Resultaterne vises for den tilbagebetalingstid der er valgt øverst. For andre tilbagebetalingstider - indtast disse øverst en ad gangen.
D195: Resultaterne er baseret på generel viden om energibesparelser i energianvendelsesområdet og energiforbrug i branchen (og ikke viden om besparelsespotentiale for det enkelte energianvendelsesområde i den enkelte sektor/branche)
D197: Energiforbrug | O197: Besparelsespotentiale %
D198: TJ/år | E198: Landbrug mv. | F198: Fødevarer mv. | G198: Træ+papir | H198: Kemi+farma | I198: Byggematerialer | J198: Metal | K198: Fremstilling | L198: Handel+Service | M198: I alt | O198: 10 år | P198: 4 år | Q198: 2 år
D199: Konverterings- og nettab | E199: =SUMIFS(Energiforbrug!$N$10:$N$27393,Energiforbrug!$J$10:$J$27393,$D199,Energiforbrug!$I$10:$I$27393,E$198)/1000 -> 2778.702014 | F199: =SUMIFS(Energiforbrug!$N$10:$N$27393,Energiforbrug!$J$10:$J$27393,$D199,Energiforbrug!$I$10:$I$27393,F$198)/1000 -> 1503.19547 | G199: =SUMIFS(Energiforbrug!$N$10:$N$27393,Energiforbrug!$J$10:$J$27393,$D199,Energiforbrug!$I$10:$I$27393,G$198)/1000 -> 772.8647437 | H199: =SUMIFS(Energiforbrug!$N$10:$N$27393,Energiforbrug!$J$10:$J$27393,$D199,Energiforbrug!$I$10:$I$27393,H$198)/1000 -> 867.2040854 | I199: =SUMIFS(Energiforbrug!$N$10:$N$27393,Energiforbrug!$J$10:$J$27393,$D199,Energiforbrug!$I$10:$I$27393,I$198)/1000 -> 356.8058678 | J199: =SUMIFS(Energiforbrug!$N$10:$N$27393,Energiforbrug!$J$10:$J$27393,$D199,Energiforbrug!$I$10:$I$27393,J$198)/1000 -> 245.24621 | K199: =SUMIFS(Energiforbrug!$N$10:$N$27393,Energiforbrug!$J$10:$J$27393,$D199,Energiforbrug!$I$10:$I$27393,K$198)/1000 -> 1306.59248 | L199: =SUMIFS(Energiforbrug!$N$10:$N$27393,Energiforbrug!$J$10:$J$27393,$D199,Energiforbrug!$I$10:$I$27393,L$198)/1000 -> 645.121544 | M199: =SUM(E199:L199) -> 8475.732415 | O199: =K51 -> 0.087 | P199: =J51 -> 0.052 | Q199: =I51 -> 0.02405
D200: Opvarmning/kogning | E200: =SUMIFS(Energiforbrug!$N$10:$N$27393,Energiforbrug!$J$10:$J$27393,$D200,Energiforbrug!$I$10:$I$27393,E$198)/1000 -> 1044.42365 | F200: =SUMIFS(Energiforbrug!$N$10:$N$27393,Energiforbrug!$J$10:$J$27393,$D200,Energiforbrug!$I$10:$I$27393,F$198)/1000 -> 6381.692869 | G200: =SUMIFS(Energiforbrug!$N$10:$N$27393,Energiforbrug!$J$10:$J$27393,$D200,Energiforbrug!$I$10:$I$27393,G$198)/1000 -> 245.8138303 | H200: =SUMIFS(Energiforbrug!$N$10:$N$27393,Energiforbrug!$J$10:$J$27393,$D200,Energiforbrug!$I$10:$I$27393,H$198)/1000 -> 2015.476904 | I200: =SUMIFS(Energiforbrug!$N$10:$N$27393,Energiforbrug!$J$10:$J$27393,$D200,Energiforbrug!$I$10:$I$27393,I$198)/1000 -> 5146.062926 | J200: =SUMIFS(Energiforbrug!$N$10:$N$27393,Energiforbrug!$J$10:$J$27393,$D200,Energiforbrug!$I$10:$I$27393,J$198)/1000 -> 157.66838 | K200: =SUMIFS(Energiforbrug!$N$10:$N$27393,Energiforbrug!$J$10:$J$27393,$D200,Energiforbrug!$I$10:$I$27393,K$198)/1000 -> 497.3738962 | L200: =SUMIFS(Energiforbrug!$N$10:$N$27393,Energiforbrug!$J$10:$J$27393,$D200,Energiforbrug!$I$10:$I$27393,L$198)/1000 -> 725.7000023 | M200: 16214.21246 | O200: 0.287 | P200: 0.12 | Q200: 0.07
D201: Tørring | E201: =SUMIFS(Energiforbrug!$N$10:$N$27393,Energiforbrug!$J$10:$J$27393,$D201,Energiforbrug!$I$10:$I$27393,E$198)/1000 -> 724.3266829 | F201: =SUMIFS(Energiforbrug!$N$10:$N$27393,Energiforbrug!$J$10:$J$27393,$D201,Energiforbrug!$I$10:$I$27393,F$198)/1000 -> 4586.19113 | G201: =SUMIFS(Energiforbrug!$N$10:$N$27393,Energiforbrug!$J$10:$J$27393,$D201,Energiforbrug!$I$10:$I$27393,G$198)/1000 -> 3389.670036 | H201: =SUMIFS(Energiforbrug!$N$10:$N$27393,Energiforbrug!$J$10:$J$27393,$D201,Energiforbrug!$I$10:$I$27393,H$198)/1000 -> 907.0847875 | I201: =SUMIFS(Energiforbrug!$N$10:$N$27393,Energiforbrug!$J$10:$J$27393,$D201,Energiforbrug!$I$10:$I$27393,I$198)/1000 -> 2756.795058 | J201: =SUMIFS(Energiforbrug!$N$10:$N$27393,Energiforbrug!$J$10:$J$27393,$D201,Energiforbrug!$I$10:$I$27393,J$198)/1000 -> 320.01098 | K201: =SUMIFS(Energiforbrug!$N$10:$N$27393,Energiforbrug!$J$10:$J$27393,$D201,Energiforbrug!$I$10:$I$27393,K$198)/1000 -> 792.2676771 | L201: =SUMIFS(Energiforbrug!$N$10:$N$27393,Energiforbrug!$J$10:$J$27393,$D201,Energiforbrug!$I$10:$I$27393,L$198)/1000 -> 90.7520068 | M201: 13567.09836 | O201: 0.271 | P201: 0.14 | Q201: 0.0825
D202: Inddampning | E202: =SUMIFS(Energiforbrug!$N$10:$N$27393,Energiforbrug!$J$10:$J$27393,$D202,Energiforbrug!$I$10:$I$27393,E$198)/1000 -> 1709.19923 | F202: =SUMIFS(Energiforbrug!$N$10:$N$27393,Energiforbrug!$J$10:$J$27393,$D202,Energiforbrug!$I$10:$I$27393,F$198)/1000 -> 1826.998913 | G202: =SUMIFS(Energiforbrug!$N$10:$N$27393,Energiforbrug!$J$10:$J$27393,$D202,Energiforbrug!$I$10:$I$27393,G$198)/1000 -> 0 | H202: =SUMIFS(Energiforbrug!$N$10:$N$27393,Energiforbrug!$J$10:$J$27393,$D202,Energiforbrug!$I$10:$I$27393,H$198)/1000 -> 1059.154167 | I202: =SUMIFS(Energiforbrug!$N$10:$N$27393,Energiforbrug!$J$10:$J$27393,$D202,Energiforbrug!$I$10:$I$27393,I$198)/1000 -> 0 | J202: =SUMIFS(Energiforbrug!$N$10:$N$27393,Energiforbrug!$J$10:$J$27393,$D202,Energiforbrug!$I$10:$I$27393,J$198)/1000 -> 0 | K202: =SUMIFS(Energiforbrug!$N$10:$N$27393,Energiforbrug!$J$10:$J$27393,$D202,Energiforbrug!$I$10:$I$27393,K$198)/1000 -> 0 | L202: =SUMIFS(Energiforbrug!$N$10:$N$27393,Energiforbrug!$J$10:$J$27393,$D202,Energiforbrug!$I$10:$I$27393,L$198)/1000 -> 0 | M202: 4595.35231 | O202: 0.3 | P202: 0.1735 | Q202: 0.093
D203: Brænding/sintring | E203: =SUMIFS(Energiforbrug!$N$10:$N$27393,Energiforbrug!$J$10:$J$27393,$D203,Energiforbrug!$I$10:$I$27393,E$198)/1000 -> 163.85762 | F203: =SUMIFS(Energiforbrug!$N$10:$N$27393,Energiforbrug!$J$10:$J$27393,$D203,Energiforbrug!$I$10:$I$27393,F$198)/1000 -> 24.80694736 | G203: =SUMIFS(Energiforbrug!$N$10:$N$27393,Energiforbrug!$J$10:$J$27393,$D203,Energiforbrug!$I$10:$I$27393,G$198)/1000 -> 0 | H203: =SUMIFS(Energiforbrug!$N$10:$N$27393,Energiforbrug!$J$10:$J$27393,$D203,Energiforbrug!$I$10:$I$27393,H$198)/1000 -> 0 | I203: =SUMIFS(Energiforbrug!$N$10:$N$27393,Energiforbrug!$J$10:$J$27393,$D203,Energiforbrug!$I$10:$I$27393,I$198)/1000 -> 3697.683202 | J203: =SUMIFS(Energiforbrug!$N$10:$N$27393,Energiforbrug!$J$10:$J$27393,$D203,Energiforbrug!$I$10:$I$27393,J$198)/1000 -> 0 | K203: =SUMIFS(Energiforbrug!$N$10:$N$27393,Energiforbrug!$J$10:$J$27393,$D203,Energiforbrug!$I$10:$I$27393,K$198)/1000 -> 8.19156 | L203: =SUMIFS(Energiforbrug!$N$10:$N$27393,Energiforbrug!$J$10:$J$27393,$D203,Energiforbrug!$I$10:$I$27393,L$198)/1000 -> 0 | M203: 3894.539329 | O203: 0.11 | P203: 0 | Q203: 0
D204: Rumvarme | E204: =SUMIFS(Energiforbrug!$N$10:$N$27393,Energiforbrug!$J$10:$J$27393,$D204,Energiforbrug!$I$10:$I$27393,E$198)/1000 -> 193.94201 | F204: =SUMIFS(Energiforbrug!$N$10:$N$27393,Energiforbrug!$J$10:$J$27393,$D204,Energiforbrug!$I$10:$I$27393,F$198)/1000 -> 1846.517191 | G204: =SUMIFS(Energiforbrug!$N$10:$N$27393,Energiforbrug!$J$10:$J$27393,$D204,Energiforbrug!$I$10:$I$27393,G$198)/1000 -> 735.6879618 | H204: =SUMIFS(Energiforbrug!$N$10:$N$27393,Energiforbrug!$J$10:$J$27393,$D204,Energiforbrug!$I$10:$I$27393,H$198)/1000 -> 1292.335794 | I204: =SUMIFS(Energiforbrug!$N$10:$N$27393,Energiforbrug!$J$10:$J$27393,$D204,Energiforbrug!$I$10:$I$27393,I$198)/1000 -> 421.5606624 | J204: =SUMIFS(Energiforbrug!$N$10:$N$27393,Energiforbrug!$J$10:$J$27393,$D204,Energiforbrug!$I$10:$I$27393,J$198)/1000 -> 1165.00114 | K204: =SUMIFS(Energiforbrug!$N$10:$N$27393,Energiforbrug!$J$10:$J$27393,$D204,Energiforbrug!$I$10:$I$27393,K$198)/1000 -> 4815.985854 | L204: =SUMIFS(Energiforbrug!$N$10:$N$27393,Energiforbrug!$J$10:$J$27393,$D204,Energiforbrug!$I$10:$I$27393,L$198)/1000 -> 24145.68144 | M204: 34616.71206 | O204: 0.149 | P204: 0 | Q204: 0
D205: Arbejdskørsel | E205: =SUMIFS(Energiforbrug!$N$10:$N$27393,Energiforbrug!$J$10:$J$27393,$D205,Energiforbrug!$I$10:$I$27393,E$198)/1000 -> 17077.77979 | F205: =SUMIFS(Energiforbrug!$N$10:$N$27393,Energiforbrug!$J$10:$J$27393,$D205,Energiforbrug!$I$10:$I$27393,F$198)/1000 -> 147.6308223 | G205: =SUMIFS(Energiforbrug!$N$10:$N$27393,Energiforbrug!$J$10:$J$27393,$D205,Energiforbrug!$I$10:$I$27393,G$198)/1000 -> 109.57803 | H205: =SUMIFS(Energiforbrug!$N$10:$N$27393,Energiforbrug!$J$10:$J$27393,$D205,Energiforbrug!$I$10:$I$27393,H$198)/1000 -> 29.0949 | I205: =SUMIFS(Energiforbrug!$N$10:$N$27393,Energiforbrug!$J$10:$J$27393,$D205,Energiforbrug!$I$10:$I$27393,I$198)/1000 -> 92.08673375 | J205: =SUMIFS(Energiforbrug!$N$10:$N$27393,Energiforbrug!$J$10:$J$27393,$D205,Energiforbrug!$I$10:$I$27393,J$198)/1000 -> 32.28004 | K205: =SUMIFS(Energiforbrug!$N$10:$N$27393,Energiforbrug!$J$10:$J$27393,$D205,Energiforbrug!$I$10:$I$27393,K$198)/1000 -> 486.80491 | L205: =SUMIFS(Energiforbrug!$N$10:$N$27393,Energiforbrug!$J$10:$J$27393,$D205,Energiforbrug!$I$10:$I$27393,L$198)/1000 -> 123.10774 | M205: =SUM(E205:L205) -> 18098.36297 | O205: 0.06419642248 | P205: 0.06419642248 | Q205: 0.06419642248
D206: Delsum (ikke-el) | E206: =SUM(E199:E205) -> 23692.231 | F206: =SUM(F199:F205) -> 16317.03334 | G206: 5253.614602 | H206: 6170.350639 | I206: 12470.99445 | J206: 1920.20675 | K206: 7907.216378 | L206: 25730.36274 | M206: 99462.0099 | O206: 0.1728730059 | P206: 0.06278760241 | Q206: 0.04069231836
D207: Varmepumpers energiforbrug | E207: =SUMIFS(Energiforbrug!$N$10:$N$27393,Energiforbrug!$J$10:$J$27393,$D207,Energiforbrug!$I$10:$I$27393,E$198)/1000 -> 218.11308 | F207: =SUMIFS(Energiforbrug!$N$10:$N$27393,Energiforbrug!$J$10:$J$27393,$D207,Energiforbrug!$I$10:$I$27393,F$198)/1000 -> 148.782885 | G207: =SUMIFS(Energiforbrug!$N$10:$N$27393,Energiforbrug!$J$10:$J$27393,$D207,Energiforbrug!$I$10:$I$27393,G$198)/1000 -> 7.80103 | H207: =SUMIFS(Energiforbrug!$N$10:$N$27393,Energiforbrug!$J$10:$J$27393,$D207,Energiforbrug!$I$10:$I$27393,H$198)/1000 -> 55.98154383 | I207: =SUMIFS(Energiforbrug!$N$10:$N$27393,Energiforbrug!$J$10:$J$27393,$D207,Energiforbrug!$I$10:$I$27393,I$198)/1000 -> 7.21576677 | J207: =SUMIFS(Energiforbrug!$N$10:$N$27393,Energiforbrug!$J$10:$J$27393,$D207,Energiforbrug!$I$10:$I$27393,J$198)/1000 -> 34.95822 | K207: =SUMIFS(Energiforbrug!$N$10:$N$27393,Energiforbrug!$J$10:$J$27393,$D207,Energiforbrug!$I$10:$I$27393,K$198)/1000 -> 144.00061 | L207: =SUMIFS(Energiforbrug!$N$10:$N$27393,Energiforbrug!$J$10:$J$27393,$D207,Energiforbrug!$I$10:$I$27393,L$198)/1000 -> 0 | M207: 616.8531356 | O207: 0.11 | P207: 0.07 | Q207: 0.0425
D208: Rumkøling | E208: =SUMIFS(Energiforbrug!$N$10:$N$27393,Energiforbrug!$J$10:$J$27393,$D208,Energiforbrug!$I$10:$I$27393,E$198)/1000 -> 0 | F208: =SUMIFS(Energiforbrug!$N$10:$N$27393,Energiforbrug!$J$10:$J$27393,$D208,Energiforbrug!$I$10:$I$27393,F$198)/1000 -> 146.4443195 | G208: =SUMIFS(Energiforbrug!$N$10:$N$27393,Energiforbrug!$J$10:$J$27393,$D208,Energiforbrug!$I$10:$I$27393,G$198)/1000 -> 23.40309 | H208: =SUMIFS(Energiforbrug!$N$10:$N$27393,Energiforbrug!$J$10:$J$27393,$D208,Energiforbrug!$I$10:$I$27393,H$198)/1000 -> 46.47233469 | I208: =SUMIFS(Energiforbrug!$N$10:$N$27393,Energiforbrug!$J$10:$J$27393,$D208,Energiforbrug!$I$10:$I$27393,I$198)/1000 -> 0 | J208: =SUMIFS(Energiforbrug!$N$10:$N$27393,Energiforbrug!$J$10:$J$27393,$D208,Energiforbrug!$I$10:$I$27393,J$198)/1000 -> 0 | K208: =SUMIFS(Energiforbrug!$N$10:$N$27393,Energiforbrug!$J$10:$J$27393,$D208,Energiforbrug!$I$10:$I$27393,K$198)/1000 -> 18.8834468 | L208: =SUMIFS(Energiforbrug!$N$10:$N$27393,Energiforbrug!$J$10:$J$27393,$D208,Energiforbrug!$I$10:$I$27393,L$198)/1000 -> 1998.083922 | M208: 2233.287113 | O208: 0.426 | P208: 0.163 | Q208: 0.099
D209: Køl/frys (ekskl. rumkøling) | E209: =SUMIFS(Energiforbrug!$N$10:$N$27393,Energiforbrug!$J$10:$J$27393,$D209,Energiforbrug!$I$10:$I$27393,E$198)/1000 -> 575.56085 | F209: =SUMIFS(Energiforbrug!$N$10:$N$27393,Energiforbrug!$J$10:$J$27393,$D209,Energiforbrug!$I$10:$I$27393,F$198)/1000 -> 1666.960857 | G209: =SUMIFS(Energiforbrug!$N$10:$N$27393,Energiforbrug!$J$10:$J$27393,$D209,Energiforbrug!$I$10:$I$27393,G$198)/1000 -> 2.969097076 | H209: =SUMIFS(Energiforbrug!$N$10:$N$27393,Energiforbrug!$J$10:$J$27393,$D209,Energiforbrug!$I$10:$I$27393,H$198)/1000 -> 753.0879004 | I209: =SUMIFS(Energiforbrug!$N$10:$N$27393,Energiforbrug!$J$10:$J$27393,$D209,Energiforbrug!$I$10:$I$27393,I$198)/1000 -> 0 | J209: =SUMIFS(Energiforbrug!$N$10:$N$27393,Energiforbrug!$J$10:$J$27393,$D209,Energiforbrug!$I$10:$I$27393,J$198)/1000 -> 17.47911 | K209: =SUMIFS(Energiforbrug!$N$10:$N$27393,Energiforbrug!$J$10:$J$27393,$D209,Energiforbrug!$I$10:$I$27393,K$198)/1000 -> 126.7293702 | L209: =SUMIFS(Energiforbrug!$N$10:$N$27393,Energiforbrug!$J$10:$J$27393,$D209,Energiforbrug!$I$10:$I$27393,L$198)/1000 -> 3074.576181 | M209: 6217.363366 | O209: 0.3075 | P209: 0.14 | Q209: 0.1015
D210: Rumventilation | E210: =SUMIFS(Energiforbrug!$N$10:$N$27393,Energiforbrug!$J$10:$J$27393,$D210,Energiforbrug!$I$10:$I$27393,E$198)/1000 -> 662.31924 | F210: =SUMIFS(Energiforbrug!$N$10:$N$27393,Energiforbrug!$J$10:$J$27393,$D210,Energiforbrug!$I$10:$I$27393,F$198)/1000 -> 764.4605296 | G210: =SUMIFS(Energiforbrug!$N$10:$N$27393,Energiforbrug!$J$10:$J$27393,$D210,Energiforbrug!$I$10:$I$27393,G$198)/1000 -> 39.00515 | H210: =SUMIFS(Energiforbrug!$N$10:$N$27393,Energiforbrug!$J$10:$J$27393,$D210,Energiforbrug!$I$10:$I$27393,H$198)/1000 -> 308.3163405 | I210: =SUMIFS(Energiforbrug!$N$10:$N$27393,Energiforbrug!$J$10:$J$27393,$D210,Energiforbrug!$I$10:$I$27393,I$198)/1000 -> 29.34533 | J210: =SUMIFS(Energiforbrug!$N$10:$N$27393,Energiforbrug!$J$10:$J$27393,$D210,Energiforbrug!$I$10:$I$27393,J$198)/1000 -> 299.39172 | K210: =SUMIFS(Energiforbrug!$N$10:$N$27393,Energiforbrug!$J$10:$J$27393,$D210,Energiforbrug!$I$10:$I$27393,K$198)/1000 -> 652.1324616 | L210: =SUMIFS(Energiforbrug!$N$10:$N$27393,Energiforbrug!$J$10:$J$27393,$D210,Energiforbrug!$I$10:$I$27393,L$198)/1000 -> 2696.140405 | M210: 5451.111176 | O210: 0.3684 | P210: 0.3275 | Q210: 0.253
D211: Pumpning | E211: =SUMIFS(Energiforbrug!$N$10:$N$27393,Energiforbrug!$J$10:$J$27393,$D211,Energiforbrug!$I$10:$I$27393,E$198)/1000 -> 1463.67006 | F211: =SUMIFS(Energiforbrug!$N$10:$N$27393,Energiforbrug!$J$10:$J$27393,$D211,Energiforbrug!$I$10:$I$27393,F$198)/1000 -> 1013.121013 | G211: =SUMIFS(Energiforbrug!$N$10:$N$27393,Energiforbrug!$J$10:$J$27393,$D211,Energiforbrug!$I$10:$I$27393,G$198)/1000 -> 196.8332932 | H211: =SUMIFS(Energiforbrug!$N$10:$N$27393,Energiforbrug!$J$10:$J$27393,$D211,Energiforbrug!$I$10:$I$27393,H$198)/1000 -> 939.9997189 | I211: =SUMIFS(Energiforbrug!$N$10:$N$27393,Energiforbrug!$J$10:$J$27393,$D211,Energiforbrug!$I$10:$I$27393,I$198)/1000 -> 195.2264343 | J211: =SUMIFS(Energiforbrug!$N$10:$N$27393,Energiforbrug!$J$10:$J$27393,$D211,Energiforbrug!$I$10:$I$27393,J$198)/1000 -> 141.33078 | K211: =SUMIFS(Energiforbrug!$N$10:$N$27393,Energiforbrug!$J$10:$J$27393,$D211,Energiforbrug!$I$10:$I$27393,K$198)/1000 -> 71.34487325 | L211: =SUMIFS(Energiforbrug!$N$10:$N$27393,Energiforbrug!$J$10:$J$27393,$D211,Energiforbrug!$I$10:$I$27393,L$198)/1000 -> 540.2625135 | M211: 4561.788686 | O211: 0.54 | P211: 0.38 | Q211: 0.23
D212: Blæsere | E212: =SUMIFS(Energiforbrug!$N$10:$N$27393,Energiforbrug!$J$10:$J$27393,$D212,Energiforbrug!$I$10:$I$27393,E$198)/1000 -> 370.41366 | F212: =SUMIFS(Energiforbrug!$N$10:$N$27393,Energiforbrug!$J$10:$J$27393,$D212,Energiforbrug!$I$10:$I$27393,F$198)/1000 -> 689.1883546 | G212: =SUMIFS(Energiforbrug!$N$10:$N$27393,Energiforbrug!$J$10:$J$27393,$D212,Energiforbrug!$I$10:$I$27393,G$198)/1000 -> 336.5874629 | H212: =SUMIFS(Energiforbrug!$N$10:$N$27393,Energiforbrug!$J$10:$J$27393,$D212,Energiforbrug!$I$10:$I$27393,H$198)/1000 -> 555.2939394 | I212: =SUMIFS(Energiforbrug!$N$10:$N$27393,Energiforbrug!$J$10:$J$27393,$D212,Energiforbrug!$I$10:$I$27393,I$198)/1000 -> 324.1143116 | J212: =SUMIFS(Energiforbrug!$N$10:$N$27393,Energiforbrug!$J$10:$J$27393,$D212,Energiforbrug!$I$10:$I$27393,J$198)/1000 -> 170.60856 | K212: =SUMIFS(Energiforbrug!$N$10:$N$27393,Energiforbrug!$J$10:$J$27393,$D212,Energiforbrug!$I$10:$I$27393,K$198)/1000 -> 401.9620927 | L212: =SUMIFS(Energiforbrug!$N$10:$N$27393,Energiforbrug!$J$10:$J$27393,$D212,Energiforbrug!$I$10:$I$27393,L$198)/1000 -> 104.209339 | M212: 2952.37772 | O212: 0.296 | P212: 0.1915 | Q212: 0.098
D213: Trykluft | E213: =SUMIFS(Energiforbrug!$N$10:$N$27393,Energiforbrug!$J$10:$J$27393,$D213,Energiforbrug!$I$10:$I$27393,E$198)/1000 -> 287.36098 | F213: =SUMIFS(Energiforbrug!$N$10:$N$27393,Energiforbrug!$J$10:$J$27393,$D213,Energiforbrug!$I$10:$I$27393,F$198)/1000 -> 562.0573932 | G213: =SUMIFS(Energiforbrug!$N$10:$N$27393,Energiforbrug!$J$10:$J$27393,$D213,Energiforbrug!$I$10:$I$27393,G$198)/1000 -> 145.9682882 | H213: =SUMIFS(Energiforbrug!$N$10:$N$27393,Energiforbrug!$J$10:$J$27393,$D213,Energiforbrug!$I$10:$I$27393,H$198)/1000 -> 963.2042033 | I213: =SUMIFS(Energiforbrug!$N$10:$N$27393,Energiforbrug!$J$10:$J$27393,$D213,Energiforbrug!$I$10:$I$27393,I$198)/1000 -> 265.6397435 | J213: =SUMIFS(Energiforbrug!$N$10:$N$27393,Energiforbrug!$J$10:$J$27393,$D213,Energiforbrug!$I$10:$I$27393,J$198)/1000 -> 237.09141 | K213: =SUMIFS(Energiforbrug!$N$10:$N$27393,Energiforbrug!$J$10:$J$27393,$D213,Energiforbrug!$I$10:$I$27393,K$198)/1000 -> 569.377318 | L213: =SUMIFS(Energiforbrug!$N$10:$N$27393,Energiforbrug!$J$10:$J$27393,$D213,Energiforbrug!$I$10:$I$27393,L$198)/1000 -> 311.8105057 | M213: 3342.509842 | O213: 0.5365 | P213: 0.27725 | Q213: 0.1645
D214: Hydraulik | E214: =SUMIFS(Energiforbrug!$N$10:$N$27393,Energiforbrug!$J$10:$J$27393,$D214,Energiforbrug!$I$10:$I$27393,E$198)/1000 -> 61.25563 | F214: =SUMIFS(Energiforbrug!$N$10:$N$27393,Energiforbrug!$J$10:$J$27393,$D214,Energiforbrug!$I$10:$I$27393,F$198)/1000 -> 96.0559167 | G214: =SUMIFS(Energiforbrug!$N$10:$N$27393,Energiforbrug!$J$10:$J$27393,$D214,Energiforbrug!$I$10:$I$27393,G$198)/1000 -> 39.00515 | H214: =SUMIFS(Energiforbrug!$N$10:$N$27393,Energiforbrug!$J$10:$J$27393,$D214,Energiforbrug!$I$10:$I$27393,H$198)/1000 -> 129.93603 | I214: =SUMIFS(Energiforbrug!$N$10:$N$27393,Energiforbrug!$J$10:$J$27393,$D214,Energiforbrug!$I$10:$I$27393,I$198)/1000 -> 92.07998 | J214: =SUMIFS(Energiforbrug!$N$10:$N$27393,Energiforbrug!$J$10:$J$27393,$D214,Energiforbrug!$I$10:$I$27393,J$198)/1000 -> 140.58183 | K214: =SUMIFS(Energiforbrug!$N$10:$N$27393,Energiforbrug!$J$10:$J$27393,$D214,Energiforbrug!$I$10:$I$27393,K$198)/1000 -> 161.0584652 | L214: =SUMIFS(Energiforbrug!$N$10:$N$27393,Energiforbrug!$J$10:$J$27393,$D214,Energiforbrug!$I$10:$I$27393,L$198)/1000 -> 31.07924 | M214: 751.0522419 | O214: 0.334 | P214: 0.172 | Q214: 0.08
D215: Belysning | E215: =SUMIFS(Energiforbrug!$N$10:$N$27393,Energiforbrug!$J$10:$J$27393,$D215,Energiforbrug!$I$10:$I$27393,E$198)/1000 -> 1370.55012 | F215: =SUMIFS(Energiforbrug!$N$10:$N$27393,Energiforbrug!$J$10:$J$27393,$D215,Energiforbrug!$I$10:$I$27393,F$198)/1000 -> 457.9354592 | G215: =SUMIFS(Energiforbrug!$N$10:$N$27393,Energiforbrug!$J$10:$J$27393,$D215,Energiforbrug!$I$10:$I$27393,G$198)/1000 -> 90.32225236 | H215: =SUMIFS(Energiforbrug!$N$10:$N$27393,Energiforbrug!$J$10:$J$27393,$D215,Energiforbrug!$I$10:$I$27393,H$198)/1000 -> 249.7897508 | I215: =SUMIFS(Energiforbrug!$N$10:$N$27393,Energiforbrug!$J$10:$J$27393,$D215,Energiforbrug!$I$10:$I$27393,I$198)/1000 -> 134.9922127 | J215: =SUMIFS(Energiforbrug!$N$10:$N$27393,Energiforbrug!$J$10:$J$27393,$D215,Energiforbrug!$I$10:$I$27393,J$198)/1000 -> 249.63903 | K215: =SUMIFS(Energiforbrug!$N$10:$N$27393,Energiforbrug!$J$10:$J$27393,$D215,Energiforbrug!$I$10:$I$27393,K$198)/1000 -> 639.4360535 | L215: =SUMIFS(Energiforbrug!$N$10:$N$27393,Energiforbrug!$J$10:$J$27393,$D215,Energiforbrug!$I$10:$I$27393,L$198)/1000 -> 8278.308393 | M215: 11470.97327 | O215: 0.675 | P215: 0.258 | Q215: 0.178
D216: It og anden elektronik | E216: =SUMIFS(Energiforbrug!$N$10:$N$27393,Energiforbrug!$J$10:$J$27393,$D216,Energiforbrug!$I$10:$I$27393,E$198)/1000 -> 126.13296 | F216: =SUMIFS(Energiforbrug!$N$10:$N$27393,Energiforbrug!$J$10:$J$27393,$D216,Energiforbrug!$I$10:$I$27393,F$198)/1000 -> 154.1845965 | G216: =SUMIFS(Energiforbrug!$N$10:$N$27393,Energiforbrug!$J$10:$J$27393,$D216,Energiforbrug!$I$10:$I$27393,G$198)/1000 -> 25.91037338 | H216: =SUMIFS(Energiforbrug!$N$10:$N$27393,Energiforbrug!$J$10:$J$27393,$D216,Energiforbrug!$I$10:$I$27393,H$198)/1000 -> 51.10395144 | I216: =SUMIFS(Energiforbrug!$N$10:$N$27393,Energiforbrug!$J$10:$J$27393,$D216,Energiforbrug!$I$10:$I$27393,I$198)/1000 -> 5.88325 | J216: =SUMIFS(Energiforbrug!$N$10:$N$27393,Energiforbrug!$J$10:$J$27393,$D216,Energiforbrug!$I$10:$I$27393,J$198)/1000 -> 65.7339 | K216: =SUMIFS(Energiforbrug!$N$10:$N$27393,Energiforbrug!$J$10:$J$27393,$D216,Energiforbrug!$I$10:$I$27393,K$198)/1000 -> 268.7752857 | L216: =SUMIFS(Energiforbrug!$N$10:$N$27393,Energiforbrug!$J$10:$J$27393,$D216,Energiforbrug!$I$10:$I$27393,L$198)/1000 -> 3809.417682 | M216: 4507.141999 | O216: 0.04146612139 | P216: 0.008883946347 | Q216: 0.0005073995062
D217: Delsum (el) | E217: =SUM(E207:E216) -> 5135.37658 | F217: =SUM(F207:F216) -> 5699.191325 | G217: 907.8051872 | H217: 4053.185713 | I217: 1054.497029 | J217: 1356.81456 | K217: 3053.699977 | L217: 20843.88818 | M217: 42104.45855 | O217: 0.4334562587 | P217: 0.2236622868 | Q217: 0.1484426361
D218: I alt | E218: =E206+E217 -> 28827.60758 | F218: =F206+F217 -> 22016.22467 | G218: 6161.419789 | H218: 10223.53635 | I218: 13525.49148 | J218: 3277.02131 | K218: 10960.91635 | L218: 46574.25092 | M218: 141566.4684 | O218: 0.2503752343 | P218: 0.1106346778 | Q218: 0.07273923481
D220: ="Besparelsespotentiale (for valgte parametre) "&$G$5&" år TBT" -> Besparelsespotentiale (for valgte parametre) 10 år TBT | O220: Besparelser på tværs af brancher
D221: TJ per år | E221: Landbrug mv. | F221: Fødevarer mv. | G221: Træ+papir | H221: Kemi+farma | I221: Byggematerialer | J221: Metal | K221: Fremstilling | L221: Handel+Service | M221: I alt | O221: Energi | P221: Besparelse %
D222: Konverterings- og nettab | E222: =$P222*E199 -> 241.7470753 | F222: =$P222*F199 -> 130.7780059 | G222: 67.2392327 | H222: 75.44675543 | I222: 31.0421105 | J222: 21.33642027 | K222: 113.6735458 | L222: 56.12557433 | M222: =$P222*M199+Cases!AB219 -> 737.3887201 | O222: =SUMIFS(Potentialer!$AM$11:$AM$1997,Potentialer!$J$11:$J$1997,D222,Potentialer!$W$11:$W$1997,$D$3,Potentialer!$AL$11:$AL$1997,$G$5)/1000 -> 737.3887201 | P222: =O222/M199 -> 0.087
D223: Opvarmning/kogning | E223: =$P223*E200 -> 299.7495876 | F223: 1831.545854 | G223: 70.54856929 | H223: 578.4418715 | I223: 1476.92006 | J223: 45.25082506 | K223: 142.7463082 | L223: 208.2759007 | M223: =$P223*M200+Cases!AB220 -> 4653.478976 | O223: =SUMIFS(Potentialer!$AM$11:$AM$1997,Potentialer!$J$11:$J$1997,D223,Potentialer!$W$11:$W$1997,$D$3,Potentialer!$AL$11:$AL$1997,$G$5)/1000 -> 4653.478976 | P223: 0.287
D224: Tørring | E224: =$P224*E201 -> 196.2925311 | F224: =$P224*F201 -> 1242.857796 | G224: 918.6005798 | H224: 245.8199774 | I224: 747.0914607 | J224: 86.72297558 | K224: 214.7045405 | L224: 24.59379384 | M224: =$P224*M201+Cases!AB221 -> 3676.683655 | O224: =SUMIFS(Potentialer!$AM$11:$AM$1997,Potentialer!$J$11:$J$1997,D224,Potentialer!$W$11:$W$1997,$D$3,Potentialer!$AL$11:$AL$1997,$G$5)/1000 -> 3676.683655 | P224: 0.271
D225: Inddampning | E225: =$P225*E202 -> 512.759769 | F225: 548.0996739 | G225: 0 | H225: 317.7462501 | I225: 0 | J225: 0 | K225: 0 | L225: 0 | M225: =$P225*M202+Cases!AB222 -> 1378.605693 | O225: =SUMIFS(Potentialer!$AM$11:$AM$1997,Potentialer!$J$11:$J$1997,D225,Potentialer!$W$11:$W$1997,$D$3,Potentialer!$AL$11:$AL$1997,$G$5)/1000 -> 1378.605693 | P225: =O225/M202 -> 0.3
D226: Brænding/sintring | E226: =$P226*E203 -> 18.0243382 | F226: 2.728764209 | G226: 0 | H226: 0 | I226: 406.7451522 | J226: 0 | K226: 0.9010716 | L226: 0 | M226: =$P226*M203+Cases!AB223 -> 428.3993262 | O226: =SUMIFS(Potentialer!$AM$11:$AM$1997,Potentialer!$J$11:$J$1997,D226,Potentialer!$W$11:$W$1997,$D$3,Potentialer!$AL$11:$AL$1997,$G$5)/1000 -> 428.3993262 | P226: 0.11
... 197 more rows

Sheet Potentialer
B1: Konverteret teknologikatalog
D3: Beskrivelse
D4: I denne fane beregnes tilbagebetalingstiden for hver besparelsescase på baggrund af de foretagede valg i Cockpit. det konverterede teknologikatalog benyttes i de videre beregninger i fanerne 'Potentiale beregning' og potentiale beregn tværgående'.
C7: Konverteret teknologikatalog
AX8: Branchespecifik arbejdssteds størrelse fordeling | BB8: Branchespecifik energiforbrug efter størrelse
D9: Nummer | F9: =Teknologikatalog!D9 -> TekID | G9: =Teknologikatalog!E9 -> BrancheID | H9: =Teknologikatalog!F9 -> OmrådeID | I9: =Teknologikatalog!G9 -> CaseID | J9: =Teknologikatalog!I9 -> Område | K9: =Teknologikatalog!J9 -> Case | L9: =Teknologikatalog!K9 -> Besparelsespotentiale (min) | M9: =Teknologikatalog!L9 -> Besparelsespotentiale (mid) | N9: =Teknologikatalog!M9 -> Besparelsespotentiale (max) | P9: =Teknologikatalog!O9 -> Anvendelsespotentiale middel | R9: =Teknologikatalog!Q9 -> Branche | S9: =Teknologikatalog!R9 -> Investeringsomkostning (min) | T9: =Teknologikatalog!S9 -> Investeringsomkostning (max) | U9: =Teknologikatalog!T9 -> Øvrige gevinster | V9: =Teknologikatalog!U9 -> Tilbagebetalingstid | W9: =Teknologikatalog!V9 -> Ny el. gammel | X9: =Teknologikatalog!W9 -> Levetid | Y9: =Teknologikatalog!X9 -> Andel kvote | Z9: Sektor | AA9: Energiforbrug | AB9: Energiomkostning | AC9: Gennemsnitlig energipris | AD9: Tværg. energiforbrug | AE9: Tværg. energiomkostning | AF9: Tværg. gns. Energipris | AG9: Valgt besparelsespotentiale | AH9: Valgt anvendelse | AI9: Potentiale til overførsel | AJ9: Valgt investering | AK9: Øvrige gevinster | AL9: Tilbagebetalingstid | AM9: Potentiale | AN9: Bruger valg TBT | AO9: Potentiale inkl. valg | AP9: Kort potentiale | AQ9: Mellem potentiale | AR9: Lang potentiale | AS9: Kort potentiale | AT9: Mellem potentiale | AU9: Lang potentiale | AV9: Kvote potentiale GJ | AW9: Ej-kvote potentiale GJ | AX9: 1-9 ansatte | AY9: 10-49 ansatte | AZ9: 50-250 ansatte | BA9: 251- ansatte | BB9: 1-9 ansatte | BC9: 10-49 ansatte | BD9: 50-250 ansatte | BE9: 251- ansatte
F10: =Teknologikatalog!D10 -> 0 | G10: =Teknologikatalog!E10 -> 0 | H10: =Teknologikatalog!F10 -> 0 | I10: =Teknologikatalog!G10 -> 0 | J10: =Teknologikatalog!I10 -> 0 | K10: =Teknologikatalog!J10 -> 0 | L10: =Teknologikatalog!K10 -> % | M10: =Teknologikatalog!L10 -> % | N10: =Teknologikatalog!M10 -> % | P10: =Teknologikatalog!O10 -> % | R10: =Teknologikatalog!Q10 -> 0 | S10: =Teknologikatalog!R10 -> kr./kWh | T10: =Teknologikatalog!S10 -> kr./kWh | U10: =Teknologikatalog!T10 -> kr./kWh | V10: =Teknologikatalog!U10 -> år | W10: =Teknologikatalog!V10 -> type | X10: =Teknologikatalog!W10 -> år | Y10: =Teknologikatalog!X10 -> % | AA10: GJ | AB10: kr. | AC10: kr./GJ | AD10: GJ | AE10: kr. | AF10: kr./GJ | AG10: % | AI10: % | AJ10: kr./GJ | AK10: kr./GJ | AL10: år | AM10: GJ | AO10: GJ | AP10: 2 | AQ10: 4 | AR10: 10 | AS10: 2 | AT10: 4 | AU10: 10
D11: 1 | E11: =IF(COUNTIF(F11:$F$1997,$F11)>1,0,1) -> 0 | F11: =Teknologikatalog!D16 -> 1-3-1 | G11: =Teknologikatalog!E16 -> 1 | H11: =Teknologikatalog!F16 -> 3 | I11: =Teknologikatalog!G16 -> 1 | J11: =Teknologikatalog!I16 -> Tørring | K11: =Teknologikatalog!J16 -> Katalytisk infrarød tørring | L11: =Teknologikatalog!K16 -> 0.3 | M11: =Teknologikatalog!L16 -> 0.6 | N11: =Teknologikatalog!M16 -> 0.9 | O11: =Teknologikatalog!N16 -> 0.25 | P11: =Teknologikatalog!O16 -> 0.25 | Q11: =Teknologikatalog!P16 -> 0.25 | R11: =Teknologikatalog!Q16 -> Landbrug | S11: =Teknologikatalog!R16 -> 10 | T11: =Teknologikatalog!S16 -> 12 | U11: =Teknologikatalog!T16 -> 2.3 | V11: =Teknologikatalog!U16 -> 0 | W11: =Teknologikatalog!V16 -> 2015-cases | X11: =Teknologikatalog!W16 -> 0 | Y11: =Teknologikatalog!X16 -> 0 | Z11: =VLOOKUP(R11,Lister!$D$114:$E$171,2,FALSE) -> Landbrug mv. | AA11: =SUMIFS(Energiforbrug!$N$10:$N$27393,Energiforbrug!$D$10:$D$27393,$G11,Energiforbrug!$E$10:$E$27393,$H11) -> 267542.9929 | AB11: =SUMIFS(Energiforbrug!$P$10:$P$27393,Energiforbrug!$D$10:$D$27393,$G11,Energiforbrug!$E$10:$E$27393,$H11) -> 40391487.16 | AC11: =IF(AB11>0,AB11/AA11,0) -> 150.9719493 | AD11: =SUMIFS('Energiforbrug tværgående'!$G$10:$G$180,'Energiforbrug tværgående'!$D$10:$D$180,$J11,'Energiforbrug tværgående'!$E$10:$E$180,$R11)+IF(R11="På tværs",SUMIFS('Energiforbrug tværgående'!$G$10:$G$180,'Energiforbrug tværgående'!$D$10:$D$180,$J11),0) -> 0 | AE11: =AD11*AF11 -> 0 | AF11: =IF(AD11>0,SUMIFS(EnergiBranche!$G$10:$G$66,EnergiBranche!$D$10:$D$66,$R11),0) -> 0 | AG11: =CHOOSE(Lister!$E$96,L11,M11,N11) -> 0.6 | AH11: =CHOOSE(Lister!$E$102,O11,P11,Q11) -> 0.25 | AI11: =IFERROR(AH11*AG11*#REF!,0) -> 0 | AJ11: =CHOOSE(Lister!$E$108,Potentialer!S11,Potentialer!T11)/GJ_kWh -> 2777.777778 | AK11: =U11/GJ_kWh -> 638.8888889 | AL11: =IF(AND(AA11+AD11>0,V11=0),($AJ11)/(AK11+($AC11+AF11)*AG11),V11) -> 3.807928961 | AM11: =AG11*AH11*($AA11+AD11) -> 40131.44893 | AN11: =IFERROR(IF(W11=Lister!$G$33,IF(AL11<=ThresholdTilbagebetalingstid,1,0),IF(AL11=ThresholdTilbagebetalingstid,1,0)),0) -> 1 | AO11: =AM11*AN11 -> 40131.44893 | AP11: =IFERROR(IF($W11=Lister!$G$33,IF($AL11<=AP$10,$AG11*$AH11,0),IF($AL11=AP$10,$AG11*$AH11,0)),0) -> 0 | AQ11: =IFERROR(IF($W11=Lister!$G$33,IF($AL11<=AQ$10,$AG11*$AH11,0),IF($AL11=AQ$10,$AG11*$AH11,0)),0) -> 0.15 | AR11: =IFERROR(IF($W11=Lister!$G$33,IF($AL11<=AR$10,$AG11*$AH11,0),IF($AL11=AR$10,$AG11*$AH11,0)),0) -> 0.15 | AS11: =($AA11+$AD11)*AP11 -> 0 | AT11: =($AA11+$AD11)*AQ11 -> 40131.44893 | AU11: =($AA11+$AD11)*AR11 -> 40131.44893 | AV11: =AM11*Y11 -> 0 | AW11: =AM11*(1-Y11) -> 40131.44893 | AX11: =OFFSET('Andel ift. virkstørrelse'!M$9,$G11,0) -> 0.8183590006 | AY11: =OFFSET('Andel ift. virkstørrelse'!N$9,$G11,0) -> 0.1573263467 | AZ11: =OFFSET('Andel ift. virkstørrelse'!O$9,$G11,0)+OFFSET('Andel ift. virkstørrelse'!P$9,$G11,0) -> 0.02431465269 | BA11: =OFFSET('Andel ift. virkstørrelse'!Q$9,$G11,0) -> 0 | BB11: =AX11*$AM11 -> 32841.93244 | BC11: =AY11*$AM11 -> 6313.734249 | BD11: =AZ11*$AM11 -> 975.7822428 | BE11: =BA11*$AM11 -> 0
D12: =D11+1 -> 2 | E12: =IF(COUNTIF(F12:$F$1997,$F12)>1,0,1) -> 0 | F12: =Teknologikatalog!D17 -> 11-3-1 | G12: =Teknologikatalog!E17 -> 11 | H12: =Teknologikatalog!F17 -> 3 | I12: =Teknologikatalog!G17 -> 1 | J12: =Teknologikatalog!I17 -> Tørring | K12: =Teknologikatalog!J17 -> Katalytisk infrarød tørring | L12: =Teknologikatalog!K17 -> 0.3 | M12: =Teknologikatalog!L17 -> 0.6 | N12: =Teknologikatalog!M17 -> 0.9 | O12: =Teknologikatalog!N17 -> 0.1 | P12: =Teknologikatalog!O17 -> 0.1 | Q12: =Teknologikatalog!P17 -> 0.1 | R12: =Teknologikatalog!Q17 -> Fremstilling af færdige foderblandinger | S12: =Teknologikatalog!R17 -> 10 | T12: =Teknologikatalog!S17 -> 12 | U12: =Teknologikatalog!T17 -> 2.3 | V12: =Teknologikatalog!U17 -> 0 | W12: =Teknologikatalog!V17 -> 2015-cases | X12: =Teknologikatalog!W17 -> 0 | Y12: =Teknologikatalog!X17 -> 0 | Z12: =VLOOKUP(R12,Lister!$D$114:$E$171,2,FALSE) -> Fødevarer mv. | AA12: =SUMIFS(Energiforbrug!$N$10:$N$27393,Energiforbrug!$D$10:$D$27393,$G12,Energiforbrug!$E$10:$E$27393,$H12) -> 571346.1464 | AB12: =SUMIFS(Energiforbrug!$P$10:$P$27393,Energiforbrug!$D$10:$D$27393,$G12,Energiforbrug!$E$10:$E$27393,$H12) -> 64498125.89 | AC12: =IF(AB12>0,AB12/AA12,0) -> 112.8880037 | AD12: =SUMIFS('Energiforbrug tværgående'!$G$10:$G$180,'Energiforbrug tværgående'!$D$10:$D$180,$J12,'Energiforbrug tværgående'!$E$10:$E$180,$R12)+IF(R12="På tværs",SUMIFS('Energiforbrug tværgående'!$G$10:$G$180,'Energiforbrug tværgående'!$D$10:$D$180,$J12),0) -> 0 | AE12: =AD12*AF12 -> 0 | AF12: =IF(AD12>0,SUMIFS(EnergiBranche!$G$10:$G$66,EnergiBranche!$D$10:$D$66,$R12),0) -> 0 | AG12: =CHOOSE(Lister!$E$96,L12,M12,N12) -> 0.6 | AH12: =CHOOSE(Lister!$E$102,O12,P12,Q12) -> 0.1 | AI12: =IFERROR(AH12*AG12*#REF!,0) -> 0 | AJ12: =CHOOSE(Lister!$E$108,Potentialer!S12,Potentialer!T12)/GJ_kWh -> 2777.777778 | AK12: 638.8888889 | AL12: =IF(AND(AA12+AD12>0,V12=0),($AJ12)/(AK12+($AC12+AF12)*AG12),V12) -> 3.931067802 | AM12: =AG12*AH12*($AA12+AD12) -> 34280.76878 | AN12: =IFERROR(IF(W12=Lister!$G$33,IF(AL12<=ThresholdTilbagebetalingstid,1,0),IF(AL12=ThresholdTilbagebetalingstid,1,0)),0) -> 1 | AO12: =AM12*AN12 -> 34280.76878 | AP12: =IFERROR(IF($W12=Lister!$G$33,IF($AL12<=AP$10,$AG12*$AH12,0),IF($AL12=AP$10,$AG12*$AH12,0)),0) -> 0 | AQ12: =IFERROR(IF($W12=Lister!$G$33,IF($AL12<=AQ$10,$AG12*$AH12,0),IF($AL12=AQ$10,$AG12*$AH12,0)),0) -> 0.06 | AR12: =IFERROR(IF($W12=Lister!$G$33,IF($AL12<=AR$10,$AG12*$AH12,0),IF($AL12=AR$10,$AG12*$AH12,0)),0) -> 0.06 | AS12: =($AA12+$AD12)*AP12 -> 0 | AT12: =($AA12+$AD12)*AQ12 -> 34280.76878 | AU12: =($AA12+$AD12)*AR12 -> 34280.76878 | AV12: 0 | AW12: 34280.76878 | AX12: =OFFSET('Andel ift. virkstørrelse'!M$9,$G12,0) -> 0.08964143426 | AY12: =OFFSET('Andel ift. virkstørrelse'!N$9,$G12,0) -> 0.6382057975 | AZ12: =OFFSET('Andel ift. virkstørrelse'!O$9,$G12,0)+OFFSET('Andel ift. virkstørrelse'!P$9,$G12,0) -> 0.2338920181 | BA12: =OFFSET('Andel ift. virkstørrelse'!Q$9,$G12,0) -> 0.0382607501 | BB12: =AX12*$AM12 -> 3072.977281 | BC12: 21878.18538 | BD12: 8017.998194 | BE12: 1311.607928
D13: 3 | E13: =IF(COUNTIF(F13:$F$1997,$F13)>1,0,1) -> 1 | F13: =Teknologikatalog!D18 -> 20-3-1 | G13: =Teknologikatalog!E18 -> 20 | H13: =Teknologikatalog!F18 -> 3 | I13: =Teknologikatalog!G18 -> 1 | J13: =Teknologikatalog!I18 -> Tørring | K13: =Teknologikatalog!J18 -> Katalytisk infrarød tørring | L13: =Teknologikatalog!K18 -> 0.3 | M13: =Teknologikatalog!L18 -> 0.6 | N13: =Teknologikatalog!M18 -> 0.9 | O13: =Teknologikatalog!N18 -> 0.1 | P13: =Teknologikatalog!O18 -> 0.1 | Q13: =Teknologikatalog!P18 -> 0.1 | R13: =Teknologikatalog!Q18 -> Trykkerier | S13: =Teknologikatalog!R18 -> 10 | T13: =Teknologikatalog!S18 -> 12 | U13: =Teknologikatalog!T18 -> 2.3 | V13: =Teknologikatalog!U18 -> 0 | W13: =Teknologikatalog!V18 -> 2015-cases | X13: =Teknologikatalog!W18 -> 0 | Y13: =Teknologikatalog!X18 -> 0 | Z13: =VLOOKUP(R13,Lister!$D$114:$E$171,2,FALSE) -> Fremstilling | AA13: =SUMIFS(Energiforbrug!$N$10:$N$27393,Energiforbrug!$D$10:$D$27393,$G13,Energiforbrug!$E$10:$E$27393,$H13) -> 27941.77 | AB13: =SUMIFS(Energiforbrug!$P$10:$P$27393,Energiforbrug!$D$10:$D$27393,$G13,Energiforbrug!$E$10:$E$27393,$H13) -> 3989812.387 | AC13: =IF(AB13>0,AB13/AA13,0) -> 142.7902523 | AD13: =SUMIFS('Energiforbrug tværgående'!$G$10:$G$180,'Energiforbrug tværgående'!$D$10:$D$180,$J13,'Energiforbrug tværgående'!$E$10:$E$180,$R13)+IF(R13="På tværs",SUMIFS('Energiforbrug tværgående'!$G$10:$G$180,'Energiforbrug tværgående'!$D$10:$D$180,$J13),0) -> 0 | AE13: =AD13*AF13 -> 0 | AF13: =IF(AD13>0,SUMIFS(EnergiBranche!$G$10:$G$66,EnergiBranche!$D$10:$D$66,$R13),0) -> 0 | AG13: =CHOOSE(Lister!$E$96,L13,M13,N13) -> 0.6 | AH13: =CHOOSE(Lister!$E$102,O13,P13,Q13) -> 0.1 | AI13: =IFERROR(AH13*AG13*#REF!,0) -> 0 | AJ13: =CHOOSE(Lister!$E$108,Potentialer!S13,Potentialer!T13)/GJ_kWh -> 2777.777778 | AK13: =U13/GJ_kWh -> 638.8888889 | AL13: =IF(AND(AA13+AD13>0,V13=0),($AJ13)/(AK13+($AC13+AF13)*AG13),V13) -> 3.833728224 | AM13: =AG13*AH13*($AA13+AD13) -> 1676.5062 | AN13: =IFERROR(IF(W13=Lister!$G$33,IF(AL13<=ThresholdTilbagebetalingstid,1,0),IF(AL13=ThresholdTilbagebetalingstid,1,0)),0) -> 1 | AO13: =AM13*AN13 -> 1676.5062 | AP13: =IFERROR(IF($W13=Lister!$G$33,IF($AL13<=AP$10,$AG13*$AH13,0),IF($AL13=AP$10,$AG13*$AH13,0)),0) -> 0 | AQ13: =IFERROR(IF($W13=Lister!$G$33,IF($AL13<=AQ$10,$AG13*$AH13,0),IF($AL13=AQ$10,$AG13*$AH13,0)),0) -> 0.06 | AR13: =IFERROR(IF($W13=Lister!$G$33,IF($AL13<=AR$10,$AG13*$AH13,0),IF($AL13=AR$10,$AG13*$AH13,0)),0) -> 0.06 | AS13: =($AA13+$AD13)*AP13 -> 0 | AT13: =($AA13+$AD13)*AQ13 -> 1676.5062 | AU13: =($AA13+$AD13)*AR13 -> 1676.5062 | AV13: =AM13*Y13 -> 0 | AW13: =AM13*(1-Y13) -> 1676.5062 | AX13: =OFFSET('Andel ift. virkstørrelse'!M$9,$G13,0) -> 0.2139447236 | AY13: =OFFSET('Andel ift. virkstørrelse'!N$9,$G13,0) -> 0.3677135678 | AZ13: =OFFSET('Andel ift. virkstørrelse'!O$9,$G13,0)+OFFSET('Andel ift. virkstørrelse'!P$9,$G13,0) -> 0.2927135678 | BA13: =OFFSET('Andel ift. virkstørrelse'!Q$9,$G13,0) -> 0.1256281407 | BB13: =AX13*$AM13 -> 358.6796556 | BC13: =AY13*$AM13 -> 616.4740763 | BD13: =AZ13*$AM13 -> 490.7361113 | BE13: =BA13*$AM13 -> 210.6163568
D14: 4 | E14: =IF(COUNTIF(F14:$F$1997,$F14)>1,0,1) -> 0 | F14: =Teknologikatalog!D19 -> 18-3-1 | G14: =Teknologikatalog!E19 -> 18 | H14: =Teknologikatalog!F19 -> 3 | I14: =Teknologikatalog!G19 -> 2 | J14: =Teknologikatalog!I19 -> Tørring | K14: =Teknologikatalog!J19 -> Vakuumtørring | L14: =Teknologikatalog!K19 -> 0.6 | M14: =Teknologikatalog!L19 -> 0.65 | N14: =Teknologikatalog!M19 -> 0.7 | O14: =Teknologikatalog!N19 -> 25% | P14: =Teknologikatalog!O19 -> 25% | Q14: =Teknologikatalog!P19 -> 25% | R14: =Teknologikatalog!Q19 -> Træindustri | S14: =Teknologikatalog!R19 -> 0.5 | T14: =Teknologikatalog!S19 -> 0.6 | U14: =Teknologikatalog!T19 -> 0 | V14: =Teknologikatalog!U19 -> 0 | W14: =Teknologikatalog!V19 -> 2015-cases | X14: =Teknologikatalog!W19 -> 0 | Y14: =Teknologikatalog!X19 -> 0 | Z14: =VLOOKUP(R14,Lister!$D$114:$E$171,2,FALSE) -> Træ+papir | AA14: =SUMIFS(Energiforbrug!$N$10:$N$27393,Energiforbrug!$D$10:$D$27393,$G14,Energiforbrug!$E$10:$E$27393,$H14) -> 1839872.25 | AB14: =SUMIFS(Energiforbrug!$P$10:$P$27393,Energiforbrug!$D$10:$D$27393,$G14,Energiforbrug!$E$10:$E$27393,$H14) -> 38356858.79 | AC14: 20.84756634 | AD14: =SUMIFS('Energiforbrug tværgående'!$G$10:$G$180,'Energiforbrug tværgående'!$D$10:$D$180,$J14,'Energiforbrug tværgående'!$E$10:$E$180,$R14)+IF(R14="På tværs",SUMIFS('Energiforbrug tværgående'!$G$10:$G$180,'Energiforbrug tværgående'!$D$10:$D$180,$J14),0) -> 0 | AE14: 0 | AF14: =IF(AD14>0,SUMIFS(EnergiBranche!$G$10:$G$66,EnergiBranche!$D$10:$D$66,$R14),0) -> 0 | AG14: =CHOOSE(Lister!$E$96,L14,M14,N14) -> 0.65 | AH14: =CHOOSE(Lister!$E$102,O14,P14,Q14) -> 25% | AI14: =IFERROR(AH14*AG14*#REF!,0) -> 0 | AJ14: =CHOOSE(Lister!$E$108,Potentialer!S14,Potentialer!T14)/GJ_kWh -> 138.8888889 | AK14: 0 | AL14: 10.24940802 | AM14: 298979.2406 | AN14: =IFERROR(IF(W14=Lister!$G$33,IF(AL14<=ThresholdTilbagebetalingstid,1,0),IF(AL14=ThresholdTilbagebetalingstid,1,0)),0) -> 0 | AO14: 0 | AP14: =IFERROR(IF($W14=Lister!$G$33,IF($AL14<=AP$10,$AG14*$AH14,0),IF($AL14=AP$10,$AG14*$AH14,0)),0) -> 0 | AQ14: =IFERROR(IF($W14=Lister!$G$33,IF($AL14<=AQ$10,$AG14*$AH14,0),IF($AL14=AQ$10,$AG14*$AH14,0)),0) -> 0 | AR14: =IFERROR(IF($W14=Lister!$G$33,IF($AL14<=AR$10,$AG14*$AH14,0),IF($AL14=AR$10,$AG14*$AH14,0)),0) -> 0 | AS14: 0 | AT14: 0 | AU14: 0 | AV14: 0 | AW14: 298979.2406 | AX14: =OFFSET('Andel ift. virkstørrelse'!M$9,$G14,0) -> 0.1278462998 | AY14: =OFFSET('Andel ift. virkstørrelse'!N$9,$G14,0) -> 0.2967267552 | AZ14: =OFFSET('Andel ift. virkstørrelse'!O$9,$G14,0)+OFFSET('Andel ift. virkstørrelse'!P$9,$G14,0) -> 0.435483871 | BA14: =OFFSET('Andel ift. virkstørrelse'!Q$9,$G14,0) -> 0.139943074 | BB14: 38223.38963 | BC14: 88715.13995 | BD14: 130200.637 | BE14: 41840.074
D15: 5 | E15: =IF(COUNTIF(F15:$F$1997,$F15)>1,0,1) -> 0 | F15: =Teknologikatalog!D20 -> 13-3-1 | G15: =Teknologikatalog!E20 -> 13 | H15: =Teknologikatalog!F20 -> 3 | I15: =Teknologikatalog!G20 -> 2 | J15: =Teknologikatalog!I20 -> Tørring | K15: =Teknologikatalog!J20 -> Vakuumtørring | L15: =Teknologikatalog!K20 -> 0.6 | M15: =Teknologikatalog!L20 -> 0.65 | N15: =Teknologikatalog!M20 -> 0.7 | O15: =Teknologikatalog!N20 -> 5% | P15: =Teknologikatalog!O20 -> 5% | Q15: =Teknologikatalog!P20 -> 5% | R15: =Teknologikatalog!Q20 -> Øvrig anden fødevareindustri | S15: =Teknologikatalog!R20 -> 0.5 | T15: =Teknologikatalog!S20 -> 0.6 | U15: =Teknologikatalog!T20 -> 0 | V15: =Teknologikatalog!U20 -> 0 | W15: =Teknologikatalog!V20 -> 2015-cases | X15: =Teknologikatalog!W20 -> 0 | Y15: =Teknologikatalog!X20 -> 0 | Z15: =VLOOKUP(R15,Lister!$D$114:$E$171,2,FALSE) -> Fødevarer mv. | AA15: =SUMIFS(Energiforbrug!$N$10:$N$27393,Energiforbrug!$D$10:$D$27393,$G15,Energiforbrug!$E$10:$E$27393,$H15) -> 203344.9002 | AB15: =SUMIFS(Energiforbrug!$P$10:$P$27393,Energiforbrug!$D$10:$D$27393,$G15,Energiforbrug!$E$10:$E$27393,$H15) -> 22778089.75 | AC15: 112.01702 | AD15: =SUMIFS('Energiforbrug tværgående'!$G$10:$G$180,'Energiforbrug tværgående'!$D$10:$D$180,$J15,'Energiforbrug tværgående'!$E$10:$E$180,$R15)+IF(R15="På tværs",SUMIFS('Energiforbrug tværgående'!$G$10:$G$180,'Energiforbrug tværgående'!$D$10:$D$180,$J15),0) -> 0 | AE15: 0 | AF15: =IF(AD15>0,SUMIFS(EnergiBranche!$G$10:$G$66,EnergiBranche!$D$10:$D$66,$R15),0) -> 0 | AG15: =CHOOSE(Lister!$E$96,L15,M15,N15) -> 0.65 | AH15: =CHOOSE(Lister!$E$102,O15,P15,Q15) -> 5% | AI15: =IFERROR(AH15*AG15*#REF!,0) -> 0 | AJ15: =CHOOSE(Lister!$E$108,Potentialer!S15,Potentialer!T15)/GJ_kWh -> 138.8888889 | AK15: 0 | AL15: 1.907524533 | AM15: 6608.709258 | AN15: =IFERROR(IF(W15=Lister!$G$33,IF(AL15<=ThresholdTilbagebetalingstid,1,0),IF(AL15=ThresholdTilbagebetalingstid,1,0)),0) -> 1 | AO15: 6608.709258 | AP15: =IFERROR(IF($W15=Lister!$G$33,IF($AL15<=AP$10,$AG15*$AH15,0),IF($AL15=AP$10,$AG15*$AH15,0)),0) -> 0.0325 | AQ15: =IFERROR(IF($W15=Lister!$G$33,IF($AL15<=AQ$10,$AG15*$AH15,0),IF($AL15=AQ$10,$AG15*$AH15,0)),0) -> 0.0325 | AR15: =IFERROR(IF($W15=Lister!$G$33,IF($AL15<=AR$10,$AG15*$AH15,0),IF($AL15=AR$10,$AG15*$AH15,0)),0) -> 0.0325 | AS15: 6608.709258 | AT15: 6608.709258 | AU15: 6608.709258 | AV15: 0 | AW15: 6608.709258 | AX15: =OFFSET('Andel ift. virkstørrelse'!M$9,$G15,0) -> 0.08602593126 | AY15: =OFFSET('Andel ift. virkstørrelse'!N$9,$G15,0) -> 0.2192838033 | AZ15: =OFFSET('Andel ift. virkstørrelse'!O$9,$G15,0)+OFFSET('Andel ift. virkstørrelse'!P$9,$G15,0) -> 0.550113192 | BA15: =OFFSET('Andel ift. virkstørrelse'!Q$9,$G15,0) -> 0.1445770735 | BB15: 568.5203683 | BC15: 1449.182901 | BD15: 3635.538145 | BE15: 955.4678439
D16: 6 | E16: =IF(COUNTIF(F16:$F$1997,$F16)>1,0,1) -> 1 | F16: =Teknologikatalog!D21 -> 7-3-1 | G16: =Teknologikatalog!E21 -> 7 | H16: =Teknologikatalog!F21 -> 3 | I16: =Teknologikatalog!G21 -> 3 | J16: =Teknologikatalog!I21 -> Tørring | K16: =Teknologikatalog!J21 -> NIR-måling | L16: =Teknologikatalog!K21 -> 0.05 | M16: =Teknologikatalog!L21 -> 0.1 | N16: =Teknologikatalog!M21 -> 0.15 | O16: =Teknologikatalog!N21 -> 0.25 | P16: =Teknologikatalog!O21 -> 0.3 | Q16: =Teknologikatalog!P21 -> 0.35 | R16: =Teknologikatalog!Q21 -> Slagterier | S16: =Teknologikatalog!R21 -> 2.5 | T16: =Teknologikatalog!S21 -> 7.5 | U16: =Teknologikatalog!T21 -> 0.2 | V16: =Teknologikatalog!U21 -> 0 | W16: =Teknologikatalog!V21 -> 2015-cases | X16: =Teknologikatalog!W21 -> 0 | Y16: =Teknologikatalog!X21 -> 0 | Z16: =VLOOKUP(R16,Lister!$D$114:$E$171,2,FALSE) -> Fødevarer mv. | AA16: =SUMIFS(Energiforbrug!$N$10:$N$27393,Energiforbrug!$D$10:$D$27393,$G16,Energiforbrug!$E$10:$E$27393,$H16) -> 626692.92 | AB16: =SUMIFS(Energiforbrug!$P$10:$P$27393,Energiforbrug!$D$10:$D$27393,$G16,Energiforbrug!$E$10:$E$27393,$H16) -> 62831136.25 | AC16: 100.2582513 | AD16: =SUMIFS('Energiforbrug tværgående'!$G$10:$G$180,'Energiforbrug tværgående'!$D$10:$D$180,$J16,'Energiforbrug tværgående'!$E$10:$E$180,$R16)+IF(R16="På tværs",SUMIFS('Energiforbrug tværgående'!$G$10:$G$180,'Energiforbrug tværgående'!$D$10:$D$180,$J16),0) -> 0 | AE16: 0 | AF16: =IF(AD16>0,SUMIFS(EnergiBranche!$G$10:$G$66,EnergiBranche!$D$10:$D$66,$R16),0) -> 0 | AG16: =CHOOSE(Lister!$E$96,L16,M16,N16) -> 0.1 | AH16: =CHOOSE(Lister!$E$102,O16,P16,Q16) -> 0.3 | AI16: =IFERROR(AH16*AG16*#REF!,0) -> 0 | AJ16: =CHOOSE(Lister!$E$108,Potentialer!S16,Potentialer!T16)/GJ_kWh -> 694.4444444 | AK16: 55.55555556 | AL16: 10.58904886 | AM16: 18800.7876 | AN16: =IFERROR(IF(W16=Lister!$G$33,IF(AL16<=ThresholdTilbagebetalingstid,1,0),IF(AL16=ThresholdTilbagebetalingstid,1,0)),0) -> 0 | AO16: 0 | AP16: =IFERROR(IF($W16=Lister!$G$33,IF($AL16<=AP$10,$AG16*$AH16,0),IF($AL16=AP$10,$AG16*$AH16,0)),0) -> 0 | AQ16: =IFERROR(IF($W16=Lister!$G$33,IF($AL16<=AQ$10,$AG16*$AH16,0),IF($AL16=AQ$10,$AG16*$AH16,0)),0) -> 0 | AR16: =IFERROR(IF($W16=Lister!$G$33,IF($AL16<=AR$10,$AG16*$AH16,0),IF($AL16=AR$10,$AG16*$AH16,0)),0) -> 0 | AS16: 0 | AT16: 0 | AU16: 0 | AV16: 0 | AW16: 18800.7876 | AX16: =OFFSET('Andel ift. virkstørrelse'!M$9,$G16,0) -> 0.02289092701 | AY16: =OFFSET('Andel ift. virkstørrelse'!N$9,$G16,0) -> 0.09292806791 | AZ16: =OFFSET('Andel ift. virkstørrelse'!O$9,$G16,0)+OFFSET('Andel ift. virkstørrelse'!P$9,$G16,0) -> 0.3166072917 | BA16: =OFFSET('Andel ift. virkstørrelse'!Q$9,$G16,0) -> 0.5675737133 | BB16: 430.3674566 | BC16: 1747.120867 | BD16: 5952.466445 | BE16: 10670.83283
D17: 7 | E17: =IF(COUNTIF(F17:$F$1997,$F17)>1,0,1) -> 1 | F17: =Teknologikatalog!D22 -> 8-3-1 | G17: =Teknologikatalog!E22 -> 8 | H17: =Teknologikatalog!F22 -> 3 | I17: =Teknologikatalog!G22 -> 3 | J17: =Teknologikatalog!I22 -> Tørring | K17: =Teknologikatalog!J22 -> NIR-måling | L17: =Teknologikatalog!K22 -> 0.05 | M17: =Teknologikatalog!L22 -> 0.1 | N17: =Teknologikatalog!M22 -> 0.15 | O17: =Teknologikatalog!N22 -> 0.25 | P17: =Teknologikatalog!O22 -> 0.3 | Q17: =Teknologikatalog!P22 -> 0.35 | R17: =Teknologikatalog!Q22 -> Fiskeindustri | S17: =Teknologikatalog!R22 -> 2.5 | T17: =Teknologikatalog!S22 -> 7.5 | U17: =Teknologikatalog!T22 -> 0.2 | V17: =Teknologikatalog!U22 -> 0 | W17: =Teknologikatalog!V22 -> 2015-cases | X17: =Teknologikatalog!W22 -> 0 | Y17: =Teknologikatalog!X22 -> 0 | Z17: =VLOOKUP(R17,Lister!$D$114:$E$171,2,FALSE) -> Fødevarer mv. | AA17: =SUMIFS(Energiforbrug!$N$10:$N$27393,Energiforbrug!$D$10:$D$27393,$G17,Energiforbrug!$E$10:$E$27393,$H17) -> 369585.7553 | AB17: =SUMIFS(Energiforbrug!$P$10:$P$27393,Energiforbrug!$D$10:$D$27393,$G17,Energiforbrug!$E$10:$E$27393,$H17) -> 31498171.05 | AC17: 85.22560894 | AD17: =SUMIFS('Energiforbrug tværgående'!$G$10:$G$180,'Energiforbrug tværgående'!$D$10:$D$180,$J17,'Energiforbrug tværgående'!$E$10:$E$180,$R17)+IF(R17="På tværs",SUMIFS('Energiforbrug tværgående'!$G$10:$G$180,'Energiforbrug tværgående'!$D$10:$D$180,$J17),0) -> 0 | AE17: 0 | AF17: =IF(AD17>0,SUMIFS(EnergiBranche!$G$10:$G$66,EnergiBranche!$D$10:$D$66,$R17),0) -> 0 | AG17: =CHOOSE(Lister!$E$96,L17,M17,N17) -> 0.1 | AH17: =CHOOSE(Lister!$E$102,O17,P17,Q17) -> 0.3 | AI17: =IFERROR(AH17*AG17*#REF!,0) -> 0 | AJ17: =CHOOSE(Lister!$E$108,Potentialer!S17,Potentialer!T17)/GJ_kWh -> 694.4444444 | AK17: 55.55555556 | AL17: 10.83746656 | AM17: 11087.57266 | AN17: =IFERROR(IF(W17=Lister!$G$33,IF(AL17<=ThresholdTilbagebetalingstid,1,0),IF(AL17=ThresholdTilbagebetalingstid,1,0)),0) -> 0 | AO17: 0 | AP17: =IFERROR(IF($W17=Lister!$G$33,IF($AL17<=AP$10,$AG17*$AH17,0),IF($AL17=AP$10,$AG17*$AH17,0)),0) -> 0 | AQ17: =IFERROR(IF($W17=Lister!$G$33,IF($AL17<=AQ$10,$AG17*$AH17,0),IF($AL17=AQ$10,$AG17*$AH17,0)),0) -> 0 | AR17: =IFERROR(IF($W17=Lister!$G$33,IF($AL17<=AR$10,$AG17*$AH17,0),IF($AL17=AR$10,$AG17*$AH17,0)),0) -> 0 | AS17: 0 | AT17: 0 | AU17: 0 | AV17: 0 | AW17: 11087.57266 | AX17: =OFFSET('Andel ift. virkstørrelse'!M$9,$G17,0) -> 0.04934306569 | AY17: =OFFSET('Andel ift. virkstørrelse'!N$9,$G17,0) -> 0.3731386861 | AZ17: =OFFSET('Andel ift. virkstørrelse'!O$9,$G17,0)+OFFSET('Andel ift. virkstørrelse'!P$9,$G17,0) -> 0.5775182482 | BA17: =OFFSET('Andel ift. virkstørrelse'!Q$9,$G17,0) -> 0 | BB17: 547.0948261 | BC17: 4137.202295 | BD17: 6403.275539 | BE17: 0
D18: 8 | E18: =IF(COUNTIF(F18:$F$1997,$F18)>1,0,1) -> 1 | F18: =Teknologikatalog!D23 -> 9-3-1 | G18: =Teknologikatalog!E23 -> 9 | H18: =Teknologikatalog!F23 -> 3 | I18: =Teknologikatalog!G23 -> 3 | J18: =Teknologikatalog!I23 -> Tørring | K18: =Teknologikatalog!J23 -> NIR-måling | L18: =Teknologikatalog!K23 -> 0.05 | M18: =Teknologikatalog!L23 -> 0.1 | N18: =Teknologikatalog!M23 -> 0.15 | O18: =Teknologikatalog!N23 -> 0.25 | P18: =Teknologikatalog!O23 -> 0.3 | Q18: =Teknologikatalog!P23 -> 0.35 | R18: =Teknologikatalog!Q23 -> Mejerier | S18: =Teknologikatalog!R23 -> 2.5 | T18: =Teknologikatalog!S23 -> 7.5 | U18: =Teknologikatalog!T23 -> 0.2 | V18: =Teknologikatalog!U23 -> 0 | W18: =Teknologikatalog!V23 -> 2015-cases | X18: =Teknologikatalog!W23 -> 0 | Y18: =Teknologikatalog!X23 -> 0 | Z18: =VLOOKUP(R18,Lister!$D$114:$E$171,2,FALSE) -> Fødevarer mv. | AA18: =SUMIFS(Energiforbrug!$N$10:$N$27393,Energiforbrug!$D$10:$D$27393,$G18,Energiforbrug!$E$10:$E$27393,$H18) -> 1078593.74 | AB18: =SUMIFS(Energiforbrug!$P$10:$P$27393,Energiforbrug!$D$10:$D$27393,$G18,Energiforbrug!$E$10:$E$27393,$H18) -> 108675392.9 | AC18: 100.7565582 | AD18: =SUMIFS('Energiforbrug tværgående'!$G$10:$G$180,'Energiforbrug tværgående'!$D$10:$D$180,$J18,'Energiforbrug tværgående'!$E$10:$E$180,$R18)+IF(R18="På tværs",SUMIFS('Energiforbrug tværgående'!$G$10:$G$180,'Energiforbrug tværgående'!$D$10:$D$180,$J18),0) -> 0 | AE18: 0 | AF18: =IF(AD18>0,SUMIFS(EnergiBranche!$G$10:$G$66,EnergiBranche!$D$10:$D$66,$R18),0) -> 0 | AG18: =CHOOSE(Lister!$E$96,L18,M18,N18) -> 0.1 | AH18: =CHOOSE(Lister!$E$102,O18,P18,Q18) -> 0.3 | AI18: =IFERROR(AH18*AG18*#REF!,0) -> 0 | AJ18: =CHOOSE(Lister!$E$108,Potentialer!S18,Potentialer!T18)/GJ_kWh -> 694.4444444 | AK18: 55.55555556 | AL18: 10.5810091 | AM18: 32357.81221 | AN18: =IFERROR(IF(W18=Lister!$G$33,IF(AL18<=ThresholdTilbagebetalingstid,1,0),IF(AL18=ThresholdTilbagebetalingstid,1,0)),0) -> 0 | AO18: 0 | AP18: =IFERROR(IF($W18=Lister!$G$33,IF($AL18<=AP$10,$AG18*$AH18,0),IF($AL18=AP$10,$AG18*$AH18,0)),0) -> 0 | AQ18: =IFERROR(IF($W18=Lister!$G$33,IF($AL18<=AQ$10,$AG18*$AH18,0),IF($AL18=AQ$10,$AG18*$AH18,0)),0) -> 0 | AR18: =IFERROR(IF($W18=Lister!$G$33,IF($AL18<=AR$10,$AG18*$AH18,0),IF($AL18=AR$10,$AG18*$AH18,0)),0) -> 0 | AS18: 0 | AT18: 0 | AU18: 0 | AV18: 0 | AW18: 32357.81221 | AX18: =OFFSET('Andel ift. virkstørrelse'!M$9,$G18,0) -> 0.01705346839 | AY18: =OFFSET('Andel ift. virkstørrelse'!N$9,$G18,0) -> 0.06552122067 | AZ18: =OFFSET('Andel ift. virkstørrelse'!O$9,$G18,0)+OFFSET('Andel ift. virkstørrelse'!P$9,$G18,0) -> 0.4376202077 | BA18: =OFFSET('Andel ift. virkstørrelse'!Q$9,$G18,0) -> 0.4798051032 | BB18: 551.8129279 | BC18: 2120.123354 | BD18: 14160.4325 | BE18: 15525.44343
D19: 9 | E19: =IF(COUNTIF(F19:$F$1997,$F19)>1,0,1) -> 1 | F19: =Teknologikatalog!D24 -> 10-3-1 | G19: =Teknologikatalog!E24 -> 10 | H19: =Teknologikatalog!F24 -> 3 | I19: =Teknologikatalog!G24 -> 3 | J19: =Teknologikatalog!I24 -> Tørring | K19: =Teknologikatalog!J24 -> NIR-måling | L19: =Teknologikatalog!K24 -> 0.05 | M19: =Teknologikatalog!L24 -> 0.1 | N19: =Teknologikatalog!M24 -> 0.15 | O19: =Teknologikatalog!N24 -> 0.25 | P19: =Teknologikatalog!O24 -> 0.3 | Q19: =Teknologikatalog!P24 -> 0.35 | R19: =Teknologikatalog!Q24 -> Bagerier, brødfabrikker mv. | S19: =Teknologikatalog!R24 -> 2.5 | T19: =Teknologikatalog!S24 -> 7.5 | U19: =Teknologikatalog!T24 -> 0.2 | V19: =Teknologikatalog!U24 -> 0 | W19: =Teknologikatalog!V24 -> 2015-cases | X19: =Teknologikatalog!W24 -> 0 | Y19: =Teknologikatalog!X24 -> 0 | Z19: =VLOOKUP(R19,Lister!$D$114:$E$171,2,FALSE) -> Fødevarer mv. | AA19: =SUMIFS(Energiforbrug!$N$10:$N$27393,Energiforbrug!$D$10:$D$27393,$G19,Energiforbrug!$E$10:$E$27393,$H19) -> 884921.19 | AB19: =SUMIFS(Energiforbrug!$P$10:$P$27393,Energiforbrug!$D$10:$D$27393,$G19,Energiforbrug!$E$10:$E$27393,$H19) -> 90375581.22 | AC19: 102.1283954 | AD19: =SUMIFS('Energiforbrug tværgående'!$G$10:$G$180,'Energiforbrug tværgående'!$D$10:$D$180,$J19,'Energiforbrug tværgående'!$E$10:$E$180,$R19)+IF(R19="På tværs",SUMIFS('Energiforbrug tværgående'!$G$10:$G$180,'Energiforbrug tværgående'!$D$10:$D$180,$J19),0) -> 0 | AE19: 0 | AF19: =IF(AD19>0,SUMIFS(EnergiBranche!$G$10:$G$66,EnergiBranche!$D$10:$D$66,$R19),0) -> 0 | AG19: =CHOOSE(Lister!$E$96,L19,M19,N19) -> 0.1 | AH19: =CHOOSE(Lister!$E$102,O19,P19,Q19) -> 0.3 | AI19: =IFERROR(AH19*AG19*#REF!,0) -> 0 | AJ19: =CHOOSE(Lister!$E$108,Potentialer!S19,Potentialer!T19)/GJ_kWh -> 694.4444444 | AK19: 55.55555556 | AL19: 10.55893858 | AM19: 26547.6357 | AN19: =IFERROR(IF(W19=Lister!$G$33,IF(AL19<=ThresholdTilbagebetalingstid,1,0),IF(AL19=ThresholdTilbagebetalingstid,1,0)),0) -> 0 | AO19: 0 | AP19: =IFERROR(IF($W19=Lister!$G$33,IF($AL19<=AP$10,$AG19*$AH19,0),IF($AL19=AP$10,$AG19*$AH19,0)),0) -> 0 | AQ19: =IFERROR(IF($W19=Lister!$G$33,IF($AL19<=AQ$10,$AG19*$AH19,0),IF($AL19=AQ$10,$AG19*$AH19,0)),0) -> 0 | AR19: =IFERROR(IF($W19=Lister!$G$33,IF($AL19<=AR$10,$AG19*$AH19,0),IF($AL19=AR$10,$AG19*$AH19,0)),0) -> 0 | AS19: 0 | AT19: 0 | AU19: 0 | AV19: 0 | AW19: 26547.6357 | AX19: =OFFSET('Andel ift. virkstørrelse'!M$9,$G19,0) -> 0.08964143426 | AY19: =OFFSET('Andel ift. virkstørrelse'!N$9,$G19,0) -> 0.6382057975 | AZ19: =OFFSET('Andel ift. virkstørrelse'!O$9,$G19,0)+OFFSET('Andel ift. virkstørrelse'!P$9,$G19,0) -> 0.2338920181 | BA19: =OFFSET('Andel ift. virkstørrelse'!Q$9,$G19,0) -> 0.0382607501 | BB19: 2379.76814 | BC19: 16942.85501 | BD19: 6209.280091 | BE19: 1015.732455
D20: 10 | E20: =IF(COUNTIF(F20:$F$1997,$F20)>1,0,1) -> 1 | F20: =Teknologikatalog!D25 -> 12-3-1 | G20: =Teknologikatalog!E25 -> 12 | H20: =Teknologikatalog!F25 -> 3 | I20: =Teknologikatalog!G25 -> 3 | J20: =Teknologikatalog!I25 -> Tørring | K20: =Teknologikatalog!J25 -> NIR-måling | L20: =Teknologikatalog!K25 -> 0.05 | M20: =Teknologikatalog!L25 -> 0.1 | N20: =Teknologikatalog!M25 -> 0.15 | O20: =Teknologikatalog!N25 -> 0.25 | P20: =Teknologikatalog!O25 -> 0.3 | Q20: =Teknologikatalog!P25 -> 0.35 | R20: =Teknologikatalog!Q25 -> Fremstilling af sukker | S20: =Teknologikatalog!R25 -> 2.5 | T20: =Teknologikatalog!S25 -> 7.5 | U20: =Teknologikatalog!T25 -> 0.2 | V20: =Teknologikatalog!U25 -> 0 | W20: =Teknologikatalog!V25 -> 2015-cases | X20: =Teknologikatalog!W25 -> 0 | Y20: =Teknologikatalog!X25 -> 0 | Z20: =VLOOKUP(R20,Lister!$D$114:$E$171,2,FALSE) -> Fødevarer mv. | AA20: =SUMIFS(Energiforbrug!$N$10:$N$27393,Energiforbrug!$D$10:$D$27393,$G20,Energiforbrug!$E$10:$E$27393,$H20) -> 559373.3774 | AB20: =SUMIFS(Energiforbrug!$P$10:$P$27393,Energiforbrug!$D$10:$D$27393,$G20,Energiforbrug!$E$10:$E$27393,$H20) -> 48301819.67 | AC20: 86.34987223 | AD20: =SUMIFS('Energiforbrug tværgående'!$G$10:$G$180,'Energiforbrug tværgående'!$D$10:$D$180,$J20,'Energiforbrug tværgående'!$E$10:$E$180,$R20)+IF(R20="På tværs",SUMIFS('Energiforbrug tværgående'!$G$10:$G$180,'Energiforbrug tværgående'!$D$10:$D$180,$J20),0) -> 0 | AE20: 0 | AF20: =IF(AD20>0,SUMIFS(EnergiBranche!$G$10:$G$66,EnergiBranche!$D$10:$D$66,$R20),0) -> 0 | AG20: =CHOOSE(Lister!$E$96,L20,M20,N20) -> 0.1 | AH20: =CHOOSE(Lister!$E$102,O20,P20,Q20) -> 0.3 | AI20: =IFERROR(AH20*AG20*#REF!,0) -> 0 | AJ20: =CHOOSE(Lister!$E$108,Potentialer!S20,Potentialer!T20)/GJ_kWh -> 694.4444444 | AK20: 55.55555556 | AL20: 10.81848532 | AM20: 16781.20132 | AN20: =IFERROR(IF(W20=Lister!$G$33,IF(AL20<=ThresholdTilbagebetalingstid,1,0),IF(AL20=ThresholdTilbagebetalingstid,1,0)),0) -> 0 | AO20: 0 | AP20: =IFERROR(IF($W20=Lister!$G$33,IF($AL20<=AP$10,$AG20*$AH20,0),IF($AL20=AP$10,$AG20*$AH20,0)),0) -> 0 | AQ20: =IFERROR(IF($W20=Lister!$G$33,IF($AL20<=AQ$10,$AG20*$AH20,0),IF($AL20=AQ$10,$AG20*$AH20,0)),0) -> 0 | AR20: =IFERROR(IF($W20=Lister!$G$33,IF($AL20<=AR$10,$AG20*$AH20,0),IF($AL20=AR$10,$AG20*$AH20,0)),0) -> 0 | AS20: 0 | AT20: 0 | AU20: 0 | AV20: 0 | AW20: 16781.20132 | AX20: =OFFSET('Andel ift. virkstørrelse'!M$9,$G20,0) -> 0.08964143426 | AY20: =OFFSET('Andel ift. virkstørrelse'!N$9,$G20,0) -> 0.6382057975 | AZ20: =OFFSET('Andel ift. virkstørrelse'!O$9,$G20,0)+OFFSET('Andel ift. virkstørrelse'!P$9,$G20,0) -> 0.2338920181 | BA20: =OFFSET('Andel ift. virkstørrelse'!Q$9,$G20,0) -> 0.0382607501 | BB20: 1504.290955 | BC20: 10709.85997 | BD20: 3924.989044 | BE20: 642.0613503
D21: 11 | E21: =IF(COUNTIF(F21:$F$1997,$F21)>1,0,1) -> 1 | F21: =Teknologikatalog!D26 -> 13-3-1 | G21: =Teknologikatalog!E26 -> 13 | H21: =Teknologikatalog!F26 -> 3 | I21: =Teknologikatalog!G26 -> 3 | J21: =Teknologikatalog!I26 -> Tørring | K21: =Teknologikatalog!J26 -> NIR-måling | L21: =Teknologikatalog!K26 -> 0.05 | M21: =Teknologikatalog!L26 -> 0.1 | N21: =Teknologikatalog!M26 -> 0.15 | O21: =Teknologikatalog!N26 -> 0.25 | P21: =Teknologikatalog!O26 -> 0.3 | Q21: =Teknologikatalog!P26 -> 0.35 | R21: =Teknologikatalog!Q26 -> Øvrig anden fødevareindustri | S21: =Teknologikatalog!R26 -> 2.5 | T21: =Teknologikatalog!S26 -> 7.5 | U21: =Teknologikatalog!T26 -> 0.2 | V21: =Teknologikatalog!U26 -> 0 | W21: =Teknologikatalog!V26 -> 2015-cases | X21: =Teknologikatalog!W26 -> 0 | Y21: =Teknologikatalog!X26 -> 0 | Z21: =VLOOKUP(R21,Lister!$D$114:$E$171,2,FALSE) -> Fødevarer mv. | AA21: =SUMIFS(Energiforbrug!$N$10:$N$27393,Energiforbrug!$D$10:$D$27393,$G21,Energiforbrug!$E$10:$E$27393,$H21) -> 203344.9002 | AB21: =SUMIFS(Energiforbrug!$P$10:$P$27393,Energiforbrug!$D$10:$D$27393,$G21,Energiforbrug!$E$10:$E$27393,$H21) -> 22778089.75 | AC21: 112.01702 | AD21: =SUMIFS('Energiforbrug tværgående'!$G$10:$G$180,'Energiforbrug tværgående'!$D$10:$D$180,$J21,'Energiforbrug tværgående'!$E$10:$E$180,$R21)+IF(R21="På tværs",SUMIFS('Energiforbrug tværgående'!$G$10:$G$180,'Energiforbrug tværgående'!$D$10:$D$180,$J21),0) -> 0 | AE21: 0 | AF21: =IF(AD21>0,SUMIFS(EnergiBranche!$G$10:$G$66,EnergiBranche!$D$10:$D$66,$R21),0) -> 0 | AG21: =CHOOSE(Lister!$E$96,L21,M21,N21) -> 0.1 | AH21: =CHOOSE(Lister!$E$102,O21,P21,Q21) -> 0.3 | AI21: =IFERROR(AH21*AG21*#REF!,0) -> 0 | AJ21: =CHOOSE(Lister!$E$108,Potentialer!S21,Potentialer!T21)/GJ_kWh -> 694.4444444 | AK21: 55.55555556 | AL21: 10.40253105 | AM21: 6100.347007 | AN21: =IFERROR(IF(W21=Lister!$G$33,IF(AL21<=ThresholdTilbagebetalingstid,1,0),IF(AL21=ThresholdTilbagebetalingstid,1,0)),0) -> 0 | AO21: 0 | AP21: =IFERROR(IF($W21=Lister!$G$33,IF($AL21<=AP$10,$AG21*$AH21,0),IF($AL21=AP$10,$AG21*$AH21,0)),0) -> 0 | AQ21: =IFERROR(IF($W21=Lister!$G$33,IF($AL21<=AQ$10,$AG21*$AH21,0),IF($AL21=AQ$10,$AG21*$AH21,0)),0) -> 0 | AR21: =IFERROR(IF($W21=Lister!$G$33,IF($AL21<=AR$10,$AG21*$AH21,0),IF($AL21=AR$10,$AG21*$AH21,0)),0) -> 0 | AS21: 0 | AT21: 0 | AU21: 0 | AV21: 0 | AW21: 6100.347007 | AX21: =OFFSET('Andel ift. virkstørrelse'!M$9,$G21,0) -> 0.08602593126 | AY21: =OFFSET('Andel ift. virkstørrelse'!N$9,$G21,0) -> 0.2192838033 | AZ21: =OFFSET('Andel ift. virkstørrelse'!O$9,$G21,0)+OFFSET('Andel ift. virkstørrelse'!P$9,$G21,0) -> 0.550113192 | BA21: =OFFSET('Andel ift. virkstørrelse'!Q$9,$G21,0) -> 0.1445770735 | BB21: 524.7880323 | BC21: 1337.707293 | BD21: 3355.881364 | BE21: 881.9703174
D22: 12 | E22: =IF(COUNTIF(F22:$F$1997,$F22)>1,0,1) -> 1 | F22: =Teknologikatalog!D27 -> 14-3-1 | G22: =Teknologikatalog!E27 -> 14 | H22: =Teknologikatalog!F27 -> 3 | I22: =Teknologikatalog!G27 -> 3 | J22: =Teknologikatalog!I27 -> Tørring | K22: =Teknologikatalog!J27 -> NIR-måling | L22: =Teknologikatalog!K27 -> 0.05 | M22: =Teknologikatalog!L27 -> 0.1 | N22: =Teknologikatalog!M27 -> 0.15 | O22: =Teknologikatalog!N27 -> 0.25 | P22: =Teknologikatalog!O27 -> 0.3 | Q22: =Teknologikatalog!P27 -> 0.35 | R22: =Teknologikatalog!Q27 -> Drikkevareindustri | S22: =Teknologikatalog!R27 -> 2.5 | T22: =Teknologikatalog!S27 -> 7.5 | U22: =Teknologikatalog!T27 -> 0.2 | V22: =Teknologikatalog!U27 -> 0 | W22: =Teknologikatalog!V27 -> 2015-cases | X22: =Teknologikatalog!W27 -> 0 | Y22: =Teknologikatalog!X27 -> 0 | Z22: =VLOOKUP(R22,Lister!$D$114:$E$171,2,FALSE) -> Fødevarer mv. | AA22: =SUMIFS(Energiforbrug!$N$10:$N$27393,Energiforbrug!$D$10:$D$27393,$G22,Energiforbrug!$E$10:$E$27393,$H22) -> 283118.3 | AB22: =SUMIFS(Energiforbrug!$P$10:$P$27393,Energiforbrug!$D$10:$D$27393,$G22,Energiforbrug!$E$10:$E$27393,$H22) -> 25665055.29 | AC22: 90.65134712 | AD22: =SUMIFS('Energiforbrug tværgående'!$G$10:$G$180,'Energiforbrug tværgående'!$D$10:$D$180,$J22,'Energiforbrug tværgående'!$E$10:$E$180,$R22)+IF(R22="På tværs",SUMIFS('Energiforbrug tværgående'!$G$10:$G$180,'Energiforbrug tværgående'!$D$10:$D$180,$J22),0) -> 0 | AE22: 0 | AF22: =IF(AD22>0,SUMIFS(EnergiBranche!$G$10:$G$66,EnergiBranche!$D$10:$D$66,$R22),0) -> 0 | AG22: =CHOOSE(Lister!$E$96,L22,M22,N22) -> 0.1 | AH22: =CHOOSE(Lister!$E$102,O22,P22,Q22) -> 0.3 | AI22: =IFERROR(AH22*AG22*#REF!,0) -> 0 | AJ22: =CHOOSE(Lister!$E$108,Potentialer!S22,Potentialer!T22)/GJ_kWh -> 694.4444444 | AK22: 55.55555556 | AL22: 10.74647209 | AM22: 8493.549 | AN22: =IFERROR(IF(W22=Lister!$G$33,IF(AL22<=ThresholdTilbagebetalingstid,1,0),IF(AL22=ThresholdTilbagebetalingstid,1,0)),0) -> 0 | AO22: 0 | AP22: =IFERROR(IF($W22=Lister!$G$33,IF($AL22<=AP$10,$AG22*$AH22,0),IF($AL22=AP$10,$AG22*$AH22,0)),0) -> 0 | AQ22: =IFERROR(IF($W22=Lister!$G$33,IF($AL22<=AQ$10,$AG22*$AH22,0),IF($AL22=AQ$10,$AG22*$AH22,0)),0) -> 0 | AR22: =IFERROR(IF($W22=Lister!$G$33,IF($AL22<=AR$10,$AG22*$AH22,0),IF($AL22=AR$10,$AG22*$AH22,0)),0) -> 0 | AS22: 0 | AT22: 0 | AU22: 0 | AV22: 0 | AW22: 8493.549 | AX22: =OFFSET('Andel ift. virkstørrelse'!M$9,$G22,0) -> 0.05230244457 | AY22: =OFFSET('Andel ift. virkstørrelse'!N$9,$G22,0) -> 0.1688459352 | AZ22: =OFFSET('Andel ift. virkstørrelse'!O$9,$G22,0)+OFFSET('Andel ift. virkstørrelse'!P$9,$G22,0) -> 0.3501989767 | BA22: =OFFSET('Andel ift. virkstørrelse'!Q$9,$G22,0) -> 0.4286526435 | BB22: 444.2333758 | BC22: 1434.101224 | BD22: 2974.432168 | BE22: 3640.782232
D23: 13 | E23: =IF(COUNTIF(F23:$F$1997,$F23)>1,0,1) -> 1 | F23: =Teknologikatalog!D28 -> 15-3-1 | G23: =Teknologikatalog!E28 -> 15 | H23: =Teknologikatalog!F28 -> 3 | I23: =Teknologikatalog!G28 -> 3 | J23: =Teknologikatalog!I28 -> Tørring | K23: =Teknologikatalog!J28 -> NIR-måling | L23: =Teknologikatalog!K28 -> 0.05 | M23: =Teknologikatalog!L28 -> 0.1 | N23: =Teknologikatalog!M28 -> 0.15 | O23: =Teknologikatalog!N28 -> 0.25 | P23: =Teknologikatalog!O28 -> 0.3 | Q23: =Teknologikatalog!P28 -> 0.35 | R23: =Teknologikatalog!Q28 -> Tobaksindustri | S23: =Teknologikatalog!R28 -> 2.5 | T23: =Teknologikatalog!S28 -> 7.5 | U23: =Teknologikatalog!T28 -> 0.2 | V23: =Teknologikatalog!U28 -> 0 | W23: =Teknologikatalog!V28 -> 2015-cases | X23: =Teknologikatalog!W28 -> 0 | Y23: =Teknologikatalog!X28 -> 0 | Z23: =VLOOKUP(R23,Lister!$D$114:$E$171,2,FALSE) -> Fødevarer mv. | AA23: =SUMIFS(Energiforbrug!$N$10:$N$27393,Energiforbrug!$D$10:$D$27393,$G23,Energiforbrug!$E$10:$E$27393,$H23) -> 9214.8 | AB23: =SUMIFS(Energiforbrug!$P$10:$P$27393,Energiforbrug!$D$10:$D$27393,$G23,Energiforbrug!$E$10:$E$27393,$H23) -> 1197777.272 | AC23: 129.984077 | AD23: =SUMIFS('Energiforbrug tværgående'!$G$10:$G$180,'Energiforbrug tværgående'!$D$10:$D$180,$J23,'Energiforbrug tværgående'!$E$10:$E$180,$R23)+IF(R23="På tværs",SUMIFS('Energiforbrug tværgående'!$G$10:$G$180,'Energiforbrug tværgående'!$D$10:$D$180,$J23),0) -> 0 | AE23: 0 | AF23: =IF(AD23>0,SUMIFS(EnergiBranche!$G$10:$G$66,EnergiBranche!$D$10:$D$66,$R23),0) -> 0 | AG23: =CHOOSE(Lister!$E$96,L23,M23,N23) -> 0.1 | AH23: =CHOOSE(Lister!$E$102,O23,P23,Q23) -> 0.3 | AI23: =IFERROR(AH23*AG23*#REF!,0) -> 0 | AJ23: =CHOOSE(Lister!$E$108,Potentialer!S23,Potentialer!T23)/GJ_kWh -> 694.4444444 | AK23: 55.55555556 | AL23: 10.12989493 | AM23: 276.444 | AN23: =IFERROR(IF(W23=Lister!$G$33,IF(AL23<=ThresholdTilbagebetalingstid,1,0),IF(AL23=ThresholdTilbagebetalingstid,1,0)),0) -> 0 | AO23: 0 | AP23: =IFERROR(IF($W23=Lister!$G$33,IF($AL23<=AP$10,$AG23*$AH23,0),IF($AL23=AP$10,$AG23*$AH23,0)),0) -> 0 | AQ23: =IFERROR(IF($W23=Lister!$G$33,IF($AL23<=AQ$10,$AG23*$AH23,0),IF($AL23=AQ$10,$AG23*$AH23,0)),0) -> 0 | AR23: =IFERROR(IF($W23=Lister!$G$33,IF($AL23<=AR$10,$AG23*$AH23,0),IF($AL23=AR$10,$AG23*$AH23,0)),0) -> 0 | AS23: 0 | AT23: 0 | AU23: 0 | AV23: 0 | AW23: 276.444 | AX23: =OFFSET('Andel ift. virkstørrelse'!M$9,$G23,0) -> 0.008547008547 | AY23: =OFFSET('Andel ift. virkstørrelse'!N$9,$G23,0) -> 0.0641025641 | AZ23: =OFFSET('Andel ift. virkstørrelse'!O$9,$G23,0)+OFFSET('Andel ift. virkstørrelse'!P$9,$G23,0) -> 0.9273504274 | BA23: =OFFSET('Andel ift. virkstørrelse'!Q$9,$G23,0) -> 0 | BB23: 2.362769231 | BC23: 17.72076923 | BD23: 256.3604615 | BE23: 0
D24: 14 | E24: =IF(COUNTIF(F24:$F$1997,$F24)>1,0,1) -> 1 | F24: =Teknologikatalog!D29 -> 1-3-1 | G24: =Teknologikatalog!E29 -> 1 | H24: =Teknologikatalog!F29 -> 3 | I24: =Teknologikatalog!G29 -> 3 | J24: =Teknologikatalog!I29 -> Tørring | K24: =Teknologikatalog!J29 -> NIR-måling | L24: =Teknologikatalog!K29 -> 0.05 | M24: =Teknologikatalog!L29 -> 0.1 | N24: =Teknologikatalog!M29 -> 0.15 | O24: =Teknologikatalog!N29 -> 0.05 | P24: =Teknologikatalog!O29 -> 0.1 | Q24: =Teknologikatalog!P29 -> 0.15 | R24: =Teknologikatalog!Q29 -> Landbrug | S24: =Teknologikatalog!R29 -> 2.5 | T24: =Teknologikatalog!S29 -> 7.5 | U24: =Teknologikatalog!T29 -> 0.2 | V24: =Teknologikatalog!U29 -> 0 | W24: =Teknologikatalog!V29 -> 2015-cases | X24: =Teknologikatalog!W29 -> 0 | Y24: =Teknologikatalog!X29 -> 0 | Z24: =VLOOKUP(R24,Lister!$D$114:$E$171,2,FALSE) -> Landbrug mv. | AA24: =SUMIFS(Energiforbrug!$N$10:$N$27393,Energiforbrug!$D$10:$D$27393,$G24,Energiforbrug!$E$10:$E$27393,$H24) -> 267542.9929 | AB24: =SUMIFS(Energiforbrug!$P$10:$P$27393,Energiforbrug!$D$10:$D$27393,$G24,Energiforbrug!$E$10:$E$27393,$H24) -> 40391487.16 | AC24: 150.9719493 | AD24: =SUMIFS('Energiforbrug tværgående'!$G$10:$G$180,'Energiforbrug tværgående'!$D$10:$D$180,$J24,'Energiforbrug tværgående'!$E$10:$E$180,$R24)+IF(R24="På tværs",SUMIFS('Energiforbrug tværgående'!$G$10:$G$180,'Energiforbrug tværgående'!$D$10:$D$180,$J24),0) -> 0 | AE24: 0 | AF24: =IF(AD24>0,SUMIFS(EnergiBranche!$G$10:$G$66,EnergiBranche!$D$10:$D$66,$R24),0) -> 0 | AG24: =CHOOSE(Lister!$E$96,L24,M24,N24) -> 0.1 | AH24: =CHOOSE(Lister!$E$102,O24,P24,Q24) -> 0.1 | AI24: =IFERROR(AH24*AG24*#REF!,0) -> 0 | AJ24: =CHOOSE(Lister!$E$108,Potentialer!S24,Potentialer!T24)/GJ_kWh -> 694.4444444 | AK24: 55.55555556 | AL24: 9.828979617 | AM24: 2675.429929 | AN24: =IFERROR(IF(W24=Lister!$G$33,IF(AL24<=ThresholdTilbagebetalingstid,1,0),IF(AL24=ThresholdTilbagebetalingstid,1,0)),0) -> 1 | AO24: 2675.429929 | AP24: =IFERROR(IF($W24=Lister!$G$33,IF($AL24<=AP$10,$AG24*$AH24,0),IF($AL24=AP$10,$AG24*$AH24,0)),0) -> 0 | AQ24: =IFERROR(IF($W24=Lister!$G$33,IF($AL24<=AQ$10,$AG24*$AH24,0),IF($AL24=AQ$10,$AG24*$AH24,0)),0) -> 0 | AR24: =IFERROR(IF($W24=Lister!$G$33,IF($AL24<=AR$10,$AG24*$AH24,0),IF($AL24=AR$10,$AG24*$AH24,0)),0) -> 0.01 | AS24: 0 | AT24: 0 | AU24: 2675.429929 | AV24: 0 | AW24: 2675.429929 | AX24: =OFFSET('Andel ift. virkstørrelse'!M$9,$G24,0) -> 0.8183590006 | AY24: =OFFSET('Andel ift. virkstørrelse'!N$9,$G24,0) -> 0.1573263467 | AZ24: =OFFSET('Andel ift. virkstørrelse'!O$9,$G24,0)+OFFSET('Andel ift. virkstørrelse'!P$9,$G24,0) -> 0.02431465269 | BA24: =OFFSET('Andel ift. virkstørrelse'!Q$9,$G24,0) -> 0 | BB24: 2189.462163 | BC24: 420.9156166 | BD24: 65.05214952 | BE24: 0
D25: 15 | E25: =IF(COUNTIF(F25:$F$1997,$F25)>1,0,1) -> 1 | F25: =Teknologikatalog!D30 -> 2-3-1 | G25: =Teknologikatalog!E30 -> 2 | H25: =Teknologikatalog!F30 -> 3 | I25: =Teknologikatalog!G30 -> 3 | J25: =Teknologikatalog!I30 -> Tørring | K25: =Teknologikatalog!J30 -> NIR-måling | L25: =Teknologikatalog!K30 -> 0.05 | M25: =Teknologikatalog!L30 -> 0.1 | N25: =Teknologikatalog!M30 -> 0.15 | O25: =Teknologikatalog!N30 -> 0.05 | P25: =Teknologikatalog!O30 -> 0.1 | Q25: =Teknologikatalog!P30 -> 0.15 | R25: =Teknologikatalog!Q30 -> Gartneri | S25: =Teknologikatalog!R30 -> 2.5 | T25: =Teknologikatalog!S30 -> 7.5 | U25: =Teknologikatalog!T30 -> 0.2 | V25: =Teknologikatalog!U30 -> 0 | W25: =Teknologikatalog!V30 -> 2015-cases | X25: =Teknologikatalog!W30 -> 0 | Y25: =Teknologikatalog!X30 -> 0 | Z25: =VLOOKUP(R25,Lister!$D$114:$E$171,2,FALSE) -> Landbrug mv. | AA25: =SUMIFS(Energiforbrug!$N$10:$N$27393,Energiforbrug!$D$10:$D$27393,$G25,Energiforbrug!$E$10:$E$27393,$H25) -> 0 | AB25: =SUMIFS(Energiforbrug!$P$10:$P$27393,Energiforbrug!$D$10:$D$27393,$G25,Energiforbrug!$E$10:$E$27393,$H25) -> 0 | AC25: 0 | AD25: =SUMIFS('Energiforbrug tværgående'!$G$10:$G$180,'Energiforbrug tværgående'!$D$10:$D$180,$J25,'Energiforbrug tværgående'!$E$10:$E$180,$R25)+IF(R25="På tværs",SUMIFS('Energiforbrug tværgående'!$G$10:$G$180,'Energiforbrug tværgående'!$D$10:$D$180,$J25),0) -> 0 | AE25: 0 | AF25: =IF(AD25>0,SUMIFS(EnergiBranche!$G$10:$G$66,EnergiBranche!$D$10:$D$66,$R25),0) -> 0 | AG25: =CHOOSE(Lister!$E$96,L25,M25,N25) -> 0.1 | AH25: =CHOOSE(Lister!$E$102,O25,P25,Q25) -> 0.1 | AI25: =IFERROR(AH25*AG25*#REF!,0) -> 0 | AJ25: =CHOOSE(Lister!$E$108,Potentialer!S25,Potentialer!T25)/GJ_kWh -> 694.4444444 | AK25: 55.55555556 | AL25: 0 | AM25: 0 | AN25: =IFERROR(IF(W25=Lister!$G$33,IF(AL25<=ThresholdTilbagebetalingstid,1,0),IF(AL25=ThresholdTilbagebetalingstid,1,0)),0) -> 1 | AO25: 0 | AP25: =IFERROR(IF($W25=Lister!$G$33,IF($AL25<=AP$10,$AG25*$AH25,0),IF($AL25=AP$10,$AG25*$AH25,0)),0) -> 0.01 | AQ25: =IFERROR(IF($W25=Lister!$G$33,IF($AL25<=AQ$10,$AG25*$AH25,0),IF($AL25=AQ$10,$AG25*$AH25,0)),0) -> 0.01 | AR25: =IFERROR(IF($W25=Lister!$G$33,IF($AL25<=AR$10,$AG25*$AH25,0),IF($AL25=AR$10,$AG25*$AH25,0)),0) -> 0.01 | AS25: 0 | AT25: 0 | AU25: 0 | AV25: 0 | AW25: 0 | AX25: =OFFSET('Andel ift. virkstørrelse'!M$9,$G25,0) -> 0.8183590006 | AY25: =OFFSET('Andel ift. virkstørrelse'!N$9,$G25,0) -> 0.1573263467 | AZ25: =OFFSET('Andel ift. virkstørrelse'!O$9,$G25,0)+OFFSET('Andel ift. virkstørrelse'!P$9,$G25,0) -> 0.02431465269 | BA25: =OFFSET('Andel ift. virkstørrelse'!Q$9,$G25,0) -> 0 | BB25: 0 | BC25: 0 | BD25: 0 | BE25: 0
D26: 16 | E26: =IF(COUNTIF(F26:$F$1997,$F26)>1,0,1) -> 1 | F26: =Teknologikatalog!D31 -> 3-3-1 | G26: =Teknologikatalog!E31 -> 3 | H26: =Teknologikatalog!F31 -> 3 | I26: =Teknologikatalog!G31 -> 3 | J26: =Teknologikatalog!I31 -> Tørring | K26: =Teknologikatalog!J31 -> NIR-måling | L26: =Teknologikatalog!K31 -> 0.05 | M26: =Teknologikatalog!L31 -> 0.1 | N26: =Teknologikatalog!M31 -> 0.15 | O26: =Teknologikatalog!N31 -> 0.05 | P26: =Teknologikatalog!O31 -> 0.1 | Q26: =Teknologikatalog!P31 -> 0.15 | R26: =Teknologikatalog!Q31 -> Maskinstationer | S26: =Teknologikatalog!R31 -> 2.5 | T26: =Teknologikatalog!S31 -> 7.5 | U26: =Teknologikatalog!T31 -> 0.2 | V26: =Teknologikatalog!U31 -> 0 | W26: =Teknologikatalog!V31 -> 2015-cases | X26: =Teknologikatalog!W31 -> 0 | Y26: =Teknologikatalog!X31 -> 0 | Z26: =VLOOKUP(R26,Lister!$D$114:$E$171,2,FALSE) -> Landbrug mv. | AA26: =SUMIFS(Energiforbrug!$N$10:$N$27393,Energiforbrug!$D$10:$D$27393,$G26,Energiforbrug!$E$10:$E$27393,$H26) -> 0 | AB26: =SUMIFS(Energiforbrug!$P$10:$P$27393,Energiforbrug!$D$10:$D$27393,$G26,Energiforbrug!$E$10:$E$27393,$H26) -> 0 | AC26: 0 | AD26: =SUMIFS('Energiforbrug tværgående'!$G$10:$G$180,'Energiforbrug tværgående'!$D$10:$D$180,$J26,'Energiforbrug tværgående'!$E$10:$E$180,$R26)+IF(R26="På tværs",SUMIFS('Energiforbrug tværgående'!$G$10:$G$180,'Energiforbrug tværgående'!$D$10:$D$180,$J26),0) -> 0 | AE26: 0 | AF26: =IF(AD26>0,SUMIFS(EnergiBranche!$G$10:$G$66,EnergiBranche!$D$10:$D$66,$R26),0) -> 0 | AG26: =CHOOSE(Lister!$E$96,L26,M26,N26) -> 0.1 | AH26: =CHOOSE(Lister!$E$102,O26,P26,Q26) -> 0.1 | AI26: =IFERROR(AH26*AG26*#REF!,0) -> 0 | AJ26: =CHOOSE(Lister!$E$108,Potentialer!S26,Potentialer!T26)/GJ_kWh -> 694.4444444 | AK26: 55.55555556 | AL26: 0 | AM26: 0 | AN26: =IFERROR(IF(W26=Lister!$G$33,IF(AL26<=ThresholdTilbagebetalingstid,1,0),IF(AL26=ThresholdTilbagebetalingstid,1,0)),0) -> 1 | AO26: 0 | AP26: =IFERROR(IF($W26=Lister!$G$33,IF($AL26<=AP$10,$AG26*$AH26,0),IF($AL26=AP$10,$AG26*$AH26,0)),0) -> 0.01 | AQ26: =IFERROR(IF($W26=Lister!$G$33,IF($AL26<=AQ$10,$AG26*$AH26,0),IF($AL26=AQ$10,$AG26*$AH26,0)),0) -> 0.01 | AR26: =IFERROR(IF($W26=Lister!$G$33,IF($AL26<=AR$10,$AG26*$AH26,0),IF($AL26=AR$10,$AG26*$AH26,0)),0) -> 0.01 | AS26: 0 | AT26: 0 | AU26: 0 | AV26: 0 | AW26: 0 | AX26: =OFFSET('Andel ift. virkstørrelse'!M$9,$G26,0) -> 0.8183590006 | AY26: =OFFSET('Andel ift. virkstørrelse'!N$9,$G26,0) -> 0.1573263467 | AZ26: =OFFSET('Andel ift. virkstørrelse'!O$9,$G26,0)+OFFSET('Andel ift. virkstørrelse'!P$9,$G26,0) -> 0.02431465269 | BA26: =OFFSET('Andel ift. virkstørrelse'!Q$9,$G26,0) -> 0 | BB26: 0 | BC26: 0 | BD26: 0 | BE26: 0
D27: 17 | E27: =IF(COUNTIF(F27:$F$1997,$F27)>1,0,1) -> 1 | F27: =Teknologikatalog!D32 -> 4-3-1 | G27: =Teknologikatalog!E32 -> 4 | H27: =Teknologikatalog!F32 -> 3 | I27: =Teknologikatalog!G32 -> 3 | J27: =Teknologikatalog!I32 -> Tørring | K27: =Teknologikatalog!J32 -> NIR-måling | L27: =Teknologikatalog!K32 -> 0.05 | M27: =Teknologikatalog!L32 -> 0.1 | N27: =Teknologikatalog!M32 -> 0.15 | O27: =Teknologikatalog!N32 -> 0.05 | P27: =Teknologikatalog!O32 -> 0.1 | Q27: =Teknologikatalog!P32 -> 0.15 | R27: =Teknologikatalog!Q32 -> Skovbrug | S27: =Teknologikatalog!R32 -> 2.5 | T27: =Teknologikatalog!S32 -> 7.5 | U27: =Teknologikatalog!T32 -> 0.2 | V27: =Teknologikatalog!U32 -> 0 | W27: =Teknologikatalog!V32 -> 2015-cases | X27: =Teknologikatalog!W32 -> 0 | Y27: =Teknologikatalog!X32 -> 0 | Z27: =VLOOKUP(R27,Lister!$D$114:$E$171,2,FALSE) -> Landbrug mv. | AA27: =SUMIFS(Energiforbrug!$N$10:$N$27393,Energiforbrug!$D$10:$D$27393,$G27,Energiforbrug!$E$10:$E$27393,$H27) -> 0 | AB27: =SUMIFS(Energiforbrug!$P$10:$P$27393,Energiforbrug!$D$10:$D$27393,$G27,Energiforbrug!$E$10:$E$27393,$H27) -> 0 | AC27: 0 | AD27: =SUMIFS('Energiforbrug tværgående'!$G$10:$G$180,'Energiforbrug tværgående'!$D$10:$D$180,$J27,'Energiforbrug tværgående'!$E$10:$E$180,$R27)+IF(R27="På tværs",SUMIFS('Energiforbrug tværgående'!$G$10:$G$180,'Energiforbrug tværgående'!$D$10:$D$180,$J27),0) -> 0 | AE27: 0 | AF27: =IF(AD27>0,SUMIFS(EnergiBranche!$G$10:$G$66,EnergiBranche!$D$10:$D$66,$R27),0) -> 0 | AG27: =CHOOSE(Lister!$E$96,L27,M27,N27) -> 0.1 | AH27: =CHOOSE(Lister!$E$102,O27,P27,Q27) -> 0.1 | AI27: =IFERROR(AH27*AG27*#REF!,0) -> 0 | AJ27: =CHOOSE(Lister!$E$108,Potentialer!S27,Potentialer!T27)/GJ_kWh -> 694.4444444 | AK27: 55.55555556 | AL27: 0 | AM27: 0 | AN27: =IFERROR(IF(W27=Lister!$G$33,IF(AL27<=ThresholdTilbagebetalingstid,1,0),IF(AL27=ThresholdTilbagebetalingstid,1,0)),0) -> 1 | AO27: 0 | AP27: =IFERROR(IF($W27=Lister!$G$33,IF($AL27<=AP$10,$AG27*$AH27,0),IF($AL27=AP$10,$AG27*$AH27,0)),0) -> 0.01 | AQ27: =IFERROR(IF($W27=Lister!$G$33,IF($AL27<=AQ$10,$AG27*$AH27,0),IF($AL27=AQ$10,$AG27*$AH27,0)),0) -> 0.01 | AR27: =IFERROR(IF($W27=Lister!$G$33,IF($AL27<=AR$10,$AG27*$AH27,0),IF($AL27=AR$10,$AG27*$AH27,0)),0) -> 0.01 | AS27: 0 | AT27: 0 | AU27: 0 | AV27: 0 | AW27: 0 | AX27: =OFFSET('Andel ift. virkstørrelse'!M$9,$G27,0) -> 0.5566702241 | AY27: =OFFSET('Andel ift. virkstørrelse'!N$9,$G27,0) -> 0.2960512273 | AZ27: =OFFSET('Andel ift. virkstørrelse'!O$9,$G27,0)+OFFSET('Andel ift. virkstørrelse'!P$9,$G27,0) -> 0.1472785486 | BA27: =OFFSET('Andel ift. virkstørrelse'!Q$9,$G27,0) -> 0 | BB27: 0 | BC27: 0 | BD27: 0 | BE27: 0
D28: 18 | E28: =IF(COUNTIF(F28:$F$1997,$F28)>1,0,1) -> 1 | F28: =Teknologikatalog!D33 -> 5-3-1 | G28: =Teknologikatalog!E33 -> 5 | H28: =Teknologikatalog!F33 -> 3 | I28: =Teknologikatalog!G33 -> 3 | J28: =Teknologikatalog!I33 -> Tørring | K28: =Teknologikatalog!J33 -> NIR-måling | L28: =Teknologikatalog!K33 -> 0.05 | M28: =Teknologikatalog!L33 -> 0.1 | N28: =Teknologikatalog!M33 -> 0.15 | O28: =Teknologikatalog!N33 -> 0.05 | P28: =Teknologikatalog!O33 -> 0.1 | Q28: =Teknologikatalog!P33 -> 0.15 | R28: =Teknologikatalog!Q33 -> Fiskeri | S28: =Teknologikatalog!R33 -> 2.5 | T28: =Teknologikatalog!S33 -> 7.5 | U28: =Teknologikatalog!T33 -> 0.2 | V28: =Teknologikatalog!U33 -> 0 | W28: =Teknologikatalog!V33 -> 2015-cases | X28: =Teknologikatalog!W33 -> 0 | Y28: =Teknologikatalog!X33 -> 0 | Z28: =VLOOKUP(R28,Lister!$D$114:$E$171,2,FALSE) -> Landbrug mv. | AA28: =SUMIFS(Energiforbrug!$N$10:$N$27393,Energiforbrug!$D$10:$D$27393,$G28,Energiforbrug!$E$10:$E$27393,$H28) -> 0 | AB28: =SUMIFS(Energiforbrug!$P$10:$P$27393,Energiforbrug!$D$10:$D$27393,$G28,Energiforbrug!$E$10:$E$27393,$H28) -> 0 | AC28: 0 | AD28: =SUMIFS('Energiforbrug tværgående'!$G$10:$G$180,'Energiforbrug tværgående'!$D$10:$D$180,$J28,'Energiforbrug tværgående'!$E$10:$E$180,$R28)+IF(R28="På tværs",SUMIFS('Energiforbrug tværgående'!$G$10:$G$180,'Energiforbrug tværgående'!$D$10:$D$180,$J28),0) -> 0 | AE28: 0 | AF28: =IF(AD28>0,SUMIFS(EnergiBranche!$G$10:$G$66,EnergiBranche!$D$10:$D$66,$R28),0) -> 0 | AG28: =CHOOSE(Lister!$E$96,L28,M28,N28) -> 0.1 | AH28: =CHOOSE(Lister!$E$102,O28,P28,Q28) -> 0.1 | AI28: =IFERROR(AH28*AG28*#REF!,0) -> 0 | AJ28: =CHOOSE(Lister!$E$108,Potentialer!S28,Potentialer!T28)/GJ_kWh -> 694.4444444 | AK28: 55.55555556 | AL28: 0 | AM28: 0 | AN28: =IFERROR(IF(W28=Lister!$G$33,IF(AL28<=ThresholdTilbagebetalingstid,1,0),IF(AL28=ThresholdTilbagebetalingstid,1,0)),0) -> 1 | AO28: 0 | AP28: =IFERROR(IF($W28=Lister!$G$33,IF($AL28<=AP$10,$AG28*$AH28,0),IF($AL28=AP$10,$AG28*$AH28,0)),0) -> 0.01 | AQ28: =IFERROR(IF($W28=Lister!$G$33,IF($AL28<=AQ$10,$AG28*$AH28,0),IF($AL28=AQ$10,$AG28*$AH28,0)),0) -> 0.01 | AR28: =IFERROR(IF($W28=Lister!$G$33,IF($AL28<=AR$10,$AG28*$AH28,0),IF($AL28=AR$10,$AG28*$AH28,0)),0) -> 0.01 | AS28: 0 | AT28: 0 | AU28: 0 | AV28: 0 | AW28: 0 | AX28: =OFFSET('Andel ift. virkstørrelse'!M$9,$G28,0) -> 0.9071294559 | AY28: =OFFSET('Andel ift. virkstørrelse'!N$9,$G28,0) -> 0.09287054409 | AZ28: =OFFSET('Andel ift. virkstørrelse'!O$9,$G28,0)+OFFSET('Andel ift. virkstørrelse'!P$9,$G28,0) -> 0 | BA28: =OFFSET('Andel ift. virkstørrelse'!Q$9,$G28,0) -> 0 | BB28: 0 | BC28: 0 | BD28: 0 | BE28: 0
D29: 19 | E29: =IF(COUNTIF(F29:$F$1997,$F29)>1,0,1) -> 1 | F29: =Teknologikatalog!D34 -> 6-3-1 | G29: =Teknologikatalog!E34 -> 6 | H29: =Teknologikatalog!F34 -> 3 | I29: =Teknologikatalog!G34 -> 3 | J29: =Teknologikatalog!I34 -> Tørring | K29: =Teknologikatalog!J34 -> NIR-måling | L29: =Teknologikatalog!K34 -> 0.05 | M29: =Teknologikatalog!L34 -> 0.1 | N29: =Teknologikatalog!M34 -> 0.15 | O29: =Teknologikatalog!N34 -> 0.05 | P29: =Teknologikatalog!O34 -> 0.1 | Q29: =Teknologikatalog!P34 -> 0.15 | R29: =Teknologikatalog!Q34 -> Indvinding af grus og sten | S29: =Teknologikatalog!R34 -> 2.5 | T29: =Teknologikatalog!S34 -> 7.5 | U29: =Teknologikatalog!T34 -> 0.2 | V29: =Teknologikatalog!U34 -> 0 | W29: =Teknologikatalog!V34 -> 2015-cases | X29: =Teknologikatalog!W34 -> 0 | Y29: =Teknologikatalog!X34 -> 0 | Z29: =VLOOKUP(R29,Lister!$D$114:$E$171,2,FALSE) -> Landbrug mv. | AA29: =SUMIFS(Energiforbrug!$N$10:$N$27393,Energiforbrug!$D$10:$D$27393,$G29,Energiforbrug!$E$10:$E$27393,$H29) -> 456783.69 | AB29: =SUMIFS(Energiforbrug!$P$10:$P$27393,Energiforbrug!$D$10:$D$27393,$G29,Energiforbrug!$E$10:$E$27393,$H29) -> 16610155.83 | AC29: 36.36328571 | AD29: =SUMIFS('Energiforbrug tværgående'!$G$10:$G$180,'Energiforbrug tværgående'!$D$10:$D$180,$J29,'Energiforbrug tværgående'!$E$10:$E$180,$R29)+IF(R29="På tværs",SUMIFS('Energiforbrug tværgående'!$G$10:$G$180,'Energiforbrug tværgående'!$D$10:$D$180,$J29),0) -> 0 | AE29: 0 | AF29: =IF(AD29>0,SUMIFS(EnergiBranche!$G$10:$G$66,EnergiBranche!$D$10:$D$66,$R29),0) -> 0 | AG29: =CHOOSE(Lister!$E$96,L29,M29,N29) -> 0.1 | AH29: =CHOOSE(Lister!$E$102,O29,P29,Q29) -> 0.1 | AI29: =IFERROR(AH29*AG29*#REF!,0) -> 0 | AJ29: =CHOOSE(Lister!$E$108,Potentialer!S29,Potentialer!T29)/GJ_kWh -> 694.4444444 | AK29: 55.55555556 | AL29: 11.73208886 | AM29: 4567.8369 | AN29: =IFERROR(IF(W29=Lister!$G$33,IF(AL29<=ThresholdTilbagebetalingstid,1,0),IF(AL29=ThresholdTilbagebetalingstid,1,0)),0) -> 0 | AO29: 0 | AP29: =IFERROR(IF($W29=Lister!$G$33,IF($AL29<=AP$10,$AG29*$AH29,0),IF($AL29=AP$10,$AG29*$AH29,0)),0) -> 0 | AQ29: =IFERROR(IF($W29=Lister!$G$33,IF($AL29<=AQ$10,$AG29*$AH29,0),IF($AL29=AQ$10,$AG29*$AH29,0)),0) -> 0 | AR29: =IFERROR(IF($W29=Lister!$G$33,IF($AL29<=AR$10,$AG29*$AH29,0),IF($AL29=AR$10,$AG29*$AH29,0)),0) -> 0 | AS29: 0 | AT29: 0 | AU29: 0 | AV29: 0 | AW29: 4567.8369 | AX29: =OFFSET('Andel ift. virkstørrelse'!M$9,$G29,0) -> 0.4480519481 | AY29: =OFFSET('Andel ift. virkstørrelse'!N$9,$G29,0) -> 0.4174397032 | AZ29: =OFFSET('Andel ift. virkstørrelse'!O$9,$G29,0)+OFFSET('Andel ift. virkstørrelse'!P$9,$G29,0) -> 0.1345083488 | BA29: =OFFSET('Andel ift. virkstørrelse'!Q$9,$G29,0) -> 0 | BB29: 2046.628221 | BC29: 1906.79648 | BD29: 614.412199 | BE29: 0
D30: 20 | E30: =IF(COUNTIF(F30:$F$1997,$F30)>1,0,1) -> 1 | F30: =Teknologikatalog!D35 -> 11-3-1 | G30: =Teknologikatalog!E35 -> 11 | H30: =Teknologikatalog!F35 -> 3 | I30: =Teknologikatalog!G35 -> 3 | J30: =Teknologikatalog!I35 -> Tørring | K30: =Teknologikatalog!J35 -> NIR-måling | L30: =Teknologikatalog!K35 -> 0.05 | M30: =Teknologikatalog!L35 -> 0.1 | N30: =Teknologikatalog!M35 -> 0.15 | O30: =Teknologikatalog!N35 -> 0.3 | P30: =Teknologikatalog!O35 -> 0.375 | Q30: =Teknologikatalog!P35 -> 0.45 | R30: =Teknologikatalog!Q35 -> Fremstilling af færdige foderblandinger | S30: =Teknologikatalog!R35 -> 2.5 | T30: =Teknologikatalog!S35 -> 7.5 | U30: =Teknologikatalog!T35 -> 0.2 | V30: =Teknologikatalog!U35 -> 0 | W30: =Teknologikatalog!V35 -> 2015-cases | X30: =Teknologikatalog!W35 -> 0 | Y30: =Teknologikatalog!X35 -> 0 | Z30: =VLOOKUP(R30,Lister!$D$114:$E$171,2,FALSE) -> Fødevarer mv. | AA30: =SUMIFS(Energiforbrug!$N$10:$N$27393,Energiforbrug!$D$10:$D$27393,$G30,Energiforbrug!$E$10:$E$27393,$H30) -> 571346.1464 | AB30: =SUMIFS(Energiforbrug!$P$10:$P$27393,Energiforbrug!$D$10:$D$27393,$G30,Energiforbrug!$E$10:$E$27393,$H30) -> 64498125.89 | AC30: 112.8880037 | AD30: =SUMIFS('Energiforbrug tværgående'!$G$10:$G$180,'Energiforbrug tværgående'!$D$10:$D$180,$J30,'Energiforbrug tværgående'!$E$10:$E$180,$R30)+IF(R30="På tværs",SUMIFS('Energiforbrug tværgående'!$G$10:$G$180,'Energiforbrug tværgående'!$D$10:$D$180,$J30),0) -> 0 | AE30: 0 | AF30: =IF(AD30>0,SUMIFS(EnergiBranche!$G$10:$G$66,EnergiBranche!$D$10:$D$66,$R30),0) -> 0 | AG30: =CHOOSE(Lister!$E$96,L30,M30,N30) -> 0.1 | AH30: =CHOOSE(Lister!$E$102,O30,P30,Q30) -> 0.375 | AI30: =IFERROR(AH30*AG30*#REF!,0) -> 0 | AJ30: =CHOOSE(Lister!$E$108,Potentialer!S30,Potentialer!T30)/GJ_kWh -> 694.4444444 | AK30: 55.55555556 | AL30: 10.38897652 | AM30: 21425.48049 | AN30: =IFERROR(IF(W30=Lister!$G$33,IF(AL30<=ThresholdTilbagebetalingstid,1,0),IF(AL30=ThresholdTilbagebetalingstid,1,0)),0) -> 0 | AO30: 0 | AP30: =IFERROR(IF($W30=Lister!$G$33,IF($AL30<=AP$10,$AG30*$AH30,0),IF($AL30=AP$10,$AG30*$AH30,0)),0) -> 0 | AQ30: =IFERROR(IF($W30=Lister!$G$33,IF($AL30<=AQ$10,$AG30*$AH30,0),IF($AL30=AQ$10,$AG30*$AH30,0)),0) -> 0 | AR30: =IFERROR(IF($W30=Lister!$G$33,IF($AL30<=AR$10,$AG30*$AH30,0),IF($AL30=AR$10,$AG30*$AH30,0)),0) -> 0 | AS30: 0 | AT30: 0 | AU30: 0 | AV30: 0 | AW30: 21425.48049 | AX30: =OFFSET('Andel ift. virkstørrelse'!M$9,$G30,0) -> 0.08964143426 | AY30: =OFFSET('Andel ift. virkstørrelse'!N$9,$G30,0) -> 0.6382057975 | AZ30: =OFFSET('Andel ift. virkstørrelse'!O$9,$G30,0)+OFFSET('Andel ift. virkstørrelse'!P$9,$G30,0) -> 0.2338920181 | BA30: =OFFSET('Andel ift. virkstørrelse'!Q$9,$G30,0) -> 0.0382607501 | BB30: 1920.610801 | BC30: 13673.86586 | BD30: 5011.248871 | BE30: 819.7549549
D31: 21 | E31: =IF(COUNTIF(F31:$F$1997,$F31)>1,0,1) -> 1 | F31: =Teknologikatalog!D36 -> 18-3-1 | G31: =Teknologikatalog!E36 -> 18 | H31: =Teknologikatalog!F36 -> 3 | I31: =Teknologikatalog!G36 -> 3 | J31: =Teknologikatalog!I36 -> Tørring | K31: =Teknologikatalog!J36 -> NIR-måling | L31: =Teknologikatalog!K36 -> 0.05 | M31: =Teknologikatalog!L36 -> 0.1 | N31: =Teknologikatalog!M36 -> 0.15 | O31: =Teknologikatalog!N36 -> 0.05 | P31: =Teknologikatalog!O36 -> 0.075 | Q31: =Teknologikatalog!P36 -> 0.1 | R31: =Teknologikatalog!Q36 -> Træindustri | S31: =Teknologikatalog!R36 -> 2.5 | T31: =Teknologikatalog!S36 -> 7.5 | U31: =Teknologikatalog!T36 -> 0.2 | V31: =Teknologikatalog!U36 -> 0 | W31: =Teknologikatalog!V36 -> 2015-cases | X31: =Teknologikatalog!W36 -> 0 | Y31: =Teknologikatalog!X36 -> 0 | Z31: =VLOOKUP(R31,Lister!$D$114:$E$171,2,FALSE) -> Træ+papir | AA31: =SUMIFS(Energiforbrug!$N$10:$N$27393,Energiforbrug!$D$10:$D$27393,$G31,Energiforbrug!$E$10:$E$27393,$H31) -> 1839872.25 | AB31: =SUMIFS(Energiforbrug!$P$10:$P$27393,Energiforbrug!$D$10:$D$27393,$G31,Energiforbrug!$E$10:$E$27393,$H31) -> 38356858.79 | AC31: 20.84756634 | AD31: =SUMIFS('Energiforbrug tværgående'!$G$10:$G$180,'Energiforbrug tværgående'!$D$10:$D$180,$J31,'Energiforbrug tværgående'!$E$10:$E$180,$R31)+IF(R31="På tværs",SUMIFS('Energiforbrug tværgående'!$G$10:$G$180,'Energiforbrug tværgående'!$D$10:$D$180,$J31),0) -> 0 | AE31: 0 | AF31: =IF(AD31>0,SUMIFS(EnergiBranche!$G$10:$G$66,EnergiBranche!$D$10:$D$66,$R31),0) -> 0 | AG31: =CHOOSE(Lister!$E$96,L31,M31,N31) -> 0.1 | AH31: =CHOOSE(Lister!$E$102,O31,P31,Q31) -> 0.075 | AI31: =IFERROR(AH31*AG31*#REF!,0) -> 0 | AJ31: =CHOOSE(Lister!$E$108,Potentialer!S31,Potentialer!T31)/GJ_kWh -> 694.4444444 | AK31: 55.55555556 | AL31: 12.04789527 | AM31: 13799.04187 | AN31: =IFERROR(IF(W31=Lister!$G$33,IF(AL31<=ThresholdTilbagebetalingstid,1,0),IF(AL31=ThresholdTilbagebetalingstid,1,0)),0) -> 0 | AO31: 0 | AP31: =IFERROR(IF($W31=Lister!$G$33,IF($AL31<=AP$10,$AG31*$AH31,0),IF($AL31=AP$10,$AG31*$AH31,0)),0) -> 0 | AQ31: =IFERROR(IF($W31=Lister!$G$33,IF($AL31<=AQ$10,$AG31*$AH31,0),IF($AL31=AQ$10,$AG31*$AH31,0)),0) -> 0 | AR31: =IFERROR(IF($W31=Lister!$G$33,IF($AL31<=AR$10,$AG31*$AH31,0),IF($AL31=AR$10,$AG31*$AH31,0)),0) -> 0 | AS31: 0 | AT31: 0 | AU31: 0 | AV31: 0 | AW31: 13799.04187 | AX31: =OFFSET('Andel ift. virkstørrelse'!M$9,$G31,0) -> 0.1278462998 | AY31: =OFFSET('Andel ift. virkstørrelse'!N$9,$G31,0) -> 0.2967267552 | AZ31: =OFFSET('Andel ift. virkstørrelse'!O$9,$G31,0)+OFFSET('Andel ift. virkstørrelse'!P$9,$G31,0) -> 0.435483871 | BA31: =OFFSET('Andel ift. virkstørrelse'!Q$9,$G31,0) -> 0.139943074 | BB31: 1764.156445 | BC31: 4094.544921 | BD31: 6009.260171 | BE31: 1931.080338
D32: 22 | E32: =IF(COUNTIF(F32:$F$1997,$F32)>1,0,1) -> 1 | F32: =Teknologikatalog!D37 -> 19-3-1 | G32: =Teknologikatalog!E37 -> 19 | H32: =Teknologikatalog!F37 -> 3 | I32: =Teknologikatalog!G37 -> 3 | J32: =Teknologikatalog!I37 -> Tørring | K32: =Teknologikatalog!J37 -> NIR-måling | L32: =Teknologikatalog!K37 -> 0.05 | M32: =Teknologikatalog!L37 -> 0.1 | N32: =Teknologikatalog!M37 -> 0.15 | O32: =Teknologikatalog!N37 -> 0.05 | P32: =Teknologikatalog!O37 -> 0.075 | Q32: =Teknologikatalog!P37 -> 0.1 | R32: =Teknologikatalog!Q37 -> Papirindustri | S32: =Teknologikatalog!R37 -> 2.5 | T32: =Teknologikatalog!S37 -> 7.5 | U32: =Teknologikatalog!T37 -> 0.2 | V32: =Teknologikatalog!U37 -> 0 | W32: =Teknologikatalog!V37 -> 2015-cases | X32: =Teknologikatalog!W37 -> 0 | Y32: =Teknologikatalog!X37 -> 0 | Z32: =VLOOKUP(R32,Lister!$D$114:$E$171,2,FALSE) -> Træ+papir | AA32: =SUMIFS(Energiforbrug!$N$10:$N$27393,Energiforbrug!$D$10:$D$27393,$G32,Energiforbrug!$E$10:$E$27393,$H32) -> 1549797.786 | AB32: =SUMIFS(Energiforbrug!$P$10:$P$27393,Energiforbrug!$D$10:$D$27393,$G32,Energiforbrug!$E$10:$E$27393,$H32) -> 103295195.9 | AC32: 66.65075718 | AD32: =SUMIFS('Energiforbrug tværgående'!$G$10:$G$180,'Energiforbrug tværgående'!$D$10:$D$180,$J32,'Energiforbrug tværgående'!$E$10:$E$180,$R32)+IF(R32="På tværs",SUMIFS('Energiforbrug tværgående'!$G$10:$G$180,'Energiforbrug tværgående'!$D$10:$D$180,$J32),0) -> 0 | AE32: 0 | AF32: =IF(AD32>0,SUMIFS(EnergiBranche!$G$10:$G$66,EnergiBranche!$D$10:$D$66,$R32),0) -> 0 | AG32: =CHOOSE(Lister!$E$96,L32,M32,N32) -> 0.1 | AH32: =CHOOSE(Lister!$E$102,O32,P32,Q32) -> 0.075 | AI32: =IFERROR(AH32*AG32*#REF!,0) -> 0 | AJ32: =CHOOSE(Lister!$E$108,Potentialer!S32,Potentialer!T32)/GJ_kWh -> 694.4444444 | AK32: 55.55555556 | AL32: 11.16099966 | AM32: 11623.4834 | AN32: =IFERROR(IF(W32=Lister!$G$33,IF(AL32<=ThresholdTilbagebetalingstid,1,0),IF(AL32=ThresholdTilbagebetalingstid,1,0)),0) -> 0 | AO32: 0 | AP32: =IFERROR(IF($W32=Lister!$G$33,IF($AL32<=AP$10,$AG32*$AH32,0),IF($AL32=AP$10,$AG32*$AH32,0)),0) -> 0 | AQ32: =IFERROR(IF($W32=Lister!$G$33,IF($AL32<=AQ$10,$AG32*$AH32,0),IF($AL32=AQ$10,$AG32*$AH32,0)),0) -> 0 | AR32: =IFERROR(IF($W32=Lister!$G$33,IF($AL32<=AR$10,$AG32*$AH32,0),IF($AL32=AR$10,$AG32*$AH32,0)),0) -> 0 | AS32: 0 | AT32: 0 | AU32: 0 | AV32: 0 | AW32: 11623.4834 | AX32: =OFFSET('Andel ift. virkstørrelse'!M$9,$G32,0) -> 0.05256355019 | AY32: =OFFSET('Andel ift. virkstørrelse'!N$9,$G32,0) -> 0.2985781991 | AZ32: =OFFSET('Andel ift. virkstørrelse'!O$9,$G32,0)+OFFSET('Andel ift. virkstørrelse'!P$9,$G32,0) -> 0.3735458854 | BA32: =OFFSET('Andel ift. virkstørrelse'!Q$9,$G32,0) -> 0.2753123654 | BB32: 610.9715529 | BC32: 3470.518739 | BD32: 4341.904397 | BE32: 3200.088708
D33: 23 | E33: =IF(COUNTIF(F33:$F$1997,$F33)>1,0,1) -> 1 | F33: =Teknologikatalog!D38 -> 21-3-1 | G33: =Teknologikatalog!E38 -> 21 | H33: =Teknologikatalog!F38 -> 3 | I33: =Teknologikatalog!G38 -> 3 | J33: =Teknologikatalog!I38 -> Tørring | K33: =Teknologikatalog!J38 -> NIR-måling | L33: =Teknologikatalog!K38 -> 0.05 | M33: =Teknologikatalog!L38 -> 0.1 | N33: =Teknologikatalog!M38 -> 0.15 | O33: =Teknologikatalog!N38 -> 0.08 | P33: =Teknologikatalog!O38 -> 0.08 | Q33: =Teknologikatalog!P38 -> 0.08 | R33: =Teknologikatalog!Q38 -> Fremstilling af industrigasser | S33: =Teknologikatalog!R38 -> 2.5 | T33: =Teknologikatalog!S38 -> 7.5 | U33: =Teknologikatalog!T38 -> 0.2 | V33: =Teknologikatalog!U38 -> 0 | W33: =Teknologikatalog!V38 -> 2015-cases | X33: =Teknologikatalog!W38 -> 0 | Y33: =Teknologikatalog!X38 -> 0 | Z33: =VLOOKUP(R33,Lister!$D$114:$E$171,2,FALSE) -> Kemi+farma | AA33: =SUMIFS(Energiforbrug!$N$10:$N$27393,Energiforbrug!$D$10:$D$27393,$G33,Energiforbrug!$E$10:$E$27393,$H33) -> 0 | AB33: =SUMIFS(Energiforbrug!$P$10:$P$27393,Energiforbrug!$D$10:$D$27393,$G33,Energiforbrug!$E$10:$E$27393,$H33) -> 0 | AC33: 0 | AD33: =SUMIFS('Energiforbrug tværgående'!$G$10:$G$180,'Energiforbrug tværgående'!$D$10:$D$180,$J33,'Energiforbrug tværgående'!$E$10:$E$180,$R33)+IF(R33="På tværs",SUMIFS('Energiforbrug tværgående'!$G$10:$G$180,'Energiforbrug tværgående'!$D$10:$D$180,$J33),0) -> 0 | AE33: 0 | AF33: =IF(AD33>0,SUMIFS(EnergiBranche!$G$10:$G$66,EnergiBranche!$D$10:$D$66,$R33),0) -> 0 | AG33: =CHOOSE(Lister!$E$96,L33,M33,N33) -> 0.1 | AH33: =CHOOSE(Lister!$E$102,O33,P33,Q33) -> 0.08 | AI33: =IFERROR(AH33*AG33*#REF!,0) -> 0 | AJ33: =CHOOSE(Lister!$E$108,Potentialer!S33,Potentialer!T33)/GJ_kWh -> 694.4444444 | AK33: 55.55555556 | AL33: 0 | AM33: 0 | AN33: =IFERROR(IF(W33=Lister!$G$33,IF(AL33<=ThresholdTilbagebetalingstid,1,0),IF(AL33=ThresholdTilbagebetalingstid,1,0)),0) -> 1 | AO33: 0 | AP33: =IFERROR(IF($W33=Lister!$G$33,IF($AL33<=AP$10,$AG33*$AH33,0),IF($AL33=AP$10,$AG33*$AH33,0)),0) -> 0.008 | AQ33: =IFERROR(IF($W33=Lister!$G$33,IF($AL33<=AQ$10,$AG33*$AH33,0),IF($AL33=AQ$10,$AG33*$AH33,0)),0) -> 0.008 | AR33: =IFERROR(IF($W33=Lister!$G$33,IF($AL33<=AR$10,$AG33*$AH33,0),IF($AL33=AR$10,$AG33*$AH33,0)),0) -> 0.008 | AS33: 0 | AT33: 0 | AU33: 0 | AV33: 0 | AW33: 0 | AX33: =OFFSET('Andel ift. virkstørrelse'!M$9,$G33,0) -> 0.01757899421 | AY33: =OFFSET('Andel ift. virkstørrelse'!N$9,$G33,0) -> 0.06853582555 | AZ33: =OFFSET('Andel ift. virkstørrelse'!O$9,$G33,0)+OFFSET('Andel ift. virkstørrelse'!P$9,$G33,0) -> 0.2389853138 | BA33: =OFFSET('Andel ift. virkstørrelse'!Q$9,$G33,0) -> 0.6748998665 | BB33: 0 | BC33: 0 | BD33: 0 | BE33: 0
D34: 24 | E34: =IF(COUNTIF(F34:$F$1997,$F34)>1,0,1) -> 1 | F34: =Teknologikatalog!D39 -> 22-3-1 | G34: =Teknologikatalog!E39 -> 22 | H34: =Teknologikatalog!F39 -> 3 | I34: =Teknologikatalog!G39 -> 3 | J34: =Teknologikatalog!I39 -> Tørring | K34: =Teknologikatalog!J39 -> NIR-måling | L34: =Teknologikatalog!K39 -> 0.05 | M34: =Teknologikatalog!L39 -> 0.1 | N34: =Teknologikatalog!M39 -> 0.15 | O34: =Teknologikatalog!N39 -> 0.08 | P34: =Teknologikatalog!O39 -> 0.08 | Q34: =Teknologikatalog!P39 -> 0.08 | R34: =Teknologikatalog!Q39 -> Fremstilling af enzymer | S34: =Teknologikatalog!R39 -> 2.5 | T34: =Teknologikatalog!S39 -> 7.5 | U34: =Teknologikatalog!T39 -> 0.2 | V34: =Teknologikatalog!U39 -> 0 | W34: =Teknologikatalog!V39 -> 2015-cases | X34: =Teknologikatalog!W39 -> 0 | Y34: =Teknologikatalog!X39 -> 0 | Z34: =VLOOKUP(R34,Lister!$D$114:$E$171,2,FALSE) -> Kemi+farma | AA34: =SUMIFS(Energiforbrug!$N$10:$N$27393,Energiforbrug!$D$10:$D$27393,$G34,Energiforbrug!$E$10:$E$27393,$H34) -> 181463.3025 | AB34: =SUMIFS(Energiforbrug!$P$10:$P$27393,Energiforbrug!$D$10:$D$27393,$G34,Energiforbrug!$E$10:$E$27393,$H34) -> 19431689.66 | AC34: 107.0833022 | AD34: =SUMIFS('Energiforbrug tværgående'!$G$10:$G$180,'Energiforbrug tværgående'!$D$10:$D$180,$J34,'Energiforbrug tværgående'!$E$10:$E$180,$R34)+IF(R34="På tværs",SUMIFS('Energiforbrug tværgående'!$G$10:$G$180,'Energiforbrug tværgående'!$D$10:$D$180,$J34),0) -> 0 | AE34: 0 | AF34: =IF(AD34>0,SUMIFS(EnergiBranche!$G$10:$G$66,EnergiBranche!$D$10:$D$66,$R34),0) -> 0 | AG34: =CHOOSE(Lister!$E$96,L34,M34,N34) -> 0.1 | AH34: =CHOOSE(Lister!$E$102,O34,P34,Q34) -> 0.08 | AI34: =IFERROR(AH34*AG34*#REF!,0) -> 0 | AJ34: =CHOOSE(Lister!$E$108,Potentialer!S34,Potentialer!T34)/GJ_kWh -> 694.4444444 | AK34: 55.55555556 | AL34: 10.47998372 | AM34: 1451.70642 | AN34: =IFERROR(IF(W34=Lister!$G$33,IF(AL34<=ThresholdTilbagebetalingstid,1,0),IF(AL34=ThresholdTilbagebetalingstid,1,0)),0) -> 0 | AO34: 0 | AP34: =IFERROR(IF($W34=Lister!$G$33,IF($AL34<=AP$10,$AG34*$AH34,0),IF($AL34=AP$10,$AG34*$AH34,0)),0) -> 0 | AQ34: =IFERROR(IF($W34=Lister!$G$33,IF($AL34<=AQ$10,$AG34*$AH34,0),IF($AL34=AQ$10,$AG34*$AH34,0)),0) -> 0 | AR34: =IFERROR(IF($W34=Lister!$G$33,IF($AL34<=AR$10,$AG34*$AH34,0),IF($AL34=AR$10,$AG34*$AH34,0)),0) -> 0 | AS34: 0 | AT34: 0 | AU34: 0 | AV34: 0 | AW34: 1451.70642 | AX34: =OFFSET('Andel ift. virkstørrelse'!M$9,$G34,0) -> 0.01757899421 | AY34: =OFFSET('Andel ift. virkstørrelse'!N$9,$G34,0) -> 0.06853582555 | AZ34: =OFFSET('Andel ift. virkstørrelse'!O$9,$G34,0)+OFFSET('Andel ift. virkstørrelse'!P$9,$G34,0) -> 0.2389853138 | BA34: =OFFSET('Andel ift. virkstørrelse'!Q$9,$G34,0) -> 0.6748998665 | BB34: 25.51953875 | BC34: 99.49389793 | BD34: 346.9365142 | BE34: 979.7564689
D35: 25 | E35: =IF(COUNTIF(F35:$F$1997,$F35)>1,0,1) -> 1 | F35: =Teknologikatalog!D40 -> 23-3-1 | G35: =Teknologikatalog!E40 -> 23 | H35: =Teknologikatalog!F40 -> 3 | I35: =Teknologikatalog!G40 -> 3 | J35: =Teknologikatalog!I40 -> Tørring | K35: =Teknologikatalog!J40 -> NIR-måling | L35: =Teknologikatalog!K40 -> 0.05 | M35: =Teknologikatalog!L40 -> 0.1 | N35: =Teknologikatalog!M40 -> 0.15 | O35: =Teknologikatalog!N40 -> 0.08 | P35: =Teknologikatalog!O40 -> 0.08 | Q35: =Teknologikatalog!P40 -> 0.08 | R35: =Teknologikatalog!Q40 -> Øvrige basiskemikalier | S35: =Teknologikatalog!R40 -> 2.5 | T35: =Teknologikatalog!S40 -> 7.5 | U35: =Teknologikatalog!T40 -> 0.2 | V35: =Teknologikatalog!U40 -> 0 | W35: =Teknologikatalog!V40 -> 2015-cases | X35: =Teknologikatalog!W40 -> 0 | Y35: =Teknologikatalog!X40 -> 0 | Z35: =VLOOKUP(R35,Lister!$D$114:$E$171,2,FALSE) -> Kemi+farma | AA35: =SUMIFS(Energiforbrug!$N$10:$N$27393,Energiforbrug!$D$10:$D$27393,$G35,Energiforbrug!$E$10:$E$27393,$H35) -> 35901.56499 | AB35: =SUMIFS(Energiforbrug!$P$10:$P$27393,Energiforbrug!$D$10:$D$27393,$G35,Energiforbrug!$E$10:$E$27393,$H35) -> 6888310.026 | AC35: 191.866567 | AD35: =SUMIFS('Energiforbrug tværgående'!$G$10:$G$180,'Energiforbrug tværgående'!$D$10:$D$180,$J35,'Energiforbrug tværgående'!$E$10:$E$180,$R35)+IF(R35="På tværs",SUMIFS('Energiforbrug tværgående'!$G$10:$G$180,'Energiforbrug tværgående'!$D$10:$D$180,$J35),0) -> 0 | AE35: 0 | AF35: =IF(AD35>0,SUMIFS(EnergiBranche!$G$10:$G$66,EnergiBranche!$D$10:$D$66,$R35),0) -> 0 | AG35: =CHOOSE(Lister!$E$96,L35,M35,N35) -> 0.1 | AH35: =CHOOSE(Lister!$E$102,O35,P35,Q35) -> 0.08 | AI35: =IFERROR(AH35*AG35*#REF!,0) -> 0 | AJ35: =CHOOSE(Lister!$E$108,Potentialer!S35,Potentialer!T35)/GJ_kWh -> 694.4444444 | AK35: 55.55555556 | AL35: 9.291194674 | AM35: 287.2125199 | AN35: =IFERROR(IF(W35=Lister!$G$33,IF(AL35<=ThresholdTilbagebetalingstid,1,0),IF(AL35=ThresholdTilbagebetalingstid,1,0)),0) -> 1 | AO35: 287.2125199 | AP35: =IFERROR(IF($W35=Lister!$G$33,IF($AL35<=AP$10,$AG35*$AH35,0),IF($AL35=AP$10,$AG35*$AH35,0)),0) -> 0 | AQ35: =IFERROR(IF($W35=Lister!$G$33,IF($AL35<=AQ$10,$AG35*$AH35,0),IF($AL35=AQ$10,$AG35*$AH35,0)),0) -> 0 | AR35: =IFERROR(IF($W35=Lister!$G$33,IF($AL35<=AR$10,$AG35*$AH35,0),IF($AL35=AR$10,$AG35*$AH35,0)),0) -> 0.008 | AS35: 0 | AT35: 0 | AU35: 287.2125199 | AV35: 0 | AW35: 287.2125199 | AX35: =OFFSET('Andel ift. virkstørrelse'!M$9,$G35,0) -> 0.01757899421 | AY35: =OFFSET('Andel ift. virkstørrelse'!N$9,$G35,0) -> 0.06853582555 | AZ35: =OFFSET('Andel ift. virkstørrelse'!O$9,$G35,0)+OFFSET('Andel ift. virkstørrelse'!P$9,$G35,0) -> 0.2389853138 | BA35: =OFFSET('Andel ift. virkstørrelse'!Q$9,$G35,0) -> 0.6748998665 | BB35: 5.048907226 | BC35: 19.68434716 | BD35: 68.63957418 | BE35: 193.8396913
D36: 26 | E36: =IF(COUNTIF(F36:$F$1997,$F36)>1,0,1) -> 1 | F36: =Teknologikatalog!D41 -> 24-3-1 | G36: =Teknologikatalog!E41 -> 24 | H36: =Teknologikatalog!F41 -> 3 | I36: =Teknologikatalog!G41 -> 3 | J36: =Teknologikatalog!I41 -> Tørring | K36: =Teknologikatalog!J41 -> NIR-måling | L36: =Teknologikatalog!K41 -> 0.05 | M36: =Teknologikatalog!L41 -> 0.1 | N36: =Teknologikatalog!M41 -> 0.15 | O36: =Teknologikatalog!N41 -> 0.08 | P36: =Teknologikatalog!O41 -> 0.08 | Q36: =Teknologikatalog!P41 -> 0.08 | R36: =Teknologikatalog!Q41 -> Fremstilling af maling og sæbe mv. | S36: =Teknologikatalog!R41 -> 2.5 | T36: =Teknologikatalog!S41 -> 7.5 | U36: =Teknologikatalog!T41 -> 0.2 | V36: =Teknologikatalog!U41 -> 0 | W36: =Teknologikatalog!V41 -> 2015-cases | X36: =Teknologikatalog!W41 -> 0 | Y36: =Teknologikatalog!X41 -> 0 | Z36: =VLOOKUP(R36,Lister!$D$114:$E$171,2,FALSE) -> Kemi+farma | AA36: =SUMIFS(Energiforbrug!$N$10:$N$27393,Energiforbrug!$D$10:$D$27393,$G36,Energiforbrug!$E$10:$E$27393,$H36) -> 275613.54 | AB36: =SUMIFS(Energiforbrug!$P$10:$P$27393,Energiforbrug!$D$10:$D$27393,$G36,Energiforbrug!$E$10:$E$27393,$H36) -> 20024150.73 | AC36: 72.65300076 | AD36: =SUMIFS('Energiforbrug tværgående'!$G$10:$G$180,'Energiforbrug tværgående'!$D$10:$D$180,$J36,'Energiforbrug tværgående'!$E$10:$E$180,$R36)+IF(R36="På tværs",SUMIFS('Energiforbrug tværgående'!$G$10:$G$180,'Energiforbrug tværgående'!$D$10:$D$180,$J36),0) -> 0 | AE36: 0 | AF36: =IF(AD36>0,SUMIFS(EnergiBranche!$G$10:$G$66,EnergiBranche!$D$10:$D$66,$R36),0) -> 0 | AG36: =CHOOSE(Lister!$E$96,L36,M36,N36) -> 0.1 | AH36: =CHOOSE(Lister!$E$102,O36,P36,Q36) -> 0.08 | AI36: =IFERROR(AH36*AG36*#REF!,0) -> 0 | AJ36: =CHOOSE(Lister!$E$108,Potentialer!S36,Potentialer!T36)/GJ_kWh -> 694.4444444 | AK36: 55.55555556 | AL36: 11.05436145 | AM36: 2204.90832 | AN36: =IFERROR(IF(W36=Lister!$G$33,IF(AL36<=ThresholdTilbagebetalingstid,1,0),IF(AL36=ThresholdTilbagebetalingstid,1,0)),0) -> 0 | AO36: 0 | AP36: =IFERROR(IF($W36=Lister!$G$33,IF($AL36<=AP$10,$AG36*$AH36,0),IF($AL36=AP$10,$AG36*$AH36,0)),0) -> 0 | AQ36: =IFERROR(IF($W36=Lister!$G$33,IF($AL36<=AQ$10,$AG36*$AH36,0),IF($AL36=AQ$10,$AG36*$AH36,0)),0) -> 0 | AR36: =IFERROR(IF($W36=Lister!$G$33,IF($AL36<=AR$10,$AG36*$AH36,0),IF($AL36=AR$10,$AG36*$AH36,0)),0) -> 0 | AS36: 0 | AT36: 0 | AU36: 0 | AV36: 0 | AW36: 2204.90832 | AX36: =OFFSET('Andel ift. virkstørrelse'!M$9,$G36,0) -> 0.05081555834 | AY36: =OFFSET('Andel ift. virkstørrelse'!N$9,$G36,0) -> 0.1704830615 | AZ36: =OFFSET('Andel ift. virkstørrelse'!O$9,$G36,0)+OFFSET('Andel ift. virkstørrelse'!P$9,$G36,0) -> 0.3303011292 | BA36: =OFFSET('Andel ift. virkstørrelse'!Q$9,$G36,0) -> 0.4484002509 | BB36: 112.0436474 | BC36: 375.8995207 | BD36: 728.283708 | BE36: 988.681444
D37: 27 | E37: =IF(COUNTIF(F37:$F$1997,$F37)>1,0,1) -> 1 | F37: =Teknologikatalog!D42 -> 25-3-1 | G37: =Teknologikatalog!E42 -> 25 | H37: =Teknologikatalog!F42 -> 3 | I37: =Teknologikatalog!G42 -> 3 | J37: =Teknologikatalog!I42 -> Tørring | K37: =Teknologikatalog!J42 -> NIR-måling | L37: =Teknologikatalog!K42 -> 0.05 | M37: =Teknologikatalog!L42 -> 0.1 | N37: =Teknologikatalog!M42 -> 0.15 | O37: =Teknologikatalog!N42 -> 0.08 | P37: =Teknologikatalog!O42 -> 0.08 | Q37: =Teknologikatalog!P42 -> 0.08 | R37: =Teknologikatalog!Q42 -> Medicinalindustri | S37: =Teknologikatalog!R42 -> 2.5 | T37: =Teknologikatalog!S42 -> 7.5 | U37: =Teknologikatalog!T42 -> 0.2 | V37: =Teknologikatalog!U42 -> 0 | W37: =Teknologikatalog!V42 -> 2015-cases | X37: =Teknologikatalog!W42 -> 0 | Y37: =Teknologikatalog!X42 -> 0 | Z37: =VLOOKUP(R37,Lister!$D$114:$E$171,2,FALSE) -> Kemi+farma | AA37: =SUMIFS(Energiforbrug!$N$10:$N$27393,Energiforbrug!$D$10:$D$27393,$G37,Energiforbrug!$E$10:$E$27393,$H37) -> 314521.4 | AB37: =SUMIFS(Energiforbrug!$P$10:$P$27393,Energiforbrug!$D$10:$D$27393,$G37,Energiforbrug!$E$10:$E$27393,$H37) -> 33546745.46 | AC37: 106.6596596 | AD37: =SUMIFS('Energiforbrug tværgående'!$G$10:$G$180,'Energiforbrug tværgående'!$D$10:$D$180,$J37,'Energiforbrug tværgående'!$E$10:$E$180,$R37)+IF(R37="På tværs",SUMIFS('Energiforbrug tværgående'!$G$10:$G$180,'Energiforbrug tværgående'!$D$10:$D$180,$J37),0) -> 0 | AE37: 0 | AF37: =IF(AD37>0,SUMIFS(EnergiBranche!$G$10:$G$66,EnergiBranche!$D$10:$D$66,$R37),0) -> 0 | AG37: =CHOOSE(Lister!$E$96,L37,M37,N37) -> 0.1 | AH37: =CHOOSE(Lister!$E$102,O37,P37,Q37) -> 0.08 | AI37: =IFERROR(AH37*AG37*#REF!,0) -> 0 | AJ37: =CHOOSE(Lister!$E$108,Potentialer!S37,Potentialer!T37)/GJ_kWh -> 694.4444444 | AK37: 55.55555556 | AL37: 10.48668814 | AM37: 2516.1712 | AN37: =IFERROR(IF(W37=Lister!$G$33,IF(AL37<=ThresholdTilbagebetalingstid,1,0),IF(AL37=ThresholdTilbagebetalingstid,1,0)),0) -> 0 | AO37: 0 | AP37: =IFERROR(IF($W37=Lister!$G$33,IF($AL37<=AP$10,$AG37*$AH37,0),IF($AL37=AP$10,$AG37*$AH37,0)),0) -> 0 | AQ37: =IFERROR(IF($W37=Lister!$G$33,IF($AL37<=AQ$10,$AG37*$AH37,0),IF($AL37=AQ$10,$AG37*$AH37,0)),0) -> 0 | AR37: =IFERROR(IF($W37=Lister!$G$33,IF($AL37<=AR$10,$AG37*$AH37,0),IF($AL37=AR$10,$AG37*$AH37,0)),0) -> 0 | AS37: 0 | AT37: 0 | AU37: 0 | AV37: 0 | AW37: 2516.1712 | AX37: =OFFSET('Andel ift. virkstørrelse'!M$9,$G37,0) -> 0.007409425225 | AY37: =OFFSET('Andel ift. virkstørrelse'!N$9,$G37,0) -> 0.03410514846 | AZ37: =OFFSET('Andel ift. virkstørrelse'!O$9,$G37,0)+OFFSET('Andel ift. virkstørrelse'!P$9,$G37,0) -> 0.1462271861 | BA37: =OFFSET('Andel ift. virkstørrelse'!Q$9,$G37,0) -> 0.8122582403 | BB37: 18.64338236 | BC37: 85.81439233 | BD37: 367.9326342 | BE37: 2043.780791
D38: 28 | E38: =IF(COUNTIF(F38:$F$1997,$F38)>1,0,1) -> 1 | F38: =Teknologikatalog!D43 -> 26-3-1 | G38: =Teknologikatalog!E43 -> 26 | H38: =Teknologikatalog!F43 -> 3 | I38: =Teknologikatalog!G43 -> 3 | J38: =Teknologikatalog!I43 -> Tørring | K38: =Teknologikatalog!J43 -> NIR-måling | L38: =Teknologikatalog!K43 -> 0.05 | M38: =Teknologikatalog!L43 -> 0.1 | N38: =Teknologikatalog!M43 -> 0.15 | O38: =Teknologikatalog!N43 -> 0.08 | P38: =Teknologikatalog!O43 -> 0.08 | Q38: =Teknologikatalog!P43 -> 0.08 | R38: =Teknologikatalog!Q43 -> Plast- og gummiindustri | S38: =Teknologikatalog!R43 -> 2.5 | T38: =Teknologikatalog!S43 -> 7.5 | U38: =Teknologikatalog!T43 -> 0.2 | V38: =Teknologikatalog!U43 -> 0 | W38: =Teknologikatalog!V43 -> 2015-cases | X38: =Teknologikatalog!W43 -> 0 | Y38: =Teknologikatalog!X43 -> 0 | Z38: =VLOOKUP(R38,Lister!$D$114:$E$171,2,FALSE) -> Kemi+farma | AA38: =SUMIFS(Energiforbrug!$N$10:$N$27393,Energiforbrug!$D$10:$D$27393,$G38,Energiforbrug!$E$10:$E$27393,$H38) -> 99584.98 | AB38: =SUMIFS(Energiforbrug!$P$10:$P$27393,Energiforbrug!$D$10:$D$27393,$G38,Energiforbrug!$E$10:$E$27393,$H38) -> 13688131.78 | AC38: 137.4517702 | AD38: =SUMIFS('Energiforbrug tværgående'!$G$10:$G$180,'Energiforbrug tværgående'!$D$10:$D$180,$J38,'Energiforbrug tværgående'!$E$10:$E$180,$R38)+IF(R38="På tværs",SUMIFS('Energiforbrug tværgående'!$G$10:$G$180,'Energiforbrug tværgående'!$D$10:$D$180,$J38),0) -> 0 | AE38: 0 | AF38: =IF(AD38>0,SUMIFS(EnergiBranche!$G$10:$G$66,EnergiBranche!$D$10:$D$66,$R38),0) -> 0 | AG38: =CHOOSE(Lister!$E$96,L38,M38,N38) -> 0.1 | AH38: =CHOOSE(Lister!$E$102,O38,P38,Q38) -> 0.08 | AI38: =IFERROR(AH38*AG38*#REF!,0) -> 0 | AJ38: =CHOOSE(Lister!$E$108,Potentialer!S38,Potentialer!T38)/GJ_kWh -> 694.4444444 | AK38: 55.55555556 | AL38: 10.02073742 | AM38: 796.67984 | AN38: =IFERROR(IF(W38=Lister!$G$33,IF(AL38<=ThresholdTilbagebetalingstid,1,0),IF(AL38=ThresholdTilbagebetalingstid,1,0)),0) -> 0 | AO38: 0 | AP38: =IFERROR(IF($W38=Lister!$G$33,IF($AL38<=AP$10,$AG38*$AH38,0),IF($AL38=AP$10,$AG38*$AH38,0)),0) -> 0 | AQ38: =IFERROR(IF($W38=Lister!$G$33,IF($AL38<=AQ$10,$AG38*$AH38,0),IF($AL38=AQ$10,$AG38*$AH38,0)),0) -> 0 | AR38: =IFERROR(IF($W38=Lister!$G$33,IF($AL38<=AR$10,$AG38*$AH38,0),IF($AL38=AR$10,$AG38*$AH38,0)),0) -> 0 | AS38: 0 | AT38: 0 | AU38: 0 | AV38: 0 | AW38: 796.67984 | AX38: =OFFSET('Andel ift. virkstørrelse'!M$9,$G38,0) -> 0.0804963164 | AY38: =OFFSET('Andel ift. virkstørrelse'!N$9,$G38,0) -> 0.3094222567 | AZ38: =OFFSET('Andel ift. virkstørrelse'!O$9,$G38,0)+OFFSET('Andel ift. virkstørrelse'!P$9,$G38,0) -> 0.3502908104 | BA38: =OFFSET('Andel ift. virkstørrelse'!Q$9,$G38,0) -> 0.2597906165 | BB38: 64.12979247 | BC38: 246.510474 | BD38: 279.0696268 | BE38: 206.9699468
D39: 29 | E39: =IF(COUNTIF(F39:$F$1997,$F39)>1,0,1) -> 0 | F39: =Teknologikatalog!D44 -> 1-14-1 | G39: =Teknologikatalog!E44 -> 1 | H39: =Teknologikatalog!F44 -> 14 | I39: =Teknologikatalog!G44 -> 4 | J39: =Teknologikatalog!I44 -> Belysning | K39: =Teknologikatalog!J44 -> Udskiftning af armatur fra lysstofrør til LED-lyskilde | L39: =Teknologikatalog!K44 -> 0.3 | M39: =Teknologikatalog!L44 -> 0.35 | N39: =Teknologikatalog!M44 -> 0.4 | O39: =Teknologikatalog!N44 -> 0.3 | P39: =Teknologikatalog!O44 -> 0.3 | Q39: =Teknologikatalog!P44 -> 0.3 | R39: =Teknologikatalog!Q44 -> Landbrug | S39: =Teknologikatalog!R44 -> 2.5 | T39: =Teknologikatalog!S44 -> 3.5 | U39: =Teknologikatalog!T44 -> 0 | V39: =Teknologikatalog!U44 -> 0 | W39: =Teknologikatalog!V44 -> 2015-cases | X39: =Teknologikatalog!W44 -> 0 | Y39: =Teknologikatalog!X44 -> 0 | Z39: =VLOOKUP(R39,Lister!$D$114:$E$171,2,FALSE) -> Landbrug mv. | AA39: =SUMIFS(Energiforbrug!$N$10:$N$27393,Energiforbrug!$D$10:$D$27393,$G39,Energiforbrug!$E$10:$E$27393,$H39) -> 817924.05 | AB39: =SUMIFS(Energiforbrug!$P$10:$P$27393,Energiforbrug!$D$10:$D$27393,$G39,Energiforbrug!$E$10:$E$27393,$H39) -> 143547587.8 | AC39: 175.5023437 | AD39: =SUMIFS('Energiforbrug tværgående'!$G$10:$G$180,'Energiforbrug tværgående'!$D$10:$D$180,$J39,'Energiforbrug tværgående'!$E$10:$E$180,$R39)+IF(R39="På tværs",SUMIFS('Energiforbrug tværgående'!$G$10:$G$180,'Energiforbrug tværgående'!$D$10:$D$180,$J39),0) -> 0 | AE39: 0 | AF39: =IF(AD39>0,SUMIFS(EnergiBranche!$G$10:$G$66,EnergiBranche!$D$10:$D$66,$R39),0) -> 0 | AG39: =CHOOSE(Lister!$E$96,L39,M39,N39) -> 0.35 | AH39: =CHOOSE(Lister!$E$102,O39,P39,Q39) -> 0.3 | AI39: =IFERROR(AH39*AG39*#REF!,0) -> 0 | AJ39: =CHOOSE(Lister!$E$108,Potentialer!S39,Potentialer!T39)/GJ_kWh -> 694.4444444 | AK39: 0 | AL39: 11.30541588 | AM39: 85882.02525 | AN39: =IFERROR(IF(W39=Lister!$G$33,IF(AL39<=ThresholdTilbagebetalingstid,1,0),IF(AL39=ThresholdTilbagebetalingstid,1,0)),0) -> 0 | AO39: 0 | AP39: =IFERROR(IF($W39=Lister!$G$33,IF($AL39<=AP$10,$AG39*$AH39,0),IF($AL39=AP$10,$AG39*$AH39,0)),0) -> 0 | AQ39: =IFERROR(IF($W39=Lister!$G$33,IF($AL39<=AQ$10,$AG39*$AH39,0),IF($AL39=AQ$10,$AG39*$AH39,0)),0) -> 0 | AR39: =IFERROR(IF($W39=Lister!$G$33,IF($AL39<=AR$10,$AG39*$AH39,0),IF($AL39=AR$10,$AG39*$AH39,0)),0) -> 0 | AS39: 0 | AT39: 0 | AU39: 0 | AV39: 0 | AW39: 85882.02525 | AX39: =OFFSET('Andel ift. virkstørrelse'!M$9,$G39,0) -> 0.8183590006 | AY39: =OFFSET('Andel ift. virkstørrelse'!N$9,$G39,0) -> 0.1573263467 | AZ39: =OFFSET('Andel ift. virkstørrelse'!O$9,$G39,0)+OFFSET('Andel ift. virkstørrelse'!P$9,$G39,0) -> 0.02431465269 | BA39: =OFFSET('Andel ift. virkstørrelse'!Q$9,$G39,0) -> 0 | BB39: 70282.32835 | BC39: 13511.50528 | BD39: 2088.191617 | BE39: 0
D40: 30 | E40: =IF(COUNTIF(F40:$F$1997,$F40)>1,0,1) -> 0 | F40: =Teknologikatalog!D45 -> 2-14-1 | G40: =Teknologikatalog!E45 -> 2 | H40: =Teknologikatalog!F45 -> 14 | I40: =Teknologikatalog!G45 -> 4 | J40: =Teknologikatalog!I45 -> Belysning | K40: =Teknologikatalog!J45 -> Udskiftning af armatur fra lysstofrør til LED-lyskilde | L40: =Teknologikatalog!K45 -> 0.3 | M40: =Teknologikatalog!L45 -> 0.35 | N40: =Teknologikatalog!M45 -> 0.4 | O40: =Teknologikatalog!N45 -> 0.3 | P40: =Teknologikatalog!O45 -> 0.3 | Q40: =Teknologikatalog!P45 -> 0.3 | R40: =Teknologikatalog!Q45 -> Gartneri | S40: =Teknologikatalog!R45 -> 2.5 | T40: =Teknologikatalog!S45 -> 3.5 | U40: =Teknologikatalog!T45 -> 0 | V40: =Teknologikatalog!U45 -> 0 | W40: =Teknologikatalog!V45 -> 2015-cases | X40: =Teknologikatalog!W45 -> 0 | Y40: =Teknologikatalog!X45 -> 0 | Z40: =VLOOKUP(R40,Lister!$D$114:$E$171,2,FALSE) -> Landbrug mv. | AA40: =SUMIFS(Energiforbrug!$N$10:$N$27393,Energiforbrug!$D$10:$D$27393,$G40,Energiforbrug!$E$10:$E$27393,$H40) -> 478800 | AB40: =SUMIFS(Energiforbrug!$P$10:$P$27393,Energiforbrug!$D$10:$D$27393,$G40,Energiforbrug!$E$10:$E$27393,$H40) -> 84030522.19 | AC40: 175.5023437 | AD40: =SUMIFS('Energiforbrug tværgående'!$G$10:$G$180,'Energiforbrug tværgående'!$D$10:$D$180,$J40,'Energiforbrug tværgående'!$E$10:$E$180,$R40)+IF(R40="På tværs",SUMIFS('Energiforbrug tværgående'!$G$10:$G$180,'Energiforbrug tværgående'!$D$10:$D$180,$J40),0) -> 0 | AE40: 0 | AF40: =IF(AD40>0,SUMIFS(EnergiBranche!$G$10:$G$66,EnergiBranche!$D$10:$D$66,$R40),0) -> 0 | AG40: =CHOOSE(Lister!$E$96,L40,M40,N40) -> 0.35 | AH40: =CHOOSE(Lister!$E$102,O40,P40,Q40) -> 0.3 | AI40: =IFERROR(AH40*AG40*#REF!,0) -> 0 | AJ40: =CHOOSE(Lister!$E$108,Potentialer!S40,Potentialer!T40)/GJ_kWh -> 694.4444444 | AK40: 0 | AL40: 11.30541588 | AM40: 50274 | AN40: =IFERROR(IF(W40=Lister!$G$33,IF(AL40<=ThresholdTilbagebetalingstid,1,0),IF(AL40=ThresholdTilbagebetalingstid,1,0)),0) -> 0 | AO40: 0 | AP40: =IFERROR(IF($W40=Lister!$G$33,IF($AL40<=AP$10,$AG40*$AH40,0),IF($AL40=AP$10,$AG40*$AH40,0)),0) -> 0 | AQ40: =IFERROR(IF($W40=Lister!$G$33,IF($AL40<=AQ$10,$AG40*$AH40,0),IF($AL40=AQ$10,$AG40*$AH40,0)),0) -> 0 | AR40: =IFERROR(IF($W40=Lister!$G$33,IF($AL40<=AR$10,$AG40*$AH40,0),IF($AL40=AR$10,$AG40*$AH40,0)),0) -> 0 | AS40: 0 | AT40: 0 | AU40: 0 | AV40: 0 | AW40: 50274 | AX40: =OFFSET('Andel ift. virkstørrelse'!M$9,$G40,0) -> 0.8183590006 | AY40: =OFFSET('Andel ift. virkstørrelse'!N$9,$G40,0) -> 0.1573263467 | AZ40: =OFFSET('Andel ift. virkstørrelse'!O$9,$G40,0)+OFFSET('Andel ift. virkstørrelse'!P$9,$G40,0) -> 0.02431465269 | BA40: =OFFSET('Andel ift. virkstørrelse'!Q$9,$G40,0) -> 0 | BB40: 41142.18039 | BC40: 7909.424756 | BD40: 1222.39485 | BE40: 0
D41: 31 | E41: =IF(COUNTIF(F41:$F$1997,$F41)>1,0,1) -> 1 | F41: =Teknologikatalog!D46 -> 3-14-1 | G41: =Teknologikatalog!E46 -> 3 | H41: =Teknologikatalog!F46 -> 14 | I41: =Teknologikatalog!G46 -> 4 | J41: =Teknologikatalog!I46 -> Belysning | K41: =Teknologikatalog!J46 -> Udskiftning af armatur fra lysstofrør til LED-lyskilde | L41: =Teknologikatalog!K46 -> 0.3 | M41: =Teknologikatalog!L46 -> 0.35 | N41: =Teknologikatalog!M46 -> 0.4 | O41: =Teknologikatalog!N46 -> 0.3 | P41: =Teknologikatalog!O46 -> 0.3 | Q41: =Teknologikatalog!P46 -> 0.3 | R41: =Teknologikatalog!Q46 -> Maskinstationer | S41: =Teknologikatalog!R46 -> 2.5 | T41: =Teknologikatalog!S46 -> 3.5 | U41: =Teknologikatalog!T46 -> 0 | V41: =Teknologikatalog!U46 -> 0 | W41: =Teknologikatalog!V46 -> 2015-cases | X41: =Teknologikatalog!W46 -> 0 | Y41: =Teknologikatalog!X46 -> 0 | Z41: =VLOOKUP(R41,Lister!$D$114:$E$171,2,FALSE) -> Landbrug mv. | AA41: =SUMIFS(Energiforbrug!$N$10:$N$27393,Energiforbrug!$D$10:$D$27393,$G41,Energiforbrug!$E$10:$E$27393,$H41) -> 44656.8 | AB41: =SUMIFS(Energiforbrug!$P$10:$P$27393,Energiforbrug!$D$10:$D$27393,$G41,Energiforbrug!$E$10:$E$27393,$H41) -> 7837373.064 | AC41: 175.5023437 | AD41: =SUMIFS('Energiforbrug tværgående'!$G$10:$G$180,'Energiforbrug tværgående'!$D$10:$D$180,$J41,'Energiforbrug tværgående'!$E$10:$E$180,$R41)+IF(R41="På tværs",SUMIFS('Energiforbrug tværgående'!$G$10:$G$180,'Energiforbrug tværgående'!$D$10:$D$180,$J41),0) -> 0 | AE41: 0 | AF41: =IF(AD41>0,SUMIFS(EnergiBranche!$G$10:$G$66,EnergiBranche!$D$10:$D$66,$R41),0) -> 0 | AG41: =CHOOSE(Lister!$E$96,L41,M41,N41) -> 0.35 | AH41: =CHOOSE(Lister!$E$102,O41,P41,Q41) -> 0.3 | AI41: =IFERROR(AH41*AG41*#REF!,0) -> 0 | AJ41: =CHOOSE(Lister!$E$108,Potentialer!S41,Potentialer!T41)/GJ_kWh -> 694.4444444 | AK41: 0 | AL41: 11.30541588 | AM41: 4688.964 | AN41: =IFERROR(IF(W41=Lister!$G$33,IF(AL41<=ThresholdTilbagebetalingstid,1,0),IF(AL41=ThresholdTilbagebetalingstid,1,0)),0) -> 0 | AO41: 0 | AP41: =IFERROR(IF($W41=Lister!$G$33,IF($AL41<=AP$10,$AG41*$AH41,0),IF($AL41=AP$10,$AG41*$AH41,0)),0) -> 0 | AQ41: =IFERROR(IF($W41=Lister!$G$33,IF($AL41<=AQ$10,$AG41*$AH41,0),IF($AL41=AQ$10,$AG41*$AH41,0)),0) -> 0 | AR41: =IFERROR(IF($W41=Lister!$G$33,IF($AL41<=AR$10,$AG41*$AH41,0),IF($AL41=AR$10,$AG41*$AH41,0)),0) -> 0 | AS41: 0 | AT41: 0 | AU41: 0 | AV41: 0 | AW41: 4688.964 | AX41: =OFFSET('Andel ift. virkstørrelse'!M$9,$G41,0) -> 0.8183590006 | AY41: =OFFSET('Andel ift. virkstørrelse'!N$9,$G41,0) -> 0.1573263467 | AZ41: =OFFSET('Andel ift. virkstørrelse'!O$9,$G41,0)+OFFSET('Andel ift. virkstørrelse'!P$9,$G41,0) -> 0.02431465269 | BA41: =OFFSET('Andel ift. virkstørrelse'!Q$9,$G41,0) -> 0 | BB41: 3837.255893 | BC41: 737.6975761 | BD41: 114.0105312 | BE41: 0
D42: 32 | E42: =IF(COUNTIF(F42:$F$1997,$F42)>1,0,1) -> 1 | F42: =Teknologikatalog!D47 -> 4-14-1 | G42: =Teknologikatalog!E47 -> 4 | H42: =Teknologikatalog!F47 -> 14 | I42: =Teknologikatalog!G47 -> 4 | J42: =Teknologikatalog!I47 -> Belysning | K42: =Teknologikatalog!J47 -> Udskiftning af armatur fra lysstofrør til LED-lyskilde | L42: =Teknologikatalog!K47 -> 0.3 | M42: =Teknologikatalog!L47 -> 0.35 | N42: =Teknologikatalog!M47 -> 0.4 | O42: =Teknologikatalog!N47 -> 0.3 | P42: =Teknologikatalog!O47 -> 0.3 | Q42: =Teknologikatalog!P47 -> 0.3 | R42: =Teknologikatalog!Q47 -> Skovbrug | S42: =Teknologikatalog!R47 -> 2.5 | T42: =Teknologikatalog!S47 -> 3.5 | U42: =Teknologikatalog!T47 -> 0 | V42: =Teknologikatalog!U47 -> 0 | W42: =Teknologikatalog!V47 -> 2015-cases | X42: =Teknologikatalog!W47 -> 0 | Y42: =Teknologikatalog!X47 -> 0 | Z42: =VLOOKUP(R42,Lister!$D$114:$E$171,2,FALSE) -> Landbrug mv. | AA42: =SUMIFS(Energiforbrug!$N$10:$N$27393,Energiforbrug!$D$10:$D$27393,$G42,Energiforbrug!$E$10:$E$27393,$H42) -> 2783 | AB42: =SUMIFS(Energiforbrug!$P$10:$P$27393,Energiforbrug!$D$10:$D$27393,$G42,Energiforbrug!$E$10:$E$27393,$H42) -> 491286.914 | AC42: 176.53141 | AD42: =SUMIFS('Energiforbrug tværgående'!$G$10:$G$180,'Energiforbrug tværgående'!$D$10:$D$180,$J42,'Energiforbrug tværgående'!$E$10:$E$180,$R42)+IF(R42="På tværs",SUMIFS('Energiforbrug tværgående'!$G$10:$G$180,'Energiforbrug tværgående'!$D$10:$D$180,$J42),0) -> 0 | AE42: 0 | AF42: =IF(AD42>0,SUMIFS(EnergiBranche!$G$10:$G$66,EnergiBranche!$D$10:$D$66,$R42),0) -> 0 | AG42: =CHOOSE(Lister!$E$96,L42,M42,N42) -> 0.35 | AH42: =CHOOSE(Lister!$E$102,O42,P42,Q42) -> 0.3 | AI42: =IFERROR(AH42*AG42*#REF!,0) -> 0 | AJ42: =CHOOSE(Lister!$E$108,Potentialer!S42,Potentialer!T42)/GJ_kWh -> 694.4444444 | AK42: 0 | AL42: 11.23951247 | AM42: 292.215 | AN42: =IFERROR(IF(W42=Lister!$G$33,IF(AL42<=ThresholdTilbagebetalingstid,1,0),IF(AL42=ThresholdTilbagebetalingstid,1,0)),0) -> 0 | AO42: 0 | AP42: =IFERROR(IF($W42=Lister!$G$33,IF($AL42<=AP$10,$AG42*$AH42,0),IF($AL42=AP$10,$AG42*$AH42,0)),0) -> 0 | AQ42: =IFERROR(IF($W42=Lister!$G$33,IF($AL42<=AQ$10,$AG42*$AH42,0),IF($AL42=AQ$10,$AG42*$AH42,0)),0) -> 0 | AR42: =IFERROR(IF($W42=Lister!$G$33,IF($AL42<=AR$10,$AG42*$AH42,0),IF($AL42=AR$10,$AG42*$AH42,0)),0) -> 0 | AS42: 0 | AT42: 0 | AU42: 0 | AV42: 0 | AW42: 292.215 | AX42: =OFFSET('Andel ift. virkstørrelse'!M$9,$G42,0) -> 0.5566702241 | AY42: =OFFSET('Andel ift. virkstørrelse'!N$9,$G42,0) -> 0.2960512273 | AZ42: =OFFSET('Andel ift. virkstørrelse'!O$9,$G42,0)+OFFSET('Andel ift. virkstørrelse'!P$9,$G42,0) -> 0.1472785486 | BA42: =OFFSET('Andel ift. virkstørrelse'!Q$9,$G42,0) -> 0 | BB42: 162.6673895 | BC42: 86.51060939 | BD42: 43.03700107 | BE42: 0
D43: 33 | E43: =IF(COUNTIF(F43:$F$1997,$F43)>1,0,1) -> 1 | F43: =Teknologikatalog!D48 -> 5-14-1 | G43: =Teknologikatalog!E48 -> 5 | H43: =Teknologikatalog!F48 -> 14 | I43: =Teknologikatalog!G48 -> 4 | J43: =Teknologikatalog!I48 -> Belysning | K43: =Teknologikatalog!J48 -> Udskiftning af armatur fra lysstofrør til LED-lyskilde | L43: =Teknologikatalog!K48 -> 0.3 | M43: =Teknologikatalog!L48 -> 0.35 | N43: =Teknologikatalog!M48 -> 0.4 | O43: =Teknologikatalog!N48 -> 0.3 | P43: =Teknologikatalog!O48 -> 0.3 | Q43: =Teknologikatalog!P48 -> 0.3 | R43: =Teknologikatalog!Q48 -> Fiskeri | S43: =Teknologikatalog!R48 -> 2.5 | T43: =Teknologikatalog!S48 -> 3.5 | U43: =Teknologikatalog!T48 -> 0 | V43: =Teknologikatalog!U48 -> 0 | W43: =Teknologikatalog!V48 -> 2015-cases | X43: =Teknologikatalog!W48 -> 0 | Y43: =Teknologikatalog!X48 -> 0 | Z43: =VLOOKUP(R43,Lister!$D$114:$E$171,2,FALSE) -> Landbrug mv. | AA43: =SUMIFS(Energiforbrug!$N$10:$N$27393,Energiforbrug!$D$10:$D$27393,$G43,Energiforbrug!$E$10:$E$27393,$H43) -> 16295.23 | AB43: =SUMIFS(Energiforbrug!$P$10:$P$27393,Energiforbrug!$D$10:$D$27393,$G43,Energiforbrug!$E$10:$E$27393,$H43) -> 2849469.194 | AC43: 174.8652332 | AD43: =SUMIFS('Energiforbrug tværgående'!$G$10:$G$180,'Energiforbrug tværgående'!$D$10:$D$180,$J43,'Energiforbrug tværgående'!$E$10:$E$180,$R43)+IF(R43="På tværs",SUMIFS('Energiforbrug tværgående'!$G$10:$G$180,'Energiforbrug tværgående'!$D$10:$D$180,$J43),0) -> 0 | AE43: 0 | AF43: =IF(AD43>0,SUMIFS(EnergiBranche!$G$10:$G$66,EnergiBranche!$D$10:$D$66,$R43),0) -> 0 | AG43: =CHOOSE(Lister!$E$96,L43,M43,N43) -> 0.35 | AH43: =CHOOSE(Lister!$E$102,O43,P43,Q43) -> 0.3 | AI43: =IFERROR(AH43*AG43*#REF!,0) -> 0 | AJ43: =CHOOSE(Lister!$E$108,Potentialer!S43,Potentialer!T43)/GJ_kWh -> 694.4444444 | AK43: 0 | AL43: 11.34660646 | AM43: 1710.99915 | AN43: =IFERROR(IF(W43=Lister!$G$33,IF(AL43<=ThresholdTilbagebetalingstid,1,0),IF(AL43=ThresholdTilbagebetalingstid,1,0)),0) -> 0 | AO43: 0 | AP43: =IFERROR(IF($W43=Lister!$G$33,IF($AL43<=AP$10,$AG43*$AH43,0),IF($AL43=AP$10,$AG43*$AH43,0)),0) -> 0 | AQ43: =IFERROR(IF($W43=Lister!$G$33,IF($AL43<=AQ$10,$AG43*$AH43,0),IF($AL43=AQ$10,$AG43*$AH43,0)),0) -> 0 | AR43: =IFERROR(IF($W43=Lister!$G$33,IF($AL43<=AR$10,$AG43*$AH43,0),IF($AL43=AR$10,$AG43*$AH43,0)),0) -> 0 | AS43: 0 | AT43: 0 | AU43: 0 | AV43: 0 | AW43: 1710.99915 | AX43: =OFFSET('Andel ift. virkstørrelse'!M$9,$G43,0) -> 0.9071294559 | AY43: =OFFSET('Andel ift. virkstørrelse'!N$9,$G43,0) -> 0.09287054409 | AZ43: =OFFSET('Andel ift. virkstørrelse'!O$9,$G43,0)+OFFSET('Andel ift. virkstørrelse'!P$9,$G43,0) -> 0 | BA43: =OFFSET('Andel ift. virkstørrelse'!Q$9,$G43,0) -> 0 | BB43: 1552.097728 | BC43: 158.901422 | BD43: 0 | BE43: 0
D44: 34 | E44: =IF(COUNTIF(F44:$F$1997,$F44)>1,0,1) -> 1 | F44: =Teknologikatalog!D49 -> 6-14-1 | G44: =Teknologikatalog!E49 -> 6 | H44: =Teknologikatalog!F49 -> 14 | I44: =Teknologikatalog!G49 -> 4 | J44: =Teknologikatalog!I49 -> Belysning | K44: =Teknologikatalog!J49 -> Udskiftning af armatur fra lysstofrør til LED-lyskilde | L44: =Teknologikatalog!K49 -> 0.3 | M44: =Teknologikatalog!L49 -> 0.35 | N44: =Teknologikatalog!M49 -> 0.4 | O44: =Teknologikatalog!N49 -> 0.3 | P44: =Teknologikatalog!O49 -> 0.3 | Q44: =Teknologikatalog!P49 -> 0.3 | R44: =Teknologikatalog!Q49 -> Indvinding af grus og sten | S44: =Teknologikatalog!R49 -> 2.5 | T44: =Teknologikatalog!S49 -> 3.5 | U44: =Teknologikatalog!T49 -> 0 | V44: =Teknologikatalog!U49 -> 0 | W44: =Teknologikatalog!V49 -> 2015-cases | X44: =Teknologikatalog!W49 -> 0 | Y44: =Teknologikatalog!X49 -> 0 | Z44: =VLOOKUP(R44,Lister!$D$114:$E$171,2,FALSE) -> Landbrug mv. | AA44: =SUMIFS(Energiforbrug!$N$10:$N$27393,Energiforbrug!$D$10:$D$27393,$G44,Energiforbrug!$E$10:$E$27393,$H44) -> 10091.04 | AB44: =SUMIFS(Energiforbrug!$P$10:$P$27393,Energiforbrug!$D$10:$D$27393,$G44,Energiforbrug!$E$10:$E$27393,$H44) -> 1094870.239 | AC44: 108.4992468 | AD44: =SUMIFS('Energiforbrug tværgående'!$G$10:$G$180,'Energiforbrug tværgående'!$D$10:$D$180,$J44,'Energiforbrug tværgående'!$E$10:$E$180,$R44)+IF(R44="På tværs",SUMIFS('Energiforbrug tværgående'!$G$10:$G$180,'Energiforbrug tværgående'!$D$10:$D$180,$J44),0) -> 0 | AE44: 0 | AF44: =IF(AD44>0,SUMIFS(EnergiBranche!$G$10:$G$66,EnergiBranche!$D$10:$D$66,$R44),0) -> 0 | AG44: =CHOOSE(Lister!$E$96,L44,M44,N44) -> 0.35 | AH44: =CHOOSE(Lister!$E$102,O44,P44,Q44) -> 0.3 | AI44: =IFERROR(AH44*AG44*#REF!,0) -> 0 | AJ44: =CHOOSE(Lister!$E$108,Potentialer!S44,Potentialer!T44)/GJ_kWh -> 694.4444444 | AK44: 0 | AL44: 18.2870116 | AM44: 1059.5592 | AN44: =IFERROR(IF(W44=Lister!$G$33,IF(AL44<=ThresholdTilbagebetalingstid,1,0),IF(AL44=ThresholdTilbagebetalingstid,1,0)),0) -> 0 | AO44: 0 | AP44: =IFERROR(IF($W44=Lister!$G$33,IF($AL44<=AP$10,$AG44*$AH44,0),IF($AL44=AP$10,$AG44*$AH44,0)),0) -> 0 | AQ44: =IFERROR(IF($W44=Lister!$G$33,IF($AL44<=AQ$10,$AG44*$AH44,0),IF($AL44=AQ$10,$AG44*$AH44,0)),0) -> 0 | AR44: =IFERROR(IF($W44=Lister!$G$33,IF($AL44<=AR$10,$AG44*$AH44,0),IF($AL44=AR$10,$AG44*$AH44,0)),0) -> 0 | AS44: 0 | AT44: 0 | AU44: 0 | AV44: 0 | AW44: 1059.5592 | AX44: =OFFSET('Andel ift. virkstørrelse'!M$9,$G44,0) -> 0.4480519481 | AY44: =OFFSET('Andel ift. virkstørrelse'!N$9,$G44,0) -> 0.4174397032 | AZ44: =OFFSET('Andel ift. virkstørrelse'!O$9,$G44,0)+OFFSET('Andel ift. virkstørrelse'!P$9,$G44,0) -> 0.1345083488 | BA44: =OFFSET('Andel ift. virkstørrelse'!Q$9,$G44,0) -> 0 | BB44: 474.7375636 | BC44: 442.3020779 | BD44: 142.5195584 | BE44: 0
D45: 35 | E45: =IF(COUNTIF(F45:$F$1997,$F45)>1,0,1) -> 1 | F45: =Teknologikatalog!D50 -> 7-14-1 | G45: =Teknologikatalog!E50 -> 7 | H45: =Teknologikatalog!F50 -> 14 | I45: =Teknologikatalog!G50 -> 4 | J45: =Teknologikatalog!I50 -> Belysning | K45: =Teknologikatalog!J50 -> Udskiftning af armatur fra lysstofrør til LED-lyskilde | L45: =Teknologikatalog!K50 -> 0.3 | M45: =Teknologikatalog!L50 -> 0.35 | N45: =Teknologikatalog!M50 -> 0.4 | O45: =Teknologikatalog!N50 -> 0.3 | P45: =Teknologikatalog!O50 -> 0.3 | Q45: =Teknologikatalog!P50 -> 0.3 | R45: =Teknologikatalog!Q50 -> Slagterier | S45: =Teknologikatalog!R50 -> 2.5 | T45: =Teknologikatalog!S50 -> 3.5 | U45: =Teknologikatalog!T50 -> 0 | V45: =Teknologikatalog!U50 -> 0 | W45: =Teknologikatalog!V50 -> 2015-cases | X45: =Teknologikatalog!W50 -> 0 | Y45: =Teknologikatalog!X50 -> 0 | Z45: =VLOOKUP(R45,Lister!$D$114:$E$171,2,FALSE) -> Fødevarer mv. | AA45: =SUMIFS(Energiforbrug!$N$10:$N$27393,Energiforbrug!$D$10:$D$27393,$G45,Energiforbrug!$E$10:$E$27393,$H45) -> 86863.6 | AB45: =SUMIFS(Energiforbrug!$P$10:$P$27393,Energiforbrug!$D$10:$D$27393,$G45,Energiforbrug!$E$10:$E$27393,$H45) -> 13475336.78 | AC45: 155.1321471 | AD45: =SUMIFS('Energiforbrug tværgående'!$G$10:$G$180,'Energiforbrug tværgående'!$D$10:$D$180,$J45,'Energiforbrug tværgående'!$E$10:$E$180,$R45)+IF(R45="På tværs",SUMIFS('Energiforbrug tværgående'!$G$10:$G$180,'Energiforbrug tværgående'!$D$10:$D$180,$J45),0) -> 0 | AE45: 0 | AF45: =IF(AD45>0,SUMIFS(EnergiBranche!$G$10:$G$66,EnergiBranche!$D$10:$D$66,$R45),0) -> 0 | AG45: =CHOOSE(Lister!$E$96,L45,M45,N45) -> 0.35 | AH45: =CHOOSE(Lister!$E$102,O45,P45,Q45) -> 0.3 | AI45: =IFERROR(AH45*AG45*#REF!,0) -> 0 | AJ45: =CHOOSE(Lister!$E$108,Potentialer!S45,Potentialer!T45)/GJ_kWh -> 694.4444444 | AK45: 0 | AL45: 12.78991505 | AM45: 9120.678 | AN45: =IFERROR(IF(W45=Lister!$G$33,IF(AL45<=ThresholdTilbagebetalingstid,1,0),IF(AL45=ThresholdTilbagebetalingstid,1,0)),0) -> 0 | AO45: 0 | AP45: =IFERROR(IF($W45=Lister!$G$33,IF($AL45<=AP$10,$AG45*$AH45,0),IF($AL45=AP$10,$AG45*$AH45,0)),0) -> 0 | AQ45: =IFERROR(IF($W45=Lister!$G$33,IF($AL45<=AQ$10,$AG45*$AH45,0),IF($AL45=AQ$10,$AG45*$AH45,0)),0) -> 0 | AR45: =IFERROR(IF($W45=Lister!$G$33,IF($AL45<=AR$10,$AG45*$AH45,0),IF($AL45=AR$10,$AG45*$AH45,0)),0) -> 0 | AS45: 0 | AT45: 0 | AU45: 0 | AV45: 0 | AW45: 9120.678 | AX45: =OFFSET('Andel ift. virkstørrelse'!M$9,$G45,0) -> 0.02289092701 | AY45: =OFFSET('Andel ift. virkstørrelse'!N$9,$G45,0) -> 0.09292806791 | AZ45: =OFFSET('Andel ift. virkstørrelse'!O$9,$G45,0)+OFFSET('Andel ift. virkstørrelse'!P$9,$G45,0) -> 0.3166072917 | BA45: =OFFSET('Andel ift. virkstørrelse'!Q$9,$G45,0) -> 0.5675737133 | BB45: 208.7807744 | BC45: 847.5669846 | BD45: 2887.67316 | BE45: 5176.657081
D46: 36 | E46: =IF(COUNTIF(F46:$F$1997,$F46)>1,0,1) -> 1 | F46: =Teknologikatalog!D51 -> 8-14-1 | G46: =Teknologikatalog!E51 -> 8 | H46: =Teknologikatalog!F51 -> 14 | I46: =Teknologikatalog!G51 -> 4 | J46: =Teknologikatalog!I51 -> Belysning | K46: =Teknologikatalog!J51 -> Udskiftning af armatur fra lysstofrør til LED-lyskilde | L46: =Teknologikatalog!K51 -> 0.3 | M46: =Teknologikatalog!L51 -> 0.35 | N46: =Teknologikatalog!M51 -> 0.4 | O46: =Teknologikatalog!N51 -> 0.3 | P46: =Teknologikatalog!O51 -> 0.3 | Q46: =Teknologikatalog!P51 -> 0.3 | R46: =Teknologikatalog!Q51 -> Fiskeindustri | S46: =Teknologikatalog!R51 -> 2.5 | T46: =Teknologikatalog!S51 -> 3.5 | U46: =Teknologikatalog!T51 -> 0 | V46: =Teknologikatalog!U51 -> 0 | W46: =Teknologikatalog!V51 -> 2015-cases | X46: =Teknologikatalog!W51 -> 0 | Y46: =Teknologikatalog!X51 -> 0 | Z46: =VLOOKUP(R46,Lister!$D$114:$E$171,2,FALSE) -> Fødevarer mv. | AA46: =SUMIFS(Energiforbrug!$N$10:$N$27393,Energiforbrug!$D$10:$D$27393,$G46,Energiforbrug!$E$10:$E$27393,$H46) -> 24682.47084 | AB46: =SUMIFS(Energiforbrug!$P$10:$P$27393,Energiforbrug!$D$10:$D$27393,$G46,Energiforbrug!$E$10:$E$27393,$H46) -> 2963001.277 | AC46: 120.0447595 | AD46: =SUMIFS('Energiforbrug tværgående'!$G$10:$G$180,'Energiforbrug tværgående'!$D$10:$D$180,$J46,'Energiforbrug tværgående'!$E$10:$E$180,$R46)+IF(R46="På tværs",SUMIFS('Energiforbrug tværgående'!$G$10:$G$180,'Energiforbrug tværgående'!$D$10:$D$180,$J46),0) -> 0 | AE46: 0 | AF46: =IF(AD46>0,SUMIFS(EnergiBranche!$G$10:$G$66,EnergiBranche!$D$10:$D$66,$R46),0) -> 0 | AG46: =CHOOSE(Lister!$E$96,L46,M46,N46) -> 0.35 | AH46: =CHOOSE(Lister!$E$102,O46,P46,Q46) -> 0.3 | AI46: =IFERROR(AH46*AG46*#REF!,0) -> 0 | AJ46: =CHOOSE(Lister!$E$108,Potentialer!S46,Potentialer!T46)/GJ_kWh -> 694.4444444 | AK46: 0 | AL46: 16.52822657 | AM46: 2591.659438 | AN46: =IFERROR(IF(W46=Lister!$G$33,IF(AL46<=ThresholdTilbagebetalingstid,1,0),IF(AL46=ThresholdTilbagebetalingstid,1,0)),0) -> 0 | AO46: 0 | AP46: =IFERROR(IF($W46=Lister!$G$33,IF($AL46<=AP$10,$AG46*$AH46,0),IF($AL46=AP$10,$AG46*$AH46,0)),0) -> 0 | AQ46: =IFERROR(IF($W46=Lister!$G$33,IF($AL46<=AQ$10,$AG46*$AH46,0),IF($AL46=AQ$10,$AG46*$AH46,0)),0) -> 0 | AR46: =IFERROR(IF($W46=Lister!$G$33,IF($AL46<=AR$10,$AG46*$AH46,0),IF($AL46=AR$10,$AG46*$AH46,0)),0) -> 0 | AS46: 0 | AT46: 0 | AU46: 0 | AV46: 0 | AW46: 2591.659438 | AX46: =OFFSET('Andel ift. virkstørrelse'!M$9,$G46,0) -> 0.04934306569 | AY46: =OFFSET('Andel ift. virkstørrelse'!N$9,$G46,0) -> 0.3731386861 | AZ46: =OFFSET('Andel ift. virkstørrelse'!O$9,$G46,0)+OFFSET('Andel ift. virkstørrelse'!P$9,$G46,0) -> 0.5775182482 | BA46: =OFFSET('Andel ift. virkstørrelse'!Q$9,$G46,0) -> 0 | BB46: 127.8804219 | BC46: 967.0483978 | BD46: 1496.730619 | BE46: 0
D47: 37 | E47: =IF(COUNTIF(F47:$F$1997,$F47)>1,0,1) -> 1 | F47: =Teknologikatalog!D52 -> 9-14-1 | G47: =Teknologikatalog!E52 -> 9 | H47: =Teknologikatalog!F52 -> 14 | I47: =Teknologikatalog!G52 -> 4 | J47: =Teknologikatalog!I52 -> Belysning | K47: =Teknologikatalog!J52 -> Udskiftning af armatur fra lysstofrør til LED-lyskilde | L47: =Teknologikatalog!K52 -> 0.3 | M47: =Teknologikatalog!L52 -> 0.35 | N47: =Teknologikatalog!M52 -> 0.4 | O47: =Teknologikatalog!N52 -> 0.3 | P47: =Teknologikatalog!O52 -> 0.3 | Q47: =Teknologikatalog!P52 -> 0.3 | R47: =Teknologikatalog!Q52 -> Mejerier | S47: =Teknologikatalog!R52 -> 2.5 | T47: =Teknologikatalog!S52 -> 3.5 | U47: =Teknologikatalog!T52 -> 0 | V47: =Teknologikatalog!U52 -> 0 | W47: =Teknologikatalog!V52 -> 2015-cases | X47: =Teknologikatalog!W52 -> 0 | Y47: =Teknologikatalog!X52 -> 0 | Z47: =VLOOKUP(R47,Lister!$D$114:$E$171,2,FALSE) -> Fødevarer mv. | AA47: =SUMIFS(Energiforbrug!$N$10:$N$27393,Energiforbrug!$D$10:$D$27393,$G47,Energiforbrug!$E$10:$E$27393,$H47) -> 85387.43424 | AB47: =SUMIFS(Energiforbrug!$P$10:$P$27393,Energiforbrug!$D$10:$D$27393,$G47,Energiforbrug!$E$10:$E$27393,$H47) -> 14886656.33 | AC47: 174.3424716 | AD47: =SUMIFS('Energiforbrug tværgående'!$G$10:$G$180,'Energiforbrug tværgående'!$D$10:$D$180,$J47,'Energiforbrug tværgående'!$E$10:$E$180,$R47)+IF(R47="På tværs",SUMIFS('Energiforbrug tværgående'!$G$10:$G$180,'Energiforbrug tværgående'!$D$10:$D$180,$J47),0) -> 0 | AE47: 0 | AF47: =IF(AD47>0,SUMIFS(EnergiBranche!$G$10:$G$66,EnergiBranche!$D$10:$D$66,$R47),0) -> 0 | AG47: =CHOOSE(Lister!$E$96,L47,M47,N47) -> 0.35 | AH47: =CHOOSE(Lister!$E$102,O47,P47,Q47) -> 0.3 | AI47: =IFERROR(AH47*AG47*#REF!,0) -> 0 | AJ47: =CHOOSE(Lister!$E$108,Potentialer!S47,Potentialer!T47)/GJ_kWh -> 694.4444444 | AK47: 0 | AL47: 11.38062898 | AM47: 8965.680595 | AN47: =IFERROR(IF(W47=Lister!$G$33,IF(AL47<=ThresholdTilbagebetalingstid,1,0),IF(AL47=ThresholdTilbagebetalingstid,1,0)),0) -> 0 | AO47: 0 | AP47: =IFERROR(IF($W47=Lister!$G$33,IF($AL47<=AP$10,$AG47*$AH47,0),IF($AL47=AP$10,$AG47*$AH47,0)),0) -> 0 | AQ47: =IFERROR(IF($W47=Lister!$G$33,IF($AL47<=AQ$10,$AG47*$AH47,0),IF($AL47=AQ$10,$AG47*$AH47,0)),0) -> 0 | AR47: =IFERROR(IF($W47=Lister!$G$33,IF($AL47<=AR$10,$AG47*$AH47,0),IF($AL47=AR$10,$AG47*$AH47,0)),0) -> 0 | AS47: 0 | AT47: 0 | AU47: 0 | AV47: 0 | AW47: 8965.680595 | AX47: =OFFSET('Andel ift. virkstørrelse'!M$9,$G47,0) -> 0.01705346839 | AY47: =OFFSET('Andel ift. virkstørrelse'!N$9,$G47,0) -> 0.06552122067 | AZ47: =OFFSET('Andel ift. virkstørrelse'!O$9,$G47,0)+OFFSET('Andel ift. virkstørrelse'!P$9,$G47,0) -> 0.4376202077 | BA47: =OFFSET('Andel ift. virkstørrelse'!Q$9,$G47,0) -> 0.4798051032 | BB47: 152.8959507 | BC47: 587.4423367 | BD47: 3923.563004 | BE47: 4301.779303
D48: 38 | E48: =IF(COUNTIF(F48:$F$1997,$F48)>1,0,1) -> 1 | F48: =Teknologikatalog!D53 -> 10-14-1 | G48: =Teknologikatalog!E53 -> 10 | H48: =Teknologikatalog!F53 -> 14 | I48: =Teknologikatalog!G53 -> 4 | J48: =Teknologikatalog!I53 -> Belysning | K48: =Teknologikatalog!J53 -> Udskiftning af armatur fra lysstofrør til LED-lyskilde | L48: =Teknologikatalog!K53 -> 0.3 | M48: =Teknologikatalog!L53 -> 0.35 | N48: =Teknologikatalog!M53 -> 0.4 | O48: =Teknologikatalog!N53 -> 0.3 | P48: =Teknologikatalog!O53 -> 0.3 | Q48: =Teknologikatalog!P53 -> 0.3 | R48: =Teknologikatalog!Q53 -> Bagerier, brødfabrikker mv. | S48: =Teknologikatalog!R53 -> 2.5 | T48: =Teknologikatalog!S53 -> 3.5 | U48: =Teknologikatalog!T53 -> 0 | V48: =Teknologikatalog!U53 -> 0 | W48: =Teknologikatalog!V53 -> 2015-cases | X48: =Teknologikatalog!W53 -> 0 | Y48: =Teknologikatalog!X53 -> 0 | Z48: =VLOOKUP(R48,Lister!$D$114:$E$171,2,FALSE) -> Fødevarer mv. | AA48: =SUMIFS(Energiforbrug!$N$10:$N$27393,Energiforbrug!$D$10:$D$27393,$G48,Energiforbrug!$E$10:$E$27393,$H48) -> 120389.78 | AB48: =SUMIFS(Energiforbrug!$P$10:$P$27393,Energiforbrug!$D$10:$D$27393,$G48,Energiforbrug!$E$10:$E$27393,$H48) -> 14443873.03 | AC48: 119.9759069 | AD48: =SUMIFS('Energiforbrug tværgående'!$G$10:$G$180,'Energiforbrug tværgående'!$D$10:$D$180,$J48,'Energiforbrug tværgående'!$E$10:$E$180,$R48)+IF(R48="På tværs",SUMIFS('Energiforbrug tværgående'!$G$10:$G$180,'Energiforbrug tværgående'!$D$10:$D$180,$J48),0) -> 0 | AE48: 0 | AF48: =IF(AD48>0,SUMIFS(EnergiBranche!$G$10:$G$66,EnergiBranche!$D$10:$D$66,$R48),0) -> 0 | AG48: =CHOOSE(Lister!$E$96,L48,M48,N48) -> 0.35 | AH48: =CHOOSE(Lister!$E$102,O48,P48,Q48) -> 0.3 | AI48: =IFERROR(AH48*AG48*#REF!,0) -> 0 | AJ48: =CHOOSE(Lister!$E$108,Potentialer!S48,Potentialer!T48)/GJ_kWh -> 694.4444444 | AK48: 0 | AL48: 16.53771191 | AM48: 12640.9269 | AN48: =IFERROR(IF(W48=Lister!$G$33,IF(AL48<=ThresholdTilbagebetalingstid,1,0),IF(AL48=ThresholdTilbagebetalingstid,1,0)),0) -> 0 | AO48: 0 | AP48: =IFERROR(IF($W48=Lister!$G$33,IF($AL48<=AP$10,$AG48*$AH48,0),IF($AL48=AP$10,$AG48*$AH48,0)),0) -> 0 | AQ48: =IFERROR(IF($W48=Lister!$G$33,IF($AL48<=AQ$10,$AG48*$AH48,0),IF($AL48=AQ$10,$AG48*$AH48,0)),0) -> 0 | AR48: =IFERROR(IF($W48=Lister!$G$33,IF($AL48<=AR$10,$AG48*$AH48,0),IF($AL48=AR$10,$AG48*$AH48,0)),0) -> 0 | AS48: 0 | AT48: 0 | AU48: 0 | AV48: 0 | AW48: 12640.9269 | AX48: =OFFSET('Andel ift. virkstørrelse'!M$9,$G48,0) -> 0.08964143426 | AY48: =OFFSET('Andel ift. virkstørrelse'!N$9,$G48,0) -> 0.6382057975 | AZ48: =OFFSET('Andel ift. virkstørrelse'!O$9,$G48,0)+OFFSET('Andel ift. virkstørrelse'!P$9,$G48,0) -> 0.2338920181 | BA48: =OFFSET('Andel ift. virkstørrelse'!Q$9,$G48,0) -> 0.0382607501 | BB48: 1133.150818 | BC48: 8067.512833 | BD48: 2956.611904 | BE48: 483.6513452
D49: 39 | E49: =IF(COUNTIF(F49:$F$1997,$F49)>1,0,1) -> 1 | F49: =Teknologikatalog!D54 -> 11-14-1 | G49: =Teknologikatalog!E54 -> 11 | H49: =Teknologikatalog!F54 -> 14 | I49: =Teknologikatalog!G54 -> 4 | J49: =Teknologikatalog!I54 -> Belysning | K49: =Teknologikatalog!J54 -> Udskiftning af armatur fra lysstofrør til LED-lyskilde | L49: =Teknologikatalog!K54 -> 0.3 | M49: =Teknologikatalog!L54 -> 0.35 | N49: =Teknologikatalog!M54 -> 0.4 | O49: =Teknologikatalog!N54 -> 0.3 | P49: =Teknologikatalog!O54 -> 0.3 | Q49: =Teknologikatalog!P54 -> 0.3 | R49: =Teknologikatalog!Q54 -> Fremstilling af færdige foderblandinger | S49: =Teknologikatalog!R54 -> 2.5 | T49: =Teknologikatalog!S54 -> 3.5 | U49: =Teknologikatalog!T54 -> 0 | V49: =Teknologikatalog!U54 -> 0 | W49: =Teknologikatalog!V54 -> 2015-cases | X49: =Teknologikatalog!W54 -> 0 | Y49: =Teknologikatalog!X54 -> 0 | Z49: =VLOOKUP(R49,Lister!$D$114:$E$171,2,FALSE) -> Fødevarer mv. | AA49: =SUMIFS(Energiforbrug!$N$10:$N$27393,Energiforbrug!$D$10:$D$27393,$G49,Energiforbrug!$E$10:$E$27393,$H49) -> 37225.5994 | AB49: =SUMIFS(Energiforbrug!$P$10:$P$27393,Energiforbrug!$D$10:$D$27393,$G49,Energiforbrug!$E$10:$E$27393,$H49) -> 4462580.512 | AC49: 119.879346 | AD49: =SUMIFS('Energiforbrug tværgående'!$G$10:$G$180,'Energiforbrug tværgående'!$D$10:$D$180,$J49,'Energiforbrug tværgående'!$E$10:$E$180,$R49)+IF(R49="På tværs",SUMIFS('Energiforbrug tværgående'!$G$10:$G$180,'Energiforbrug tværgående'!$D$10:$D$180,$J49),0) -> 0 | AE49: 0 | AF49: =IF(AD49>0,SUMIFS(EnergiBranche!$G$10:$G$66,EnergiBranche!$D$10:$D$66,$R49),0) -> 0 | AG49: =CHOOSE(Lister!$E$96,L49,M49,N49) -> 0.35 | AH49: =CHOOSE(Lister!$E$102,O49,P49,Q49) -> 0.3 | AI49: =IFERROR(AH49*AG49*#REF!,0) -> 0 | AJ49: =CHOOSE(Lister!$E$108,Potentialer!S49,Potentialer!T49)/GJ_kWh -> 694.4444444 | AK49: 0 | AL49: 16.55103276 | AM49: 3908.687937 | AN49: =IFERROR(IF(W49=Lister!$G$33,IF(AL49<=ThresholdTilbagebetalingstid,1,0),IF(AL49=ThresholdTilbagebetalingstid,1,0)),0) -> 0 | AO49: 0 | AP49: =IFERROR(IF($W49=Lister!$G$33,IF($AL49<=AP$10,$AG49*$AH49,0),IF($AL49=AP$10,$AG49*$AH49,0)),0) -> 0 | AQ49: =IFERROR(IF($W49=Lister!$G$33,IF($AL49<=AQ$10,$AG49*$AH49,0),IF($AL49=AQ$10,$AG49*$AH49,0)),0) -> 0 | AR49: =IFERROR(IF($W49=Lister!$G$33,IF($AL49<=AR$10,$AG49*$AH49,0),IF($AL49=AR$10,$AG49*$AH49,0)),0) -> 0 | AS49: 0 | AT49: 0 | AU49: 0 | AV49: 0 | AW49: 3908.687937 | AX49: =OFFSET('Andel ift. virkstørrelse'!M$9,$G49,0) -> 0.08964143426 | AY49: =OFFSET('Andel ift. virkstørrelse'!N$9,$G49,0) -> 0.6382057975 | AZ49: =OFFSET('Andel ift. virkstørrelse'!O$9,$G49,0)+OFFSET('Andel ift. virkstørrelse'!P$9,$G49,0) -> 0.2338920181 | BA49: =OFFSET('Andel ift. virkstørrelse'!Q$9,$G49,0) -> 0.0382607501 | BB49: 350.3803928 | BC49: 2494.547302 | BD49: 914.2109099 | BE49: 149.5493324
D50: 40 | E50: =IF(COUNTIF(F50:$F$1997,$F50)>1,0,1) -> 1 | F50: =Teknologikatalog!D55 -> 12-14-1 | G50: =Teknologikatalog!E55 -> 12 | H50: =Teknologikatalog!F55 -> 14 | I50: =Teknologikatalog!G55 -> 4 | J50: =Teknologikatalog!I55 -> Belysning | K50: =Teknologikatalog!J55 -> Udskiftning af armatur fra lysstofrør til LED-lyskilde | L50: =Teknologikatalog!K55 -> 0.3 | M50: =Teknologikatalog!L55 -> 0.35 | N50: =Teknologikatalog!M55 -> 0.4 | O50: =Teknologikatalog!N55 -> 0.3 | P50: =Teknologikatalog!O55 -> 0.3 | Q50: =Teknologikatalog!P55 -> 0.3 | R50: =Teknologikatalog!Q55 -> Fremstilling af sukker | S50: =Teknologikatalog!R55 -> 2.5 | T50: =Teknologikatalog!S55 -> 3.5 | U50: =Teknologikatalog!T55 -> 0 | V50: =Teknologikatalog!U55 -> 0 | W50: =Teknologikatalog!V55 -> 2015-cases | X50: =Teknologikatalog!W55 -> 0 | Y50: =Teknologikatalog!X55 -> 0 | Z50: =VLOOKUP(R50,Lister!$D$114:$E$171,2,FALSE) -> Fødevarer mv. | AA50: =SUMIFS(Energiforbrug!$N$10:$N$27393,Energiforbrug!$D$10:$D$27393,$G50,Energiforbrug!$E$10:$E$27393,$H50) -> 11169.26572 | AB50: =SUMIFS(Energiforbrug!$P$10:$P$27393,Energiforbrug!$D$10:$D$27393,$G50,Energiforbrug!$E$10:$E$27393,$H50) -> 1338964.27 | AC50: 119.879346 | AD50: =SUMIFS('Energiforbrug tværgående'!$G$10:$G$180,'Energiforbrug tværgående'!$D$10:$D$180,$J50,'Energiforbrug tværgående'!$E$10:$E$180,$R50)+IF(R50="På tværs",SUMIFS('Energiforbrug tværgående'!$G$10:$G$180,'Energiforbrug tværgående'!$D$10:$D$180,$J50),0) -> 0 | AE50: 0 | AF50: =IF(AD50>0,SUMIFS(EnergiBranche!$G$10:$G$66,EnergiBranche!$D$10:$D$66,$R50),0) -> 0 | AG50: =CHOOSE(Lister!$E$96,L50,M50,N50) -> 0.35 | AH50: =CHOOSE(Lister!$E$102,O50,P50,Q50) -> 0.3 | AI50: =IFERROR(AH50*AG50*#REF!,0) -> 0 | AJ50: =CHOOSE(Lister!$E$108,Potentialer!S50,Potentialer!T50)/GJ_kWh -> 694.4444444 | AK50: 0 | AL50: 16.55103276 | AM50: 1172.7729 | AN50: =IFERROR(IF(W50=Lister!$G$33,IF(AL50<=ThresholdTilbagebetalingstid,1,0),IF(AL50=ThresholdTilbagebetalingstid,1,0)),0) -> 0 | AO50: 0 | AP50: =IFERROR(IF($W50=Lister!$G$33,IF($AL50<=AP$10,$AG50*$AH50,0),IF($AL50=AP$10,$AG50*$AH50,0)),0) -> 0 | AQ50: =IFERROR(IF($W50=Lister!$G$33,IF($AL50<=AQ$10,$AG50*$AH50,0),IF($AL50=AQ$10,$AG50*$AH50,0)),0) -> 0 | AR50: =IFERROR(IF($W50=Lister!$G$33,IF($AL50<=AR$10,$AG50*$AH50,0),IF($AL50=AR$10,$AG50*$AH50,0)),0) -> 0 | AS50: 0 | AT50: 0 | AU50: 0 | AV50: 0 | AW50: 1172.7729 | AX50: =OFFSET('Andel ift. virkstørrelse'!M$9,$G50,0) -> 0.08964143426 | AY50: =OFFSET('Andel ift. virkstørrelse'!N$9,$G50,0) -> 0.6382057975 | AZ50: =OFFSET('Andel ift. virkstørrelse'!O$9,$G50,0)+OFFSET('Andel ift. virkstørrelse'!P$9,$G50,0) -> 0.2338920181 | BA50: =OFFSET('Andel ift. virkstørrelse'!Q$9,$G50,0) -> 0.0382607501 | BB50: 105.1290449 | BC50: 748.4704642 | BD50: 274.3022205 | BE50: 44.87117087
D51: 41 | E51: =IF(COUNTIF(F51:$F$1997,$F51)>1,0,1) -> 1 | F51: =Teknologikatalog!D56 -> 13-14-1 | G51: =Teknologikatalog!E56 -> 13 | H51: =Teknologikatalog!F56 -> 14 | I51: =Teknologikatalog!G56 -> 4 | J51: =Teknologikatalog!I56 -> Belysning | K51: =Teknologikatalog!J56 -> Udskiftning af armatur fra lysstofrør til LED-lyskilde | L51: =Teknologikatalog!K56 -> 0.3 | M51: =Teknologikatalog!L56 -> 0.35 | N51: =Teknologikatalog!M56 -> 0.4 | O51: =Teknologikatalog!N56 -> 0.3 | P51: =Teknologikatalog!O56 -> 0.3 | Q51: =Teknologikatalog!P56 -> 0.3 | R51: =Teknologikatalog!Q56 -> Øvrig anden fødevareindustri | S51: =Teknologikatalog!R56 -> 2.5 | T51: =Teknologikatalog!S56 -> 3.5 | U51: =Teknologikatalog!T56 -> 0 | V51: =Teknologikatalog!U56 -> 0 | W51: =Teknologikatalog!V56 -> 2015-cases | X51: =Teknologikatalog!W56 -> 0 | Y51: =Teknologikatalog!X56 -> 0 | Z51: =VLOOKUP(R51,Lister!$D$114:$E$171,2,FALSE) -> Fødevarer mv. | AA51: =SUMIFS(Energiforbrug!$N$10:$N$27393,Energiforbrug!$D$10:$D$27393,$G51,Energiforbrug!$E$10:$E$27393,$H51) -> 45428.48898 | AB51: =SUMIFS(Energiforbrug!$P$10:$P$27393,Energiforbrug!$D$10:$D$27393,$G51,Energiforbrug!$E$10:$E$27393,$H51) -> 5445937.551 | AC51: 119.879346 | AD51: =SUMIFS('Energiforbrug tværgående'!$G$10:$G$180,'Energiforbrug tværgående'!$D$10:$D$180,$J51,'Energiforbrug tværgående'!$E$10:$E$180,$R51)+IF(R51="På tværs",SUMIFS('Energiforbrug tværgående'!$G$10:$G$180,'Energiforbrug tværgående'!$D$10:$D$180,$J51),0) -> 0 | AE51: 0 | AF51: =IF(AD51>0,SUMIFS(EnergiBranche!$G$10:$G$66,EnergiBranche!$D$10:$D$66,$R51),0) -> 0 | AG51: =CHOOSE(Lister!$E$96,L51,M51,N51) -> 0.35 | AH51: =CHOOSE(Lister!$E$102,O51,P51,Q51) -> 0.3 | AI51: =IFERROR(AH51*AG51*#REF!,0) -> 0 | AJ51: =CHOOSE(Lister!$E$108,Potentialer!S51,Potentialer!T51)/GJ_kWh -> 694.4444444 | AK51: 0 | AL51: 16.55103276 | AM51: 4769.991343 | AN51: =IFERROR(IF(W51=Lister!$G$33,IF(AL51<=ThresholdTilbagebetalingstid,1,0),IF(AL51=ThresholdTilbagebetalingstid,1,0)),0) -> 0 | AO51: 0 | AP51: =IFERROR(IF($W51=Lister!$G$33,IF($AL51<=AP$10,$AG51*$AH51,0),IF($AL51=AP$10,$AG51*$AH51,0)),0) -> 0 | AQ51: =IFERROR(IF($W51=Lister!$G$33,IF($AL51<=AQ$10,$AG51*$AH51,0),IF($AL51=AQ$10,$AG51*$AH51,0)),0) -> 0 | AR51: =IFERROR(IF($W51=Lister!$G$33,IF($AL51<=AR$10,$AG51*$AH51,0),IF($AL51=AR$10,$AG51*$AH51,0)),0) -> 0 | AS51: 0 | AT51: 0 | AU51: 0 | AV51: 0 | AW51: 4769.991343 | AX51: =OFFSET('Andel ift. virkstørrelse'!M$9,$G51,0) -> 0.08602593126 | AY51: =OFFSET('Andel ift. virkstørrelse'!N$9,$G51,0) -> 0.2192838033 | AZ51: =OFFSET('Andel ift. virkstørrelse'!O$9,$G51,0)+OFFSET('Andel ift. virkstørrelse'!P$9,$G51,0) -> 0.550113192 | BA51: =OFFSET('Andel ift. virkstørrelse'!Q$9,$G51,0) -> 0.1445770735 | BB51: 410.3429474 | BC51: 1045.981843 | BD51: 2624.035164 | BE51: 689.6313889
D52: 42 | E52: =IF(COUNTIF(F52:$F$1997,$F52)>1,0,1) -> 1 | F52: =Teknologikatalog!D57 -> 14-14-1 | G52: =Teknologikatalog!E57 -> 14 | H52: =Teknologikatalog!F57 -> 14 | I52: =Teknologikatalog!G57 -> 4 | J52: =Teknologikatalog!I57 -> Belysning | K52: =Teknologikatalog!J57 -> Udskiftning af armatur fra lysstofrør til LED-lyskilde | L52: =Teknologikatalog!K57 -> 0.3 | M52: =Teknologikatalog!L57 -> 0.35 | N52: =Teknologikatalog!M57 -> 0.4 | O52: =Teknologikatalog!N57 -> 0.3 | P52: =Teknologikatalog!O57 -> 0.3 | Q52: =Teknologikatalog!P57 -> 0.3 | R52: =Teknologikatalog!Q57 -> Drikkevareindustri | S52: =Teknologikatalog!R57 -> 2.5 | T52: =Teknologikatalog!S57 -> 3.5 | U52: =Teknologikatalog!T57 -> 0 | V52: =Teknologikatalog!U57 -> 0 | W52: =Teknologikatalog!V57 -> 2015-cases | X52: =Teknologikatalog!W57 -> 0 | Y52: =Teknologikatalog!X57 -> 0 | Z52: =VLOOKUP(R52,Lister!$D$114:$E$171,2,FALSE) -> Fødevarer mv. | AA52: =SUMIFS(Energiforbrug!$N$10:$N$27393,Energiforbrug!$D$10:$D$27393,$G52,Energiforbrug!$E$10:$E$27393,$H52) -> 37952.81 | AB52: =SUMIFS(Energiforbrug!$P$10:$P$27393,Energiforbrug!$D$10:$D$27393,$G52,Energiforbrug!$E$10:$E$27393,$H52) -> 4618104.378 | AC52: 121.6801701 | AD52: =SUMIFS('Energiforbrug tværgående'!$G$10:$G$180,'Energiforbrug tværgående'!$D$10:$D$180,$J52,'Energiforbrug tværgående'!$E$10:$E$180,$R52)+IF(R52="På tværs",SUMIFS('Energiforbrug tværgående'!$G$10:$G$180,'Energiforbrug tværgående'!$D$10:$D$180,$J52),0) -> 0 | AE52: 0 | AF52: =IF(AD52>0,SUMIFS(EnergiBranche!$G$10:$G$66,EnergiBranche!$D$10:$D$66,$R52),0) -> 0 | AG52: =CHOOSE(Lister!$E$96,L52,M52,N52) -> 0.35 | AH52: =CHOOSE(Lister!$E$102,O52,P52,Q52) -> 0.3 | AI52: =IFERROR(AH52*AG52*#REF!,0) -> 0 | AJ52: =CHOOSE(Lister!$E$108,Potentialer!S52,Potentialer!T52)/GJ_kWh -> 694.4444444 | AK52: 0 | AL52: 16.30608325 | AM52: 3985.04505 | AN52: =IFERROR(IF(W52=Lister!$G$33,IF(AL52<=ThresholdTilbagebetalingstid,1,0),IF(AL52=ThresholdTilbagebetalingstid,1,0)),0) -> 0 | AO52: 0 | AP52: =IFERROR(IF($W52=Lister!$G$33,IF($AL52<=AP$10,$AG52*$AH52,0),IF($AL52=AP$10,$AG52*$AH52,0)),0) -> 0 | AQ52: =IFERROR(IF($W52=Lister!$G$33,IF($AL52<=AQ$10,$AG52*$AH52,0),IF($AL52=AQ$10,$AG52*$AH52,0)),0) -> 0 | AR52: =IFERROR(IF($W52=Lister!$G$33,IF($AL52<=AR$10,$AG52*$AH52,0),IF($AL52=AR$10,$AG52*$AH52,0)),0) -> 0 | AS52: 0 | AT52: 0 | AU52: 0 | AV52: 0 | AW52: 3985.04505 | AX52: =OFFSET('Andel ift. virkstørrelse'!M$9,$G52,0) -> 0.05230244457 | AY52: =OFFSET('Andel ift. virkstørrelse'!N$9,$G52,0) -> 0.1688459352 | AZ52: =OFFSET('Andel ift. virkstørrelse'!O$9,$G52,0)+OFFSET('Andel ift. virkstørrelse'!P$9,$G52,0) -> 0.3501989767 | BA52: =OFFSET('Andel ift. virkstørrelse'!Q$9,$G52,0) -> 0.4286526435 | BB52: 208.4275978 | BC52: 672.8586582 | BD52: 1395.558699 | BE52: 1708.200095
D53: 43 | E53: =IF(COUNTIF(F53:$F$1997,$F53)>1,0,1) -> 1 | F53: =Teknologikatalog!D58 -> 15-14-1 | G53: =Teknologikatalog!E58 -> 15 | H53: =Teknologikatalog!F58 -> 14 | I53: =Teknologikatalog!G58 -> 4 | J53: =Teknologikatalog!I58 -> Belysning | K53: =Teknologikatalog!J58 -> Udskiftning af armatur fra lysstofrør til LED-lyskilde | L53: =Teknologikatalog!K58 -> 0.3 | M53: =Teknologikatalog!L58 -> 0.35 | N53: =Teknologikatalog!M58 -> 0.4 | O53: =Teknologikatalog!N58 -> 0.3 | P53: =Teknologikatalog!O58 -> 0.3 | Q53: =Teknologikatalog!P58 -> 0.3 | R53: =Teknologikatalog!Q58 -> Tobaksindustri | S53: =Teknologikatalog!R58 -> 2.5 | T53: =Teknologikatalog!S58 -> 3.5 | U53: =Teknologikatalog!T58 -> 0 | V53: =Teknologikatalog!U58 -> 0 | W53: =Teknologikatalog!V58 -> 2015-cases | X53: =Teknologikatalog!W58 -> 0 | Y53: =Teknologikatalog!X58 -> 0 | Z53: =VLOOKUP(R53,Lister!$D$114:$E$171,2,FALSE) -> Fødevarer mv. | AA53: =SUMIFS(Energiforbrug!$N$10:$N$27393,Energiforbrug!$D$10:$D$27393,$G53,Energiforbrug!$E$10:$E$27393,$H53) -> 8836.01 | AB53: =SUMIFS(Energiforbrug!$P$10:$P$27393,Energiforbrug!$D$10:$D$27393,$G53,Energiforbrug!$E$10:$E$27393,$H53) -> 1424768.958 | AC53: 161.2457385 | AD53: =SUMIFS('Energiforbrug tværgående'!$G$10:$G$180,'Energiforbrug tværgående'!$D$10:$D$180,$J53,'Energiforbrug tværgående'!$E$10:$E$180,$R53)+IF(R53="På tværs",SUMIFS('Energiforbrug tværgående'!$G$10:$G$180,'Energiforbrug tværgående'!$D$10:$D$180,$J53),0) -> 0 | AE53: 0 | AF53: =IF(AD53>0,SUMIFS(EnergiBranche!$G$10:$G$66,EnergiBranche!$D$10:$D$66,$R53),0) -> 0 | AG53: =CHOOSE(Lister!$E$96,L53,M53,N53) -> 0.35 | AH53: =CHOOSE(Lister!$E$102,O53,P53,Q53) -> 0.3 | AI53: =IFERROR(AH53*AG53*#REF!,0) -> 0 | AJ53: =CHOOSE(Lister!$E$108,Potentialer!S53,Potentialer!T53)/GJ_kWh -> 694.4444444 | AK53: 0 | AL53: 12.30498866 | AM53: 927.78105 | AN53: =IFERROR(IF(W53=Lister!$G$33,IF(AL53<=ThresholdTilbagebetalingstid,1,0),IF(AL53=ThresholdTilbagebetalingstid,1,0)),0) -> 0 | AO53: 0 | AP53: =IFERROR(IF($W53=Lister!$G$33,IF($AL53<=AP$10,$AG53*$AH53,0),IF($AL53=AP$10,$AG53*$AH53,0)),0) -> 0 | AQ53: =IFERROR(IF($W53=Lister!$G$33,IF($AL53<=AQ$10,$AG53*$AH53,0),IF($AL53=AQ$10,$AG53*$AH53,0)),0) -> 0 | AR53: =IFERROR(IF($W53=Lister!$G$33,IF($AL53<=AR$10,$AG53*$AH53,0),IF($AL53=AR$10,$AG53*$AH53,0)),0) -> 0 | AS53: 0 | AT53: 0 | AU53: 0 | AV53: 0 | AW53: 927.78105 | AX53: =OFFSET('Andel ift. virkstørrelse'!M$9,$G53,0) -> 0.008547008547 | AY53: =OFFSET('Andel ift. virkstørrelse'!N$9,$G53,0) -> 0.0641025641 | AZ53: =OFFSET('Andel ift. virkstørrelse'!O$9,$G53,0)+OFFSET('Andel ift. virkstørrelse'!P$9,$G53,0) -> 0.9273504274 | BA53: =OFFSET('Andel ift. virkstørrelse'!Q$9,$G53,0) -> 0 | BB53: 7.929752564 | BC53: 59.47314423 | BD53: 860.3781532 | BE53: 0
D54: 44 | E54: =IF(COUNTIF(F54:$F$1997,$F54)>1,0,1) -> 1 | F54: =Teknologikatalog!D59 -> 16-14-1 | G54: =Teknologikatalog!E59 -> 16 | H54: =Teknologikatalog!F59 -> 14 | I54: =Teknologikatalog!G59 -> 4 | J54: =Teknologikatalog!I59 -> Belysning | K54: =Teknologikatalog!J59 -> Udskiftning af armatur fra lysstofrør til LED-lyskilde | L54: =Teknologikatalog!K59 -> 0.3 | M54: =Teknologikatalog!L59 -> 0.35 | N54: =Teknologikatalog!M59 -> 0.4 | O54: =Teknologikatalog!N59 -> 0.3 | P54: =Teknologikatalog!O59 -> 0.3 | Q54: =Teknologikatalog!P59 -> 0.3 | R54: =Teknologikatalog!Q59 -> Tekstilindustri | S54: =Teknologikatalog!R59 -> 2.5 | T54: =Teknologikatalog!S59 -> 3.5 | U54: =Teknologikatalog!T59 -> 0 | V54: =Teknologikatalog!U59 -> 0 | W54: =Teknologikatalog!V59 -> 2015-cases | X54: =Teknologikatalog!W59 -> 0 | Y54: =Teknologikatalog!X59 -> 0 | Z54: =VLOOKUP(R54,Lister!$D$114:$E$171,2,FALSE) -> Fremstilling | AA54: =SUMIFS(Energiforbrug!$N$10:$N$27393,Energiforbrug!$D$10:$D$27393,$G54,Energiforbrug!$E$10:$E$27393,$H54) -> 44888.4 | AB54: =SUMIFS(Energiforbrug!$P$10:$P$27393,Energiforbrug!$D$10:$D$27393,$G54,Energiforbrug!$E$10:$E$27393,$H54) -> 5558569.941 | AC54: 123.830877 | AD54: =SUMIFS('Energiforbrug tværgående'!$G$10:$G$180,'Energiforbrug tværgående'!$D$10:$D$180,$J54,'Energiforbrug tværgående'!$E$10:$E$180,$R54)+IF(R54="På tværs",SUMIFS('Energiforbrug tværgående'!$G$10:$G$180,'Energiforbrug tværgående'!$D$10:$D$180,$J54),0) -> 0 | AE54: 0 | AF54: =IF(AD54>0,SUMIFS(EnergiBranche!$G$10:$G$66,EnergiBranche!$D$10:$D$66,$R54),0) -> 0 | AG54: =CHOOSE(Lister!$E$96,L54,M54,N54) -> 0.35 | AH54: =CHOOSE(Lister!$E$102,O54,P54,Q54) -> 0.3 | AI54: =IFERROR(AH54*AG54*#REF!,0) -> 0 | AJ54: =CHOOSE(Lister!$E$108,Potentialer!S54,Potentialer!T54)/GJ_kWh -> 694.4444444 | AK54: 0 | AL54: 16.02287759 | AM54: 4713.282 | AN54: =IFERROR(IF(W54=Lister!$G$33,IF(AL54<=ThresholdTilbagebetalingstid,1,0),IF(AL54=ThresholdTilbagebetalingstid,1,0)),0) -> 0 | AO54: 0 | AP54: =IFERROR(IF($W54=Lister!$G$33,IF($AL54<=AP$10,$AG54*$AH54,0),IF($AL54=AP$10,$AG54*$AH54,0)),0) -> 0 | AQ54: =IFERROR(IF($W54=Lister!$G$33,IF($AL54<=AQ$10,$AG54*$AH54,0),IF($AL54=AQ$10,$AG54*$AH54,0)),0) -> 0 | AR54: =IFERROR(IF($W54=Lister!$G$33,IF($AL54<=AR$10,$AG54*$AH54,0),IF($AL54=AR$10,$AG54*$AH54,0)),0) -> 0 | AS54: 0 | AT54: 0 | AU54: 0 | AV54: 0 | AW54: 4713.282 | AX54: =OFFSET('Andel ift. virkstørrelse'!M$9,$G54,0) -> 0.229455081 | AY54: =OFFSET('Andel ift. virkstørrelse'!N$9,$G54,0) -> 0.3976435935 | AZ54: =OFFSET('Andel ift. virkstørrelse'!O$9,$G54,0)+OFFSET('Andel ift. virkstørrelse'!P$9,$G54,0) -> 0.3729013255 | BA54: =OFFSET('Andel ift. virkstørrelse'!Q$9,$G54,0) -> 0 | BB54: 1081.486503 | BC54: 1874.206392 | BD54: 1757.589105 | BE54: 0
D55: 45 | E55: =IF(COUNTIF(F55:$F$1997,$F55)>1,0,1) -> 1 | F55: =Teknologikatalog!D60 -> 17-14-1 | G55: =Teknologikatalog!E60 -> 17 | H55: =Teknologikatalog!F60 -> 14 | I55: =Teknologikatalog!G60 -> 4 | J55: =Teknologikatalog!I60 -> Belysning | K55: =Teknologikatalog!J60 -> Udskiftning af armatur fra lysstofrør til LED-lyskilde | L55: =Teknologikatalog!K60 -> 0.3 | M55: =Teknologikatalog!L60 -> 0.35 | N55: =Teknologikatalog!M60 -> 0.4 | O55: =Teknologikatalog!N60 -> 0.3 | P55: =Teknologikatalog!O60 -> 0.3 | Q55: =Teknologikatalog!P60 -> 0.3 | R55: =Teknologikatalog!Q60 -> Beklædningsindustri m.v. | S55: =Teknologikatalog!R60 -> 2.5 | T55: =Teknologikatalog!S60 -> 3.5 | U55: =Teknologikatalog!T60 -> 0 | V55: =Teknologikatalog!U60 -> 0 | W55: =Teknologikatalog!V60 -> 2015-cases | X55: =Teknologikatalog!W60 -> 0 | Y55: =Teknologikatalog!X60 -> 0 | Z55: =VLOOKUP(R55,Lister!$D$114:$E$171,2,FALSE) -> Fremstilling | AA55: =SUMIFS(Energiforbrug!$N$10:$N$27393,Energiforbrug!$D$10:$D$27393,$G55,Energiforbrug!$E$10:$E$27393,$H55) -> 4375.62 | AB55: =SUMIFS(Energiforbrug!$P$10:$P$27393,Energiforbrug!$D$10:$D$27393,$G55,Energiforbrug!$E$10:$E$27393,$H55) -> 631639.5762 | AC55: 144.3543032 | AD55: =SUMIFS('Energiforbrug tværgående'!$G$10:$G$180,'Energiforbrug tværgående'!$D$10:$D$180,$J55,'Energiforbrug tværgående'!$E$10:$E$180,$R55)+IF(R55="På tværs",SUMIFS('Energiforbrug tværgående'!$G$10:$G$180,'Energiforbrug tværgående'!$D$10:$D$180,$J55),0) -> 0 | AE55: 0 | AF55: =IF(AD55>0,SUMIFS(EnergiBranche!$G$10:$G$66,EnergiBranche!$D$10:$D$66,$R55),0) -> 0 | AG55: =CHOOSE(Lister!$E$96,L55,M55,N55) -> 0.35 | AH55: =CHOOSE(Lister!$E$102,O55,P55,Q55) -> 0.3 | AI55: =IFERROR(AH55*AG55*#REF!,0) -> 0 | AJ55: =CHOOSE(Lister!$E$108,Potentialer!S55,Potentialer!T55)/GJ_kWh -> 694.4444444 | AK55: 0 | AL55: 13.74484127 | AM55: 459.4401 | AN55: =IFERROR(IF(W55=Lister!$G$33,IF(AL55<=ThresholdTilbagebetalingstid,1,0),IF(AL55=ThresholdTilbagebetalingstid,1,0)),0) -> 0 | AO55: 0 | AP55: =IFERROR(IF($W55=Lister!$G$33,IF($AL55<=AP$10,$AG55*$AH55,0),IF($AL55=AP$10,$AG55*$AH55,0)),0) -> 0 | AQ55: =IFERROR(IF($W55=Lister!$G$33,IF($AL55<=AQ$10,$AG55*$AH55,0),IF($AL55=AQ$10,$AG55*$AH55,0)),0) -> 0 | AR55: =IFERROR(IF($W55=Lister!$G$33,IF($AL55<=AR$10,$AG55*$AH55,0),IF($AL55=AR$10,$AG55*$AH55,0)),0) -> 0 | AS55: 0 | AT55: 0 | AU55: 0 | AV55: 0 | AW55: 459.4401 | AX55: =OFFSET('Andel ift. virkstørrelse'!M$9,$G55,0) -> 0.3924185798 | AY55: =OFFSET('Andel ift. virkstørrelse'!N$9,$G55,0) -> 0.3780032034 | AZ55: =OFFSET('Andel ift. virkstørrelse'!O$9,$G55,0)+OFFSET('Andel ift. virkstørrelse'!P$9,$G55,0) -> 0.2295782168 | BA55: =OFFSET('Andel ift. virkstørrelse'!Q$9,$G55,0) -> 0 | BB55: 180.2928316 | BC55: 173.6698296 | BD55: 105.4774389 | BE55: 0
D56: 46 | E56: =IF(COUNTIF(F56:$F$1997,$F56)>1,0,1) -> 1 | F56: =Teknologikatalog!D61 -> 18-14-1 | G56: =Teknologikatalog!E61 -> 18 | H56: =Teknologikatalog!F61 -> 14 | I56: =Teknologikatalog!G61 -> 4 | J56: =Teknologikatalog!I61 -> Belysning | K56: =Teknologikatalog!J61 -> Udskiftning af armatur fra lysstofrør til LED-lyskilde | L56: =Teknologikatalog!K61 -> 0.3 | M56: =Teknologikatalog!L61 -> 0.35 | N56: =Teknologikatalog!M61 -> 0.4 | O56: =Teknologikatalog!N61 -> 0.3 | P56: =Teknologikatalog!O61 -> 0.3 | Q56: =Teknologikatalog!P61 -> 0.3 | R56: =Teknologikatalog!Q61 -> Træindustri | S56: =Teknologikatalog!R61 -> 2.5 | T56: =Teknologikatalog!S61 -> 3.5 | U56: =Teknologikatalog!T61 -> 0 | V56: =Teknologikatalog!U61 -> 0 | W56: =Teknologikatalog!V61 -> 2015-cases | X56: =Teknologikatalog!W61 -> 0 | Y56: =Teknologikatalog!X61 -> 0 | Z56: =VLOOKUP(R56,Lister!$D$114:$E$171,2,FALSE) -> Træ+papir | AA56: =SUMIFS(Energiforbrug!$N$10:$N$27393,Energiforbrug!$D$10:$D$27393,$G56,Energiforbrug!$E$10:$E$27393,$H56) -> 54607.21 | AB56: =SUMIFS(Energiforbrug!$P$10:$P$27393,Energiforbrug!$D$10:$D$27393,$G56,Energiforbrug!$E$10:$E$27393,$H56) -> 7664100.872 | AC56: 140.3496145 | AD56: =SUMIFS('Energiforbrug tværgående'!$G$10:$G$180,'Energiforbrug tværgående'!$D$10:$D$180,$J56,'Energiforbrug tværgående'!$E$10:$E$180,$R56)+IF(R56="På tværs",SUMIFS('Energiforbrug tværgående'!$G$10:$G$180,'Energiforbrug tværgående'!$D$10:$D$180,$J56),0) -> 0 | AE56: 0 | AF56: =IF(AD56>0,SUMIFS(EnergiBranche!$G$10:$G$66,EnergiBranche!$D$10:$D$66,$R56),0) -> 0 | AG56: =CHOOSE(Lister!$E$96,L56,M56,N56) -> 0.35 | AH56: =CHOOSE(Lister!$E$102,O56,P56,Q56) -> 0.3 | AI56: =IFERROR(AH56*AG56*#REF!,0) -> 0 | AJ56: =CHOOSE(Lister!$E$108,Potentialer!S56,Potentialer!T56)/GJ_kWh -> 694.4444444 | AK56: 0 | AL56: 14.13703195 | AM56: 5733.75705 | AN56: =IFERROR(IF(W56=Lister!$G$33,IF(AL56<=ThresholdTilbagebetalingstid,1,0),IF(AL56=ThresholdTilbagebetalingstid,1,0)),0) -> 0 | AO56: 0 | AP56: =IFERROR(IF($W56=Lister!$G$33,IF($AL56<=AP$10,$AG56*$AH56,0),IF($AL56=AP$10,$AG56*$AH56,0)),0) -> 0 | AQ56: =IFERROR(IF($W56=Lister!$G$33,IF($AL56<=AQ$10,$AG56*$AH56,0),IF($AL56=AQ$10,$AG56*$AH56,0)),0) -> 0 | AR56: =IFERROR(IF($W56=Lister!$G$33,IF($AL56<=AR$10,$AG56*$AH56,0),IF($AL56=AR$10,$AG56*$AH56,0)),0) -> 0 | AS56: 0 | AT56: 0 | AU56: 0 | AV56: 0 | AW56: 5733.75705 | AX56: =OFFSET('Andel ift. virkstørrelse'!M$9,$G56,0) -> 0.1278462998 | AY56: =OFFSET('Andel ift. virkstørrelse'!N$9,$G56,0) -> 0.2967267552 | AZ56: =OFFSET('Andel ift. virkstørrelse'!O$9,$G56,0)+OFFSET('Andel ift. virkstørrelse'!P$9,$G56,0) -> 0.435483871 | BA56: =OFFSET('Andel ift. virkstørrelse'!Q$9,$G56,0) -> 0.139943074 | BB56: 733.0396229 | BC56: 1701.359125 | BD56: 2496.958715 | BE56: 802.3995872
D57: 47 | E57: =IF(COUNTIF(F57:$F$1997,$F57)>1,0,1) -> 1 | F57: =Teknologikatalog!D62 -> 19-14-1 | G57: =Teknologikatalog!E62 -> 19 | H57: =Teknologikatalog!F62 -> 14 | I57: =Teknologikatalog!G62 -> 4 | J57: =Teknologikatalog!I62 -> Belysning | K57: =Teknologikatalog!J62 -> Udskiftning af armatur fra lysstofrør til LED-lyskilde | L57: =Teknologikatalog!K62 -> 0.3 | M57: =Teknologikatalog!L62 -> 0.35 | N57: =Teknologikatalog!M62 -> 0.4 | O57: =Teknologikatalog!N62 -> 0.3 | P57: =Teknologikatalog!O62 -> 0.3 | Q57: =Teknologikatalog!P62 -> 0.3 | R57: =Teknologikatalog!Q62 -> Papirindustri | S57: =Teknologikatalog!R62 -> 2.5 | T57: =Teknologikatalog!S62 -> 3.5 | U57: =Teknologikatalog!T62 -> 0 | V57: =Teknologikatalog!U62 -> 0 | W57: =Teknologikatalog!V62 -> 2015-cases | X57: =Teknologikatalog!W62 -> 0 | Y57: =Teknologikatalog!X62 -> 0 | Z57: =VLOOKUP(R57,Lister!$D$114:$E$171,2,FALSE) -> Træ+papir | AA57: =SUMIFS(Energiforbrug!$N$10:$N$27393,Energiforbrug!$D$10:$D$27393,$G57,Energiforbrug!$E$10:$E$27393,$H57) -> 35715.04236 | AB57: =SUMIFS(Energiforbrug!$P$10:$P$27393,Energiforbrug!$D$10:$D$27393,$G57,Energiforbrug!$E$10:$E$27393,$H57) -> 3719095.095 | AC57: 104.1324565 | AD57: =SUMIFS('Energiforbrug tværgående'!$G$10:$G$180,'Energiforbrug tværgående'!$D$10:$D$180,$J57,'Energiforbrug tværgående'!$E$10:$E$180,$R57)+IF(R57="På tværs",SUMIFS('Energiforbrug tværgående'!$G$10:$G$180,'Energiforbrug tværgående'!$D$10:$D$180,$J57),0) -> 0 | AE57: 0 | AF57: =IF(AD57>0,SUMIFS(EnergiBranche!$G$10:$G$66,EnergiBranche!$D$10:$D$66,$R57),0) -> 0 | AG57: =CHOOSE(Lister!$E$96,L57,M57,N57) -> 0.35 | AH57: =CHOOSE(Lister!$E$102,O57,P57,Q57) -> 0.3 | AI57: =IFERROR(AH57*AG57*#REF!,0) -> 0 | AJ57: =CHOOSE(Lister!$E$108,Potentialer!S57,Potentialer!T57)/GJ_kWh -> 694.4444444 | AK57: 0 | AL57: 19.05387668 | AM57: 3750.079448 | AN57: =IFERROR(IF(W57=Lister!$G$33,IF(AL57<=ThresholdTilbagebetalingstid,1,0),IF(AL57=ThresholdTilbagebetalingstid,1,0)),0) -> 0 | AO57: 0 | AP57: =IFERROR(IF($W57=Lister!$G$33,IF($AL57<=AP$10,$AG57*$AH57,0),IF($AL57=AP$10,$AG57*$AH57,0)),0) -> 0 | AQ57: =IFERROR(IF($W57=Lister!$G$33,IF($AL57<=AQ$10,$AG57*$AH57,0),IF($AL57=AQ$10,$AG57*$AH57,0)),0) -> 0 | AR57: =IFERROR(IF($W57=Lister!$G$33,IF($AL57<=AR$10,$AG57*$AH57,0),IF($AL57=AR$10,$AG57*$AH57,0)),0) -> 0 | AS57: 0 | AT57: 0 | AU57: 0 | AV57: 0 | AW57: 3750.079448 | AX57: =OFFSET('Andel ift. virkstørrelse'!M$9,$G57,0) -> 0.05256355019 | AY57: =OFFSET('Andel ift. virkstørrelse'!N$9,$G57,0) -> 0.2985781991 | AZ57: =OFFSET('Andel ift. virkstørrelse'!O$9,$G57,0)+OFFSET('Andel ift. virkstørrelse'!P$9,$G57,0) -> 0.3735458854 | BA57: =OFFSET('Andel ift. virkstørrelse'!Q$9,$G57,0) -> 0.2753123654 | BB57: 197.1174893 | BC57: 1119.691968 | BD57: 1400.826748 | BE57: 1032.443243
D58: 48 | E58: =IF(COUNTIF(F58:$F$1997,$F58)>1,0,1) -> 1 | F58: =Teknologikatalog!D63 -> 20-14-1 | G58: =Teknologikatalog!E63 -> 20 | H58: =Teknologikatalog!F63 -> 14 | I58: =Teknologikatalog!G63 -> 4 | J58: =Teknologikatalog!I63 -> Belysning | K58: =Teknologikatalog!J63 -> Udskiftning af armatur fra lysstofrør til LED-lyskilde | L58: =Teknologikatalog!K63 -> 0.3 | M58: =Teknologikatalog!L63 -> 0.35 | N58: =Teknologikatalog!M63 -> 0.4 | O58: =Teknologikatalog!N63 -> 0.3 | P58: =Teknologikatalog!O63 -> 0.3 | Q58: =Teknologikatalog!P63 -> 0.3 | R58: =Teknologikatalog!Q63 -> Trykkerier | S58: =Teknologikatalog!R63 -> 2.5 | T58: =Teknologikatalog!S63 -> 3.5 | U58: =Teknologikatalog!T63 -> 0 | V58: =Teknologikatalog!U63 -> 0 | W58: =Teknologikatalog!V63 -> 2015-cases | X58: =Teknologikatalog!W63 -> 0 | Y58: =Teknologikatalog!X63 -> 0 | Z58: =VLOOKUP(R58,Lister!$D$114:$E$171,2,FALSE) -> Fremstilling | AA58: =SUMIFS(Energiforbrug!$N$10:$N$27393,Energiforbrug!$D$10:$D$27393,$G58,Energiforbrug!$E$10:$E$27393,$H58) -> 67089.54 | AB58: =SUMIFS(Energiforbrug!$P$10:$P$27393,Energiforbrug!$D$10:$D$27393,$G58,Energiforbrug!$E$10:$E$27393,$H58) -> 7664097.002 | AC58: 114.2368393 | AD58: =SUMIFS('Energiforbrug tværgående'!$G$10:$G$180,'Energiforbrug tværgående'!$D$10:$D$180,$J58,'Energiforbrug tværgående'!$E$10:$E$180,$R58)+IF(R58="På tværs",SUMIFS('Energiforbrug tværgående'!$G$10:$G$180,'Energiforbrug tværgående'!$D$10:$D$180,$J58),0) -> 0 | AE58: 0 | AF58: =IF(AD58>0,SUMIFS(EnergiBranche!$G$10:$G$66,EnergiBranche!$D$10:$D$66,$R58),0) -> 0 | AG58: =CHOOSE(Lister!$E$96,L58,M58,N58) -> 0.35 | AH58: =CHOOSE(Lister!$E$102,O58,P58,Q58) -> 0.3 | AI58: =IFERROR(AH58*AG58*#REF!,0) -> 0 | AJ58: =CHOOSE(Lister!$E$108,Potentialer!S58,Potentialer!T58)/GJ_kWh -> 694.4444444 | AK58: 0 | AL58: 17.36853887 | AM58: 7044.4017 | AN58: =IFERROR(IF(W58=Lister!$G$33,IF(AL58<=ThresholdTilbagebetalingstid,1,0),IF(AL58=ThresholdTilbagebetalingstid,1,0)),0) -> 0 | AO58: 0 | AP58: =IFERROR(IF($W58=Lister!$G$33,IF($AL58<=AP$10,$AG58*$AH58,0),IF($AL58=AP$10,$AG58*$AH58,0)),0) -> 0 | AQ58: =IFERROR(IF($W58=Lister!$G$33,IF($AL58<=AQ$10,$AG58*$AH58,0),IF($AL58=AQ$10,$AG58*$AH58,0)),0) -> 0 | AR58: =IFERROR(IF($W58=Lister!$G$33,IF($AL58<=AR$10,$AG58*$AH58,0),IF($AL58=AR$10,$AG58*$AH58,0)),0) -> 0 | AS58: 0 | AT58: 0 | AU58: 0 | AV58: 0 | AW58: 7044.4017 | AX58: =OFFSET('Andel ift. virkstørrelse'!M$9,$G58,0) -> 0.2139447236 | AY58: =OFFSET('Andel ift. virkstørrelse'!N$9,$G58,0) -> 0.3677135678 | AZ58: =OFFSET('Andel ift. virkstørrelse'!O$9,$G58,0)+OFFSET('Andel ift. virkstørrelse'!P$9,$G58,0) -> 0.2927135678 | BA58: =OFFSET('Andel ift. virkstørrelse'!Q$9,$G58,0) -> 0.1256281407 | BB58: 1507.112575 | BC58: 2590.322082 | BD58: 2061.991955 | BE58: 884.9750879
D59: 49 | E59: =IF(COUNTIF(F59:$F$1997,$F59)>1,0,1) -> 1 | F59: =Teknologikatalog!D64 -> 21-14-1 | G59: =Teknologikatalog!E64 -> 21 | H59: =Teknologikatalog!F64 -> 14 | I59: =Teknologikatalog!G64 -> 4 | J59: =Teknologikatalog!I64 -> Belysning | K59: =Teknologikatalog!J64 -> Udskiftning af armatur fra lysstofrør til LED-lyskilde | L59: =Teknologikatalog!K64 -> 0.3 | M59: =Teknologikatalog!L64 -> 0.35 | N59: =Teknologikatalog!M64 -> 0.4 | O59: =Teknologikatalog!N64 -> 0.3 | P59: =Teknologikatalog!O64 -> 0.3 | Q59: =Teknologikatalog!P64 -> 0.3 | R59: =Teknologikatalog!Q64 -> Fremstilling af industrigasser | S59: =Teknologikatalog!R64 -> 2.5 | T59: =Teknologikatalog!S64 -> 3.5 | U59: =Teknologikatalog!T64 -> 0 | V59: =Teknologikatalog!U64 -> 0 | W59: =Teknologikatalog!V64 -> 2015-cases | X59: =Teknologikatalog!W64 -> 0 | Y59: =Teknologikatalog!X64 -> 0 | Z59: =VLOOKUP(R59,Lister!$D$114:$E$171,2,FALSE) -> Kemi+farma | AA59: =SUMIFS(Energiforbrug!$N$10:$N$27393,Energiforbrug!$D$10:$D$27393,$G59,Energiforbrug!$E$10:$E$27393,$H59) -> 4073.59772 | AB59: =SUMIFS(Energiforbrug!$P$10:$P$27393,Energiforbrug!$D$10:$D$27393,$G59,Energiforbrug!$E$10:$E$27393,$H59) -> 391595.173 | AC59: 96.13005505 | AD59: =SUMIFS('Energiforbrug tværgående'!$G$10:$G$180,'Energiforbrug tværgående'!$D$10:$D$180,$J59,'Energiforbrug tværgående'!$E$10:$E$180,$R59)+IF(R59="På tværs",SUMIFS('Energiforbrug tværgående'!$G$10:$G$180,'Energiforbrug tværgående'!$D$10:$D$180,$J59),0) -> 0 | AE59: 0 | AF59: =IF(AD59>0,SUMIFS(EnergiBranche!$G$10:$G$66,EnergiBranche!$D$10:$D$66,$R59),0) -> 0 | AG59: =CHOOSE(Lister!$E$96,L59,M59,N59) -> 0.35 | AH59: =CHOOSE(Lister!$E$102,O59,P59,Q59) -> 0.3 | AI59: =IFERROR(AH59*AG59*#REF!,0) -> 0 | AJ59: =CHOOSE(Lister!$E$108,Potentialer!S59,Potentialer!T59)/GJ_kWh -> 694.4444444 | AK59: 0 | AL59: 20.64002755 | AM59: 427.7277606 | AN59: =IFERROR(IF(W59=Lister!$G$33,IF(AL59<=ThresholdTilbagebetalingstid,1,0),IF(AL59=ThresholdTilbagebetalingstid,1,0)),0) -> 0 | AO59: 0 | AP59: =IFERROR(IF($W59=Lister!$G$33,IF($AL59<=AP$10,$AG59*$AH59,0),IF($AL59=AP$10,$AG59*$AH59,0)),0) -> 0 | AQ59: =IFERROR(IF($W59=Lister!$G$33,IF($AL59<=AQ$10,$AG59*$AH59,0),IF($AL59=AQ$10,$AG59*$AH59,0)),0) -> 0 | AR59: =IFERROR(IF($W59=Lister!$G$33,IF($AL59<=AR$10,$AG59*$AH59,0),IF($AL59=AR$10,$AG59*$AH59,0)),0) -> 0 | AS59: 0 | AT59: 0 | AU59: 0 | AV59: 0 | AW59: 427.7277606 | AX59: =OFFSET('Andel ift. virkstørrelse'!M$9,$G59,0) -> 0.01757899421 | AY59: =OFFSET('Andel ift. virkstørrelse'!N$9,$G59,0) -> 0.06853582555 | AZ59: =OFFSET('Andel ift. virkstørrelse'!O$9,$G59,0)+OFFSET('Andel ift. virkstørrelse'!P$9,$G59,0) -> 0.2389853138 | BA59: =OFFSET('Andel ift. virkstørrelse'!Q$9,$G59,0) -> 0.6748998665 | BB59: 7.519023829 | BC59: 29.31467518 | BD59: 102.2206531 | BE59: 288.6734085
D60: 50 | E60: =IF(COUNTIF(F60:$F$1997,$F60)>1,0,1) -> 1 | F60: =Teknologikatalog!D65 -> 22-14-1 | G60: =Teknologikatalog!E65 -> 22 | H60: =Teknologikatalog!F65 -> 14 | I60: =Teknologikatalog!G65 -> 4 | J60: =Teknologikatalog!I65 -> Belysning | K60: =Teknologikatalog!J65 -> Udskiftning af armatur fra lysstofrør til LED-lyskilde | L60: =Teknologikatalog!K65 -> 0.3 | M60: =Teknologikatalog!L65 -> 0.35 | N60: =Teknologikatalog!M65 -> 0.4 | O60: =Teknologikatalog!N65 -> 0.3 | P60: =Teknologikatalog!O65 -> 0.3 | Q60: =Teknologikatalog!P65 -> 0.3 | R60: =Teknologikatalog!Q65 -> Fremstilling af enzymer | S60: =Teknologikatalog!R65 -> 2.5 | T60: =Teknologikatalog!S65 -> 3.5 | U60: =Teknologikatalog!T65 -> 0 | V60: =Teknologikatalog!U65 -> 0 | W60: =Teknologikatalog!V65 -> 2015-cases | X60: =Teknologikatalog!W65 -> 0 | Y60: =Teknologikatalog!X65 -> 0 | Z60: =VLOOKUP(R60,Lister!$D$114:$E$171,2,FALSE) -> Kemi+farma | AA60: =SUMIFS(Energiforbrug!$N$10:$N$27393,Energiforbrug!$D$10:$D$27393,$G60,Energiforbrug!$E$10:$E$27393,$H60) -> 6843.157621 | AB60: =SUMIFS(Energiforbrug!$P$10:$P$27393,Energiforbrug!$D$10:$D$27393,$G60,Energiforbrug!$E$10:$E$27393,$H60) -> 657833.1188 | AC60: 96.13005505 | AD60: =SUMIFS('Energiforbrug tværgående'!$G$10:$G$180,'Energiforbrug tværgående'!$D$10:$D$180,$J60,'Energiforbrug tværgående'!$E$10:$E$180,$R60)+IF(R60="På tværs",SUMIFS('Energiforbrug tværgående'!$G$10:$G$180,'Energiforbrug tværgående'!$D$10:$D$180,$J60),0) -> 0 | AE60: 0 | AF60: =IF(AD60>0,SUMIFS(EnergiBranche!$G$10:$G$66,EnergiBranche!$D$10:$D$66,$R60),0) -> 0 | AG60: =CHOOSE(Lister!$E$96,L60,M60,N60) -> 0.35 | AH60: =CHOOSE(Lister!$E$102,O60,P60,Q60) -> 0.3 | AI60: =IFERROR(AH60*AG60*#REF!,0) -> 0 | AJ60: =CHOOSE(Lister!$E$108,Potentialer!S60,Potentialer!T60)/GJ_kWh -> 694.4444444 | AK60: 0 | AL60: 20.64002755 | AM60: 718.5315502 | AN60: =IFERROR(IF(W60=Lister!$G$33,IF(AL60<=ThresholdTilbagebetalingstid,1,0),IF(AL60=ThresholdTilbagebetalingstid,1,0)),0) -> 0 | AO60: 0 | AP60: =IFERROR(IF($W60=Lister!$G$33,IF($AL60<=AP$10,$AG60*$AH60,0),IF($AL60=AP$10,$AG60*$AH60,0)),0) -> 0 | AQ60: =IFERROR(IF($W60=Lister!$G$33,IF($AL60<=AQ$10,$AG60*$AH60,0),IF($AL60=AQ$10,$AG60*$AH60,0)),0) -> 0 | AR60: =IFERROR(IF($W60=Lister!$G$33,IF($AL60<=AR$10,$AG60*$AH60,0),IF($AL60=AR$10,$AG60*$AH60,0)),0) -> 0 | AS60: 0 | AT60: 0 | AU60: 0 | AV60: 0 | AW60: 718.5315502 | AX60: =OFFSET('Andel ift. virkstørrelse'!M$9,$G60,0) -> 0.01757899421 | AY60: =OFFSET('Andel ift. virkstørrelse'!N$9,$G60,0) -> 0.06853582555 | AZ60: =OFFSET('Andel ift. virkstørrelse'!O$9,$G60,0)+OFFSET('Andel ift. virkstørrelse'!P$9,$G60,0) -> 0.2389853138 | BA60: =OFFSET('Andel ift. virkstørrelse'!Q$9,$G60,0) -> 0.6748998665 | BB60: 12.63106196 | BC60: 49.24515297 | BD60: 171.718488 | BE60: 484.9368473
D61: 51 | E61: =IF(COUNTIF(F61:$F$1997,$F61)>1,0,1) -> 1 | F61: =Teknologikatalog!D66 -> 23-14-1 | G61: =Teknologikatalog!E66 -> 23 | H61: =Teknologikatalog!F66 -> 14 | I61: =Teknologikatalog!G66 -> 4 | J61: =Teknologikatalog!I66 -> Belysning | K61: =Teknologikatalog!J66 -> Udskiftning af armatur fra lysstofrør til LED-lyskilde | L61: =Teknologikatalog!K66 -> 0.3 | M61: =Teknologikatalog!L66 -> 0.35 | N61: =Teknologikatalog!M66 -> 0.4 | O61: =Teknologikatalog!N66 -> 0.3 | P61: =Teknologikatalog!O66 -> 0.3 | Q61: =Teknologikatalog!P66 -> 0.3 | R61: =Teknologikatalog!Q66 -> Øvrige basiskemikalier | S61: =Teknologikatalog!R66 -> 2.5 | T61: =Teknologikatalog!S66 -> 3.5 | U61: =Teknologikatalog!T66 -> 0 | V61: =Teknologikatalog!U66 -> 0 | W61: =Teknologikatalog!V66 -> 2015-cases | X61: =Teknologikatalog!W66 -> 0 | Y61: =Teknologikatalog!X66 -> 0 | Z61: =VLOOKUP(R61,Lister!$D$114:$E$171,2,FALSE) -> Kemi+farma | AA61: =SUMIFS(Energiforbrug!$N$10:$N$27393,Energiforbrug!$D$10:$D$27393,$G61,Energiforbrug!$E$10:$E$27393,$H61) -> 8222.963829 | AB61: =SUMIFS(Energiforbrug!$P$10:$P$27393,Energiforbrug!$D$10:$D$27393,$G61,Energiforbrug!$E$10:$E$27393,$H61) -> 790473.9655 | AC61: 96.13005505 | AD61: =SUMIFS('Energiforbrug tværgående'!$G$10:$G$180,'Energiforbrug tværgående'!$D$10:$D$180,$J61,'Energiforbrug tværgående'!$E$10:$E$180,$R61)+IF(R61="På tværs",SUMIFS('Energiforbrug tværgående'!$G$10:$G$180,'Energiforbrug tværgående'!$D$10:$D$180,$J61),0) -> 0 | AE61: 0 | AF61: =IF(AD61>0,SUMIFS(EnergiBranche!$G$10:$G$66,EnergiBranche!$D$10:$D$66,$R61),0) -> 0 | AG61: =CHOOSE(Lister!$E$96,L61,M61,N61) -> 0.35 | AH61: =CHOOSE(Lister!$E$102,O61,P61,Q61) -> 0.3 | AI61: =IFERROR(AH61*AG61*#REF!,0) -> 0 | AJ61: =CHOOSE(Lister!$E$108,Potentialer!S61,Potentialer!T61)/GJ_kWh -> 694.4444444 | AK61: 0 | AL61: 20.64002755 | AM61: 863.411202 | AN61: =IFERROR(IF(W61=Lister!$G$33,IF(AL61<=ThresholdTilbagebetalingstid,1,0),IF(AL61=ThresholdTilbagebetalingstid,1,0)),0) -> 0 | AO61: 0 | AP61: =IFERROR(IF($W61=Lister!$G$33,IF($AL61<=AP$10,$AG61*$AH61,0),IF($AL61=AP$10,$AG61*$AH61,0)),0) -> 0 | AQ61: =IFERROR(IF($W61=Lister!$G$33,IF($AL61<=AQ$10,$AG61*$AH61,0),IF($AL61=AQ$10,$AG61*$AH61,0)),0) -> 0 | AR61: =IFERROR(IF($W61=Lister!$G$33,IF($AL61<=AR$10,$AG61*$AH61,0),IF($AL61=AR$10,$AG61*$AH61,0)),0) -> 0 | AS61: 0 | AT61: 0 | AU61: 0 | AV61: 0 | AW61: 863.411202 | AX61: =OFFSET('Andel ift. virkstørrelse'!M$9,$G61,0) -> 0.01757899421 | AY61: =OFFSET('Andel ift. virkstørrelse'!N$9,$G61,0) -> 0.06853582555 | AZ61: =OFFSET('Andel ift. virkstørrelse'!O$9,$G61,0)+OFFSET('Andel ift. virkstørrelse'!P$9,$G61,0) -> 0.2389853138 | BA61: =OFFSET('Andel ift. virkstørrelse'!Q$9,$G61,0) -> 0.6748998665 | BB61: 15.17790053 | BC61: 59.17459952 | BD61: 206.342597 | BE61: 582.716105
D62: 52 | E62: =IF(COUNTIF(F62:$F$1997,$F62)>1,0,1) -> 1 | F62: =Teknologikatalog!D67 -> 24-14-1 | G62: =Teknologikatalog!E67 -> 24 | H62: =Teknologikatalog!F67 -> 14 | I62: =Teknologikatalog!G67 -> 4 | J62: =Teknologikatalog!I67 -> Belysning | K62: =Teknologikatalog!J67 -> Udskiftning af armatur fra lysstofrør til LED-lyskilde | L62: =Teknologikatalog!K67 -> 0.3 | M62: =Teknologikatalog!L67 -> 0.35 | N62: =Teknologikatalog!M67 -> 0.4 | O62: =Teknologikatalog!N67 -> 0.3 | P62: =Teknologikatalog!O67 -> 0.3 | Q62: =Teknologikatalog!P67 -> 0.3 | R62: =Teknologikatalog!Q67 -> Fremstilling af maling og sæbe mv. | S62: =Teknologikatalog!R67 -> 2.5 | T62: =Teknologikatalog!S67 -> 3.5 | U62: =Teknologikatalog!T67 -> 0 | V62: =Teknologikatalog!U67 -> 0 | W62: =Teknologikatalog!V67 -> 2015-cases | X62: =Teknologikatalog!W67 -> 0 | Y62: =Teknologikatalog!X67 -> 0 | Z62: =VLOOKUP(R62,Lister!$D$114:$E$171,2,FALSE) -> Kemi+farma | AA62: =SUMIFS(Energiforbrug!$N$10:$N$27393,Energiforbrug!$D$10:$D$27393,$G62,Energiforbrug!$E$10:$E$27393,$H62) -> 57167.7 | AB62: =SUMIFS(Energiforbrug!$P$10:$P$27393,Energiforbrug!$D$10:$D$27393,$G62,Energiforbrug!$E$10:$E$27393,$H62) -> 8457180.837 | AC62: 147.9363493 | AD62: =SUMIFS('Energiforbrug tværgående'!$G$10:$G$180,'Energiforbrug tværgående'!$D$10:$D$180,$J62,'Energiforbrug tværgående'!$E$10:$E$180,$R62)+IF(R62="På tværs",SUMIFS('Energiforbrug tværgående'!$G$10:$G$180,'Energiforbrug tværgående'!$D$10:$D$180,$J62),0) -> 0 | AE62: 0 | AF62: =IF(AD62>0,SUMIFS(EnergiBranche!$G$10:$G$66,EnergiBranche!$D$10:$D$66,$R62),0) -> 0 | AG62: =CHOOSE(Lister!$E$96,L62,M62,N62) -> 0.35 | AH62: =CHOOSE(Lister!$E$102,O62,P62,Q62) -> 0.3 | AI62: =IFERROR(AH62*AG62*#REF!,0) -> 0 | AJ62: =CHOOSE(Lister!$E$108,Potentialer!S62,Potentialer!T62)/GJ_kWh -> 694.4444444 | AK62: 0 | AL62: 13.41203155 | AM62: 6002.6085 | AN62: =IFERROR(IF(W62=Lister!$G$33,IF(AL62<=ThresholdTilbagebetalingstid,1,0),IF(AL62=ThresholdTilbagebetalingstid,1,0)),0) -> 0 | AO62: 0 | AP62: =IFERROR(IF($W62=Lister!$G$33,IF($AL62<=AP$10,$AG62*$AH62,0),IF($AL62=AP$10,$AG62*$AH62,0)),0) -> 0 | AQ62: =IFERROR(IF($W62=Lister!$G$33,IF($AL62<=AQ$10,$AG62*$AH62,0),IF($AL62=AQ$10,$AG62*$AH62,0)),0) -> 0 | AR62: =IFERROR(IF($W62=Lister!$G$33,IF($AL62<=AR$10,$AG62*$AH62,0),IF($AL62=AR$10,$AG62*$AH62,0)),0) -> 0 | AS62: 0 | AT62: 0 | AU62: 0 | AV62: 0 | AW62: 6002.6085 | AX62: =OFFSET('Andel ift. virkstørrelse'!M$9,$G62,0) -> 0.05081555834 | AY62: =OFFSET('Andel ift. virkstørrelse'!N$9,$G62,0) -> 0.1704830615 | AZ62: =OFFSET('Andel ift. virkstørrelse'!O$9,$G62,0)+OFFSET('Andel ift. virkstørrelse'!P$9,$G62,0) -> 0.3303011292 | BA62: =OFFSET('Andel ift. virkstørrelse'!Q$9,$G62,0) -> 0.4484002509 | BB62: 305.0259024 | BC62: 1023.343074 | BD62: 1982.668366 | BE62: 2691.571158
D63: 53 | E63: =IF(COUNTIF(F63:$F$1997,$F63)>1,0,1) -> 1 | F63: =Teknologikatalog!D68 -> 25-14-1 | G63: =Teknologikatalog!E68 -> 25 | H63: =Teknologikatalog!F68 -> 14 | I63: =Teknologikatalog!G68 -> 4 | J63: =Teknologikatalog!I68 -> Belysning | K63: =Teknologikatalog!J68 -> Udskiftning af armatur fra lysstofrør til LED-lyskilde | L63: =Teknologikatalog!K68 -> 0.3 | M63: =Teknologikatalog!L68 -> 0.35 | N63: =Teknologikatalog!M68 -> 0.4 | O63: =Teknologikatalog!N68 -> 0.3 | P63: =Teknologikatalog!O68 -> 0.3 | Q63: =Teknologikatalog!P68 -> 0.3 | R63: =Teknologikatalog!Q68 -> Medicinalindustri | S63: =Teknologikatalog!R68 -> 2.5 | T63: =Teknologikatalog!S68 -> 3.5 | U63: =Teknologikatalog!T68 -> 0 | V63: =Teknologikatalog!U68 -> 0 | W63: =Teknologikatalog!V68 -> 2015-cases | X63: =Teknologikatalog!W68 -> 0 | Y63: =Teknologikatalog!X68 -> 0 | Z63: =VLOOKUP(R63,Lister!$D$114:$E$171,2,FALSE) -> Kemi+farma | AA63: =SUMIFS(Energiforbrug!$N$10:$N$27393,Energiforbrug!$D$10:$D$27393,$G63,Energiforbrug!$E$10:$E$27393,$H63) -> 43546.30167 | AB63: =SUMIFS(Energiforbrug!$P$10:$P$27393,Energiforbrug!$D$10:$D$27393,$G63,Energiforbrug!$E$10:$E$27393,$H63) -> 4567467.824 | AC63: 104.8876173 | AD63: =SUMIFS('Energiforbrug tværgående'!$G$10:$G$180,'Energiforbrug tværgående'!$D$10:$D$180,$J63,'Energiforbrug tværgående'!$E$10:$E$180,$R63)+IF(R63="På tværs",SUMIFS('Energiforbrug tværgående'!$G$10:$G$180,'Energiforbrug tværgående'!$D$10:$D$180,$J63),0) -> 0 | AE63: 0 | AF63: =IF(AD63>0,SUMIFS(EnergiBranche!$G$10:$G$66,EnergiBranche!$D$10:$D$66,$R63),0) -> 0 | AG63: =CHOOSE(Lister!$E$96,L63,M63,N63) -> 0.35 | AH63: =CHOOSE(Lister!$E$102,O63,P63,Q63) -> 0.3 | AI63: =IFERROR(AH63*AG63*#REF!,0) -> 0 | AJ63: =CHOOSE(Lister!$E$108,Potentialer!S63,Potentialer!T63)/GJ_kWh -> 694.4444444 | AK63: 0 | AL63: 18.91669422 | AM63: 4572.361675 | AN63: =IFERROR(IF(W63=Lister!$G$33,IF(AL63<=ThresholdTilbagebetalingstid,1,0),IF(AL63=ThresholdTilbagebetalingstid,1,0)),0) -> 0 | AO63: 0 | AP63: =IFERROR(IF($W63=Lister!$G$33,IF($AL63<=AP$10,$AG63*$AH63,0),IF($AL63=AP$10,$AG63*$AH63,0)),0) -> 0 | AQ63: =IFERROR(IF($W63=Lister!$G$33,IF($AL63<=AQ$10,$AG63*$AH63,0),IF($AL63=AQ$10,$AG63*$AH63,0)),0) -> 0 | AR63: =IFERROR(IF($W63=Lister!$G$33,IF($AL63<=AR$10,$AG63*$AH63,0),IF($AL63=AR$10,$AG63*$AH63,0)),0) -> 0 | AS63: 0 | AT63: 0 | AU63: 0 | AV63: 0 | AW63: 4572.361675 | AX63: =OFFSET('Andel ift. virkstørrelse'!M$9,$G63,0) -> 0.007409425225 | AY63: =OFFSET('Andel ift. virkstørrelse'!N$9,$G63,0) -> 0.03410514846 | AZ63: =OFFSET('Andel ift. virkstørrelse'!O$9,$G63,0)+OFFSET('Andel ift. virkstørrelse'!P$9,$G63,0) -> 0.1462271861 | BA63: =OFFSET('Andel ift. virkstørrelse'!Q$9,$G63,0) -> 0.8122582403 | BB63: 33.87857193 | BC63: 155.9410738 | BD63: 668.6035814 | BE63: 3713.938448
D64: 54 | E64: =IF(COUNTIF(F64:$F$1997,$F64)>1,0,1) -> 0 | F64: =Teknologikatalog!D69 -> 26-14-1 | G64: =Teknologikatalog!E69 -> 26 | H64: =Teknologikatalog!F69 -> 14 | I64: =Teknologikatalog!G69 -> 4 | J64: =Teknologikatalog!I69 -> Belysning | K64: =Teknologikatalog!J69 -> Udskiftning af armatur fra lysstofrør til LED-lyskilde | L64: =Teknologikatalog!K69 -> 0.3 | M64: =Teknologikatalog!L69 -> 0.35 | N64: =Teknologikatalog!M69 -> 0.4 | O64: =Teknologikatalog!N69 -> 0.3 | P64: =Teknologikatalog!O69 -> 0.3 | Q64: =Teknologikatalog!P69 -> 0.3 | R64: =Teknologikatalog!Q69 -> Plast- og gummiindustri | S64: =Teknologikatalog!R69 -> 2.5 | T64: =Teknologikatalog!S69 -> 3.5 | U64: =Teknologikatalog!T69 -> 0 | V64: =Teknologikatalog!U69 -> 0 | W64: =Teknologikatalog!V69 -> 2015-cases | X64: =Teknologikatalog!W69 -> 0 | Y64: =Teknologikatalog!X69 -> 0 | Z64: =VLOOKUP(R64,Lister!$D$114:$E$171,2,FALSE) -> Kemi+farma | AA64: =SUMIFS(Energiforbrug!$N$10:$N$27393,Energiforbrug!$D$10:$D$27393,$G64,Energiforbrug!$E$10:$E$27393,$H64) -> 129936.03 | AB64: =SUMIFS(Energiforbrug!$P$10:$P$27393,Energiforbrug!$D$10:$D$27393,$G64,Energiforbrug!$E$10:$E$27393,$H64) -> 16507287.15 | AC64: 127.0416462 | AD64: =SUMIFS('Energiforbrug tværgående'!$G$10:$G$180,'Energiforbrug tværgående'!$D$10:$D$180,$J64,'Energiforbrug tværgående'!$E$10:$E$180,$R64)+IF(R64="På tværs",SUMIFS('Energiforbrug tværgående'!$G$10:$G$180,'Energiforbrug tværgående'!$D$10:$D$180,$J64),0) -> 0 | AE64: 0 | AF64: =IF(AD64>0,SUMIFS(EnergiBranche!$G$10:$G$66,EnergiBranche!$D$10:$D$66,$R64),0) -> 0 | AG64: =CHOOSE(Lister!$E$96,L64,M64,N64) -> 0.35 | AH64: =CHOOSE(Lister!$E$102,O64,P64,Q64) -> 0.3 | AI64: =IFERROR(AH64*AG64*#REF!,0) -> 0 | AJ64: =CHOOSE(Lister!$E$108,Potentialer!S64,Potentialer!T64)/GJ_kWh -> 694.4444444 | AK64: 0 | AL64: 15.61792564 | AM64: 13643.28315 | AN64: =IFERROR(IF(W64=Lister!$G$33,IF(AL64<=ThresholdTilbagebetalingstid,1,0),IF(AL64=ThresholdTilbagebetalingstid,1,0)),0) -> 0 | AO64: 0 | AP64: =IFERROR(IF($W64=Lister!$G$33,IF($AL64<=AP$10,$AG64*$AH64,0),IF($AL64=AP$10,$AG64*$AH64,0)),0) -> 0 | AQ64: =IFERROR(IF($W64=Lister!$G$33,IF($AL64<=AQ$10,$AG64*$AH64,0),IF($AL64=AQ$10,$AG64*$AH64,0)),0) -> 0 | AR64: =IFERROR(IF($W64=Lister!$G$33,IF($AL64<=AR$10,$AG64*$AH64,0),IF($AL64=AR$10,$AG64*$AH64,0)),0) -> 0 | AS64: 0 | AT64: 0 | AU64: 0 | AV64: 0 | AW64: 13643.28315 | AX64: =OFFSET('Andel ift. virkstørrelse'!M$9,$G64,0) -> 0.0804963164 | AY64: =OFFSET('Andel ift. virkstørrelse'!N$9,$G64,0) -> 0.3094222567 | AZ64: =OFFSET('Andel ift. virkstørrelse'!O$9,$G64,0)+OFFSET('Andel ift. virkstørrelse'!P$9,$G64,0) -> 0.3502908104 | BA64: =OFFSET('Andel ift. virkstørrelse'!Q$9,$G64,0) -> 0.2597906165 | BB64: 1098.234037 | BC64: 4221.535461 | BD64: 4779.116711 | BE64: 3544.396941
D65: 55 | E65: =IF(COUNTIF(F65:$F$1997,$F65)>1,0,1) -> 1 | F65: =Teknologikatalog!D70 -> 27-14-1 | G65: =Teknologikatalog!E70 -> 27 | H65: =Teknologikatalog!F70 -> 14 | I65: =Teknologikatalog!G70 -> 4 | J65: =Teknologikatalog!I70 -> Belysning | K65: =Teknologikatalog!J70 -> Udskiftning af armatur fra lysstofrør til LED-lyskilde | L65: =Teknologikatalog!K70 -> 0.3 | M65: =Teknologikatalog!L70 -> 0.35 | N65: =Teknologikatalog!M70 -> 0.4 | O65: =Teknologikatalog!N70 -> 0.3 | P65: =Teknologikatalog!O70 -> 0.3 | Q65: =Teknologikatalog!P70 -> 0.3 | R65: =Teknologikatalog!Q70 -> Glasindustri og keramisk industri | S65: =Teknologikatalog!R70 -> 2.5 | T65: =Teknologikatalog!S70 -> 3.5 | U65: =Teknologikatalog!T70 -> 0 | V65: =Teknologikatalog!U70 -> 0 | W65: =Teknologikatalog!V70 -> 2015-cases | X65: =Teknologikatalog!W70 -> 0 | Y65: =Teknologikatalog!X70 -> 0 | Z65: =VLOOKUP(R65,Lister!$D$114:$E$171,2,FALSE) -> Byggematerialer | AA65: =SUMIFS(Energiforbrug!$N$10:$N$27393,Energiforbrug!$D$10:$D$27393,$G65,Energiforbrug!$E$10:$E$27393,$H65) -> 26674 | AB65: =SUMIFS(Energiforbrug!$P$10:$P$27393,Energiforbrug!$D$10:$D$27393,$G65,Energiforbrug!$E$10:$E$27393,$H65) -> 3544293.239 | AC65: 132.874456 | AD65: =SUMIFS('Energiforbrug tværgående'!$G$10:$G$180,'Energiforbrug tværgående'!$D$10:$D$180,$J65,'Energiforbrug tværgående'!$E$10:$E$180,$R65)+IF(R65="På tværs",SUMIFS('Energiforbrug tværgående'!$G$10:$G$180,'Energiforbrug tværgående'!$D$10:$D$180,$J65),0) -> 0 | AE65: 0 | AF65: =IF(AD65>0,SUMIFS(EnergiBranche!$G$10:$G$66,EnergiBranche!$D$10:$D$66,$R65),0) -> 0 | AG65: =CHOOSE(Lister!$E$96,L65,M65,N65) -> 0.35 | AH65: =CHOOSE(Lister!$E$102,O65,P65,Q65) -> 0.3 | AI65: =IFERROR(AH65*AG65*#REF!,0) -> 0 | AJ65: =CHOOSE(Lister!$E$108,Potentialer!S65,Potentialer!T65)/GJ_kWh -> 694.4444444 | AK65: 0 | AL65: 14.93234323 | AM65: 2800.77 | AN65: =IFERROR(IF(W65=Lister!$G$33,IF(AL65<=ThresholdTilbagebetalingstid,1,0),IF(AL65=ThresholdTilbagebetalingstid,1,0)),0) -> 0 | AO65: 0 | AP65: =IFERROR(IF($W65=Lister!$G$33,IF($AL65<=AP$10,$AG65*$AH65,0),IF($AL65=AP$10,$AG65*$AH65,0)),0) -> 0 | AQ65: =IFERROR(IF($W65=Lister!$G$33,IF($AL65<=AQ$10,$AG65*$AH65,0),IF($AL65=AQ$10,$AG65*$AH65,0)),0) -> 0 | AR65: =IFERROR(IF($W65=Lister!$G$33,IF($AL65<=AR$10,$AG65*$AH65,0),IF($AL65=AR$10,$AG65*$AH65,0)),0) -> 0 | AS65: 0 | AT65: 0 | AU65: 0 | AV65: 0 | AW65: 2800.77 | AX65: =OFFSET('Andel ift. virkstørrelse'!M$9,$G65,0) -> 0.1801843318 | AY65: =OFFSET('Andel ift. virkstørrelse'!N$9,$G65,0) -> 0.269124424 | AZ65: =OFFSET('Andel ift. virkstørrelse'!O$9,$G65,0)+OFFSET('Andel ift. virkstørrelse'!P$9,$G65,0) -> 0.3202764977 | BA65: =OFFSET('Andel ift. virkstørrelse'!Q$9,$G65,0) -> 0.2304147465 | BB65: 504.654871 | BC65: 753.7556129 | BD65: 897.0208065 | BE65: 645.3387097
D66: 56 | E66: =IF(COUNTIF(F66:$F$1997,$F66)>1,0,1) -> 1 | F66: =Teknologikatalog!D71 -> 28-14-1 | G66: =Teknologikatalog!E71 -> 28 | H66: =Teknologikatalog!F71 -> 14 | I66: =Teknologikatalog!G71 -> 4 | J66: =Teknologikatalog!I71 -> Belysning | K66: =Teknologikatalog!J71 -> Udskiftning af armatur fra lysstofrør til LED-lyskilde | L66: =Teknologikatalog!K71 -> 0.3 | M66: =Teknologikatalog!L71 -> 0.35 | N66: =Teknologikatalog!M71 -> 0.4 | O66: =Teknologikatalog!N71 -> 0.3 | P66: =Teknologikatalog!O71 -> 0.3 | Q66: =Teknologikatalog!P71 -> 0.3 | R66: =Teknologikatalog!Q71 -> Fremstilling af cement | S66: =Teknologikatalog!R71 -> 2.5 | T66: =Teknologikatalog!S71 -> 3.5 | U66: =Teknologikatalog!T71 -> 0 | V66: =Teknologikatalog!U71 -> 0 | W66: =Teknologikatalog!V71 -> 2015-cases | X66: =Teknologikatalog!W71 -> 0 | Y66: =Teknologikatalog!X71 -> 0 | Z66: =VLOOKUP(R66,Lister!$D$114:$E$171,2,FALSE) -> Byggematerialer | AA66: =SUMIFS(Energiforbrug!$N$10:$N$27393,Energiforbrug!$D$10:$D$27393,$G66,Energiforbrug!$E$10:$E$27393,$H66) -> 51907.5027 | AB66: =SUMIFS(Energiforbrug!$P$10:$P$27393,Energiforbrug!$D$10:$D$27393,$G66,Energiforbrug!$E$10:$E$27393,$H66) -> 7582148.994 | AC66: 146.0703867 | AD66: =SUMIFS('Energiforbrug tværgående'!$G$10:$G$180,'Energiforbrug tværgående'!$D$10:$D$180,$J66,'Energiforbrug tværgående'!$E$10:$E$180,$R66)+IF(R66="På tværs",SUMIFS('Energiforbrug tværgående'!$G$10:$G$180,'Energiforbrug tværgående'!$D$10:$D$180,$J66),0) -> 0 | AE66: 0 | AF66: =IF(AD66>0,SUMIFS(EnergiBranche!$G$10:$G$66,EnergiBranche!$D$10:$D$66,$R66),0) -> 0 | AG66: =CHOOSE(Lister!$E$96,L66,M66,N66) -> 0.35 | AH66: =CHOOSE(Lister!$E$102,O66,P66,Q66) -> 0.3 | AI66: =IFERROR(AH66*AG66*#REF!,0) -> 0 | AJ66: =CHOOSE(Lister!$E$108,Potentialer!S66,Potentialer!T66)/GJ_kWh -> 694.4444444 | AK66: 0 | AL66: 13.5833623 | AM66: 5450.287783 | AN66: =IFERROR(IF(W66=Lister!$G$33,IF(AL66<=ThresholdTilbagebetalingstid,1,0),IF(AL66=ThresholdTilbagebetalingstid,1,0)),0) -> 0 | AO66: 0 | AP66: =IFERROR(IF($W66=Lister!$G$33,IF($AL66<=AP$10,$AG66*$AH66,0),IF($AL66=AP$10,$AG66*$AH66,0)),0) -> 0 | AQ66: =IFERROR(IF($W66=Lister!$G$33,IF($AL66<=AQ$10,$AG66*$AH66,0),IF($AL66=AQ$10,$AG66*$AH66,0)),0) -> 0 | AR66: =IFERROR(IF($W66=Lister!$G$33,IF($AL66<=AR$10,$AG66*$AH66,0),IF($AL66=AR$10,$AG66*$AH66,0)),0) -> 0 | AS66: 0 | AT66: 0 | AU66: 0 | AV66: 0 | AW66: 5450.287783 | AX66: =OFFSET('Andel ift. virkstørrelse'!M$9,$G66,0) -> 0.106630281 | AY66: =OFFSET('Andel ift. virkstørrelse'!N$9,$G66,0) -> 0.3461693956 | AZ66: =OFFSET('Andel ift. virkstørrelse'!O$9,$G66,0)+OFFSET('Andel ift. virkstørrelse'!P$9,$G66,0) -> 0.4966646452 | BA66: =OFFSET('Andel ift. virkstørrelse'!Q$9,$G66,0) -> 0.05053567819 | BB66: 581.1657178 | BC66: 1886.722828 | BD66: 2706.965248 | BE66: 275.4339895
D67: 57 | E67: =IF(COUNTIF(F67:$F$1997,$F67)>1,0,1) -> 1 | F67: =Teknologikatalog!D72 -> 29-14-1 | G67: =Teknologikatalog!E72 -> 29 | H67: =Teknologikatalog!F72 -> 14 | I67: =Teknologikatalog!G72 -> 4 | J67: =Teknologikatalog!I72 -> Belysning | K67: =Teknologikatalog!J72 -> Udskiftning af armatur fra lysstofrør til LED-lyskilde | L67: =Teknologikatalog!K72 -> 0.3 | M67: =Teknologikatalog!L72 -> 0.35 | N67: =Teknologikatalog!M72 -> 0.4 | O67: =Teknologikatalog!N72 -> 0.3 | P67: =Teknologikatalog!O72 -> 0.3 | Q67: =Teknologikatalog!P72 -> 0.3 | R67: =Teknologikatalog!Q72 -> Fremstilling af teglsten mv. | S67: =Teknologikatalog!R72 -> 2.5 | T67: =Teknologikatalog!S72 -> 3.5 | U67: =Teknologikatalog!T72 -> 0 | V67: =Teknologikatalog!U72 -> 0 | W67: =Teknologikatalog!V72 -> 2015-cases | X67: =Teknologikatalog!W72 -> 0 | Y67: =Teknologikatalog!X72 -> 0 | Z67: =VLOOKUP(R67,Lister!$D$114:$E$171,2,FALSE) -> Byggematerialer | AA67: =SUMIFS(Energiforbrug!$N$10:$N$27393,Energiforbrug!$D$10:$D$27393,$G67,Energiforbrug!$E$10:$E$27393,$H67) -> 2434.9 | AB67: =SUMIFS(Energiforbrug!$P$10:$P$27393,Energiforbrug!$D$10:$D$27393,$G67,Energiforbrug!$E$10:$E$27393,$H67) -> 355666.7847 | AC67: 146.0703867 | AD67: =SUMIFS('Energiforbrug tværgående'!$G$10:$G$180,'Energiforbrug tværgående'!$D$10:$D$180,$J67,'Energiforbrug tværgående'!$E$10:$E$180,$R67)+IF(R67="På tværs",SUMIFS('Energiforbrug tværgående'!$G$10:$G$180,'Energiforbrug tværgående'!$D$10:$D$180,$J67),0) -> 0 | AE67: 0 | AF67: =IF(AD67>0,SUMIFS(EnergiBranche!$G$10:$G$66,EnergiBranche!$D$10:$D$66,$R67),0) -> 0 | AG67: =CHOOSE(Lister!$E$96,L67,M67,N67) -> 0.35 | AH67: =CHOOSE(Lister!$E$102,O67,P67,Q67) -> 0.3 | AI67: =IFERROR(AH67*AG67*#REF!,0) -> 0 | AJ67: =CHOOSE(Lister!$E$108,Potentialer!S67,Potentialer!T67)/GJ_kWh -> 694.4444444 | AK67: 0 | AL67: 13.5833623 | AM67: 255.6645 | AN67: =IFERROR(IF(W67=Lister!$G$33,IF(AL67<=ThresholdTilbagebetalingstid,1,0),IF(AL67=ThresholdTilbagebetalingstid,1,0)),0) -> 0 | AO67: 0 | AP67: =IFERROR(IF($W67=Lister!$G$33,IF($AL67<=AP$10,$AG67*$AH67,0),IF($AL67=AP$10,$AG67*$AH67,0)),0) -> 0 | AQ67: =IFERROR(IF($W67=Lister!$G$33,IF($AL67<=AQ$10,$AG67*$AH67,0),IF($AL67=AQ$10,$AG67*$AH67,0)),0) -> 0 | AR67: =IFERROR(IF($W67=Lister!$G$33,IF($AL67<=AR$10,$AG67*$AH67,0),IF($AL67=AR$10,$AG67*$AH67,0)),0) -> 0 | AS67: 0 | AT67: 0 | AU67: 0 | AV67: 0 | AW67: 255.6645 | AX67: =OFFSET('Andel ift. virkstørrelse'!M$9,$G67,0) -> 0.106630281 | AY67: =OFFSET('Andel ift. virkstørrelse'!N$9,$G67,0) -> 0.3461693956 | AZ67: =OFFSET('Andel ift. virkstørrelse'!O$9,$G67,0)+OFFSET('Andel ift. virkstørrelse'!P$9,$G67,0) -> 0.4966646452 | BA67: =OFFSET('Andel ift. virkstørrelse'!Q$9,$G67,0) -> 0.05053567819 | BB67: 27.26157747 | BC67: 88.50322544 | BD67: 126.9795182 | BE67: 12.9201789
D68: 58 | E68: =IF(COUNTIF(F68:$F$1997,$F68)>1,0,1) -> 1 | F68: =Teknologikatalog!D73 -> 30-14-1 | G68: =Teknologikatalog!E73 -> 30 | H68: =Teknologikatalog!F73 -> 14 | I68: =Teknologikatalog!G73 -> 4 | J68: =Teknologikatalog!I73 -> Belysning | K68: =Teknologikatalog!J73 -> Udskiftning af armatur fra lysstofrør til LED-lyskilde | L68: =Teknologikatalog!K73 -> 0.3 | M68: =Teknologikatalog!L73 -> 0.35 | N68: =Teknologikatalog!M73 -> 0.4 | O68: =Teknologikatalog!N73 -> 0.3 | P68: =Teknologikatalog!O73 -> 0.3 | Q68: =Teknologikatalog!P73 -> 0.3 | R68: =Teknologikatalog!Q73 -> Fremstilling af asfalt og tagpap | S68: =Teknologikatalog!R73 -> 2.5 | T68: =Teknologikatalog!S73 -> 3.5 | U68: =Teknologikatalog!T73 -> 0 | V68: =Teknologikatalog!U73 -> 0 | W68: =Teknologikatalog!V73 -> 2015-cases | X68: =Teknologikatalog!W73 -> 0 | Y68: =Teknologikatalog!X73 -> 0 | Z68: =VLOOKUP(R68,Lister!$D$114:$E$171,2,FALSE) -> Byggematerialer | AA68: =SUMIFS(Energiforbrug!$N$10:$N$27393,Energiforbrug!$D$10:$D$27393,$G68,Energiforbrug!$E$10:$E$27393,$H68) -> 4947.76 | AB68: =SUMIFS(Energiforbrug!$P$10:$P$27393,Energiforbrug!$D$10:$D$27393,$G68,Energiforbrug!$E$10:$E$27393,$H68) -> 722721.2167 | AC68: 146.0703867 | AD68: =SUMIFS('Energiforbrug tværgående'!$G$10:$G$180,'Energiforbrug tværgående'!$D$10:$D$180,$J68,'Energiforbrug tværgående'!$E$10:$E$180,$R68)+IF(R68="På tværs",SUMIFS('Energiforbrug tværgående'!$G$10:$G$180,'Energiforbrug tværgående'!$D$10:$D$180,$J68),0) -> 0 | AE68: 0 | AF68: =IF(AD68>0,SUMIFS(EnergiBranche!$G$10:$G$66,EnergiBranche!$D$10:$D$66,$R68),0) -> 0 | AG68: =CHOOSE(Lister!$E$96,L68,M68,N68) -> 0.35 | AH68: =CHOOSE(Lister!$E$102,O68,P68,Q68) -> 0.3 | AI68: =IFERROR(AH68*AG68*#REF!,0) -> 0 | AJ68: =CHOOSE(Lister!$E$108,Potentialer!S68,Potentialer!T68)/GJ_kWh -> 694.4444444 | AK68: 0 | AL68: 13.5833623 | AM68: 519.5148 | AN68: =IFERROR(IF(W68=Lister!$G$33,IF(AL68<=ThresholdTilbagebetalingstid,1,0),IF(AL68=ThresholdTilbagebetalingstid,1,0)),0) -> 0 | AO68: 0 | AP68: =IFERROR(IF($W68=Lister!$G$33,IF($AL68<=AP$10,$AG68*$AH68,0),IF($AL68=AP$10,$AG68*$AH68,0)),0) -> 0 | AQ68: =IFERROR(IF($W68=Lister!$G$33,IF($AL68<=AQ$10,$AG68*$AH68,0),IF($AL68=AQ$10,$AG68*$AH68,0)),0) -> 0 | AR68: =IFERROR(IF($W68=Lister!$G$33,IF($AL68<=AR$10,$AG68*$AH68,0),IF($AL68=AR$10,$AG68*$AH68,0)),0) -> 0 | AS68: 0 | AT68: 0 | AU68: 0 | AV68: 0 | AW68: 519.5148 | AX68: =OFFSET('Andel ift. virkstørrelse'!M$9,$G68,0) -> 0.106630281 | AY68: =OFFSET('Andel ift. virkstørrelse'!N$9,$G68,0) -> 0.3461693956 | AZ68: =OFFSET('Andel ift. virkstørrelse'!O$9,$G68,0)+OFFSET('Andel ift. virkstørrelse'!P$9,$G68,0) -> 0.4966646452 | BA68: =OFFSET('Andel ift. virkstørrelse'!Q$9,$G68,0) -> 0.05053567819 | BB68: 55.3960091 | BC68: 179.8401243 | BD68: 258.0246338 | BE68: 26.25403275
D69: 59 | E69: =IF(COUNTIF(F69:$F$1997,$F69)>1,0,1) -> 1 | F69: =Teknologikatalog!D74 -> 31-14-1 | G69: =Teknologikatalog!E74 -> 31 | H69: =Teknologikatalog!F74 -> 14 | I69: =Teknologikatalog!G74 -> 4 | J69: =Teknologikatalog!I74 -> Belysning | K69: =Teknologikatalog!J74 -> Udskiftning af armatur fra lysstofrør til LED-lyskilde | L69: =Teknologikatalog!K74 -> 0.3 | M69: =Teknologikatalog!L74 -> 0.35 | N69: =Teknologikatalog!M74 -> 0.4 | O69: =Teknologikatalog!N74 -> 0.3 | P69: =Teknologikatalog!O74 -> 0.3 | Q69: =Teknologikatalog!P74 -> 0.3 | R69: =Teknologikatalog!Q74 -> Fremstilling af stenuld mv. | S69: =Teknologikatalog!R74 -> 2.5 | T69: =Teknologikatalog!S74 -> 3.5 | U69: =Teknologikatalog!T74 -> 0 | V69: =Teknologikatalog!U74 -> 0 | W69: =Teknologikatalog!V74 -> 2015-cases | X69: =Teknologikatalog!W74 -> 0 | Y69: =Teknologikatalog!X74 -> 0 | Z69: =VLOOKUP(R69,Lister!$D$114:$E$171,2,FALSE) -> Byggematerialer | AA69: =SUMIFS(Energiforbrug!$N$10:$N$27393,Energiforbrug!$D$10:$D$27393,$G69,Energiforbrug!$E$10:$E$27393,$H69) -> 34093.7 | AB69: =SUMIFS(Energiforbrug!$P$10:$P$27393,Energiforbrug!$D$10:$D$27393,$G69,Energiforbrug!$E$10:$E$27393,$H69) -> 4980079.944 | AC69: 146.0703867 | AD69: =SUMIFS('Energiforbrug tværgående'!$G$10:$G$180,'Energiforbrug tværgående'!$D$10:$D$180,$J69,'Energiforbrug tværgående'!$E$10:$E$180,$R69)+IF(R69="På tværs",SUMIFS('Energiforbrug tværgående'!$G$10:$G$180,'Energiforbrug tværgående'!$D$10:$D$180,$J69),0) -> 0 | AE69: 0 | AF69: =IF(AD69>0,SUMIFS(EnergiBranche!$G$10:$G$66,EnergiBranche!$D$10:$D$66,$R69),0) -> 0 | AG69: =CHOOSE(Lister!$E$96,L69,M69,N69) -> 0.35 | AH69: =CHOOSE(Lister!$E$102,O69,P69,Q69) -> 0.3 | AI69: =IFERROR(AH69*AG69*#REF!,0) -> 0 | AJ69: =CHOOSE(Lister!$E$108,Potentialer!S69,Potentialer!T69)/GJ_kWh -> 694.4444444 | AK69: 0 | AL69: 13.5833623 | AM69: 3579.8385 | AN69: =IFERROR(IF(W69=Lister!$G$33,IF(AL69<=ThresholdTilbagebetalingstid,1,0),IF(AL69=ThresholdTilbagebetalingstid,1,0)),0) -> 0 | AO69: 0 | AP69: =IFERROR(IF($W69=Lister!$G$33,IF($AL69<=AP$10,$AG69*$AH69,0),IF($AL69=AP$10,$AG69*$AH69,0)),0) -> 0 | AQ69: =IFERROR(IF($W69=Lister!$G$33,IF($AL69<=AQ$10,$AG69*$AH69,0),IF($AL69=AQ$10,$AG69*$AH69,0)),0) -> 0 | AR69: =IFERROR(IF($W69=Lister!$G$33,IF($AL69<=AR$10,$AG69*$AH69,0),IF($AL69=AR$10,$AG69*$AH69,0)),0) -> 0 | AS69: 0 | AT69: 0 | AU69: 0 | AV69: 0 | AW69: 3579.8385 | AX69: =OFFSET('Andel ift. virkstørrelse'!M$9,$G69,0) -> 0.106630281 | AY69: =OFFSET('Andel ift. virkstørrelse'!N$9,$G69,0) -> 0.3461693956 | AZ69: =OFFSET('Andel ift. virkstørrelse'!O$9,$G69,0)+OFFSET('Andel ift. virkstørrelse'!P$9,$G69,0) -> 0.4966646452 | BA69: =OFFSET('Andel ift. virkstørrelse'!Q$9,$G69,0) -> 0.05053567819 | BB69: 381.7191851 | BC69: 1239.23053 | BD69: 1777.979219 | BE69: 180.9095664
D70: 60 | E70: =IF(COUNTIF(F70:$F$1997,$F70)>1,0,1) -> 1 | F70: =Teknologikatalog!D75 -> 32-14-1 | G70: =Teknologikatalog!E75 -> 32 | H70: =Teknologikatalog!F75 -> 14 | I70: =Teknologikatalog!G75 -> 4 | J70: =Teknologikatalog!I75 -> Belysning | K70: =Teknologikatalog!J75 -> Udskiftning af armatur fra lysstofrør til LED-lyskilde | L70: =Teknologikatalog!K75 -> 0.3 | M70: =Teknologikatalog!L75 -> 0.35 | N70: =Teknologikatalog!M75 -> 0.4 | O70: =Teknologikatalog!N75 -> 0.3 | P70: =Teknologikatalog!O75 -> 0.3 | Q70: =Teknologikatalog!P75 -> 0.3 | R70: =Teknologikatalog!Q75 -> Øvrig betonindustri | S70: =Teknologikatalog!R75 -> 2.5 | T70: =Teknologikatalog!S75 -> 3.5 | U70: =Teknologikatalog!T75 -> 0 | V70: =Teknologikatalog!U75 -> 0 | W70: =Teknologikatalog!V75 -> 2015-cases | X70: =Teknologikatalog!W75 -> 0 | Y70: =Teknologikatalog!X75 -> 0 | Z70: =VLOOKUP(R70,Lister!$D$114:$E$171,2,FALSE) -> Byggematerialer | AA70: =SUMIFS(Energiforbrug!$N$10:$N$27393,Energiforbrug!$D$10:$D$27393,$G70,Energiforbrug!$E$10:$E$27393,$H70) -> 14934.35 | AB70: =SUMIFS(Energiforbrug!$P$10:$P$27393,Energiforbrug!$D$10:$D$27393,$G70,Energiforbrug!$E$10:$E$27393,$H70) -> 2181466.28 | AC70: 146.0703867 | AD70: =SUMIFS('Energiforbrug tværgående'!$G$10:$G$180,'Energiforbrug tværgående'!$D$10:$D$180,$J70,'Energiforbrug tværgående'!$E$10:$E$180,$R70)+IF(R70="På tværs",SUMIFS('Energiforbrug tværgående'!$G$10:$G$180,'Energiforbrug tværgående'!$D$10:$D$180,$J70),0) -> 0 | AE70: 0 | AF70: =IF(AD70>0,SUMIFS(EnergiBranche!$G$10:$G$66,EnergiBranche!$D$10:$D$66,$R70),0) -> 0 | AG70: =CHOOSE(Lister!$E$96,L70,M70,N70) -> 0.35 | AH70: =CHOOSE(Lister!$E$102,O70,P70,Q70) -> 0.3 | AI70: =IFERROR(AH70*AG70*#REF!,0) -> 0 | AJ70: =CHOOSE(Lister!$E$108,Potentialer!S70,Potentialer!T70)/GJ_kWh -> 694.4444444 | AK70: 0 | AL70: 13.5833623 | AM70: 1568.10675 | AN70: =IFERROR(IF(W70=Lister!$G$33,IF(AL70<=ThresholdTilbagebetalingstid,1,0),IF(AL70=ThresholdTilbagebetalingstid,1,0)),0) -> 0 | AO70: 0 | AP70: =IFERROR(IF($W70=Lister!$G$33,IF($AL70<=AP$10,$AG70*$AH70,0),IF($AL70=AP$10,$AG70*$AH70,0)),0) -> 0 | AQ70: =IFERROR(IF($W70=Lister!$G$33,IF($AL70<=AQ$10,$AG70*$AH70,0),IF($AL70=AQ$10,$AG70*$AH70,0)),0) -> 0 | AR70: =IFERROR(IF($W70=Lister!$G$33,IF($AL70<=AR$10,$AG70*$AH70,0),IF($AL70=AR$10,$AG70*$AH70,0)),0) -> 0 | AS70: 0 | AT70: 0 | AU70: 0 | AV70: 0 | AW70: 1568.10675 | AX70: =OFFSET('Andel ift. virkstørrelse'!M$9,$G70,0) -> 0.106630281 | AY70: =OFFSET('Andel ift. virkstørrelse'!N$9,$G70,0) -> 0.3461693956 | AZ70: =OFFSET('Andel ift. virkstørrelse'!O$9,$G70,0)+OFFSET('Andel ift. virkstørrelse'!P$9,$G70,0) -> 0.4966646452 | BA70: =OFFSET('Andel ift. virkstørrelse'!Q$9,$G70,0) -> 0.05053567819 | BB70: 167.2076634 | BC70: 542.8305659 | BD70: 778.8231827 | BE70: 79.24533808
D71: 61 | E71: =IF(COUNTIF(F71:$F$1997,$F71)>1,0,1) -> 1 | F71: =Teknologikatalog!D76 -> 33-14-1 | G71: =Teknologikatalog!E76 -> 33 | H71: =Teknologikatalog!F76 -> 14 | I71: =Teknologikatalog!G76 -> 4 | J71: =Teknologikatalog!I76 -> Belysning | K71: =Teknologikatalog!J76 -> Udskiftning af armatur fra lysstofrør til LED-lyskilde | L71: =Teknologikatalog!K76 -> 0.3 | M71: =Teknologikatalog!L76 -> 0.35 | N71: =Teknologikatalog!M76 -> 0.4 | O71: =Teknologikatalog!N76 -> 0.3 | P71: =Teknologikatalog!O76 -> 0.3 | Q71: =Teknologikatalog!P76 -> 0.3 | R71: =Teknologikatalog!Q76 -> Fremstilling af metal | S71: =Teknologikatalog!R76 -> 2.5 | T71: =Teknologikatalog!S76 -> 3.5 | U71: =Teknologikatalog!T76 -> 0 | V71: =Teknologikatalog!U76 -> 0 | W71: =Teknologikatalog!V76 -> 2015-cases | X71: =Teknologikatalog!W76 -> 0 | Y71: =Teknologikatalog!X76 -> 0 | Z71: =VLOOKUP(R71,Lister!$D$114:$E$171,2,FALSE) -> Metal | AA71: =SUMIFS(Energiforbrug!$N$10:$N$27393,Energiforbrug!$D$10:$D$27393,$G71,Energiforbrug!$E$10:$E$27393,$H71) -> 39889.71 | AB71: =SUMIFS(Energiforbrug!$P$10:$P$27393,Energiforbrug!$D$10:$D$27393,$G71,Energiforbrug!$E$10:$E$27393,$H71) -> 6127066.733 | AC71: 153.6001824 | AD71: =SUMIFS('Energiforbrug tværgående'!$G$10:$G$180,'Energiforbrug tværgående'!$D$10:$D$180,$J71,'Energiforbrug tværgående'!$E$10:$E$180,$R71)+IF(R71="På tværs",SUMIFS('Energiforbrug tværgående'!$G$10:$G$180,'Energiforbrug tværgående'!$D$10:$D$180,$J71),0) -> 0 | AE71: 0 | AF71: =IF(AD71>0,SUMIFS(EnergiBranche!$G$10:$G$66,EnergiBranche!$D$10:$D$66,$R71),0) -> 0 | AG71: =CHOOSE(Lister!$E$96,L71,M71,N71) -> 0.35 | AH71: =CHOOSE(Lister!$E$102,O71,P71,Q71) -> 0.3 | AI71: =IFERROR(AH71*AG71*#REF!,0) -> 0 | AJ71: =CHOOSE(Lister!$E$108,Potentialer!S71,Potentialer!T71)/GJ_kWh -> 694.4444444 | AK71: 0 | AL71: 12.91747805 | AM71: 4188.41955 | AN71: =IFERROR(IF(W71=Lister!$G$33,IF(AL71<=ThresholdTilbagebetalingstid,1,0),IF(AL71=ThresholdTilbagebetalingstid,1,0)),0) -> 0 | AO71: 0 | AP71: =IFERROR(IF($W71=Lister!$G$33,IF($AL71<=AP$10,$AG71*$AH71,0),IF($AL71=AP$10,$AG71*$AH71,0)),0) -> 0 | AQ71: =IFERROR(IF($W71=Lister!$G$33,IF($AL71<=AQ$10,$AG71*$AH71,0),IF($AL71=AQ$10,$AG71*$AH71,0)),0) -> 0 | AR71: =IFERROR(IF($W71=Lister!$G$33,IF($AL71<=AR$10,$AG71*$AH71,0),IF($AL71=AR$10,$AG71*$AH71,0)),0) -> 0 | AS71: 0 | AT71: 0 | AU71: 0 | AV71: 0 | AW71: 4188.41955 | AX71: =OFFSET('Andel ift. virkstørrelse'!M$9,$G71,0) -> 0.07001591271 | AY71: =OFFSET('Andel ift. virkstørrelse'!N$9,$G71,0) -> 0.2189133894 | AZ71: =OFFSET('Andel ift. virkstørrelse'!O$9,$G71,0)+OFFSET('Andel ift. virkstørrelse'!P$9,$G71,0) -> 0.3850875199 | BA71: =OFFSET('Andel ift. virkstørrelse'!Q$9,$G71,0) -> 0.325983178 | BB71: 293.2560176 | BC71: 916.9011199 | BD71: 1612.908097 | BE71: 1365.354316
D72: 62 | E72: =IF(COUNTIF(F72:$F$1997,$F72)>1,0,1) -> 0 | F72: =Teknologikatalog!D77 -> 34-14-1 | G72: =Teknologikatalog!E77 -> 34 | H72: =Teknologikatalog!F77 -> 14 | I72: =Teknologikatalog!G77 -> 4 | J72: =Teknologikatalog!I77 -> Belysning | K72: =Teknologikatalog!J77 -> Udskiftning af armatur fra lysstofrør til LED-lyskilde | L72: =Teknologikatalog!K77 -> 0.3 | M72: =Teknologikatalog!L77 -> 0.35 | N72: =Teknologikatalog!M77 -> 0.4 | O72: =Teknologikatalog!N77 -> 0.3 | P72: =Teknologikatalog!O77 -> 0.3 | Q72: =Teknologikatalog!P77 -> 0.3 | R72: =Teknologikatalog!Q77 -> Metalvareindustri | S72: =Teknologikatalog!R77 -> 2.5 | T72: =Teknologikatalog!S77 -> 3.5 | U72: =Teknologikatalog!T77 -> 0 | V72: =Teknologikatalog!U77 -> 0 | W72: =Teknologikatalog!V77 -> 2015-cases | X72: =Teknologikatalog!W77 -> 0 | Y72: =Teknologikatalog!X77 -> 0 | Z72: =VLOOKUP(R72,Lister!$D$114:$E$171,2,FALSE) -> Metal | AA72: =SUMIFS(Energiforbrug!$N$10:$N$27393,Energiforbrug!$D$10:$D$27393,$G72,Energiforbrug!$E$10:$E$27393,$H72) -> 209749.32 | AB72: =SUMIFS(Energiforbrug!$P$10:$P$27393,Energiforbrug!$D$10:$D$27393,$G72,Energiforbrug!$E$10:$E$27393,$H72) -> 26192682.87 | AC72: 124.8761277 | AD72: =SUMIFS('Energiforbrug tværgående'!$G$10:$G$180,'Energiforbrug tværgående'!$D$10:$D$180,$J72,'Energiforbrug tværgående'!$E$10:$E$180,$R72)+IF(R72="På tværs",SUMIFS('Energiforbrug tværgående'!$G$10:$G$180,'Energiforbrug tværgående'!$D$10:$D$180,$J72),0) -> 0 | AE72: 0 | AF72: =IF(AD72>0,SUMIFS(EnergiBranche!$G$10:$G$66,EnergiBranche!$D$10:$D$66,$R72),0) -> 0 | AG72: =CHOOSE(Lister!$E$96,L72,M72,N72) -> 0.35 | AH72: =CHOOSE(Lister!$E$102,O72,P72,Q72) -> 0.3 | AI72: =IFERROR(AH72*AG72*#REF!,0) -> 0 | AJ72: =CHOOSE(Lister!$E$108,Potentialer!S72,Potentialer!T72)/GJ_kWh -> 694.4444444 | AK72: 0 | AL72: 15.88876129 | AM72: 22023.6786 | AN72: =IFERROR(IF(W72=Lister!$G$33,IF(AL72<=ThresholdTilbagebetalingstid,1,0),IF(AL72=ThresholdTilbagebetalingstid,1,0)),0) -> 0 | AO72: 0 | AP72: =IFERROR(IF($W72=Lister!$G$33,IF($AL72<=AP$10,$AG72*$AH72,0),IF($AL72=AP$10,$AG72*$AH72,0)),0) -> 0 | AQ72: =IFERROR(IF($W72=Lister!$G$33,IF($AL72<=AQ$10,$AG72*$AH72,0),IF($AL72=AQ$10,$AG72*$AH72,0)),0) -> 0 | AR72: =IFERROR(IF($W72=Lister!$G$33,IF($AL72<=AR$10,$AG72*$AH72,0),IF($AL72=AR$10,$AG72*$AH72,0)),0) -> 0 | AS72: 0 | AT72: 0 | AU72: 0 | AV72: 0 | AW72: 22023.6786 | AX72: =OFFSET('Andel ift. virkstørrelse'!M$9,$G72,0) -> 0.1790468012 | AY72: =OFFSET('Andel ift. virkstørrelse'!N$9,$G72,0) -> 0.4294608354 | AZ72: =OFFSET('Andel ift. virkstørrelse'!O$9,$G72,0)+OFFSET('Andel ift. virkstørrelse'!P$9,$G72,0) -> 0.3212598908 | BA72: =OFFSET('Andel ift. virkstørrelse'!Q$9,$G72,0) -> 0.07023247255 | BB72: 3943.269204 | BC72: 9458.307411 | BD72: 7075.324582 | BE72: 1546.777403
